Workbook

Sheet RESUMO MODULO TOTAL
A1: CONTRATAÇÃO DE EXECUÇÃO DE PAVIMENTO ASFÁLTICO COM CBUQ, EM VIAS DE DIVERSOS MUNICÍPIOS DA MESORREGIÃO DA MATA PERNAMBUCANA, ÁREA DE ATUAÇÃO DA 15ª SUPERINTENDÊNCIA REGIONAL DA CODEVASF.
L2: SICRO: | M2: ='SINTÉTICO SICRO'!B2 -> Pernambuco - Julho/2023
L3: SINAPI: | M3: =RIGHT('INSUMOS SINAPI'!A3,7) -> 09/2023
L4: Data Base do Orçamento | M4: 2023-11-01
A5: =A1 -> CONTRATAÇÃO DE EXECUÇÃO DE PAVIMENTO ASFÁLTICO COM CBUQ, EM VIAS DE DIVERSOS MUNICÍPIOS DA MESORREGIÃO DA MATA PERNAMBUCANA, ÁREA DE ATUAÇÃO DA 15ª SUPERINTENDÊNCIA REGIONAL DA CODEVASF.
A6: ITEM | B6: ORIGEM COMPOSIÇÃO | C6: CÓDIGO COMPOSIÇÃO | D6: DISCRIMINAÇÃO DOS SERVIÇOS | H6: BDI % = | I6: =BDI!C17 -> 0.2339 | J6: BDI DIFERENCIADO% = | K6: =BDI!C65 -> 0.15 | L6: R$/m² | M6: =TRUNC(M55/H8,2) -> 191.82
H7: Total de m² | I7: Encargos Sociais: | J7: Horista | K7: Mensalista | L7: PREÇO UNITÁRIO COM BDI | M7: PREÇO TOTAL COM BDI
H8: ='MC MODULO'!N34 -> 98000 | J8: 1.1455 | K8: 0.7011
H9: UND | I9: QTDE. | J9: BDI | K9: PREÇO UNITÁRIO
D10: SERVIÇOS PRELIMINARES
A11: 1 | B11: Codevasf | C11: CPU-02 | D11: Mobilizações e Desmobilizações | H11: m² | I11: ='MC MODULO'!N10 -> 98000 | J11: =L11/K11-1 -> 0.2333 | K11: =ROUND(IF(B11="CODEVASF",VLOOKUP(C11,'CPU CODEVASF'!E:I,5,FALSE),VLOOKUP(C11,'SINTÉTICO SICRO'!A:D,4,FALSE)),6) -> 0.3 | L11: =ROUND(IF(B11="CODEVASF",VLOOKUP(C11,'CPU CODEVASF'!E:H,4,FALSE),VLOOKUP(C11,'SINTÉTICO SICRO'!A:D,4,FALSE)*(1+$I$6)),6) -> 0.37 | M11: =TRUNC(I11*L11,2) -> 36260 | O11: =M11/$M$55 -> 0.0019
A12: 2 | B12: Codevasf | C12: CPU-03 | D12: Administração da Obra | H12: m² | I12: ='MC MODULO'!N11 -> 98000 | J12: =L12/K12-1 -> 0.2222 | K12: =ROUND(IF(B12="CODEVASF",VLOOKUP(C12,'CPU CODEVASF'!E:I,5,FALSE),VLOOKUP(C12,'SINTÉTICO SICRO'!A:D,4,FALSE)),6) -> 0.54 | L12: =ROUND(IF(B12="CODEVASF",VLOOKUP(C12,'CPU CODEVASF'!E:H,4,FALSE),VLOOKUP(C12,'SINTÉTICO SICRO'!A:D,4,FALSE)*(1+$I$6)),6) -> 0.66 | M12: =TRUNC(I12*L12,2) -> 64680 | O12: =M12/$M$55 -> 0.0034
A13: 3 | B13: Codevasf | C13: CPU-04 | D13: Canteiro de Obras e Almoxarifado | H13: und | I13: ='MC MODULO'!N12 -> 7 | J13: 0.2339 | K13: =ROUND(IF(B13="CODEVASF",VLOOKUP(C13,'CPU CODEVASF'!E:I,5,FALSE),VLOOKUP(C13,'SINTÉTICO SICRO'!A:D,4,FALSE)),6) -> 1585.31 | L13: =ROUND(IF(B13="CODEVASF",VLOOKUP(C13,'CPU CODEVASF'!E:H,4,FALSE),VLOOKUP(C13,'SINTÉTICO SICRO'!A:D,4,FALSE)*(1+$I$6)),6) -> 1956.11 | M13: =TRUNC(I13*L13,2) -> 13692.77 | O13: 0.0007
A14: 4 | B14: Codevasf | C14: CPU-01 | D14: Placa de Obra em Chapa de Aço Galvanizado | H14: und | I14: ='MC MODULO'!N13 -> 7 | J14: 0.2339 | K14: =ROUND(IF(B14="CODEVASF",VLOOKUP(C14,'CPU CODEVASF'!E:I,5,FALSE),VLOOKUP(C14,'SINTÉTICO SICRO'!A:D,4,FALSE)),6) -> 1125.45 | L14: =ROUND(IF(B14="CODEVASF",VLOOKUP(C14,'CPU CODEVASF'!E:H,4,FALSE),VLOOKUP(C14,'SINTÉTICO SICRO'!A:D,4,FALSE)*(1+$I$6)),6) -> 1388.69 | M14: =TRUNC(I14*L14,2) -> 9720.83 | O14: 0.0005
D15: TERRAPLANAGEM | O15: 0 | R15: =SUM(M16:M18)/M55 -> 0.02
A16: 5 | B16: Codevasf | C16: CPU-16 | D16: Serviços topográficos para pavimentação, inclusive notas de serviços, acompanhamento e greide | H16: m² | I16: ='MC MODULO'!N17 -> 98000 | J16: =L16/K16-1 -> 0.2222 | K16: =ROUND(IF(B16="CODEVASF",VLOOKUP(C16,'CPU CODEVASF'!E:I,5,FALSE),VLOOKUP(C16,'SINTÉTICO SICRO'!A:D,4,FALSE)),6) -> 0.45 | L16: =ROUND(IF(B16="CODEVASF",VLOOKUP(C16,'CPU CODEVASF'!E:H,4,FALSE),VLOOKUP(C16,'SINTÉTICO SICRO'!A:D,4,FALSE)*(1+$I$6)),6) -> 0.55 | M16: =TRUNC(I16*L16,2) -> 53900 | O16: 0.0029
A17: 6 | B17: SICRO | C17: 5502114 | D17: Escavação, carga e transporte de material de 1ª categoria - DMT de 1.000 a 1.200 m - caminho de serviço em leito natural - com escavadeira e caminhão basculante de 14 m³ | H17: m³ | I17: ='MC MODULO'!N21 -> 34300 | J17: 0.2334 | K17: =ROUND(IF(B17="CODEVASF",VLOOKUP(C17,'CPU CODEVASF'!E:I,5,FALSE),VLOOKUP(C17,'SINTÉTICO SICRO'!A:D,4,FALSE)),6) -> 7.24 | L17: =ROUND(IF(B17="CODEVASF",VLOOKUP(C17,'CPU CODEVASF'!E:H,4,FALSE),VLOOKUP(C17,'SINTÉTICO SICRO'!A:D,4,FALSE)*(1+$I$6)),6) -> 8.93 | M17: =TRUNC(I17*L17,2) -> 306299 | O17: 0.0163
A18: 7 | B18: SICRO | C18: 4413942 | D18: Espalhamento de material em bota-fora | H18: m³ | I18: ='MC MODULO'!N25 -> 41160 | J18: 0.2357 | K18: =ROUND(IF(B18="CODEVASF",VLOOKUP(C18,'CPU CODEVASF'!E:I,5,FALSE),VLOOKUP(C18,'SINTÉTICO SICRO'!A:D,4,FALSE)),6) -> 1.57 | L18: =ROUND(IF(B18="CODEVASF",VLOOKUP(C18,'CPU CODEVASF'!E:H,4,FALSE),VLOOKUP(C18,'SINTÉTICO SICRO'!A:D,4,FALSE)*(1+$I$6)),6) -> 1.94 | M18: 79850.4 | O18: 0.0042
D19: PAVIMENTAÇÃO | O19: 0 | R19: =SUM(M20:M25)/M55 -> 0.27
A20: 8 | B20: SICRO | C20: 4011463 | D20: Concreto asfáltico - faixa C - areia e brita comerciais | H20: t | I20: ='MC MODULO'!N30 -> 11760 | J20: =L20/K20-1 -> 0.2339 | K20: =ROUND(IF(B20="CODEVASF",VLOOKUP(C20,'CPU CODEVASF'!E:I,5,FALSE),VLOOKUP(C20,'SINTÉTICO SICRO'!A:D,4,FALSE)),6) -> 181.47 | L20: =ROUND(IF(B20="CODEVASF",VLOOKUP(C20,'CPU CODEVASF'!E:H,4,FALSE),VLOOKUP(C20,'SINTÉTICO SICRO'!A:D,4,FALSE)*(1+$I$6)),6) -> 223.92 | M20: 2633299.2 | O20: 0.1401
A21: 9 | B21: SICRO | C21: 4011351 | D21: Imprimação com asfalto diluído | H21: m² | I21: ='MC MODULO'!N34 -> 98000 | J21: 0.2286 | K21: =ROUND(IF(B21="CODEVASF",VLOOKUP(C21,'CPU CODEVASF'!E:I,5,FALSE),VLOOKUP(C21,'SINTÉTICO SICRO'!A:D,4,FALSE)),6) -> 0.35 | L21: =ROUND(IF(B21="CODEVASF",VLOOKUP(C21,'CPU CODEVASF'!E:H,4,FALSE),VLOOKUP(C21,'SINTÉTICO SICRO'!A:D,4,FALSE)*(1+$I$6)),6) -> 0.43 | M21: 42140 | O21: 0.0022
A22: 10 | B22: SICRO | C22: 4011353 | D22: Pintura de ligação | H22: m² | I22: ='MC MODULO'!N38 -> 98000 | J22: 0.2222 | K22: =ROUND(IF(B22="CODEVASF",VLOOKUP(C22,'CPU CODEVASF'!E:I,5,FALSE),VLOOKUP(C22,'SINTÉTICO SICRO'!A:D,4,FALSE)),6) -> 0.27 | L22: =ROUND(IF(B22="CODEVASF",VLOOKUP(C22,'CPU CODEVASF'!E:H,4,FALSE),VLOOKUP(C22,'SINTÉTICO SICRO'!A:D,4,FALSE)*(1+$I$6)),6) -> 0.33 | M22: 32340 | O22: 0.0017
A23: 11 | B23: SICRO | C23: 4011256 | D23: Base estabilizada granulometricamente com mistura solo brita (70% - 30%) em usina com material de jazida e brita comercial | H23: m³ | I23: ='MC MODULO'!N42 -> 14700 | J23: 0.234 | K23: =ROUND(IF(B23="CODEVASF",VLOOKUP(C23,'CPU CODEVASF'!E:I,5,FALSE),VLOOKUP(C23,'SINTÉTICO SICRO'!A:D,4,FALSE)),6) -> 62.96 | L23: =ROUND(IF(B23="CODEVASF",VLOOKUP(C23,'CPU CODEVASF'!E:H,4,FALSE),VLOOKUP(C23,'SINTÉTICO SICRO'!A:D,4,FALSE)*(1+$I$6)),6) -> 77.69 | M23: 1142043 | O23: 0.0608
A24: 12 | B24: SICRO | C24: 4011233 | D24: Sub-base estabilizada granulometricamente com mistura solo brita (70% - 30%) em usina com material de jazida e brita comercial | H24: m³ | I24: ='MC MODULO'!N46 -> 14700 | J24: 0.2339 | K24: =ROUND(IF(B24="CODEVASF",VLOOKUP(C24,'CPU CODEVASF'!E:I,5,FALSE),VLOOKUP(C24,'SINTÉTICO SICRO'!A:D,4,FALSE)),6) -> 62.63 | L24: =ROUND(IF(B24="CODEVASF",VLOOKUP(C24,'CPU CODEVASF'!E:H,4,FALSE),VLOOKUP(C24,'SINTÉTICO SICRO'!A:D,4,FALSE)*(1+$I$6)),6) -> 77.28 | M24: 1136016 | O24: 0.0604
A25: 13 | B25: SICRO | C25: 4011209 | D25: Regularização do subleito | H25: m² | I25: ='MC MODULO'!N50 -> 98000 | J25: 0.2358 | K25: =ROUND(IF(B25="CODEVASF",VLOOKUP(C25,'CPU CODEVASF'!E:I,5,FALSE),VLOOKUP(C25,'SINTÉTICO SICRO'!A:D,4,FALSE)),6) -> 1.06 | L25: =ROUND(IF(B25="CODEVASF",VLOOKUP(C25,'CPU CODEVASF'!E:H,4,FALSE),VLOOKUP(C25,'SINTÉTICO SICRO'!A:D,4,FALSE)*(1+$I$6)),6) -> 1.31 | M25: 128380 | O25: 0.0068
D26: AQUISIÇÃO E TRANSPORTE DO MATERIAL BETUMINOSO | O26: 0 | R26: =SUM(M27:M32)/M55 -> 0.26
A27: 14 | B27: CODEVASF | C27: CPU-13 | D27: AQUISIÇÃO DE CIMENTO ASFALTICO CAP 50/70 | H27: t | I27: =' CONSUMO DE MAT. B TOTAL'!P12 -> 743.59 | J27: =L27/K27-1 -> 0.15 | K27: =ROUND(IF(B27="CODEVASF",VLOOKUP(C27,'CPU CODEVASF'!E:I,5,FALSE),VLOOKUP(C27,'SINTÉTICO SICRO'!A:D,4,FALSE)),6) -> 4236.83 | L27: =ROUND(IF(B27="CODEVASF",VLOOKUP(C27,'CPU CODEVASF'!E:H,4,FALSE),VLOOKUP(C27,'SINTÉTICO SICRO'!A:D,4,FALSE)*(1+$I$6)),6) -> 4872.35 | M27: 3623030.73 | O27: 0.1927
A28: 15 | B28: CODEVASF | C28: CPU-17 | D28: TRANSPORTE CAP 50/70 | H28: t | I28: =' CONSUMO DE MAT. B TOTAL'!P12 -> 743.59 | J28: 0.15 | K28: =ROUND(IF(B28="CODEVASF",VLOOKUP(C28,'CPU CODEVASF'!E:I,5,FALSE),VLOOKUP(C28,'SINTÉTICO SICRO'!A:D,4,FALSE)),6) -> 459.74 | L28: =ROUND(IF(B28="CODEVASF",VLOOKUP(C28,'CPU CODEVASF'!E:H,4,FALSE),VLOOKUP(C28,'SINTÉTICO SICRO'!A:D,4,FALSE)*(1+$I$6)),6) -> 528.7 | M28: 393136.03 | O28: 0.0209
A29: 16 | B29: CODEVASF | C29: CPU-14 | D29: AQUISIÇÃO DE CM-30 | H29: t | I29: =' CONSUMO DE MAT. B TOTAL'!P8 -> 108.19 | J29: 0.15 | K29: =ROUND(IF(B29="CODEVASF",VLOOKUP(C29,'CPU CODEVASF'!E:I,5,FALSE),VLOOKUP(C29,'SINTÉTICO SICRO'!A:D,4,FALSE)),6) -> 5234.08 | L29: =ROUND(IF(B29="CODEVASF",VLOOKUP(C29,'CPU CODEVASF'!E:H,4,FALSE),VLOOKUP(C29,'SINTÉTICO SICRO'!A:D,4,FALSE)*(1+$I$6)),6) -> 6019.19 | M29: 651216.16 | O29: 0.0346
A30: 17 | B30: CODEVASF | C30: CPU-18 | D30: TRANSPORTE DE CM-30 | H30: t | I30: =' CONSUMO DE MAT. B TOTAL'!P8 -> 108.19 | J30: 0.15 | K30: =ROUND(IF(B30="CODEVASF",VLOOKUP(C30,'CPU CODEVASF'!E:I,5,FALSE),VLOOKUP(C30,'SINTÉTICO SICRO'!A:D,4,FALSE)),6) -> 459.83 | L30: =ROUND(IF(B30="CODEVASF",VLOOKUP(C30,'CPU CODEVASF'!E:H,4,FALSE),VLOOKUP(C30,'SINTÉTICO SICRO'!A:D,4,FALSE)*(1+$I$6)),6) -> 528.8 | M30: 57210.87 | O30: 0.003
A31: 18 | B31: CODEVASF | C31: CPU-15 | D31: AQUISIÇÃO DE EMULSÃO ASFÁLTICA RR-1C | H31: t | I31: =' CONSUMO DE MAT. B TOTAL'!P10 -> 39.2 | J31: 0.15 | K31: =ROUND(IF(B31="CODEVASF",VLOOKUP(C31,'CPU CODEVASF'!E:I,5,FALSE),VLOOKUP(C31,'SINTÉTICO SICRO'!A:D,4,FALSE)),6) -> 3059.97 | L31: =ROUND(IF(B31="CODEVASF",VLOOKUP(C31,'CPU CODEVASF'!E:H,4,FALSE),VLOOKUP(C31,'SINTÉTICO SICRO'!A:D,4,FALSE)*(1+$I$6)),6) -> 3518.96 | M31: 137943.23 | O31: 0.0073
A32: 19 | B32: CODEVASF | C32: CPU-19 | D32: TRANSPORTE RR-1C | H32: t | I32: =' CONSUMO DE MAT. B TOTAL'!P10 -> 39.2 | J32: 0.15 | K32: =ROUND(IF(B32="CODEVASF",VLOOKUP(C32,'CPU CODEVASF'!E:I,5,FALSE),VLOOKUP(C32,'SINTÉTICO SICRO'!A:D,4,FALSE)),6) -> 567.64 | L32: =ROUND(IF(B32="CODEVASF",VLOOKUP(C32,'CPU CODEVASF'!E:H,4,FALSE),VLOOKUP(C32,'SINTÉTICO SICRO'!A:D,4,FALSE)*(1+$I$6)),6) -> 652.78 | M32: 25588.97 | O32: 0.0014
D33: SINALIZAÇÃO | O33: 0
A34: 20 | B34: SICRO | C34: 5213440 | D34: Fornecimento e implantação de placa de regulamentação em aço D = 0,60 m - película retrorrefletiva tipo I + SI | H34: und | I34: ='MC MODULO'!N54 -> 112 | J34: =L34/K34-1 -> 0.2339 | K34: =ROUND(IF(B34="CODEVASF",VLOOKUP(C34,'CPU CODEVASF'!E:I,5,FALSE),VLOOKUP(C34,'SINTÉTICO SICRO'!A:D,4,FALSE)),6) -> 255.08 | L34: =ROUND(IF(B34="CODEVASF",VLOOKUP(C34,'CPU CODEVASF'!E:H,4,FALSE),VLOOKUP(C34,'SINTÉTICO SICRO'!A:D,4,FALSE)*(1+$I$6)),6) -> 314.74 | M34: 35250.88 | O34: 0.0019
A35: 21 | B35: SICRO | C35: 5213863 | D35: Suporte metálico galvanizado para placa de advertência ou regulamentação - lado ou diâmetro de 0,60 m - fornecimento e implantação | H35: und | I35: ='MC MODULO'!N58 -> 112 | J35: 0.2339 | K35: =ROUND(IF(B35="CODEVASF",VLOOKUP(C35,'CPU CODEVASF'!E:I,5,FALSE),VLOOKUP(C35,'SINTÉTICO SICRO'!A:D,4,FALSE)),6) -> 451.59 | L35: =ROUND(IF(B35="CODEVASF",VLOOKUP(C35,'CPU CODEVASF'!E:H,4,FALSE),VLOOKUP(C35,'SINTÉTICO SICRO'!A:D,4,FALSE)*(1+$I$6)),6) -> 557.22 | M35: 62408.64 | O35: 0.0033
A36: 22 | B36: SICRO | C36: 5213400 | D36: Pintura de faixa com tinta acrílica - espessura de 0,4 mm | H36: m² | I36: ='MC MODULO'!N62 -> 4200 | J36: 0.2338 | K36: =ROUND(IF(B36="CODEVASF",VLOOKUP(C36,'CPU CODEVASF'!E:I,5,FALSE),VLOOKUP(C36,'SINTÉTICO SICRO'!A:D,4,FALSE)),6) -> 30.79 | L36: =ROUND(IF(B36="CODEVASF",VLOOKUP(C36,'CPU CODEVASF'!E:H,4,FALSE),VLOOKUP(C36,'SINTÉTICO SICRO'!A:D,4,FALSE)*(1+$I$6)),6) -> 37.99 | M36: 159558 | O36: 0.0085
D37: DRENAGEM | O37: 0 | S37: =(M38)/M55 -> 0.1
A38: 23 | B38: SICRO | C38: 2003377 | D38: Meio-fio de concreto - MFC 05 - areia e brita comerciais - fôrma de madeira | H38: m | I38: ='MC MODULO'!N67 -> 28000 | J38: =L38/K38-1 -> 0.2338 | K38: =ROUND(IF(B38="CODEVASF",VLOOKUP(C38,'CPU CODEVASF'!E:I,5,FALSE),VLOOKUP(C38,'SINTÉTICO SICRO'!A:D,4,FALSE)),6) -> 57.05 | L38: =ROUND(IF(B38="CODEVASF",VLOOKUP(C38,'CPU CODEVASF'!E:H,4,FALSE),VLOOKUP(C38,'SINTÉTICO SICRO'!A:D,4,FALSE)*(1+$I$6)),6) -> 70.39 | M38: 1970920 | O38: 0.1048
D39: SERVIÇOS COMPLEMENTARES | O39: 0
A40: 24 | B40: Codevasf | C40: CPU-12 | D40: Conserto de quebra no ramal na rua sem pavimento com fornecimento de material hidráulico | H40: m | I40: ='MC MODULO'!N72 -> 343 | J40: =L40/K40-1 -> 0.2338 | K40: =ROUND(IF(B40="CODEVASF",VLOOKUP(C40,'CPU CODEVASF'!E:I,5,FALSE),VLOOKUP(C40,'SINTÉTICO SICRO'!A:D,4,FALSE)),6) -> 16.04 | L40: =ROUND(IF(B40="CODEVASF",VLOOKUP(C40,'CPU CODEVASF'!E:H,4,FALSE),VLOOKUP(C40,'SINTÉTICO SICRO'!A:D,4,FALSE)*(1+$I$6)),6) -> 19.79 | M40: 6787.97 | O40: 0.0004
D41: PROJETO EXECUTIVO | O41: 0
A42: 25 | B42: Codevasf | C42: CPU-20 | D42: Projeto Executivo | H42: m² | I42: ='MC MODULO'!N77 -> 98000 | J42: =L42/K42-1 -> 0.2308 | K42: =ROUND(IF(B42="CODEVASF",VLOOKUP(C42,'CPU CODEVASF'!E:I,5,FALSE),VLOOKUP(C42,'SINTÉTICO SICRO'!A:D,4,FALSE)),6) -> 0.65 | L42: =ROUND(IF(B42="CODEVASF",VLOOKUP(C42,'CPU CODEVASF'!E:H,4,FALSE),VLOOKUP(C42,'SINTÉTICO SICRO'!A:D,4,FALSE)*(1+$I$6)),6) -> 0.8 | M42: 78400 | O42: 0.0042
D43: CONTROLE TECNOLÓGICO - OBRA | O43: 0
A44: 26 | B44: Codevasf | C44: CPU-21 | D44: Controle tecnológico - Obra | H44: m² | I44: ='MC MODULO'!N82 -> 98000 | J44: =L44/K44-1 -> 0.2385 | K44: =ROUND(IF(B44="CODEVASF",VLOOKUP(C44,'CPU CODEVASF'!E:I,5,FALSE),VLOOKUP(C44,'SINTÉTICO SICRO'!A:D,4,FALSE)),6) -> 1.09 | L44: =ROUND(IF(B44="CODEVASF",VLOOKUP(C44,'CPU CODEVASF'!E:H,4,FALSE),VLOOKUP(C44,'SINTÉTICO SICRO'!A:D,4,FALSE)*(1+$I$6)),6) -> 1.35 | M44: 132300 | O44: 0.007
D45: MOMENTO DE TRANSPORTE | O45: 0
A46: 27 | B46: SICRO | C46: 5914359 | D46: =IF(B46="CODEVASF",VLOOKUP(C46,'CPU CODEVASF'!E:H,2,FALSE),VLOOKUP(C46,'SINTÉTICO SICRO'!A:D,2,FALSE)) -> Transporte com caminhão basculante de 10 m³ - rodovia em leito natural | H46: tkm | I46: =ROUND(SUMIF('MOMENTO DE TRANSPORTE - PRINC'!A:A,'RESUMO MODULO TOTAL'!C46,'MOMENTO DE TRANSPORTE - PRINC'!K:K)+SUMIF('MOMENTO DE TRANSPORTE - AUX'!A:A,'RESUMO MODULO TOTAL'!C46,'MOMENTO DE TRANSPORTE - AUX'!K:K),2) -> 0 | J46: =L46/K46-1 -> 0.2364 | K46: =ROUND(IF(B46="CODEVASF",VLOOKUP(C46,'CPU CODEVASF'!E:I,5,FALSE),VLOOKUP(C46,'SINTÉTICO SICRO'!A:D,4,FALSE)),6) -> 1.1 | L46: =TRUNC(IF(B46="CODEVASF",VLOOKUP(C46,'CPU CODEVASF'!E:H,4,FALSE),VLOOKUP(C46,'SINTÉTICO SICRO'!A:D,4,FALSE)*(1+$I$6)),6) -> 1.36 | M46: 0 | O46: 0
A47: 28 | B47: SICRO | C47: 5914374 | D47: =IF(B47="CODEVASF",VLOOKUP(C47,'CPU CODEVASF'!E:H,2,FALSE),VLOOKUP(C47,'SINTÉTICO SICRO'!A:D,2,FALSE)) -> Transporte com caminhão basculante de 10 m³ - rodovia em revestimento primário | H47: tkm | I47: =ROUND(SUMIF('MOMENTO DE TRANSPORTE - PRINC'!A:A,'RESUMO MODULO TOTAL'!C47,'MOMENTO DE TRANSPORTE - PRINC'!K:K)+SUMIF('MOMENTO DE TRANSPORTE - AUX'!A:A,'RESUMO MODULO TOTAL'!C47,'MOMENTO DE TRANSPORTE - AUX'!K:K),2) -> 0 | J47: 0.2386 | K47: =ROUND(IF(B47="CODEVASF",VLOOKUP(C47,'CPU CODEVASF'!E:I,5,FALSE),VLOOKUP(C47,'SINTÉTICO SICRO'!A:D,4,FALSE)),6) -> 0.88 | L47: =TRUNC(IF(B47="CODEVASF",VLOOKUP(C47,'CPU CODEVASF'!E:H,4,FALSE),VLOOKUP(C47,'SINTÉTICO SICRO'!A:D,4,FALSE)*(1+$I$6)),6) -> 1.09 | M47: 0 | O47: 0
A48: 29 | B48: SICRO | C48: 5914389 | D48: =IF(B48="CODEVASF",VLOOKUP(C48,'CPU CODEVASF'!E:H,2,FALSE),VLOOKUP(C48,'SINTÉTICO SICRO'!A:D,2,FALSE)) -> Transporte com caminhão basculante de 10 m³ - rodovia pavimentada | H48: tkm | I48: =ROUND(SUMIF('MOMENTO DE TRANSPORTE - PRINC'!A:A,'RESUMO MODULO TOTAL'!C48,'MOMENTO DE TRANSPORTE - PRINC'!K:K)+SUMIF('MOMENTO DE TRANSPORTE - AUX'!A:A,'RESUMO MODULO TOTAL'!C48,'MOMENTO DE TRANSPORTE - AUX'!K:K),2)-756.17 -> 6458387.31 | J48: 0.2361 | K48: =ROUND(IF(B48="CODEVASF",VLOOKUP(C48,'CPU CODEVASF'!E:I,5,FALSE),VLOOKUP(C48,'SINTÉTICO SICRO'!A:D,4,FALSE)),6) -> 0.72 | L48: =TRUNC(IF(B48="CODEVASF",VLOOKUP(C48,'CPU CODEVASF'!E:H,4,FALSE),VLOOKUP(C48,'SINTÉTICO SICRO'!A:D,4,FALSE)*(1+$I$6)),6) -> 0.89 | M48: 5747964.7 | O48: 0.3058
A49: 30 | B49: SICRO | C49: 5914449 | D49: =IF(B49="CODEVASF",VLOOKUP(C49,'CPU CODEVASF'!E:H,2,FALSE),VLOOKUP(C49,'SINTÉTICO SICRO'!A:D,2,FALSE)) -> Transporte com caminhão carroceria de 15 t - rodovia em leito natural | H49: tkm | I49: =ROUND(SUMIF('MOMENTO DE TRANSPORTE - PRINC'!A:A,'RESUMO MODULO TOTAL'!C49,'MOMENTO DE TRANSPORTE - PRINC'!K:K)+SUMIF('MOMENTO DE TRANSPORTE - AUX'!A:A,'RESUMO MODULO TOTAL'!C49,'MOMENTO DE TRANSPORTE - AUX'!K:K),2) -> 0 | J49: 0.2376 | K49: =ROUND(IF(B49="CODEVASF",VLOOKUP(C49,'CPU CODEVASF'!E:I,5,FALSE),VLOOKUP(C49,'SINTÉTICO SICRO'!A:D,4,FALSE)),6) -> 1.01 | L49: =TRUNC(IF(B49="CODEVASF",VLOOKUP(C49,'CPU CODEVASF'!E:H,4,FALSE),VLOOKUP(C49,'SINTÉTICO SICRO'!A:D,4,FALSE)*(1+$I$6)),6) -> 1.25 | M49: 0 | O49: 0
A50: 31 | B50: SICRO | C50: 5914464 | D50: =IF(B50="CODEVASF",VLOOKUP(C50,'CPU CODEVASF'!E:H,2,FALSE),VLOOKUP(C50,'SINTÉTICO SICRO'!A:D,2,FALSE)) -> Transporte com caminhão carroceria de 15 t - rodovia em revestimento primário | H50: tkm | I50: =ROUND(SUMIF('MOMENTO DE TRANSPORTE - PRINC'!A:A,'RESUMO MODULO TOTAL'!C50,'MOMENTO DE TRANSPORTE - PRINC'!K:K)+SUMIF('MOMENTO DE TRANSPORTE - AUX'!A:A,'RESUMO MODULO TOTAL'!C50,'MOMENTO DE TRANSPORTE - AUX'!K:K),2) -> 0 | J50: 0.2346 | K50: =ROUND(IF(B50="CODEVASF",VLOOKUP(C50,'CPU CODEVASF'!E:I,5,FALSE),VLOOKUP(C50,'SINTÉTICO SICRO'!A:D,4,FALSE)),6) -> 0.81 | L50: =TRUNC(IF(B50="CODEVASF",VLOOKUP(C50,'CPU CODEVASF'!E:H,4,FALSE),VLOOKUP(C50,'SINTÉTICO SICRO'!A:D,4,FALSE)*(1+$I$6)),6) -> 1 | M50: 0 | O50: 0
A51: 32 | B51: SICRO | C51: 5914479 | D51: =IF(B51="CODEVASF",VLOOKUP(C51,'CPU CODEVASF'!E:H,2,FALSE),VLOOKUP(C51,'SINTÉTICO SICRO'!A:D,2,FALSE)) -> Transporte com caminhão carroceria de 15 t - rodovia pavimentada | H51: tkm | I51: =ROUND(SUMIF('MOMENTO DE TRANSPORTE - PRINC'!A:A,'RESUMO MODULO TOTAL'!C51,'MOMENTO DE TRANSPORTE - PRINC'!K:K)+SUMIF('MOMENTO DE TRANSPORTE - AUX'!A:A,'RESUMO MODULO TOTAL'!C51,'MOMENTO DE TRANSPORTE - AUX'!K:K),2) -> 3665.18 | J51: 0.2273 | K51: =ROUND(IF(B51="CODEVASF",VLOOKUP(C51,'CPU CODEVASF'!E:I,5,FALSE),VLOOKUP(C51,'SINTÉTICO SICRO'!A:D,4,FALSE)),6) -> 0.66 | L51: =TRUNC(IF(B51="CODEVASF",VLOOKUP(C51,'CPU CODEVASF'!E:H,4,FALSE),VLOOKUP(C51,'SINTÉTICO SICRO'!A:D,4,FALSE)*(1+$I$6)),6) -> 0.81 | M51: 2968.79 | O51: 0.0002
A52: 33 | B52: SICRO | C52: 5914364 | D52: =IF(B52="CODEVASF",VLOOKUP(C52,'CPU CODEVASF'!E:H,2,FALSE),VLOOKUP(C52,'SINTÉTICO SICRO'!A:D,2,FALSE)) -> Transporte de cimento ou cal hidratada a granel com caminhão silo de 30 m³ - rodovia em leito natural | H52: tkm | I52: =ROUND(SUMIF('MOMENTO DE TRANSPORTE - PRINC'!A:A,'RESUMO MODULO TOTAL'!C52,'MOMENTO DE TRANSPORTE - PRINC'!K:K)+SUMIF('MOMENTO DE TRANSPORTE - AUX'!A:A,'RESUMO MODULO TOTAL'!C52,'MOMENTO DE TRANSPORTE - AUX'!K:K),2) -> 0 | J52: 0.2346 | K52: =ROUND(IF(B52="CODEVASF",VLOOKUP(C52,'CPU CODEVASF'!E:I,5,FALSE),VLOOKUP(C52,'SINTÉTICO SICRO'!A:D,4,FALSE)),6) -> 0.81 | L52: =TRUNC(IF(B52="CODEVASF",VLOOKUP(C52,'CPU CODEVASF'!E:H,4,FALSE),VLOOKUP(C52,'SINTÉTICO SICRO'!A:D,4,FALSE)*(1+$I$6)),6) -> 1 | M52: 0 | O52: 0
A53: 34 | B53: SICRO | C53: 5914365 | D53: =IF(B53="CODEVASF",VLOOKUP(C53,'CPU CODEVASF'!E:H,2,FALSE),VLOOKUP(C53,'SINTÉTICO SICRO'!A:D,2,FALSE)) -> Transporte de cimento ou cal hidratada a granel com caminhão silo de 30 m³ - rodovia em revestimento primário | H53: tkm | I53: =ROUND(SUMIF('MOMENTO DE TRANSPORTE - PRINC'!A:A,'RESUMO MODULO TOTAL'!C53,'MOMENTO DE TRANSPORTE - PRINC'!K:K)+SUMIF('MOMENTO DE TRANSPORTE - AUX'!A:A,'RESUMO MODULO TOTAL'!C53,'MOMENTO DE TRANSPORTE - AUX'!K:K),2) -> 0 | J53: 0.2344 | K53: =ROUND(IF(B53="CODEVASF",VLOOKUP(C53,'CPU CODEVASF'!E:I,5,FALSE),VLOOKUP(C53,'SINTÉTICO SICRO'!A:D,4,FALSE)),6) -> 0.64 | L53: =TRUNC(IF(B53="CODEVASF",VLOOKUP(C53,'CPU CODEVASF'!E:H,4,FALSE),VLOOKUP(C53,'SINTÉTICO SICRO'!A:D,4,FALSE)*(1+$I$6)),6) -> 0.79 | M53: 0 | O53: 0
A54: 35 | B54: SICRO | C54: 5914366 | D54: =IF(B54="CODEVASF",VLOOKUP(C54,'CPU CODEVASF'!E:H,2,FALSE),VLOOKUP(C54,'SINTÉTICO SICRO'!A:D,2,FALSE)) -> Transporte de cimento ou cal hidratada a granel com caminhão silo de 30 m³ - rodovia pavimentada | H54: tkm | I54: =ROUND(SUMIF('MOMENTO DE TRANSPORTE - PRINC'!A:A,'RESUMO MODULO TOTAL'!C54,'MOMENTO DE TRANSPORTE - PRINC'!K:K)+SUMIF('MOMENTO DE TRANSPORTE - AUX'!A:A,'RESUMO MODULO TOTAL'!C54,'MOMENTO DE TRANSPORTE - AUX'!K:K),2) -> 53930.42 | J54: 0.2264 | K54: =ROUND(IF(B54="CODEVASF",VLOOKUP(C54,'CPU CODEVASF'!E:I,5,FALSE),VLOOKUP(C54,'SINTÉTICO SICRO'!A:D,4,FALSE)),6) -> 0.53 | L54: =TRUNC(IF(B54="CODEVASF",VLOOKUP(C54,'CPU CODEVASF'!E:H,4,FALSE),VLOOKUP(C54,'SINTÉTICO SICRO'!A:D,4,FALSE)*(1+$I$6)),6) -> 0.65 | M54: 35054.77 | O54: 0.0019
A55: VALOR TOTAL DO SRP | M55: =INT(SUM(M11:M54)) -> 18798360
A56: Obs.: Os valores estão apresentados com apenas 2 casas decimais, mas os valores da presente planilha foram calculados utilizando a precisão de 6 casas decimais.
N57: =N56/L48 -> 0

Sheet MC MODULO
M1: SICRO: | N1: ='RESUMO MODULO TOTAL'!M2 -> Pernambuco - Julho/2023
M2: SINAPI: | N2: ='RESUMO MODULO TOTAL'!M3 -> 09/2023
M3: Data base do orçamento: | N3: 2023-10-01
B4: ='RESUMO MODULO TOTAL'!A1 -> CONTRATAÇÃO DE EXECUÇÃO DE PAVIMENTO ASFÁLTICO COM CBUQ, EM VIAS DE DIVERSOS MUNICÍPIOS DA MESORREGIÃO DA MATA PERNAMBUCANA, ÁREA DE ATUAÇÃO DA 15ª SUPERINTENDÊNCIA REGIONAL DA CODEVASF.
B5: Memória de Cálculo - MÓDULO MÍNIMO | I5: =CONCATENATE(B5," x",N7) -> Memória de Cálculo - MÓDULO MÍNIMO x7
B6: Extensão: | C6: 2000 | D6: metros | E6: Nº DE MESES: | G6: =(N6/N7)*1 -> 1 | I6: Extensão: | J6: =C6*N7 -> 14000 | K6: m | M6: Nº DE MESES: | N6: 7
B7: Largura: | C7: 7 | D7: metros | E7: Nº DE MODULOS: | G7: 1 | I7: Largura: | J7: 7 | K7: m | M7: Nº DE MODULOS: | N7: 7
B8: ITEM | C8: DISCRIMINAÇÃO DOS CÁLCULOS | G8: Qtd total | I8: ITEM | J8: DESCRIÇÃO | N8: Qtd total
C9: MOBILIZAÇÃO | J9: MOBILIZAÇÃO
B10: 1 | C10: Mobilizações e Desmobilizações (m²) | G10: =C6*C7 -> 14000 | I10: 1 | J10: Mobilizações e Desmobilizações (m²) | N10: =N7*G10 -> 98000
B11: 2 | C11: Administração da obra (m²) | G11: =C7*C6 -> 14000 | I11: 2 | J11: Administração da obra | N11: =N7*G11 -> 98000
B12: 3 | C12: Canteiro de Obras e Almoxarifado (mês) | G12: =N6/N7 -> 1 | I12: 3 | J12: Canteiro de Obras e Almoxarifado | N12: =G12*N7 -> 7
B13: 4 | C13: Placa de Obra em Chapa de Aço Galvanizado (und) | G13: 1 | I13: 4 | J13: Placa de Obra em Chapa de Aço Galvanizado | N13: =G13*N7 -> 7
C14: ='RESUMO MODULO TOTAL'!D15 -> TERRAPLANAGEM | J14: =C14 -> TERRAPLANAGEM
B15: 5 | C15: ='RESUMO MODULO TOTAL'!D16 -> Serviços topográficos para pavimentação, inclusive notas de serviços, acompanhamento e greide | I15: =B15 -> 5 | J15: =C15 -> Serviços topográficos para pavimentação, inclusive notas de serviços, acompanhamento e greide
C16: Extensão (m) | D16: Largura (m) | G16: Area (m²) | J16: Extensão (m) | K16: Largura (m) | N16: Area (m²)
C17: =C6 -> 2000 | D17: =C7 -> 7 | G17: =C17*D17 -> 14000 | J17: =C17*N7 -> 14000 | K17: =D17 -> 7 | N17: =J17*K17 -> 98000
B19: 6 | C19: ='RESUMO MODULO TOTAL'!D17 -> Escavação, carga e transporte de material de 1ª categoria - DMT de 1.000 a 1.200 m - caminho de serviço em leito natural - com escavadeira e caminhão basculante de 14 m³ | I19: =B19 -> 6 | J19: =C19 -> Escavação, carga e transporte de material de 1ª categoria - DMT de 1.000 a 1.200 m - caminho de serviço em leito natural - com escavadeira e caminhão basculante de 14 m³
C20: Extensão (m) | D20: Largura (m) | E20: Espessura (m) | G20: Volume (m3) | J20: Extensão (m) | K20: Largura (m) | L20: Espessura (m) | N20: Volume (m3)
C21: =C6 -> 2000 | D21: =C7 -> 7 | E21: 0.35 | G21: =C21*D21*E21 -> 4900 | J21: =C21*N7 -> 14000 | K21: =D21 -> 7 | L21: =E21 -> 0.35 | N21: =J21*K21*L21 -> 34300
B23: 7 | C23: ='RESUMO MODULO TOTAL'!D18 -> Espalhamento de material em bota-fora | I23: =B23 -> 7 | J23: =C23 -> Espalhamento de material em bota-fora
C24: Extensão (m) | D24: Largura (m) | E24: Espessura (m) | F24: Empolamento | G24: Volume (m3) | J24: Extensão (m) | K24: Largura (m) | L24: Espessura (m) | M24: Empolamento | N24: Volume (m3)
C25: =C6 -> 2000 | D25: =C7 -> 7 | E25: 0.35 | F25: 1.2 | G25: =C25*D25*E25*F25 -> 5880 | J25: =J6 -> 14000 | K25: =J7 -> 7 | L25: 0.35 | M25: 1.2 | N25: =J25*K25*L25*M25 -> 41160
C27: PAVIMENTAÇÃO | J27: PAVIMENTAÇÃO
B28: 8 | C28: ='RESUMO MODULO TOTAL'!D20 -> Concreto asfáltico - faixa C - areia e brita comerciais | I28: 8 | J28: Concreto asfáltico - faixa C - areia e brita comerciais
C29: Extensão (m) | D29: Largura (m) | E29: Espessura (m) | F29: Densidade (t/m³) | G29: Massa(t) | J29: Extensão (m) | K29: Largura (m) | L29: Espessura (m) | M29: Densidade (t/m³) | N29: Massa (t)
C30: =C6 -> 2000 | D30: =C7 -> 7 | E30: 0.05 | F30: 2.4 | G30: =C30*D30*E30*F30 -> 1680 | J30: =C30*N7 -> 14000 | K30: =D30 -> 7 | L30: 0.05 | M30: 2.4 | N30: =J30*K30*L30*M30 -> 11760
B32: 9 | C32: ='RESUMO MODULO TOTAL'!D21 -> Imprimação com asfalto diluído | I32: 9 | J32: =C32 -> Imprimação com asfalto diluído
C33: Extensão (m) | E33: Largura (m) | G33: Área (m2) | J33: Extensão (m) | L33: Largura (m) | N33: area (m2)
C34: =C6 -> 2000 | E34: =C7 -> 7 | G34: =C34*E34 -> 14000 | J34: =C34*N7 -> 14000 | L34: =E34 -> 7 | N34: =J34*L34 -> 98000
B36: 10 | C36: ='RESUMO MODULO TOTAL'!D22 -> Pintura de ligação | I36: 10 | J36: =C36 -> Pintura de ligação
C37: Extensão (m) | E37: Largura (m) | G37: Área (m2) | J37: Extensão (m) | L37: Largura (m) | N37: area (m2)
C38: =C6 -> 2000 | E38: 7 | G38: =C38*E38 -> 14000 | J38: =C38*N7 -> 14000 | L38: =E38 -> 7 | N38: =J38*L38 -> 98000
B40: 11 | C40: ='RESUMO MODULO TOTAL'!D23 -> Base estabilizada granulometricamente com mistura solo brita (70% - 30%) em usina com material de jazida e brita comercial | I40: 11 | J40: =C40 -> Base estabilizada granulometricamente com mistura solo brita (70% - 30%) em usina com material de jazida e brita comercial
C41: Comprimento (m) | D41: Largura (m) | E41: profundidade (m) | G41: Vol.(m3) | J41: Comprimento (m) | K41: Largura (m) | L41: profundidade (m) | N41: Volume (m3)
C42: =C6 -> 2000 | D42: =C7 -> 7 | E42: 0.15 | G42: =C42*D42*E42 -> 2100 | J42: =C42*N7 -> 14000 | K42: =D42 -> 7 | L42: =E42 -> 0.15 | N42: =J42*K42*L42 -> 14700
B44: 12 | C44: ='RESUMO MODULO TOTAL'!D24 -> Sub-base estabilizada granulometricamente com mistura solo brita (70% - 30%) em usina com material de jazida e brita comercial | I44: 12 | J44: =C44 -> Sub-base estabilizada granulometricamente com mistura solo brita (70% - 30%) em usina com material de jazida e brita comercial
C45: Comprimento (m) | D45: Largura (m) | E45: profundidade (m) | G45: Vol.(m3) | J45: Comprimento (m) | K45: Largura (m) | L45: profundidade (m) | N45: Volume (m3)
C46: =C6 -> 2000 | D46: =C7 -> 7 | E46: 0.15 | G46: =C46*D46*E46 -> 2100 | J46: =C46*N7 -> 14000 | K46: =D46 -> 7 | L46: 0.15 | N46: =J46*K46*L46 -> 14700
B48: 13 | C48: ='RESUMO MODULO TOTAL'!D25 -> Regularização do subleito | I48: =B48 -> 13 | J48: =C48 -> Regularização do subleito
C49: Comprimento (m) | D49: Largura (m) | G49: Área (m2) | J49: Comprimento (m) | K49: Largura (m) | N49: area (m2)
C50: =C6 -> 2000 | D50: =C7 -> 7 | G50: =C50*D50 -> 14000 | J50: =C50*N7 -> 14000 | K50: =D50 -> 7 | N50: =J50*K50 -> 98000
C51: SINALIZAÇÃO | J51: SINALIZAÇÃO
B52: 20 | C52: Placa de regulamentação em aço D = 0,60 m - película retrorrefletiva tipo I + SI | I52: 20 | J52: =C52 -> Placa de regulamentação em aço D = 0,60 m - película retrorrefletiva tipo I + SI
C53: Extensão (km) | E53: Quant. (un) por mão | G53: Quant. (un) | J53: Extensão (km) | L53: Quant. (un) | N53: Quant. (un)
C54: =C6/1000 -> 2 | E54: 8 | G54: =C54*E54 -> 16 | J54: =C54*N7 -> 14 | L54: =E54 -> 8 | N54: =J54*L54 -> 112
B56: 21 | C56: Suporte metálico galvanizado para placa de regulamentação - D = 0,60 m | I56: 21 | J56: =C56 -> Suporte metálico galvanizado para placa de regulamentação - D = 0,60 m
C57: Extensão (km) | E57: Quant. (un) por mão | G57: Quant. (un) | J57: Extensão (km) | L57: Quant. (un) | N57: Quant. (un)
C58: =C6/1000 -> 2 | E58: 8 | G58: =C58*E58 -> 16 | J58: =C58*N7 -> 14 | L58: =E58 -> 8 | N58: =J58*L58 -> 112
B60: 22 | C60: Pintura de faixa com tinta acrílica - espessura de 0,4 mm (bordos) | I60: 22 | J60: Pintura de faixa com tinta acrílica - espessura de 0,4 mm (bordos)
C61: Extensão (m) | D61: Espessura (m) | E61: nº de linhas faixas | G61: Quant. (m²) | J61: Extensão (m) | L61: Espessura (m) | M61: nº de linhas faixas | N61: Quant. (m²)
C62: =C6 -> 2000 | D62: 0.1 | E62: 3 | G62: =C62*D62*E62 -> 600 | J62: =C6*N7 -> 14000 | L62: 0.1 | M62: 3 | N62: =J62*L62*M62 -> 4200
C64: DRENAGEM | J64: DRENAGEM
B65: 23 | C65: ='RESUMO MODULO TOTAL'!D38 -> Meio-fio de concreto - MFC 05 - areia e brita comerciais - fôrma de madeira | I65: 23 | J65: Limpeza de sarjeta e meio-fio
C66: Extensão (m) | E66: Quant. (un) | G66: Extensão(m) | J66: Extensão (m) | L66: Quant. (un) | N66: Extensão(m)
C67: =C6 -> 2000 | E67: 2 | G67: =C67*E67 -> 4000 | J67: =C67*N7 -> 14000 | L67: 2 | M67: = | N67: =J67*L67 -> 28000
C69: SERVIÇOS COMPLEMENTARES | J69: SERVIÇOS COMPLEMENTARES
B70: 24 | C70: Conserto de ramal rompido | I70: 24 | J70: =C70 -> Conserto de ramal rompido
C71: extensão de tubulação rompida | D71: qtd | G71: extensão (m) | J71: extensão de tubulação rompida | K71: qtd | N71: extensão (m)
C72: 7 | D72: =N7 -> 7 | G72: =C72*D72 -> 49 | J72: 7 | K72: =D72*N7 -> 49 | N72: =J72*K72 -> 343
C74: PROJETO EXECUTIVO | J74: PROJETO EXECUTIVO
B75: 25 | C75: Projeto Executivo | I75: 25 | J75: Projeto Executivo
C76: Meses | D76: área (m2) | G76: Área (m2) | J76: Meses | K76: área (m2) | N76: área (m2)
C77: =G6*(1/3) -> 0.33 | D77: =C6*C7 -> 14000 | G77: =D77 -> 14000 | J77: =C77*N7 -> 2.31 | K77: =D77*N7 -> 98000 | N77: =G77*N7 -> 98000
C79: CONTROLE TECNOLOGICO - OBRA | J79: CONTROLE TECNOLOGICO - OBRA
B80: 26 | C80: Projeto Executivo | I80: 26 | J80: Projeto Executivo
C81: Meses | D81: área (m2) | F81: Quant. (un) | G81: Área (m2) | J81: Meses | K81: área (m2) | N81: área (m2)
C82: =G6*(2/3) -> 0.67 | D82: =C6*C7 -> 14000 | G82: =D82 -> 14000 | J82: =C82*N7 -> 4.69 | K82: =D82*N7 -> 98000 | N82: =G82*N7 -> 98000

Sheet CPU CODEVASF
A4: ='RESUMO MODULO TOTAL'!A1 -> CONTRATAÇÃO DE EXECUÇÃO DE PAVIMENTO ASFÁLTICO COM CBUQ, EM VIAS DE DIVERSOS MUNICÍPIOS DA MESORREGIÃO DA MATA PERNAMBUCANA, ÁREA DE ATUAÇÃO DA 15ª SUPERINTENDÊNCIA REGIONAL DA CODEVASF.
F5: BDI %: | G5: =BDI!$C$17 -> 0.2339
E6: Encargos Sociais: | G6: Horista | H6: Mensalista
G7: ='RESUMO MODULO TOTAL'!J8 -> 1.1455 | H7: ='RESUMO MODULO TOTAL'!K8 -> 0.7011
A8: COMPOSIÇÕES DE CUSTO UNITARIO
A9: CPU-01 | B9: CODEVASF | C9: 74209/1 | D9: PLACA DE OBRA EM CHAPA DE ACO GALVANIZADO | E9: und | F9: COEF. | G9: PRECO UNITÁRIO (R$) | H9: TOTAL (R$)
A11: INS. SINAPI | B11: SINAPI | C11: 5075 | D11: PREGO 18X30. | E11: kg | F11: 0.11 | G11: =IFERROR(VLOOKUP(C11,'INSUMOS SINAPI'!A:E,5,FALSE),VLOOKUP(C11,'COMP Sint. Sinapi'!G:K,5,FALSE)) -> 18,31 | H11: =TRUNC(F11*G11,2) -> 2.01
A12: INS. SINAPI | B12: SINAPI | C12: 4491 | D12: PECA DE MADEIRA NATIVA / REGIONAL 7,5 X 7,5CM (3X3) NAO APARELHADA (P/FORMA) | E12: m | F12: 4 | G12: =IFERROR(VLOOKUP(C12,'INSUMOS SINAPI'!A:E,5,FALSE),VLOOKUP(C12,'COMP Sint. Sinapi'!G:K,5,FALSE)) -> 10,58 | H12: =TRUNC(F12*G12,2) -> 42.32
A13: INS. SINAPI | B13: SINAPI | C13: 4417 | D13: PECA DE MADEIRA DE LEI *2,5 X 7,5* CM (1" X 3"), NÃO APARELHADA, (P/TELHADO) | E13: m | F13: 1 | G13: =IFERROR(VLOOKUP(C13,'INSUMOS SINAPI'!A:E,5,FALSE),VLOOKUP(C13,'COMP Sint. Sinapi'!G:K,5,FALSE)) -> 8,43 | H13: =TRUNC(F13*G13,2) -> 8.43
A14: INS. SINAPI | B14: SINAPI | C14: 4813 | D14: PLACA DE OBRA (PARA CONSTRUCAO CIVIL) EM CHAPA GALVANIZADA *Nº 22*, DE *2,0 X 1,125* M | E14: m² | F14: 4 | G14: =IFERROR(VLOOKUP(C14,'INSUMOS SINAPI'!A:E,5,FALSE),VLOOKUP(C14,'COMP Sint. Sinapi'!G:K,5,FALSE)) -> 250,00 | H14: 1000
A15: INS. SINAPI | B15: SINAPI | C15: 370 | D15: AREIA MÉDIA | E15: m³ | F15: 0.0049 | G15: =IFERROR(VLOOKUP(C15,'INSUMOS SINAPI'!A:E,5,FALSE),VLOOKUP(C15,'COMP Sint. Sinapi'!G:K,5,FALSE)) -> 130,00 | H15: 0.63
A16: INS. SINAPI | B16: SINAPI | C16: 1379 | D16: CIMENTO PORTLAND COMPOSTO CP II-32 | E16: kg | F16: 1.5 | G16: =IFERROR(VLOOKUP(C16,'INSUMOS SINAPI'!A:E,5,FALSE),VLOOKUP(C16,'COMP Sint. Sinapi'!G:K,5,FALSE)) -> 0,70 | H16: 1.05
A17: INS. SINAPI | B17: SINAPI | C17: 4718 | D17: PEDRA BRITADA Nº 2 | E17: m³ | F17: 0.0098 | G17: =IFERROR(VLOOKUP(C17,'INSUMOS SINAPI'!A:E,5,FALSE),VLOOKUP(C17,'COMP Sint. Sinapi'!G:K,5,FALSE)) -> 105,03 | H17: 1.02
A18: COMP. SINAPI | B18: SINAPI | C18: ="87445" -> 87445 | D18: BETONEIRA CAPACIDADE NOMINAL 400 L, CAPACIDADE DE MISTURA 310 L, MOTOR A DIESEL POTÊNCIA 5,0 HP, SEM CARREGADOR MECANICO (LOCACAO) | E18: h | F18: 0.0065 | G18: =IFERROR(VLOOKUP(C18,'INSUMOS SINAPI'!A:E,5,FALSE),VLOOKUP(C18,'COMP Sint. Sinapi'!G:K,5,FALSE)) -> 5,64 | H18: 0.03
A19: COMP. SINAPI | B19: SINAPI | C19: ="88262" -> 88262 | D19: CARPINTEIRO DE FORMAS COM ENCARGOS COMPLEMENTARES | E19: h | F19: 1 | G19: =IFERROR(VLOOKUP(C19,'INSUMOS SINAPI'!A:E,5,FALSE),VLOOKUP(C19,'COMP Sint. Sinapi'!G:K,5,FALSE)) -> 26,13 | H19: 26.13
A20: COMP. SINAPI | B20: SINAPI | C20: ="88316" -> 88316 | D20: SERVENTE COM ENCARGOS COMPLEMENTARES | E20: h | F20: 2.06 | G20: =IFERROR(VLOOKUP(C20,'INSUMOS SINAPI'!A:E,5,FALSE),VLOOKUP(C20,'COMP Sint. Sinapi'!G:K,5,FALSE)) -> 21,28 | H20: 43.83
E21: Sub total: | H21: =SUM(H11:H20) -> 1125.45
F22: BDI | G22: =BDI!$C$17 -> 0.2339 | H22: =TRUNC(H21*G22,2) -> 263.24
G23: Total Serviços: | H23: =H21+H22 -> 1388.69
E24: =A9 -> CPU-01 | F24: PREÇO UNITÁRIO TOTAL: | H24: =H23 -> 1388.69 | I24: =H21 -> 1125.45
A26: CPU-02 | B26: CODEVASF | C26: Propria | D26: MOBILIZAÇÃO E DESMOBILIZAÇÃO | E26: m2 | F26: COEF. | G26: PRECO UNITÁRIO (R$) | H26: TOTAL (R$)
A28: COMP. SINAPI | B28: SINAPI | C28: ="73340" -> 73340 | D28: CAMINHÃO TOCO, PBT 14.300 KG, CARGA ÚTIL MÁX. 9.710 KG, DIST. ENTRE EIXOS 3,56 M, POTÊNCIA 185 CV, INCLUSIVE CARROCERIA FIXA ABERTA DE MADEIRA P/ TR ANSPORTE GERAL DE CARGA SECA, DIMEN. APROX. 2,50 X 6,50 X 0,50 M - MATERIA IS NA OPERAÇÃO. AF_06/2014 | E28: H | F28: 3 | G28: =IFERROR(VLOOKUP(C28,'INSUMOS SINAPI'!A:E,5,FALSE),VLOOKUP(C28,'COMP Sint. Sinapi'!G:K,5,FALSE)) -> 162,72 | H28: =TRUNC(F28*G28,2) -> 488.16
A29: COMP. SINAPI | B29: SINAPI | C29: ="67826" -> 67826 | D29: CAMINHÃO BASCULANTE 6 M3 TOCO, PESO BRUTO TOTAL 16.000 KG, CARGA ÚTIL MÁXI CHP MA 11.130 KG, DISTÂNCIA ENTRE EIXOS 5,36 M, POTÊNCIA 185 CV, INCLUSIVE CAÇAMBA METÁLICA - CHP DIURNO. AF_06/2014 | E29: CHP | F29: 3 | G29: =IFERROR(VLOOKUP(C29,'INSUMOS SINAPI'!A:E,5,FALSE),VLOOKUP(C29,'COMP Sint. Sinapi'!G:K,5,FALSE)) -> 191,75 | H29: =TRUNC(F29*G29,2) -> 575.25
A30: COMP. SINAPI | B30: SINAPI | C30: ="6259" -> 6259 | D30: CAMINHÃO PIPA 6.000 L, PESO BRUTO TOTAL 13.000 KG, DISTÂNCIA ENTRE EIXOS 4 CHP ,80 M, POTÊNCIA 189 CV INCLUSIVE TANQUE DE AÇO PARA TRANSPORTE DE ÁGUA, CAPACIDADE 6 M3 - CHP DIURNO. AF_06/2014 | E30: CHP | F30: 3 | G30: =IFERROR(VLOOKUP(C30,'INSUMOS SINAPI'!A:E,5,FALSE),VLOOKUP(C30,'COMP Sint. Sinapi'!G:K,5,FALSE)) -> 264,10 | H30: =TRUNC(F30*G30,2) -> 792.3
A31: COMP. SICRO | B31: SICRO | C31: 5914640 | D31: TRANSPORTE COM CAVALO MECÂNICO COM SEMIRREBOQUE COM CAPACIDADE DE 30 T - RODOVIA PAVIMENTADA | E31: T x km | F31: ='Mob e Desmob'!E39+'Mob e Desmob'!E40 -> 46264.14 | G31: 0.6 | H31: 27758.48
A32: INSUMO | B32: ORSE | C32: 5896 | D32: VEÍCULO TIPO SEDAN OU PICK-UP CAPACIDADE 0,6 TON | E32: h | F32: 6 | G32: 8.33 | H32: 49.98
E33: Sub total: | H33: =SUM(H28:H32) -> 29664.17
F34: BDI | G34: =BDI!$C$17 -> 0.2339 | H34: =TRUNC(H33*G34,2) -> 6938.44
G35: Total Serviços: | H35: =H33+H34 -> 36602.61
F36: PREÇO UNITÁRIO TOTAL: | H36: =H35 -> 36602.61
E37: =A26 -> CPU-02 | G37: PREÇO POR M²: | H37: =TRUNC(H36/('MC MODULO'!$J$7*'MC MODULO'!$J$6),2) -> 0.37 | I37: =H33/('MC MODULO'!J7*'MC MODULO'!J6) -> 0.3
A38: CPU-03 | B38: CODEVASF | D38: ADMINISTRAÇÃO LOCAL | E38: m2 | F38: COEF. | G38: PRECO UNITÁRIO (R$) | H38: TOTAL (R$)
A40: COMP. SINAPI | B40: SINAPI | C40: ="90777" -> 90777 | D40: ENGENHEIRO CIVIL DE OBRA JUNIOR COM ENCARGOS COMPLEMENTARES | E40: H | F40: 20 | G40: =IFERROR(VLOOKUP(C40,'INSUMOS SINAPI'!A:E,5,FALSE),VLOOKUP(C40,'COMP Sint. Sinapi'!G:K,5,FALSE)) -> 113,54 | H40: =TRUNC(F40*G40,2) -> 2270.8
A41: COMP. SINAPI | B41: SINAPI | C41: ="90780" -> 90780 | D41: MESTRE DE OBRAS COM ENCARGOS COMPLEMENTARES | E41: H | F41: 40 | G41: =IFERROR(VLOOKUP(C41,'INSUMOS SINAPI'!A:E,5,FALSE),VLOOKUP(C41,'COMP Sint. Sinapi'!G:K,5,FALSE)) -> 59,31 | H41: =TRUNC(F41*G41,2) -> 2372.4
A42: COMP. SINAPI | B42: SINAPI | C42: ="90772" -> 90772 | D42: AUXILIAR DE ESCRITORIO COM ENCARGOS COMPLEMENTARES | E42: H | F42: 40 | G42: =IFERROR(VLOOKUP(C42,'INSUMOS SINAPI'!A:E,5,FALSE),VLOOKUP(C42,'COMP Sint. Sinapi'!G:K,5,FALSE)) -> 17,95 | H42: =TRUNC(F42*G42,2) -> 718
A43: COMP. SINAPI | B43: SINAPI | C43: ="100309" -> 100309 | D43: TÉCNICO EM SEGURANÇA DO TRABALHO COM ENCARGOS COMPLEMENTARES | E43: H | F43: 40 | G43: =IFERROR(VLOOKUP(C43,'INSUMOS SINAPI'!A:E,5,FALSE),VLOOKUP(C43,'COMP Sint. Sinapi'!G:K,5,FALSE)) -> 27,61 | H43: 1104.4
A44: INS. SINAPI | B44: SINAPI | C44: 14250 | D44: ENERGIA | E44: KW/H | F44: 100 | G44: =IFERROR(VLOOKUP(C44,'INSUMOS SINAPI'!A:E,5,FALSE),VLOOKUP(C44,'COMP Sint. Sinapi'!G:K,5,FALSE)) -> 0,97 | H44: 97
A45: INS. SINAPI | B45: SINAPI | C45: 44480 | D45: ÁGUA TARIFA "A" ENTRE 0 E 20M3 FORNECIMENTO D'AGUA | E45: M3 | F45: 8.311876 | G45: =IFERROR(VLOOKUP(C45,'INSUMOS SINAPI'!A:E,5,FALSE),VLOOKUP(C45,'COMP Sint. Sinapi'!G:K,5,FALSE)) -> 18,35 | H45: 152.52
A46: INSUMO | B46: ORSE | C46: 4415 | D46: VEÍCULO LEVE - VOLKSWAGEN:GOL 1000 - AUTOMÓVEL ATÉ 100 HP | E46: h | F46: =F40+F41 -> 60 | G46: 13.18 | H46: 790.8
E47: ADM. LOCAL : | H47: =SUM(H40:H46) -> 7505.92
G49: =BDI!$C$17 -> 0.2339 | H49: =TRUNC(G49*H47,2) -> 1755.63
F50: PREÇO TOTAL: | H50: =H47+H49 -> 9261.55 | I50: =H47 -> 7505.92
E51: =A38 -> CPU-03 | G51: PREÇO POR M²: | H51: =TRUNC(H50/('MC MODULO'!$C$7*'MC MODULO'!$C$6),2) -> 0.66 | I51: =H47/(('MC MODULO'!$C$7*'MC MODULO'!$C$6)) -> 0.54
A52: CPU-04 | B52: CODEVASF | D52: CANTEIRO DE OBRAS E ALMOXARIFADO | E52: und | F52: COEF. | G52: PRECO UNITÁRIO (R$) | H52: TOTAL (R$)
A54: INS. SINAPI | B54: SINAPI | C54: 10775 | D54: LOCACAO DE CONTAINER 2,30 X 6,00 M, ALT. 2,50 M, COM 1 SANITARIO, PARA ESCRITORIO, COMPLETO, SEM DIVISORIAS INTERNAS (NAO INCLUI MOBILIZACAO/DESMOBILIZACAO) | E54: mês | F54: 1 | G54: =IFERROR(VLOOKUP(C54,'INSUMOS SINAPI'!A:E,5,FALSE),VLOOKUP(C54,'COMP Sint. Sinapi'!G:K,5,FALSE)) -> 890,00 | H54: =TRUNC(F54*G54,2) -> 890
A55: INS. SINAPI | B55: SINAPI | C55: 10776 | D55: LOCACAO DE CONTAINER 2,30 X 6,00 M, ALT. 2,50 M, PARA ESCRITORIO, SEM DIVISORIAS INTERNAS E SEM SANITARIO (NAO INCLUI MOBILIZACAO/DESMOBILIZACAO) | E55: mês | F55: 1 | G55: =IFERROR(VLOOKUP(C55,'INSUMOS SINAPI'!A:E,5,FALSE),VLOOKUP(C55,'COMP Sint. Sinapi'!G:K,5,FALSE)) -> 695,31 | H55: =TRUNC(F55*G55,2) -> 695.31
E56: Sub total: | H56: =SUM(H54:H55) -> 1585.31
F57: BDI | G57: =BDI!$C$17 -> 0.2339 | H57: =TRUNC(H56*G57,2) -> 370.8
G58: Total Serviços: | H58: =H56+H57 -> 1956.11
E59: =A52 -> CPU-04 | F59: PREÇO UNITÁRIO TOTAL: | H59: =H58 -> 1956.11 | I59: =H56 -> 1585.31
A61: CPU-11 | B61: CODEVASF | D61: LIMPEZA GERAL | E61: UNID | F61: COEF. | G61: PRECO UNITÁRIO (R$) | H61: TOTAL (R$)
A63: COMP. SINAPI | B63: SINAPI | C63: ="88316" -> 88316 | D63: SERVENTE COM ENCARGOS COMPLEMENTARES | E63: H | F63: 0.05 | G63: =IFERROR(VLOOKUP(C63,'INSUMOS SINAPI'!A:E,5,FALSE),VLOOKUP(C63,'COMP Sint. Sinapi'!G:K,5,FALSE)) -> 21,28 | H63: =TRUNC(F63*G63,2) -> 1.06
E64: Sub total: | H64: =SUM(H63:H63) -> 1.06
F65: BDI | G65: =BDI!$C$17 -> 0.2339 | H65: =TRUNC(H64*G65,2) -> 0.24
G66: Total Serviços: | H66: =H64+H65 -> 1.3
E67: =A61 -> CPU-11 | F67: PREÇO UNITÁRIO TOTAL: | H67: =H66 -> 1.3 | I67: =H64 -> 1.06
A69: CPU-12 | B69: CODEVASF | D69: Correção de vazamentos no ramal na rua sem pavimento com fornecimento do material hidráulico | E69: M | F69: COEF. | G69: PRECO UNITÁRIO (R$) | H69: TOTAL (R$)
A71: COMP. SINAPI | B71: SINAPI | C71: ="88316" -> 88316 | D71: SERVENTE COM ENCARGOS COMPLEMENTARES | E71: H | F71: 0.2 | G71: =IFERROR(VLOOKUP(C71,'INSUMOS SINAPI'!A:E,5,FALSE),VLOOKUP(C71,'COMP Sint. Sinapi'!G:K,5,FALSE)) -> 21,28 | H71: =TRUNC(F71*G71,2) -> 4.25
A72: COMP. SINAPI | B72: SINAPI | C72: ="88267" -> 88267 | D72: ENCANADOR OU BOMBEIRO HIDRÁULICO COM ENCARGOS COMPLEMENTARES | E72: H | F72: 0.1 | G72: =IFERROR(VLOOKUP(C72,'INSUMOS SINAPI'!A:E,5,FALSE),VLOOKUP(C72,'COMP Sint. Sinapi'!G:K,5,FALSE)) -> 25,76 | H72: =TRUNC(F72*G72,2) -> 2.57
A73: INS. SINAPI | B73: SINAPI | C73: 9867 | D73: TUBO PVC, SOLDAVEL, DN 20 MM, AGUA FRIA (NBR-5648) | E73: m | F73: 1 | G73: =IFERROR(VLOOKUP(C73,'INSUMOS SINAPI'!A:E,5,FALSE),VLOOKUP(C73,'COMP Sint. Sinapi'!G:K,5,FALSE)) -> 4,06 | H73: 4.06
A74: INSUMO | B74: ORSE | C74: 10585 | D74: Arco de serra | E74: un | F74: 0.1 | G74: 22.49 | H74: 2.24
A75: INS. SINAPI | B75: SINAPI | C75: 3859 | D75: LUVA SOLDAVEL COM ROSCA, PVC, 20 MM X 1/2", PARA AGUA FRIA PREDIAL | E75: un | F75: 2 | G75: =IFERROR(VLOOKUP(C75,'INSUMOS SINAPI'!A:E,5,FALSE),VLOOKUP(C75,'COMP Sint. Sinapi'!G:K,5,FALSE)) -> 1,46 | H75: 2.92
E76: Sub total: | H76: =SUM(H71:H75) -> 16.04
F77: BDI | G77: =BDI!$C$17 -> 0.2339 | H77: =TRUNC(H76*G77,2) -> 3.75
G78: Total Serviços: | H78: =H76+H77 -> 19.79
E79: =A69 -> CPU-12 | F79: PREÇO UNITÁRIO TOTAL: | H79: =H78 -> 19.79 | I79: =H76 -> 16.04
A81: CPU-13 | B81: CODEVASF | D81: AQUISIÇÃO DE CIMENTO ASFALTICO CAP 50/70 | E81: t | F81: COEF. | G81: PRECO UNITÁRIO (R$) | H81: TOTAL (R$)
A83: COMPOSIÇÃO | D83: CIMENTO ASFALTICO 50/70 | E83: t | F83: 1 | G83: =RESUMO_Transp!V17 -> 4236.83 | H83: =TRUNC(F83*G83,2) -> 4236.83
E84: Sub total: | H84: =SUM(H83) -> 4236.83
F85: BDI | G85: 0.15 | H85: =TRUNC(H84*G85,2) -> 635.52
G86: Total Serviços: | H86: =H84+H85 -> 4872.35
E87: =A81 -> CPU-13 | F87: PREÇO UNITÁRIO TOTAL: | H87: =H86 -> 4872.35 | I87: =H84 -> 4236.83
A89: CPU-14 | B89: CODEVASF | D89: AQUISIÇÃO DE CM-30 | E89: t | F89: COEF. | G89: PRECO UNITÁRIO (R$) | H89: TOTAL (R$)
A91: COMPOSIÇÃO | D91: CM-30 | E91: t | F91: 1 | G91: =RESUMO_Transp!V22 -> 5234.08 | H91: =TRUNC(F91*G91,2) -> 5234.08
E92: Sub total: | H92: =SUM(H91) -> 5234.08
F93: BDI | G93: 0.15 | H93: =TRUNC(H92*G93,2) -> 785.11
G94: Total Serviços: | H94: =H92+H93 -> 6019.19
E95: =A89 -> CPU-14 | F95: PREÇO UNITÁRIO TOTAL: | H95: =H94 -> 6019.19 | I95: =H92 -> 5234.08
A97: CPU-15 | B97: CODEVASF | D97: AQUISIÇÃO DE EMULSÃO ASFÁLTICA RR-1C | E97: t | F97: COEF. | G97: PRECO UNITÁRIO (R$) | H97: TOTAL (R$)
A99: COMPOSIÇÃO | D99: EMULSÃO ASFÁLTICA RR-1C | E99: t | F99: 1 | G99: =RESUMO_Transp!V27 -> 3059.97 | H99: =TRUNC(F99*G99,2) -> 3059.97
E100: Sub total: | H100: =SUM(H99) -> 3059.97
F101: BDI | G101: 0.15 | H101: =TRUNC(H100*G101,2) -> 458.99
G102: Total Serviços: | H102: =H100+H101 -> 3518.96
E103: =A97 -> CPU-15 | F103: PREÇO UNITÁRIO TOTAL: | H103: =H102 -> 3518.96 | I103: =H100 -> 3059.97
A105: CPU-16 | B105: CODEVASF | D105: SERVIÇOS TOPOGRÁFICOS PARA PAVIMENTAÇÃO, INCLUSIVE NOTAS DE SERVIÇOS, ACOMPANHAMENTO E GREIDE | E105: M² | F105: COEF. | G105: PRECO UNITÁRIO (R$) | H105: TOTAL (R$)
A107: Composição | B107: SINAPI | C107: ="90781" -> 90781 | D107: =VLOOKUP(C107,'COMP Sint. Sinapi'!G:K,2,0) -> TOPOGRAFO COM ENCARGOS COMPLEMENTARES | E107: h | F107: 0.0025 | G107: =IFERROR(VLOOKUP(C107,'INSUMOS SINAPI'!A:E,5,FALSE),VLOOKUP(C107,'COMP Sint. Sinapi'!G:K,5,FALSE)) -> 29,90 | H107: =TRUNC(F107*G107,2) -> 0.07
A108: Insumo | B108: SINAPI | C108: 20206 | D108: =VLOOKUP(C108,'INSUMOS SINAPI'!A:E,2,0) -> SARRAFO APARELHADO *2 X 10* CM, EM MACARANDUBA/MASSARANDUBA, ANGELIM OU EQUIVALENTE DA REGIAO | E108: m | F108: 0.002886 | G108: =IFERROR(VLOOKUP(C108,'INSUMOS SINAPI'!A:E,5,FALSE),VLOOKUP(C108,'COMP Sint. Sinapi'!G:K,5,FALSE)) -> 10,65 | H108: =TRUNC(F108*G108,2) -> 0.03
A109: Composição | B109: SINAPI | C109: ="88253" -> 88253 | D109: =VLOOKUP(C109,'COMP Sint. Sinapi'!G:K,2,0) -> AUXILIAR DE TOPÓGRAFO COM ENCARGOS COMPLEMENTARES | E109: h | F109: 0.0025 | G109: =IFERROR(VLOOKUP(C109,'INSUMOS SINAPI'!A:E,5,FALSE),VLOOKUP(C109,'COMP Sint. Sinapi'!G:K,5,FALSE)) -> 14,48 | H109: 0.03
A110: Composição | B110: SINAPI | C110: ="88288" -> 88288 | D110: =VLOOKUP(C110,'COMP Sint. Sinapi'!G:K,2,0) -> NIVELADOR COM ENCARGOS COMPLEMENTARES | E110: h | F110: 0.0025 | G110: =IFERROR(VLOOKUP(C110,'INSUMOS SINAPI'!A:E,5,FALSE),VLOOKUP(C110,'COMP Sint. Sinapi'!G:K,5,FALSE)) -> 17,97 | H110: 0.04
A111: Composição | B111: SINAPI | C111: ="88316" -> 88316 | D111: =VLOOKUP(C111,'COMP Sint. Sinapi'!G:K,2,0) -> SERVENTE COM ENCARGOS COMPLEMENTARES | E111: h | F111: 0.0075 | G111: =IFERROR(VLOOKUP(C111,'INSUMOS SINAPI'!A:E,5,FALSE),VLOOKUP(C111,'COMP Sint. Sinapi'!G:K,5,FALSE)) -> 21,28 | H111: 0.15
A112: Composição | B112: SINAPI | C112: ="88597" -> 88597 | D112: =VLOOKUP(C112,'COMP Sint. Sinapi'!G:K,2,0) -> DESENHISTA DETALHISTA COM ENCARGOS COMPLEMENTARES | E112: h | F112: 0.002 | G112: =IFERROR(VLOOKUP(C112,'INSUMOS SINAPI'!A:E,5,FALSE),VLOOKUP(C112,'COMP Sint. Sinapi'!G:K,5,FALSE)) -> 31,40 | H112: 0.06
A113: Composição | B113: SINAPI | C113: ="92145" -> 92145 | D113: =VLOOKUP(C113,'COMP Sint. Sinapi'!G:K,2,0) -> CAMINHONETE CABINE SIMPLES COM MOTOR 1.6 FLEX, CÂMBIO MANUAL, POTÊNCIA 101/104 CV, 2 PORTAS - CHP DIURNO. AF_11/2015 | E113: chp | F113: 0.001 | G113: =IFERROR(VLOOKUP(C113,'INSUMOS SINAPI'!A:E,5,FALSE),VLOOKUP(C113,'COMP Sint. Sinapi'!G:K,5,FALSE)) -> 74,50 | H113: 0.07
E114: Sub total: | H114: =SUM(H107:H113) -> 0.45
F115: BDI | G115: =BDI!$C$17 -> 0.2339 | H115: =TRUNC(H114*G115,2) -> 0.1
G116: Total Serviços: | H116: =H114+H115 -> 0.55
E117: =A105 -> CPU-16 | F117: PREÇO UNITÁRIO TOTAL: | H117: =H116 -> 0.55 | I117: =H114 -> 0.45
A119: CPU-17 | B119: CODEVASF | D119: TRANSPORTE DE CIMENTO ASFALTICO CAP 50/70 | E119: t | F119: COEF. | G119: PRECO UNITÁRIO (R$) | H119: TOTAL (R$)
D121: TRANSPORTE DE CIMENTO ASFALTICO 50/70 | E121: t | F121: 1 | G121: =RESUMO_Transp!U17 -> 459.74 | H121: =TRUNC(F121*G121,2) -> 459.74
E122: Sub total: | H122: =SUM(H121) -> 459.74
F123: BDI | G123: 0.15 | H123: =TRUNC(H122*G123,2) -> 68.96
G124: Total Serviços: | H124: =H122+H123 -> 528.7
E125: =A119 -> CPU-17 | F125: PREÇO UNITÁRIO TOTAL: | H125: =H124 -> 528.7 | I125: =H122 -> 459.74
A127: CPU-18 | B127: CODEVASF | D127: TRANSPORTE DE CM-30 | E127: t | F127: COEF. | G127: PRECO UNITÁRIO (R$) | H127: TOTAL (R$)
D129: TRANSPORTE DE CM-30 | E129: t | F129: 1 | G129: =RESUMO_Transp!U22 -> 459.83 | H129: =TRUNC(F129*G129,2) -> 459.83
E130: Sub total: | H130: =SUM(H129) -> 459.83
F131: BDI | G131: 0.15 | H131: =TRUNC(H130*G131,2) -> 68.97
G132: Total Serviços: | H132: =H130+H131 -> 528.8
E133: =A127 -> CPU-18 | F133: PREÇO UNITÁRIO TOTAL: | H133: =H132 -> 528.8 | I133: =H130 -> 459.83
A135: CPU-19 | B135: CODEVASF | D135: TRANSPORTE DE EMULSÃO ASFÁLTICA RR-1C | E135: t | F135: COEF. | G135: PRECO UNITÁRIO (R$) | H135: TOTAL (R$)
D137: TRANSPORTE DE EMULSÃO ASFÁLTICA RR-1C | E137: t | F137: 1 | G137: =RESUMO_Transp!U27 -> 567.64 | H137: =TRUNC(F137*G137,2) -> 567.64
E138: Sub total: | H138: =SUM(H137) -> 567.64
F139: BDI | G139: 0.15 | H139: =TRUNC(H138*G139,2) -> 85.14
G140: Total Serviços: | H140: =H138+H139 -> 652.78
E141: =A135 -> CPU-19 | F141: PREÇO UNITÁRIO TOTAL: | H141: =H140 -> 652.78 | I141: =H138 -> 567.64
A143: CPU-20 | B143: CODEVASF | D143: PROJETO EXECUTIVO | E143: m² | F143: COEF. | G143: PRECO UNITÁRIO (R$) | H143: TOTAL (R$)
A145: Composição | B145: SINAPI | C145: 100306 | D145: Engenheiro | E145: h | F145: =20*'MC MODULO'!C77/'MC MODULO'!$G$77 -> 0.0004714 | G145: 129.2 | H145: =TRUNC(F145*G145,4) -> 0.0609
A146: Composição | B146: SINAPI | C146: 90781 | D146: Topógrafo | E146: h | F146: =10*'MC MODULO'!$C$77/'MC MODULO'!$G$77 -> 0.0002357 | G146: 41.89 | H146: =TRUNC(F146*G146,4) -> 0.0098
A147: Composição | B147: SINAPI | C147: 88253 | D147: Auxiliar de topógrafo | E147: h | F147: =10*'MC MODULO'!$C$77/'MC MODULO'!$G$77 -> 0.0002357 | G147: 19.92 | H147: =TRUNC(F147*G147,4) -> 0.0046
A148: Composição | B148: SINAPI | C148: 90775 | D148: Cadista/calculista | E148: h | F148: =20*'MC MODULO'!$C$77/'MC MODULO'!$G$77 -> 0.0004714 | G148: 29.46 | H148: 0.0138
A149: Mao de Obra | B149: SICRO | C149: P9858 | D149: Laboratorista | E149: mês | F149: =('MC MODULO'!$C$77/'MC MODULO'!$G$77) -> 2.36e-05 | G149: ='MO Sicro'!F49 -> 6939.06 | H149: 0.1637
A150: Mao de Obra | B150: SICRO | C150: P9833 | D150: Auxiliar de Laboratório | E150: mês | F150: =('MC MODULO'!$C$77/'MC MODULO'!$G$77) -> 2.36e-05 | G150: ='MO Sicro'!F29 -> 5376.08 | H150: 0.1268
A151: Insumo | B151: Taxa 3% Eq. Técnica | C151: - | D151: MATERIAIS DE CONSUMO | E151: % | F151: 1 | G151: 0.03 | H151: 0.03
A152: Insumo | B152: SINAPI | C152: 92144 | D152: VEÍCULOS | E152: h | F152: =8*'MC MODULO'!$C$77/'MC MODULO'!$G$77 -> 0.0001886 | G152: 38,33 | H152: 0.0072
A153: Insumo | B153: SINAPI | C153: 4221 | D153: COMBUSTÍVEL | E153: L | F153: =5*'MC MODULO'!$C$77/'MC MODULO'!$G$77 -> 0.0001179 | G153: 6,18 | H153: 0.0007
A154: Composição | B154: SINAPI | C154: 7247 | D154: EQUIPAMENTOS, INSTALAÇÕES E MOBILIÁRIO | E154: h | F154: =16*'MC MODULO'!$C$77/'MC MODULO'!$G$77 -> 0.0003771 | G154: 2,25 | H154: 0.0008
A155: Eng. Consultiva | B155: SICRO | C155: *B8957 | D155: Laboratório de Solos | E155: mês | F155: ='MC MODULO'!$C$77/'MC MODULO'!$G$77 -> 2.36e-05 | G155: ='Consult SICRO'!G20 -> 4311.34 | H155: 0.1017
A156: Eng. Consultiva | B156: SICRO | C156: *B8955 | D156: Laboratório de Asfalto | E156: mês | F156: =('MC MODULO'!$C$77/'MC MODULO'!$G$77) -> 2.36e-05 | G156: ='Consult SICRO'!G18 -> 5400.53 | H156: 0.1274
B157: *Relatório de Custos Gerais do DNIT, página 1 | E157: Sub total: | H157: =SUM(H145:H156) -> 0.6474
F158: BDI | G158: =BDI!$C$17 -> 0.2339 | H158: =TRUNC(H157*G158,4) -> 0.1514
E159: CPU-20 | F159: PREÇO UNITÁRIO TOTAL: | H159: =H157+H158 -> 0.8 | I159: =H157 -> 0.65
A161: CPU-21 | B161: CODEVASF | D161: CONTROLE TECNOLÓGICO - OBRA | E161: m² | F161: COEF. | G161: PRECO UNITÁRIO (R$) | H161: TOTAL (R$)
A163: Mao de Obra | B163: SICRO | C163: P9858 | D163: Laboratorista | E163: mês | F163: =('MC MODULO'!$C$82/'MC MODULO'!$G$82) -> 4.79e-05 | G163: ='MO Sicro'!F49 -> 6939.06 | H163: =TRUNC(F163*G163,4) -> 0.3323
A164: Mao de Obra | B164: SICRO | C164: P9833 | D164: Auxiliar de Laboratório | E164: mês | F164: =('MC MODULO'!$C$82/'MC MODULO'!$G$82) -> 4.79e-05 | G164: ='MO Sicro'!F29 -> 5376.08 | H164: 0.2575
A165: Insumo | B165: Taxa 3% Eq. Técnica | C165: - | D165: MATERIAIS DE CONSUMO | E165: % | F165: 1 | G165: 0.03 | H165: =TRUNC(SUM(H163:H164)*G165,4) -> 0.0176
A166: Insumo | B166: SINAPI | C166: 92144 | D166: VEÍCULOS | E166: h | F166: =8*('MC MODULO'!$C$82/'MC MODULO'!$G$82) -> 0.0003829 | G166: 38,33 | H166: 0.0146
A167: Insumo | B167: SINAPI | C167: 4221 | D167: COMBUSTÍVEL | E167: L | F167: =5*('MC MODULO'!$C$82/'MC MODULO'!$G$82) -> 0.0002393 | G167: 6,18 | H167: 0.0014
A168: Composição | B168: SINAPI | C168: 7247 | D168: EQUIPAMENTOS, INSTALAÇÕES E MOBILIÁRIO | E168: h | F168: =16*('MC MODULO'!$C$82/'MC MODULO'!$G$82) -> 0.0007657 | G168: 2,25 | H168: 0.0017
A169: Eng. Consultiva | B169: SICRO | C169: *B8957 | D169: Laboratório de Solos | E169: mês | F169: =('MC MODULO'!$C$82/'MC MODULO'!$G$82) -> 4.79e-05 | G169: ='Consult SICRO'!G20 -> 4311.34 | H169: 0.2065
A170: Eng. Consultiva | B170: SICRO | C170: *B8955 | D170: Laboratório de Asfalto | E170: mês | F170: =('MC MODULO'!$C$82/'MC MODULO'!$G$82) -> 4.79e-05 | G170: 5400.53 | H170: 0.2586
B171: *Relatório de Custos Gerais do DNIT, página 1 | E171: Sub total: | H171: =SUM(H163:H170) -> 1.0902
F172: BDI | G172: =BDI!$C$17 -> 0.2339 | H172: =TRUNC(H171*G172,4) -> 0.2549
E173: CPU-21 | F173: PREÇO UNITÁRIO TOTAL: | H173: =H171+H172 -> 1.35 | I173: =H171 -> 1.09

Sheet CRONOGRAMA TOTAL
A2: ='RESUMO MODULO TOTAL'!A1 -> CONTRATAÇÃO DE EXECUÇÃO DE PAVIMENTO ASFÁLTICO COM CBUQ, EM VIAS DE DIVERSOS MUNICÍPIOS DA MESORREGIÃO DA MATA PERNAMBUCANA, ÁREA DE ATUAÇÃO DA 15ª SUPERINTENDÊNCIA REGIONAL DA CODEVASF.
A3: Cronograma Físico e Financeiro
A4: Item | B4: Descrição | C4: Total Por Etapa | D4: 15 DIAS | E4: 30 DIAS | F4: 45 DIAS | G4: 60 DIAS | H4: 75 DIAS | I4: 90 DIAS | J4: 105 DIAS | K4: 120 DIAS | L4: 135 DIAS | M4: 150 DIAS | N4: 165 DIAS | O4: 180 DIAS
B5: ='RESUMO MODULO TOTAL'!D10 -> SERVIÇOS PRELIMINARES | C5: 1 | F5: =$C$5/10 -> 0.1 | G5: =$C$5/10 -> 0.1 | H5: 0.1 | I5: 0.1 | J5: 0.1 | K5: 0.1 | L5: 0.1 | M5: 0.1 | N5: 0.1 | O5: 0.1 | Q5: =SUM(D5:O5) -> 1
C6: =SUM('RESUMO MODULO TOTAL'!M11:M14) -> 124353.6 | F6: =$C$6*F5 -> 12435.36 | G6: 12435.36 | H6: 12435.36 | I6: 12435.36 | J6: 12435.36 | K6: 12435.36 | L6: 12435.36 | M6: 12435.36 | N6: 12435.36 | O6: 12435.36 | Q6: =SUM(D6:O6) -> 124353.6 | R6: =C6 -> 124353.6 | S6: =Q6-R6 -> 0
B7: ='RESUMO MODULO TOTAL'!D15 -> TERRAPLANAGEM | C7: 1 | F7: 0.1667 | G7: 0.1667 | H7: 0.1667 | I7: 0.1667 | J7: 0.1667 | K7: =16.67%-0.0002 -> 0.1665 | Q7: =SUM(F7:O7) -> 1
C8: =SUM('RESUMO MODULO TOTAL'!M16:M18) -> 440049.4 | F8: =$C$8*F7 -> 73356.23 | G8: =$C$8*G7 -> 73356.23 | H8: 73356.23 | I8: 73356.23 | J8: 73356.23 | K8: 73268.23 | Q8: 440049.38 | R8: =C8 -> 440049.4 | S8: =Q8-R8 -> -0.02
B9: ='RESUMO MODULO TOTAL'!D19 -> PAVIMENTAÇÃO | C9: 1 | I9: 0.1429 | J9: 0.1429 | K9: 0.1429 | L9: 0.1429 | M9: 0.1429 | N9: 0.1429 | O9: =14.29%-0.0003 -> 0.1426 | Q9: =SUM(F9:O9) -> 1
C10: =SUM('RESUMO MODULO TOTAL'!M20:M25) -> 5114218.2 | I10: =$C$10*I9 -> 730821.78 | J10: 730821.78 | K10: 730821.78 | L10: 730821.78 | M10: 730821.78 | N10: 730821.78 | O10: 729287.52 | Q10: 5114218.2 | R10: =C10 -> 5114218.2 | S10: =Q10-R10 -> 0
B11: ='RESUMO MODULO TOTAL'!D33 -> SINALIZAÇÃO | C11: 1 | N11: 0.5 | O11: 0.5 | Q11: 1
C12: =SUM('RESUMO MODULO TOTAL'!M34:M36) -> 257217.52 | N12: =$C$12*N11 -> 128608.76 | O12: 128608.76 | Q12: 257217.52 | R12: =C12 -> 257217.52 | S12: 0
B13: ='RESUMO MODULO TOTAL'!D37 -> DRENAGEM | C13: 1 | N13: 0.5 | O13: 0.5 | Q13: =SUM(D13:O13) -> 1
C14: ='RESUMO MODULO TOTAL'!M38 -> 1970920 | N14: =$C$14*N13 -> 985460 | O14: 985460 | Q14: 1970920 | R14: =C14 -> 1970920 | S14: 0
B15: AQUISIÇÃO E TRANSPORTE DE MATERIAL BETUMINOSO | C15: 1 | I15: 0.1429 | J15: 0.1429 | K15: 0.1429 | L15: 0.1429 | M15: 0.1429 | N15: 0.1429 | O15: 0.1426
C16: =SUM('RESUMO MODULO TOTAL'!M27:M32) -> 4888125.99 | I16: =$C$16*I15 -> 698513.2 | J16: 698513.2 | K16: 698513.2 | L16: 698513.2 | M16: 698513.2 | N16: 698513.2 | O16: 697046.77
B17: ='RESUMO MODULO TOTAL'!D39 -> SERVIÇOS COMPLEMENTARES | C17: 1 | F17: 0.1 | G17: 0.1 | H17: 0.1 | I17: 0.1 | J17: 0.1 | K17: 0.1 | L17: 0.1 | M17: 0.1 | N17: 0.1 | O17: 0.1 | Q17: =SUM(D17:O17) -> 1
C18: =SUM('RESUMO MODULO TOTAL'!M40) -> 6787.97 | F18: =$C$18*F17 -> 678.8 | G18: =$C$18*G17 -> 678.8 | H18: 678.8 | I18: 678.8 | J18: 678.8 | K18: 678.8 | L18: 678.8 | M18: 678.8 | N18: 678.8 | O18: 678.8 | Q18: 6788 | R18: =C18 -> 6787.97 | S18: =Q18-R18 -> 0.03
B19: ='RESUMO MODULO TOTAL'!D41 -> PROJETO EXECUTIVO | C19: 1 | D19: 0.5 | E19: 0.5 | Q19: 1
C20: =SUM('RESUMO MODULO TOTAL'!M42) -> 78400 | D20: =$C$20*D19 -> 39200 | E20: =$C$20*E19 -> 39200 | Q20: 78400 | R20: =C20 -> 78400 | S20: =Q20-R20 -> 0
B21: ='RESUMO MODULO TOTAL'!D43 -> CONTROLE TECNOLÓGICO - OBRA | C21: 1 | D21: 0.0834 | E21: 0.0834 | F21: 0.0834 | G21: 0.0834 | H21: 0.0834 | I21: 0.0834 | J21: 0.0834 | K21: 0.0834 | L21: 0.0834 | M21: 0.0834 | N21: 0.0834 | O21: =8.34%-0.0008 -> 0.0826 | Q21: =SUM(D21:O21) -> 1
C22: =SUM('RESUMO MODULO TOTAL'!M44) -> 132300 | D22: =$C$22*D21 -> 11033.82 | E22: 11033.82 | F22: 11033.82 | G22: 11033.82 | H22: 11033.82 | I22: 11033.82 | J22: 11033.82 | K22: 11033.82 | L22: 11033.82 | M22: 11033.82 | N22: 11033.82 | O22: 10927.98 | Q22: 132300 | R22: =C22 -> 132300 | S22: =Q22-R22 -> 0
B23: ='RESUMO MODULO TOTAL'!D45 -> MOMENTO DE TRANSPORTE | C23: 1 | F23: 0.1 | G23: 0.1 | H23: 0.1 | I23: 0.1 | J23: 0.1 | K23: 0.1 | L23: 0.1 | M23: 0.1 | N23: 0.1 | O23: 0.1 | Q23: =SUM(D23:O23) -> 1
C24: =SUM('RESUMO MODULO TOTAL'!M46:M54) -> 5785988.26 | F24: =$C$24*F23 -> 578598.83 | G24: =$C$24*G23 -> 578598.83 | H24: 578598.83 | I24: 578598.83 | J24: 578598.83 | K24: 578598.83 | L24: 578598.83 | M24: 578598.83 | N24: 578598.83 | O24: 578598.83 | Q24: 5785988.3 | R24: =C24 -> 5785988.26 | S24: =Q24-R24 -> 0.04
A26: Porcentagem | D26: =SUM(D6+D10+D12+D14+D16+D8+D18+D20+D22)/$O$31 -> 0.0027 | E26: =SUM(E6+E10+E12+E14+E16+E8+E18+E20+E22)/$O$31 -> 0.0027 | F26: =SUM(F6+F10+F12+F14+F16+F18+F20+F22+F8+F24)/$O$31 -> 0.036 | G26: =SUM(G6+G10+G12+G14+G16+G18+G20+G22+G8+G24)/$O$31 -> 0.036 | H26: 0.036 | I26: 0.112 | J26: 0.112 | K26: 0.112 | L26: 0.1081 | M26: 0.1081 | N26: 0.1674 | O26: 0.1672
A27: Custo | D27: =$O$31*D26 -> 50755.57 | E27: =$O$31*E26 -> 50755.57 | F27: =$O$31*F26 -> 676740.96 | G27: 676740.96 | H27: 676740.96 | I27: 2105416.32 | J27: 2105416.32 | K27: 2105416.32 | L27: 2032102.72 | M27: 2032102.72 | N27: 3146845.46 | O27: 3143085.79
A28: Porcentagem Acumulado | D28: =D26 -> 0.0027 | E28: =D28+E26 -> 0.0054 | F28: =E28+F26 -> 0.0414 | G28: 0.0774 | H28: 0.1134 | I28: 0.2254 | J28: 0.3374 | K28: 0.4494 | L28: 0.5575 | M28: 0.6656 | N28: 0.833 | O28: 1.0002
A29: Custo Acumulado | D29: =D27 -> 50755.57 | E29: =D29+E27 -> 101511.14 | F29: 778252.1 | G29: 1454993.06 | H29: 2131734.02 | I29: 4237150.34 | J29: 6342566.66 | K29: 8447982.98 | L29: 10480085.7 | M29: 12512188.42 | N29: 15659033.88 | O29: 18802119.67
D31: Total Geral | N31: R$ | O31: ='RESUMO MODULO TOTAL'!$M$55 -> 18798360
F34: Execução de serviços de pavimentação com concreto betuminoso usinado a quente (CBUQ), em vias urbanas e rurais inseridas na área de atuação da Codevasf, no Estado do Pará
F35: EXECUÇÃO DE SERVIÇOS DE PAVIMENTAÇÃO COM CONCRETO BETUMINOSO USINADO A QUENTE (CBUQ), EM VIAS URBANAS E RURAIS INSERIDAS NA ÁREA DE ATUAÇÃO DA CODEVASF, NO ESTADO DO PARÁ

Sheet CONSUMO DE MAT. B TOTAL
B3: CONSUMO DO MATERIAL BETUMINOSO TOTAL
B5: TRECHO | D5: QUANTIDADES | M5: MAT. BETUMINOSO
B6: Inicio (km) | C6: Fim (km) | D6: Extensão (m) | E6: Largura (m) | F6: Espess. (m) | G6: Área (m2) | H6: Volume (m3) | I6: Densidade (t/m3) | J6: Massa (t) | K6: Unid | L6: Quant. | M6: Tipo | N6: Consumo Taxa de Aplicação | O6: Unid. | P6: Quant.
B7: IMPRIMAÇÃO
F8: 1 | G8: ='MC MODULO'!N38 -> 98000 | I8: 0.92 | M8: CM-30 | N8: 1,2 l/m2 | O8: t | P8: =ROUND(I8*(G8*LEFT(N8,3))/1000,2) -> 108.19
B9: PINTURA DE LIGAÇÃO
F10: 1 | G10: ='MC MODULO'!N34 -> 98000 | I10: 1 | M10: RR-1C | N10: 0,40 l/m2 | O10: t | P10: =ROUND((G10*LEFT(N10,4))/1000,2) -> 39.2
B11: CBUQ FAIXA "C"
F12: ='MC MODULO'!L30 -> 0.05 | G12: ='MC MODULO'!J30*'MC MODULO'!K30 -> 98000 | H12: =G12*F12 -> 4900 | I12: ='MC MODULO'!M30 -> 2.4 | J12: =H12*I12 -> 11760 | M12: CAP-50/70 | N12: 0,06323 t/m3 | O12: t | P12: =J12*0.06323 -> 743.585
C29: Caderno Técnico - Usinagem (Out/2022)

Sheet Mob e Desmob
A5: ='RESUMO MODULO TOTAL'!A1 -> CONTRATAÇÃO DE EXECUÇÃO DE PAVIMENTO ASFÁLTICO COM CBUQ, EM VIAS DE DIVERSOS MUNICÍPIOS DA MESORREGIÃO DA MATA PERNAMBUCANA, ÁREA DE ATUAÇÃO DA 15ª SUPERINTENDÊNCIA REGIONAL DA CODEVASF.
A7: MEMÓRIA DE CÁLCULO DOS MOMENTOS DE TRANSPORTE PARA MOBILIZAÇÕES E DESMOBILIZAÇÕES
A9: Deslocamento Patrulha de Serviço:
C10: Distancia méd. (Km) | D10: Qtde. | E10: Subtotal (Km)
A11: Mobilização da Usina: | C11: 80 | D11: 1 | E11: =C11*D11 -> 80
A12: Desmobilização da Usina: | C12: =C11 -> 80 | D12: 1 | E12: =C12*D12 -> 80
A13: Mobilização (entre os trechos de serviço): | C13: 3 | D13: =ROUND(D14*2,) -> 14 | E13: =C13*D13 -> 42 | G13: - Considerado quantidade média de 2 mobin p/ cada 2 Módulos mínimos
A14: Mobilização inter-municipal (entre as localidades): | C14: 60 | D14: ='MC MODULO'!N7 -> 7 | E14: =C14*D14 -> 420 | G14: - Considerado quantidade média de 1 mob/desmob a cada 2 módulos mínimos
A15: Desmobilização inter-municipal (entre as localidades): | C15: 60 | D15: 1 | E15: =C15*D15 -> 60
A16: Mobilização da Patrulha de Serviço (km) | E16: =E13+E14 -> 462
A17: Desmobilização da Patrulha de Serviço (km) | E17: =E15 -> 60
A19: Peso das máquinas:
E20: USINA FIXA
E21: Pá carregadeira | H21: 10.1 | I21: ton
E22: Usina misturadora | H22: 20 | I22: ton
E23: Tanque de Armazenamento 30 ton | H23: 5 | I23: ton
E24: Total | H24: =ROUND(SUM(H21:H23),2) -> 35.1 | I24: ton
E25: PATRULHA DE SERVIÇO
E26: Motoniveladora | H26: 12.47 | I26: ton
E27: Trator de pneus | H27: 2.8 | I27: ton
E28: Grade de disco | H28: 1 | I28: ton
E29: Acabadora | H29: 12.6 | I29: ton
E30: Rolo Vibratório de Pneus | H30: 27 | I30: ton
E31: Rolo Liso Tandem grande | H31: 10.4 | I31: ton
E32: Rolo compactador pé de carneiro vibratório | H32: 11.6
E33: Caminhão Basculannte | I33: ton
E34: Caminhão Espagidor | I34: ton
E35: Caminhão de Apoio | I35: ton
E36: Total | H36: =ROUND(SUM(H26:H35),2) -> 77.87 | I36: ton
A38: Portanto: | B38: Portanto
A39: Mobilizações - Total | E39: =E16*H36+H24*E11 -> 38783.94 | F39: t x km
A40: Desmobilizações - Total | E40: =E17*H36+H24*E12 -> 7480.2 | F40: t x km
A44: E9010 | B44: Balança plataforma digital com mesa de 75 x 75 cm com capacidade de 500 kg | I44: Caminhão carroceria
A45: E9064 | B45: Transportador manual gerica com capacidade de 180 l | I45: Caminhão carroceria
A46: E9066 | B46: Grupo gerador - 13/14 kVA | I46: Caminhão carroceria
A47: E9071 | B47: Transportador manual carrinho de mão com capacidade de 80 l | I47: Caminhão carroceria
A48: E9076 | B48: Equipamento de pintura com cabine de 7,00 kW e estufa de 80.000 kCal para pintura eletrostática | I48: Caminhão carroceria
A49: E9519 | B49: Betoneira com motor a gasolina com capacidade de 600 l - 10 kW | I49: Caminhão carroceria
A50: E9521 | B50: Grupo gerador - 2,5/3 kVA | I50: Caminhão carroceria
A51: E9568 | B51: Furadeira de impacto de 12,5 mm - 0,8 kW | I51: Caminhão carroceria
A52: E9622 | B52: Máquina de bancada universal para corte de chapa - 1,5 kW | I52: Caminhão carroceria
A53: E9623 | B53: Máquina de bancada guilhotina - 4 kW | I53: Caminhão carroceria
A54: E9675 | B54: Martelete perfurador/rompedor elétrico - 1,5 kW | I54: Caminhão carroceria
A55: E9779 | B55: Grupo gerador - 100/110 kVA | I55: Caminhão carroceria
A58: E9506 | B58: Caminhão basculante com capacidade de 6 m³ - 136 kW | I58: Rodoviario
A59: E9571 | B59: Caminhão tanque com capacidade de 10.000 l - 188 kW | I59: Rodoviario
A60: E9579 | B60: Caminhão basculante com capacidade de 10 m³ - 188 kW | I60: Rodoviario
A61: E9592 | B61: Caminhão carroceria com capacidade de 15 t - 188 kW | I61: Rodoviario
A62: E9644 | B62: Caminhão demarcador de faixas com sistema de pintura a frio - 28 kW/115 kW | I62: Rodoviario
A63: E9686 | B63: Caminhão carroceria com guindauto com capacidade de 20 t.m - 136 kW | I63: Rodoviario
A64: E9687 | B64: Caminhão carroceria com capacidade de 5 t - 115 kW | I64: Rodoviario
A65: E9514 | B65: Distribuidor de agregados autopropelido - 130 kW | I65: Rodoviario
A67: E9511 | B67: Carregadeira de pneus com capacidade de 3,40 m³ - 195 kW | I67: TRANSPORTE COM CAVALO MECÂNICO COM SEMIRREBOQUE COM CAPACIDADE DE 30 T - RODOVIA PAVIMENTADA
A68: E9524 | B68: Motoniveladora - 93 kW | I68: TRANSPORTE COM CAVALO MECÂNICO COM SEMIRREBOQUE COM CAPACIDADE DE 30 T - RODOVIA PAVIMENTADA
A69: E9530 | B69: Rolo compactador liso autopropelido vibratório de 11 t - 97 kW | I69: TRANSPORTE COM CAVALO MECÂNICO COM SEMIRREBOQUE COM CAPACIDADE DE 30 T - RODOVIA PAVIMENTADA
A70: E9577 | B70: Trator agrícola - 77 kW | I70: TRANSPORTE COM CAVALO MECÂNICO COM SEMIRREBOQUE COM CAPACIDADE DE 30 T - RODOVIA PAVIMENTADA
A71: E9685 | B71: Rolo compactador pé de carneiro vibratório autopropelido de 11,6 t - 82 kW | I71: TRANSPORTE COM CAVALO MECÂNICO COM SEMIRREBOQUE COM CAPACIDADE DE 30 T - RODOVIA PAVIMENTADA
A72: E9762 | B72: Rolo compactador de pneus autopropelido de 27 t - 85 kW | I72: TRANSPORTE COM CAVALO MECÂNICO COM SEMIRREBOQUE COM CAPACIDADE DE 30 T - RODOVIA PAVIMENTADA
A73: E9518 | B73: Grade de 24 discos rebocável de 24" | I73: TRANSPORTE COM CAVALO MECÂNICO COM SEMIRREBOQUE COM CAPACIDADE DE 30 T - RODOVIA PAVIMENTADA
A74: E9615 | B74: Usina misturadora de solos com capacidade de 300 t/h | I74: TRANSPORTE COM CAVALO MECÂNICO COM SEMIRREBOQUE COM CAPACIDADE DE 30 T - RODOVIA PAVIMENTADA

Sheet BDI
A2: OBRA:
A3: LOCAL:
A4: DATA BASE:
A5: DETALHAMENTO DO BDI - SEM DESONERAÇÃO
A6: ='RESUMO MODULO TOTAL'!A1 -> CONTRATAÇÃO DE EXECUÇÃO DE PAVIMENTO ASFÁLTICO COM CBUQ, EM VIAS DE DIVERSOS MUNICÍPIOS DA MESORREGIÃO DA MATA PERNAMBUCANA, ÁREA DE ATUAÇÃO DA 15ª SUPERINTENDÊNCIA REGIONAL DA CODEVASF.
A7: DESCRIÇÃO DOS SERVIÇOS | B7: PREÇO DE VENDA (%) | C7: CUSTO DIRETO (%)
A8: ADMINISTRAÇÃO CENTRAL | C8: 0.06
A9: DESPESA FINANCEIRAS | B9: 0.0102
A10: SEGUROS E GARANTIAS CONTRATUAIS | B10: 0.0025
A11: RISCOS | B11: 0.005
A12: LUCRO OPERACIONAL | C12: 0.07
A13: PIS | B13: 0.0065
A14: COFINS | B14: 0.03
A15: ISSQN | B15: 0.03
A16: Contribuição Previdenciaria | B16: 0
B17: BDI | C17: =ROUND((1+(C8+C12))/(1-(B9+B10+B11+B13+B14+B15+B16))-1,4) -> 0.2339
A18: Observação: O percentual de ISSQN aqui utilizado consiste apenas em um referencial médio.
A19: O valor real do ISSQN a ser adotado deve ser aquele proveniente das alíquotas dos municípios situados na área de
A20: influência das obras.
A52: DETALHAMENTO DO BDI DIFERENCIADO - SEM DESONERAÇÃO
A53: ='RESUMO MODULO TOTAL'!A1 -> CONTRATAÇÃO DE EXECUÇÃO DE PAVIMENTO ASFÁLTICO COM CBUQ, EM VIAS DE DIVERSOS MUNICÍPIOS DA MESORREGIÃO DA MATA PERNAMBUCANA, ÁREA DE ATUAÇÃO DA 15ª SUPERINTENDÊNCIA REGIONAL DA CODEVASF.
A55: DESCRIÇÃO DOS SERVIÇOS | B55: PREÇO DE VENDA (%) | C55: CUSTO DIRETO (%)
A56: ADMINISTRAÇÃO CENTRAL | C56: 0.0377
A57: DESPESA FINANCEIRAS | B57: 0.0102
A58: SEGUROS E GARANTIAS CONTRATUAIS | B58: 0.0025
A59: RISCOS | B59: 0.005
A60: LUCRO OPERACIONAL | C60: 0.05
A61: PIS | B61: 0.0065
A62: COFINS | B62: 0.03
A63: ISSQN | B63: 0
A64: Contribuição Previdenciaria | B64: 0
B65: BDI | C65: =ROUND((1+(C56+C60))/(1-(B57+B58+B59+B61+B62+B63+B64))-1,4) -> 0.15
A66: Fonte da composição, valores de referência e fórmula do BDI: Instrução Normativa N° 62/DNIT SEDE

Sheet Transporte Cap 50-70
C2: MEMÓRIA DE CÁLCULO
C7: REAJUSTE | F7: TIPOLOGIA DO MATERIAL | I7: CIMENTOS ASFÁLTICOS CAP-50-70 | M7: IMPOSTOS | N7: COFINS (BDI DIF) | O7: 0.0065 | P7: 0.0065
G8: ÍNDICE DE PAVIMENTAÇÃO DNIT | H8: 2014-07-01 | I8: ÍNDICE INICIAL | J8: 270.237 | N8: PIS | O8: 0.03 | P8: 0.03 | T8: LEGENDA | AC8: As empresas tributadas pelo Lucro Presumido pagam 0,65% de PIS e 3% de COFINS
H9: 2023-08-01 | I9: ÍNDICE FINAL | J9: 549.538 | N9: ICMS | O9: 0.18 | P9: 0.18 | Q9: =1-(O9/1) -> 0.82 | R9: =1-(P9/1) -> 0.82 | S9: =1-(Q9/1) -> 0.18 | T9: ENTRADA DE DADOS | AC9: As empresas tributadas pelo Lucro Real pagam 1,65% de PIS e 7,60% de COFINS
F10: CAP50/70 | G10: Data ANP | H10: 2023-08-01
C11: DATA-BASE | D11: PRODUTOS | E11: LOCALIDADES | J11: CUSTO ANP (R$/Kg) | L11: CUSTO ANP | M11: IMPOSTOS DO PRODUTO | N11: CUSTO DO PRODUTO COM IMPOSTOS | O11: DMT's | P11: DMT's FLUVIAL | Q11: CUSTO DO TRANSPORTE RODOVIA PAVIMENTADA | R11: CUSTO DO TRANSPORTE FLUVIAL | S11: CUSTO DO TRANSPORTE TOTAL | T11: ICMS | U11: ATUALIZAÇÃO DO CUSTO DE TRANSPORTE | V11: CUSTO DO TRANSPORTE RODOVIA PAVIMENTADA COM IMPOSTOS E ATUALIZAÇÃO MONETÁRIA | W11: PEDÁGIO | Y11: TOTAL TRANSPORTE | Z11: AQUISIÇÃO DO PRODUTO | AA11: TOTAL GERAL ( TRANSP + AQUISIÇÃO) | AC11: 1 | AD11: 2 | AE11: 3
C12: =H9 -> 2023-08-01 | E12: REFINARIAS | F12: ENDEREÇO | G12: ESTADO | H12: CIDADE | I12: DESTINO | J12: ESTADO | K12: REGIÃO | L12: R$/t | M12: R$/t | N12: R$/t | O12: KM | P12: KM | Q12: R$/t | R12: R$/t | S12: R$/t | T12: R$/t | U12: R$/t | V12: R$/t | W12: CUSTO | X12: R$/t | Y12: R$/t | Z12: R$/t | AA12: R$/t | AC12: TOTAL GERAL ( TRANSP + AQUISIÇÃO) | AD12: TOTAL TRANSPORTE | AE12: AQUISIÇÃO DO PRODUTO
B13: =AA13 -> 4696.57 | C13: 1 | D13: =I7 -> CIMENTOS ASFÁLTICOS CAP-50-70 | E13: ASFALTOS NORDESTE LTDA. | F13: Avenida Parque Sul, 1998 - Maracanau - CE CEP:61939-000 | G13: Ceará | H13: Maracanau /CE | I13: Recife - PE | J13: =VLOOKUP('Transporte Cap 50-70'!G13,OFFSET('ANP ESTADO'!$A$1,MATCH('Transporte Cap 50-70'!$I$7,'ANP ESTADO'!B:B,0)+MATCH('Transporte Cap 50-70'!$H$10,OFFSET('ANP ESTADO'!$A$1,MATCH('Transporte Cap 50-70'!$I$7,'ANP ESTADO'!B:B,0),0,100000,1),0),2,100000,2),2,FALSE) -> 3.31956 | K13: =VLOOKUP($H$10,OFFSET('ANP REGIÃO'!$A$9,MATCH('Transporte Cap 50-70'!$I$7,'ANP REGIÃO'!A:A,0),1,10000,10000),MATCH('Transporte Cap 50-70'!AH13,'ANP REGIÃO'!$B$8:$G$8,0),FALSE) -> 3.36285 | L13: =IF(AND(J13="-",K13="-"),"",IF(AND(J13<>0,K13="-"),J13*1000,IF(AND(J13="-",K13<>0),K13*1000,IF(AND(J13<>0,K13<>0),J13*1000,"")))) -> 3319.56 | M13: =ROUND(((L13/(1-$O$7-$O$8-$O$9))-L13),2) -> 917.27 | N13: =L13+M13 -> 4236.83 | O13: 778.5 | Q13: =ROUND((26.939+0.253*O13),2) -> 223.9 | S13: =Q13+R13 -> 223.9 | T13: 0 | U13: =TRUNC(IF($J$8="","",(($J$9-$J$8)/$J$8)*(S13+T13)),2) -> 231.4 | V13: =S13+T13+U13 -> 455.3 | W13: 61.2 | X13: =EVEN(' CONSUMO DE MAT. B TOTAL'!$P$12*2/28)*W13/' CONSUMO DE MAT. B TOTAL'!$P$12 -> 4.44 | Y13: =IF(AND(Q13="",T13=""),"",V13+X13) -> 459.74 | Z13: =IF(OR(L13="",M13=""),"",L13+M13) -> 4236.83 | AA13: =IF(OR(Y13="",Z13=""),"",Y13+Z13) -> 4696.57 | AC13: =AA13 -> 4696.57 | AD13: =Y13 -> 459.74 | AE13: 4236.83 | AH13: =IF(OR(G13=$D$42,G13=$D$43,G13=$D$45,G13=$D$51,G13=$D$35,G13=$D$31,G13=$D$27,G13=$D$40,G13=$D$30),"NORDESTE",IF(OR(G13=$D$26,G13=$D$28,G13=$D$29,G13=$D$39,G13=$D$47,G13=$D$48,G13=$D$52),"NORTE",IF(OR(G13=$D$32,G13=$D$34,G13=$D$36,G13=$D$37),"CENTRO-OESTE",IF(OR(G13=$D$50,G13=$D$44,G13=$D$38,G13=$D$33),"SUDESTE",IF(OR(G13=$D$49,G13=$D$41,G13=$D$46),"SUL",""))))) -> NORDESTE
B14: =AA14 -> 4805.87 | C14: 2 | E14: EMAM - EMULSÕES E TRANSPORTES LTDA. | F14: RODOVIA CE 060, KM 11,5 - Pacatuba - CE CEP:61800-000 | G14: Ceará | H14: Pacatuba/CE | I14: Recife - PE | J14: =VLOOKUP('Transporte Cap 50-70'!G14,OFFSET('ANP ESTADO'!$A$1,MATCH('Transporte Cap 50-70'!$I$7,'ANP ESTADO'!B:B,0)+MATCH('Transporte Cap 50-70'!$H$10,OFFSET('ANP ESTADO'!$A$1,MATCH('Transporte Cap 50-70'!$I$7,'ANP ESTADO'!B:B,0),0,100000,1),0),2,100000,2),2,FALSE) -> 3.31956 | K14: =VLOOKUP($H$10,OFFSET('ANP REGIÃO'!$A$9,MATCH('Transporte Cap 50-70'!$I$7,'ANP REGIÃO'!A:A,0),1,10000,10000),MATCH('Transporte Cap 50-70'!AH14,'ANP REGIÃO'!$B$8:$G$8,0),FALSE) -> 3.36285 | L14: =IF(AND(J14="-",K14=""),"",IF(AND(J14<>0,K14=""),J14*1000,IF(AND(J14="-",K14<>0),K14*1000,IF(AND(J14<>0,K14<>0),J14*1000,"")))) -> 3319.56 | M14: =ROUND(((L14/(1-$O$7-$O$8-$O$9))-L14),2) -> 917.27 | N14: =L14+M14 -> 4236.83 | O14: 780 | Q14: =ROUND((26.939+0.253*O14),2) -> 224.28 | S14: =Q14+R14 -> 224.28 | T14: =TRUNC(S14*($O$9/(1-$O$9)),2) -> 49.23 | U14: =TRUNC(IF($J$8="","",(($J$9-$J$8)/$J$8)*(S14+T14)),2) -> 282.68 | V14: =S14+T14+U14 -> 556.19 | W14: 177 | X14: =EVEN(' CONSUMO DE MAT. B TOTAL'!$P$12*2/28)*W14/' CONSUMO DE MAT. B TOTAL'!$P$12 -> 12.85 | Y14: =IF(AND(Q14="",T14=""),"",V14+X14) -> 569.04 | Z14: =IF(OR(L14="",M14=""),"",L14+M14) -> 4236.83 | AA14: =IF(OR(Y14="",Z14=""),"",Y14+Z14) -> 4805.87 | AC14: =AA14 -> 4805.87 | AD14: 569.04 | AE14: 4236.83 | AH14: =IF(OR(G14=$D$42,G14=$D$43,G14=$D$45,G14=$D$51,G14=$D$35,G14=$D$31,G14=$D$27,G14=$D$40,G14=$D$30),"NORDESTE",IF(OR(G14=$D$26,G14=$D$28,G14=$D$29,G14=$D$39,G14=$D$47,G14=$D$48,G14=$D$52),"NORTE",IF(OR(G14=$D$32,G14=$D$34,G14=$D$36,G14=$D$37),"CENTRO-OESTE",IF(OR(G14=$D$50,G14=$D$44,G14=$D$38,G14=$D$33),"SUDESTE",IF(OR(G14=$D$49,G14=$D$41,G14=$D$46),"SUL",""))))) -> NORDESTE
B15: =AA15 -> 5046.13 | C15: 3 | E15: CBAA - ASFALTOS LTDA | F15: Avenida Banco do Nordeste, S/N – Feira de Santana - BA CEP:44063-640 | G15: Bahia | H15: Feira de Santana - BA | I15: Recife - PE | J15: =VLOOKUP('Transporte Cap 50-70'!G15,OFFSET('ANP ESTADO'!$A$1,MATCH('Transporte Cap 50-70'!$I$7,'ANP ESTADO'!B:B,0)+MATCH('Transporte Cap 50-70'!$H$10,OFFSET('ANP ESTADO'!$A$1,MATCH('Transporte Cap 50-70'!$I$7,'ANP ESTADO'!B:B,0),0,100000,1),0),2,100000,2),2,FALSE) -> 3.50275 | K15: =VLOOKUP($H$10,OFFSET('ANP REGIÃO'!$A$9,MATCH('Transporte Cap 50-70'!$I$7,'ANP REGIÃO'!A:A,0),1,10000,10000),MATCH('Transporte Cap 50-70'!AH15,'ANP REGIÃO'!$B$8:$G$8,0),FALSE) -> 3.36285 | L15: =IF(AND(J15="-",K15=""),"",IF(AND(J15<>0,K15=""),J15*1000,IF(AND(J15="-",K15<>0),K15*1000,IF(AND(J15<>0,K15<>0),J15*1000,"")))) -> 3502.75 | M15: =ROUND(((L15/(1-$O$7-$O$8-$O$9))-L15),2) -> 967.89 | N15: =L15+M15 -> 4470.64 | O15: 803.7 | Q15: =ROUND((26.939+0.253*O15),2) -> 230.28 | S15: =Q15+R15 -> 230.28 | T15: =TRUNC(S15*($O$9/(1-$O$9)),2) -> 50.54 | U15: =TRUNC(IF($J$8="","",(($J$9-$J$8)/$J$8)*(S15+T15)),2) -> 290.23 | V15: =S15+T15+U15 -> 571.05 | W15: 61.2 | X15: =EVEN(' CONSUMO DE MAT. B TOTAL'!$P$12*2/28)*W15/' CONSUMO DE MAT. B TOTAL'!$P$12 -> 4.44 | Y15: =IF(AND(Q15="",T15=""),"",V15+X15) -> 575.49 | Z15: =IF(OR(L15="",M15=""),"",L15+M15) -> 4470.64 | AA15: =IF(OR(Y15="",Z15=""),"",Y15+Z15) -> 5046.13 | AC15: =AA15 -> 5046.13 | AD15: 575.49 | AE15: 4470.64 | AH15: =IF(OR(G15=$D$42,G15=$D$43,G15=$D$45,G15=$D$51,G15=$D$35,G15=$D$31,G15=$D$27,G15=$D$40,G15=$D$30),"NORDESTE",IF(OR(G15=$D$26,G15=$D$28,G15=$D$29,G15=$D$39,G15=$D$47,G15=$D$48,G15=$D$52),"NORTE",IF(OR(G15=$D$32,G15=$D$34,G15=$D$36,G15=$D$37),"CENTRO-OESTE",IF(OR(G15=$D$50,G15=$D$44,G15=$D$38,G15=$D$33),"SUDESTE",IF(OR(G15=$D$49,G15=$D$41,G15=$D$46),"SUL",""))))) -> NORDESTE
A16: 2403 | B16: =AA16 -> 5068.17 | C16: 4 | E16: Brasil Asfaltos Ltda | F16: Rodovia BA 522, s/nº, KM 01, Distrito Industrial - Candeias - BA CEP:43813-300 | G16: Bahia | H16: Candeias/BA | I16: Recife - PE | J16: =VLOOKUP('Transporte Cap 50-70'!G16,OFFSET('ANP ESTADO'!$A$1,MATCH('Transporte Cap 50-70'!$I$7,'ANP ESTADO'!B:B,0)+MATCH('Transporte Cap 50-70'!$H$10,OFFSET('ANP ESTADO'!$A$1,MATCH('Transporte Cap 50-70'!$I$7,'ANP ESTADO'!B:B,0),0,100000,1),0),2,100000,2),2,FALSE) -> 3.50275 | K16: =VLOOKUP($H$10,OFFSET('ANP REGIÃO'!$A$9,MATCH('Transporte Cap 50-70'!$I$7,'ANP REGIÃO'!A:A,0),1,10000,10000),MATCH('Transporte Cap 50-70'!AH16,'ANP REGIÃO'!$B$8:$G$8,0),FALSE) -> 3.36285 | L16: =IF(AND(J16="-",K16=""),"",IF(AND(J16<>0,K16=""),J16*1000,IF(AND(J16="-",K16<>0),K16*1000,IF(AND(J16<>0,K16<>0),J16*1000,"")))) -> 3502.75 | M16: =ROUND(((L16/(1-$O$7-$O$8-$O$9))-L16),2) -> 967.89 | N16: =L16+M16 -> 4470.64 | O16: 845.9 | Q16: =ROUND((26.939+0.253*O16),2) -> 240.95 | S16: =Q16+R16 -> 240.95 | T16: =TRUNC(S16*($O$9/(1-$O$9)),2) -> 52.89 | U16: =TRUNC(IF($J$8="","",(($J$9-$J$8)/$J$8)*(S16+T16)),2) -> 303.69 | V16: =S16+T16+U16 -> 597.53 | W16: 0 | X16: =EVEN(' CONSUMO DE MAT. B TOTAL'!$P$12*2/28)*W16/' CONSUMO DE MAT. B TOTAL'!$P$12 -> 0 | Y16: =IF(AND(Q16="",T16=""),"",V16+X16) -> 597.53 | Z16: =IF(OR(L16="",M16=""),"",L16+M16) -> 4470.64 | AA16: =IF(OR(Y16="",Z16=""),"",Y16+Z16) -> 5068.17 | AC16: =AA16 -> 5068.17 | AD16: 597.53 | AE16: 4470.64 | AH16: =IF(OR(G16=$D$42,G16=$D$43,G16=$D$45,G16=$D$51,G16=$D$35,G16=$D$31,G16=$D$27,G16=$D$40,G16=$D$30),"NORDESTE",IF(OR(G16=$D$26,G16=$D$28,G16=$D$29,G16=$D$39,G16=$D$47,G16=$D$48,G16=$D$52),"NORTE",IF(OR(G16=$D$32,G16=$D$34,G16=$D$36,G16=$D$37),"CENTRO-OESTE",IF(OR(G16=$D$50,G16=$D$44,G16=$D$38,G16=$D$33),"SUDESTE",IF(OR(G16=$D$49,G16=$D$41,G16=$D$46),"SUL",""))))) -> NORDESTE
D26: Acre
D27: Alagoas
D28: Amapá
D29: Amazonas
D30: Bahia
D31: Ceará
D32: Distrito Federal
D33: Espírito Santo
D34: Goiás
D35: Maranhão
D36: Mato Grosso
D37: Mato Grosso do Sul
D38: Minas Gerais
D39: Pará
D40: Paraíba
D41: Paraná
D42: Pernambuco
D43: Piauí
D44: Rio de Janeiro
D45: Rio Grande do Norte
D46: Rio Grande do Sul
D47: Rondônia
D48: Roraima
D49: Santa Catarina
D50: São Paulo
D51: Sergipe
D52: Tocantins
D56: ASFALTOS DILUÍDOS CM-30
D57: ASFALTOS DILUÍDOS CM-70
D58: ASFALTOS DILUÍDOS CR-250
D59: ASFALTOS DILUÍDOS CR-70
D60: CAP MODIFICADO POR BORRACHA DE PNEU AB22
D61: CAP MODIFICADO POR BORRACHA DE PNEU AB8
D62: CAP MODIFICADO POR POLÍMERO 55-75-E
D63: CAP MODIFICADO POR POLÍMERO 60-85-E
D64: CAP MODIFICADO POR POLÍMERO 65-90-E
D65: CIMENTOS ASFÁLTICOS CAP-150-200
D66: CIMENTOS ASFÁLTICOS CAP-30-45
D67: CIMENTOS ASFÁLTICOS CAP-50-70
D68: CIMENTOS ASFÁLTICOS CAP-85-100
D69: EMULSÃO ASFÁLTICA CATIÔNICA DE RUPTURA CONTROLADA PARA SERVIÇO DE LAMA ASFÁLTICA
D70: EMULSÃO ASFÁLTICA DE RUPTURA LENTA CATIÔNICA PARA SERVIÇO DE LAMA ASFÁLTICA
D71: EMULSÃO ASFÁLTICA DE RUPTURA LENTA DE CARGA NEUTRA PARA SERVIÇO DE LAMA ASFÁLTICA
D72: EMULSÃO ASFÁLTICA PARA SERVIÇO DE IMPRIMAÇÃO
D73: EMULSÕES ASF. MOD. POR POLÍMEROS RC1C-E
D74: EMULSÕES ASF. MOD. POR POLÍMEROS RL1C-E
D75: EMULSÕES ASF. MOD. POR POLÍMEROS RM1C-E
D76: EMULSÕES ASF. MOD. POR POLÍMEROS RR1C-E
D77: EMULSÕES ASF. MOD. POR POLÍMEROS RR2C-E
D78: EMULSÕES ASFÁLTICAS RL-1C
D79: EMULSÕES ASFÁLTICAS RM-1C
D80: EMULSÕES ASFÁLTICAS RM-2C
D81: EMULSÕES ASFÁLTICAS RR-1C
D82: EMULSÕES ASFÁLTICAS RR-2C

Sheet Transporte CM-30
C2: MEMÓRIA DE CÁLCULO
C7: REAJUSTE | F7: TIPOLOGIA DO MATERIAL | I7: ASFALTOS DILUÍDOS CM-30 | M7: IMPOSTOS | N7: COFINS (BDI DIF) | O7: 0.0065 | P7: 0.0065
G8: ÍNDICE DE PAVIMENTAÇÃO DNIT | H8: 2014-07-01 | I8: ÍNDICE INICIAL | J8: 270.237 | N8: PIS (BDI DIF) | O8: 0.03 | P8: 0.03 | T8: LEGENDA | AC8: As empresas tributadas pelo Lucro Presumido pagam 0,65% de PIS e 3% de COFINS
H9: 2023-08-01 | I9: ÍNDICE FINAL | J9: 549.538 | N9: ICMS | O9: 0.18 | P9: 0.18 | Q9: =1-(O9/1) -> 0.82 | R9: =1-(P9/1) -> 0.82 | S9: =1-(Q9/1) -> 0.18 | T9: ENTRADA DE DADOS | AC9: As empresas tributadas pelo Lucro Real pagam 1,65% de PIS e 7,60% de COFINS
F10: Asfalto diluído CM-30 | G10: Data ANP | H10: 2023-08-01
C11: DATA-BASE | D11: PRODUTOS | E11: LOCALIDADES | J11: CUSTO ANP (R$/Kg) | L11: CUSTO ANP | M11: IMPOSTOS DO PRODUTO | N11: CUSTO DO PRODUTO COM IMPOSTOS | O11: DMT's | P11: DMT's FLUVIAL | Q11: CUSTO DO TRANSPORTE RODOVIA PAVIMENTADA | R11: CUSTO DO TRANSPORTE FLUVIAL | S11: CUSTO DO TRANSPORTE TOTAL | T11: ICMS | U11: ATUALIZAÇÃO DO CUSTO DE TRANSPORTE | V11: CUSTO DO TRANSPORTE RODOVIA PAVIMENTADA COM IMPOSTOS E ATUALIZAÇÃO MONETÁRIA | W11: PEDÁGIO | Y11: TOTAL TRANSPORTE | Z11: AQUISIÇÃO DO PRODUTO | AA11: TOTAL GERAL ( TRANSP + AQUISIÇÃO) | AC11: 1 | AD11: 2 | AE11: 3
C12: =H9 -> 2023-08-01 | E12: REFINARIAS | F12: ENDEREÇO | G12: ESTADO | H12: CIDADE | I12: DESTINO | J12: ESTADO | K12: REGIÃO | L12: R$/t | M12: R$/t | N12: R$/t | O12: KM | P12: KM | Q12: R$/t | R12: R$/t | S12: R$/t | T12: R$/t | U12: R$/t | V12: R$/t | W12: CUSTO | X12: R$/t | Y12: R$/t | Z12: R$/t | AA12: R$/t | AC12: TOTAL GERAL ( TRANSP + AQUISIÇÃO) | AD12: TOTAL TRANSPORTE | AE12: AQUISIÇÃO DO PRODUTO
B13: =AA13 -> 5693.91 | C13: 1 | D13: =I7 -> ASFALTOS DILUÍDOS CM-30 | E13: ASFALTOS NORDESTE LTDA. | F13: Avenida Parque Sul, 1998 - Maracanau - CE CEP:61939-000 | G13: Ceará | H13: Maracanau /CE | I13: Recife - PE | J13: =VLOOKUP('Transporte CM-30'!G13,OFFSET('ANP ESTADO'!$A$1,MATCH('Transporte CM-30'!$I$7,'ANP ESTADO'!B:B,0)+MATCH('Transporte CM-30'!$H$10,OFFSET('ANP ESTADO'!$A$1,MATCH('Transporte CM-30'!$I$7,'ANP ESTADO'!B:B,0),0,100000,1),0),2,100000,2),2,FALSE) -> 4.1009 | K13: =VLOOKUP($H$10,OFFSET('ANP REGIÃO'!$A$9,MATCH('Transporte CM-30'!$I$7,'ANP REGIÃO'!A:A,0),1,10000,10000),MATCH('Transporte CM-30'!AH13,'ANP REGIÃO'!$B$8:$G$8,0),FALSE) -> 4.1009 | L13: =IF(AND(J13="-",K13="-"),"",IF(AND(J13<>0,K13="-"),J13*1000,IF(AND(J13="-",K13<>0),K13*1000,IF(AND(J13<>0,K13<>0),J13*1000,"")))) -> 4100.9 | M13: =ROUND(((L13/(1-$O$7-$O$8-$O$9))-L13),2) -> 1133.18 | N13: =L13+M13 -> 5234.08 | O13: ='Transporte Cap 50-70'!O13 -> 778.5 | Q13: =ROUND((26.939+0.253*O13),2) -> 223.9 | S13: =Q13+R13 -> 223.9 | T13: 0 | U13: =TRUNC(IF($J$8="","",(($J$9-$J$8)/$J$8)*(S13+T13)),2) -> 231.4 | V13: =S13+T13+U13 -> 455.3 | W13: 61.2 | X13: =EVEN(' CONSUMO DE MAT. B TOTAL'!$P$8*2/28)*W13/' CONSUMO DE MAT. B TOTAL'!$P$8 -> 4.53 | Y13: =IF(AND(S13="",T13=""),"",V13+X13) -> 459.83 | Z13: =IF(OR(L13="",M13=""),"",L13+M13) -> 5234.08 | AA13: =IF(OR(Y13="",Z13=""),"",Y13+Z13) -> 5693.91 | AC13: =AA13 -> 5693.91 | AD13: =Y13 -> 459.83 | AE13: =Z13 -> 5234.08 | AH13: =IF(OR(G13=$D$42,G13=$D$43,G13=$D$45,G13=$D$51,G13=$D$35,G13=$D$31,G13=$D$27,G13=$D$40,G13=$D$30),"NORDESTE",IF(OR(G13=$D$26,G13=$D$28,G13=$D$29,G13=$D$39,G13=$D$47,G13=$D$48,G13=$D$52),"NORTE",IF(OR(G13=$D$32,G13=$D$34,G13=$D$36,G13=$D$37),"CENTRO-OESTE",IF(OR(G13=$D$50,G13=$D$44,G13=$D$38,G13=$D$33),"SUDESTE",IF(OR(G13=$D$49,G13=$D$41,G13=$D$46),"SUL",""))))) -> NORDESTE
B14: =AA14 -> 5803.36 | C14: 2 | E14: EMAM - EMULSÕES E TRANSPORTES LTDA. | F14: RODOVIA CE 060, KM 11,5 - Pacatuba - CE CEP:61800-000 | G14: Ceará | H14: Pacatuba/CE | I14: Recife -PE | J14: =VLOOKUP('Transporte CM-30'!G14,OFFSET('ANP ESTADO'!$A$1,MATCH('Transporte CM-30'!$I$7,'ANP ESTADO'!B:B,0)+MATCH('Transporte CM-30'!$H$10,OFFSET('ANP ESTADO'!$A$1,MATCH('Transporte CM-30'!$I$7,'ANP ESTADO'!B:B,0),0,100000,1),0),2,100000,2),2,FALSE) -> 4.1009 | K14: =VLOOKUP($H$10,OFFSET('ANP REGIÃO'!$A$9,MATCH('Transporte CM-30'!$I$7,'ANP REGIÃO'!A:A,0),1,10000,10000),MATCH('Transporte CM-30'!AH14,'ANP REGIÃO'!$B$8:$G$8,0),FALSE) -> 4.1009 | L14: =IF(AND(J14="-",K14=""),"",IF(AND(J14<>0,K14=""),J14*1000,IF(AND(J14="-",K14<>0),K14*1000,IF(AND(J14<>0,K14<>0),J14*1000,"")))) -> 4100.9 | M14: =ROUND(((L14/(1-$O$7-$O$8-$O$9))-L14),2) -> 1133.18 | N14: =L14+M14 -> 5234.08 | O14: ='Transporte Cap 50-70'!O14 -> 780 | Q14: =ROUND((26.939+0.253*O14),2) -> 224.28 | S14: =Q14+R14 -> 224.28 | T14: =TRUNC(S14*($O$9/(1-$O$9)),2) -> 49.23 | U14: =TRUNC(IF($J$8="","",(($J$9-$J$8)/$J$8)*(S14+T14)),2) -> 282.68 | V14: =S14+T14+U14 -> 556.19 | W14: 177 | X14: =EVEN(' CONSUMO DE MAT. B TOTAL'!$P$8*2/28)*W14/' CONSUMO DE MAT. B TOTAL'!$P$8 -> 13.09 | Y14: =IF(AND(S14="",T14=""),"",V14+X14) -> 569.28 | Z14: =IF(OR(L14="",M14=""),"",L14+M14) -> 5234.08 | AA14: =IF(OR(Y14="",Z14=""),"",Y14+Z14) -> 5803.36 | AC14: =AA14 -> 5803.36 | AD14: =Y14 -> 569.28 | AE14: 5234.08 | AH14: =IF(OR(G14=$D$42,G14=$D$43,G14=$D$45,G14=$D$51,G14=$D$35,G14=$D$31,G14=$D$27,G14=$D$40,G14=$D$30),"NORDESTE",IF(OR(G14=$D$26,G14=$D$28,G14=$D$29,G14=$D$39,G14=$D$47,G14=$D$48,G14=$D$52),"NORTE",IF(OR(G14=$D$32,G14=$D$34,G14=$D$36,G14=$D$37),"CENTRO-OESTE",IF(OR(G14=$D$50,G14=$D$44,G14=$D$38,G14=$D$33),"SUDESTE",IF(OR(G14=$D$49,G14=$D$41,G14=$D$46),"SUL",""))))) -> NORDESTE
B15: =AA15 -> 5809.66 | C15: 3 | E15: CBAA - ASFALTOS LTDA | F15: Avenida Banco do Nordeste, S/N – Feira de Santana - BA CEP:44063-640 | G15: Bahia | H15: Feira de Santana - BA | I15: Recife -PE | J15: =VLOOKUP('Transporte CM-30'!G15,OFFSET('ANP ESTADO'!$A$1,MATCH('Transporte CM-30'!$I$7,'ANP ESTADO'!B:B,0)+MATCH('Transporte CM-30'!$H$10,OFFSET('ANP ESTADO'!$A$1,MATCH('Transporte CM-30'!$I$7,'ANP ESTADO'!B:B,0),0,100000,1),0),2,100000,2),2,FALSE) -> - | K15: =VLOOKUP($H$10,OFFSET('ANP REGIÃO'!$A$9,MATCH('Transporte CM-30'!$I$7,'ANP REGIÃO'!A:A,0),1,10000,10000),MATCH('Transporte CM-30'!AH15,'ANP REGIÃO'!$B$8:$G$8,0),FALSE) -> 4.1009 | L15: =IF(AND(J15="-",K15=""),"",IF(AND(J15<>0,K15=""),J15*1000,IF(AND(J15="-",K15<>0),K15*1000,IF(AND(J15<>0,K15<>0),J15*1000,"")))) -> 4100.9 | M15: =ROUND(((L15/(1-$O$7-$O$8-$O$9))-L15),2) -> 1133.18 | N15: =L15+M15 -> 5234.08 | O15: ='Transporte Cap 50-70'!O15 -> 803.7 | Q15: =ROUND((26.939+0.253*O15),2) -> 230.28 | S15: =Q15+R15 -> 230.28 | T15: =TRUNC(S15*($O$9/(1-$O$9)),2) -> 50.54 | U15: =TRUNC(IF($J$8="","",(($J$9-$J$8)/$J$8)*(S15+T15)),2) -> 290.23 | V15: =S15+T15+U15 -> 571.05 | W15: 61.2 | X15: =EVEN(' CONSUMO DE MAT. B TOTAL'!$P$8*2/28)*W15/' CONSUMO DE MAT. B TOTAL'!$P$8 -> 4.53 | Y15: =IF(AND(S15="",T15=""),"",V15+X15) -> 575.58 | Z15: =IF(OR(L15="",M15=""),"",L15+M15) -> 5234.08 | AA15: =IF(OR(Y15="",Z15=""),"",Y15+Z15) -> 5809.66 | AC15: =AA15 -> 5809.66 | AD15: 575.58 | AE15: 5234.08 | AH15: =IF(OR(G15=$D$42,G15=$D$43,G15=$D$45,G15=$D$51,G15=$D$35,G15=$D$31,G15=$D$27,G15=$D$40,G15=$D$30),"NORDESTE",IF(OR(G15=$D$26,G15=$D$28,G15=$D$29,G15=$D$39,G15=$D$47,G15=$D$48,G15=$D$52),"NORTE",IF(OR(G15=$D$32,G15=$D$34,G15=$D$36,G15=$D$37),"CENTRO-OESTE",IF(OR(G15=$D$50,G15=$D$44,G15=$D$38,G15=$D$33),"SUDESTE",IF(OR(G15=$D$49,G15=$D$41,G15=$D$46),"SUL",""))))) -> NORDESTE
A16: 2403 | B16: =AA16 -> 5831.61 | C16: 4 | E16: Brasil Asfaltos Ltda | F16: Rodovia BA 522, s/nº, KM 01, Distrito Industrial - Candeias - BA CEP:43813-300 | G16: Bahia | H16: Candeias/BA | I16: Recife -PE | J16: =VLOOKUP('Transporte CM-30'!G16,OFFSET('ANP ESTADO'!$A$1,MATCH('Transporte CM-30'!$I$7,'ANP ESTADO'!B:B,0)+MATCH('Transporte CM-30'!$H$10,OFFSET('ANP ESTADO'!$A$1,MATCH('Transporte CM-30'!$I$7,'ANP ESTADO'!B:B,0),0,100000,1),0),2,100000,2),2,FALSE) -> - | K16: =VLOOKUP($H$10,OFFSET('ANP REGIÃO'!$A$9,MATCH('Transporte CM-30'!$I$7,'ANP REGIÃO'!A:A,0),1,10000,10000),MATCH('Transporte CM-30'!AH16,'ANP REGIÃO'!$B$8:$G$8,0),FALSE) -> 4.1009 | L16: =IF(AND(J16="-",K16=""),"",IF(AND(J16<>0,K16=""),J16*1000,IF(AND(J16="-",K16<>0),K16*1000,IF(AND(J16<>0,K16<>0),J16*1000,"")))) -> 4100.9 | M16: =ROUND(((L16/(1-$O$7-$O$8-$O$9))-L16),2) -> 1133.18 | N16: =L16+M16 -> 5234.08 | O16: ='Transporte Cap 50-70'!O16 -> 845.9 | Q16: =ROUND((26.939+0.253*O16),2) -> 240.95 | S16: =Q16+R16 -> 240.95 | T16: =TRUNC(S16*($O$9/(1-$O$9)),2) -> 52.89 | U16: =TRUNC(IF($J$8="","",(($J$9-$J$8)/$J$8)*(S16+T16)),2) -> 303.69 | V16: =S16+T16+U16 -> 597.53 | W16: 0 | X16: =EVEN(' CONSUMO DE MAT. B TOTAL'!$P$8*2/28)*W16/' CONSUMO DE MAT. B TOTAL'!$P$8 -> 0 | Y16: =IF(AND(S16="",T16=""),"",V16+X16) -> 597.53 | Z16: =IF(OR(L16="",M16=""),"",L16+M16) -> 5234.08 | AA16: =IF(OR(Y16="",Z16=""),"",Y16+Z16) -> 5831.61 | AC16: =AA16 -> 5831.61 | AD16: 597.53 | AE16: 5234.08 | AH16: =IF(OR(G16=$D$42,G16=$D$43,G16=$D$45,G16=$D$51,G16=$D$35,G16=$D$31,G16=$D$27,G16=$D$40,G16=$D$30),"NORDESTE",IF(OR(G16=$D$26,G16=$D$28,G16=$D$29,G16=$D$39,G16=$D$47,G16=$D$48,G16=$D$52),"NORTE",IF(OR(G16=$D$32,G16=$D$34,G16=$D$36,G16=$D$37),"CENTRO-OESTE",IF(OR(G16=$D$50,G16=$D$44,G16=$D$38,G16=$D$33),"SUDESTE",IF(OR(G16=$D$49,G16=$D$41,G16=$D$46),"SUL",""))))) -> NORDESTE
D26: Acre
D27: Alagoas
D28: Amapá
D29: Amazonas
D30: Bahia
D31: Ceará
D32: Distrito Federal
D33: Espírito Santo
D34: Goiás
D35: Maranhão
D36: Mato Grosso
D37: Mato Grosso do Sul
D38: Minas Gerais
D39: Pará
D40: Paraíba
D41: Paraná
D42: Pernambuco
D43: Piauí
D44: Rio de Janeiro
D45: Rio Grande do Norte
D46: Rio Grande do Sul
D47: Rondônia
D48: Roraima
D49: Santa Catarina
D50: São Paulo
D51: Sergipe
D52: Tocantins
D56: ASFALTOS DILUÍDOS CM-30
D57: ASFALTOS DILUÍDOS CM-70
D58: ASFALTOS DILUÍDOS CR-250
D59: ASFALTOS DILUÍDOS CR-70
D60: CAP MODIFICADO POR BORRACHA DE PNEU AB22
D61: CAP MODIFICADO POR BORRACHA DE PNEU AB8
D62: CAP MODIFICADO POR POLÍMERO 55-75-E
D63: CAP MODIFICADO POR POLÍMERO 60-85-E
D64: CAP MODIFICADO POR POLÍMERO 65-90-E
D65: CIMENTOS ASFÁLTICOS CAP-150-200
D66: CIMENTOS ASFÁLTICOS CAP-30-45
D67: CIMENTOS ASFÁLTICOS CAP-50-70
D68: CIMENTOS ASFÁLTICOS CAP-85-100
D69: EMULSÃO ASFÁLTICA CATIÔNICA DE RUPTURA CONTROLADA PARA SERVIÇO DE LAMA ASFÁLTICA
D70: EMULSÃO ASFÁLTICA DE RUPTURA LENTA CATIÔNICA PARA SERVIÇO DE LAMA ASFÁLTICA
D71: EMULSÃO ASFÁLTICA DE RUPTURA LENTA DE CARGA NEUTRA PARA SERVIÇO DE LAMA ASFÁLTICA
D72: EMULSÃO ASFÁLTICA PARA SERVIÇO DE IMPRIMAÇÃO
D73: EMULSÕES ASF. MOD. POR POLÍMEROS RC1C-E
D74: EMULSÕES ASF. MOD. POR POLÍMEROS RL1C-E
D75: EMULSÕES ASF. MOD. POR POLÍMEROS RM1C-E
D76: EMULSÕES ASF. MOD. POR POLÍMEROS RR1C-E
D77: EMULSÕES ASF. MOD. POR POLÍMEROS RR2C-E
D78: EMULSÕES ASFÁLTICAS RL-1C
D79: EMULSÕES ASFÁLTICAS RM-1C
D80: EMULSÕES ASFÁLTICAS RM-2C
D81: EMULSÕES ASFÁLTICAS RR-1C
D82: EMULSÕES ASFÁLTICAS RR-2C

Sheet Transporte RR-1C
C2: MEMÓRIA DE CÁLCULO
C7: REAJUSTE | F7: TIPOLOGIA DO MATERIAL | I7: EMULSÕES ASFÁLTICAS RR-1C | M7: IMPOSTOS | N7: COFINS | O7: 0.0065 | P7: 0.0065
G8: ÍNDICE DE PAVIMENTAÇÃO DNIT | H8: 2014-07-01 | I8: ÍNDICE INICIAL | J8: 270.237 | N8: PIS | O8: 0.03 | P8: 0.03 | T8: LEGENDA | AC8: As empresas tributadas pelo Lucro Presumido pagam 0,65% de PIS e 3% de COFINS
H9: 2023-08-01 | I9: ÍNDICE FINAL | J9: 549.538 | N9: ICMS | O9: 0.18 | P9: 0.18 | Q9: =1-(O9/1) -> 0.82 | R9: =1-(P9/1) -> 0.82 | S9: =1-(Q9/1) -> 0.18 | T9: ENTRADA DE DADOS | AC9: As empresas tributadas pelo Lucro Real pagam 1,65% de PIS e 7,60% de COFINS
G10: Data ANP | H10: 2023-08-01
C11: DATA-BASE | D11: PRODUTOS | E11: LOCALIDADES | J11: CUSTO ANP (R$/Kg) | L11: CUSTO ANP | M11: IMPOSTOS DO PRODUTO | N11: CUSTO DO PRODUTO COM IMPOSTOS | O11: DMT's | P11: DMT'S FLUVIAL | Q11: CUSTO DO TRANSPORTE RODOVIA PAVIMENTADA | R11: CUSTO DO TRANSPORTE FLUVIAL | S11: CUSTO DO TRANSPORTE TOTAL | T11: ICMS | U11: ATUALIZAÇÃO DO CUSTO DE TRANSPORTE | V11: CUSTO DO TRANSPORTE RODOVIA PAVIMENTADA COM IMPOSTOS E ATUALIZAÇÃO MONETÁRIA | W11: PEDÁGIO | Y11: TOTAL TRANSPORTE | Z11: AQUISIÇÃO DO PRODUTO | AA11: TOTAL GERAL ( TRANSP + AQUISIÇÃO) | AC11: 1 | AD11: 2 | AE11: 3
C12: =H9 -> 2023-08-01 | E12: REFINARIAS | F12: ENDEREÇO | G12: ESTADO | H12: CIDADE | I12: DESTINO | J12: ESTADO | K12: REGIÃO | L12: R$/t | M12: R$/t | N12: R$/t | O12: KM | P12: KM | Q12: R$/t | R12: R$/t | S12: R$/t | T12: R$/t | U12: R$/t | V12: R$/t | W12: CUSTO | X12: R$/t | Y12: R$/t | Z12: R$/t | AA12: R$/t | AC12: TOTAL GERAL ( TRANSP + AQUISIÇÃO) | AD12: TOTAL TRANSPORTE | AE12: AQUISIÇÃO DO PRODUTO
B13: =AA13 -> 3655.98 | C13: 1 | D13: =I7 -> EMULSÕES ASFÁLTICAS RR-1C | E13: ASFALTOS NORDESTE LTDA. | F13: Avenida Parque Sul, 1998 - Maracanau - CE CEP:61939-000 | G13: Ceará | H13: Maracanau /CE | I13: Recife - PE | J13: =VLOOKUP(G13,OFFSET('ANP ESTADO'!$A$1,MATCH($I$7,'ANP ESTADO'!B:B,0)+MATCH($H$10,OFFSET('ANP ESTADO'!$A$1,MATCH($I$7,'ANP ESTADO'!B:B,0),0,100000,1),0),2,100000,2),2,FALSE) -> 2.39749 | K13: =VLOOKUP($H$10,OFFSET('ANP REGIÃO'!$A$9,MATCH('Transporte RR-1C'!$I$7,'ANP REGIÃO'!A:A,0),1,10000,10000),MATCH('Transporte RR-1C'!AH13,'ANP REGIÃO'!$B$8:$G$8,0),FALSE) -> 3.18957 | L13: =IF(AND(J13="-",K13="-"),"",IF(AND(J13<>0,K13="-"),J13*1000,IF(AND(J13="-",K13<>0),K13*1000,IF(AND(J13<>0,K13<>0),J13*1000,"")))) -> 2397.49 | M13: =ROUND(((L13/(1-$O$7-$O$8-$O$9))-L13),2) -> 662.48 | N13: =L13+M13 -> 3059.97 | O13: ='Transporte CM-30'!O13 -> 778.5 | Q13: =ROUND((26.939+0.253*O13),2) -> 223.9 | S13: =Q13+R13 -> 223.9 | T13: =TRUNC(S13*($O$9/(1-$O$9)),2) -> 49.14 | U13: =TRUNC(IF($J$8="","",(($J$9-$J$8)/$J$8)*(S13+T13)),2) -> 282.19 | V13: =S13+T13+U13 -> 555.23 | W13: 399.6 | X13: =EVEN(' CONSUMO DE MAT. B TOTAL'!$P$10*2/28)*W13/' CONSUMO DE MAT. B TOTAL'!$P$10 -> 40.78 | Y13: =IF(AND(Q13="",T13=""),"",V13+X13) -> 596.01 | Z13: =IF(OR(L13="",M13=""),"",L13+M13) -> 3059.97 | AA13: =IF(OR(Y13="",Z13=""),"",Y13+Z13) -> 3655.98 | AC13: =AA13 -> 3655.98 | AD13: =Y13 -> 596.01 | AE13: =Z13 -> 3059.97 | AH13: =IF(OR(G13=$D$42,G13=$D$43,G13=$D$45,G13=$D$51,G13=$D$35,G13=$D$31,G13=$D$27,G13=$D$40,G13=$D$30),"NORDESTE",IF(OR(G13=$D$26,G13=$D$28,G13=$D$29,G13=$D$39,G13=$D$47,G13=$D$48,G13=$D$52),"NORTE",IF(OR(G13=$D$32,G13=$D$34,G13=$D$36,G13=$D$37),"CENTRO-OESTE",IF(OR(G13=$D$50,G13=$D$44,G13=$D$38,G13=$D$33),"SUDESTE",IF(OR(G13=$D$49,G13=$D$41,G13=$D$46),"SUL",""))))) -> NORDESTE
B14: =AA14 -> 3627.61 | C14: 2 | E14: EMAM - EMULSÕES E TRANSPORTES LTDA. | F14: RODOVIA CE 060, KM 11,5 - Pacatuba - CE CEP:61800-000 | G14: Ceará | H14: Pacatuba/CE | I14: Recife - PE | J14: =VLOOKUP(G14,OFFSET('ANP ESTADO'!$A$1,MATCH($I$7,'ANP ESTADO'!B:B,0)+MATCH($H$10,OFFSET('ANP ESTADO'!$A$1,MATCH($I$7,'ANP ESTADO'!B:B,0),0,100000,1),0),2,100000,2),2,FALSE) -> 2.39749 | K14: =VLOOKUP($H$10,OFFSET('ANP REGIÃO'!$A$9,MATCH('Transporte RR-1C'!$I$7,'ANP REGIÃO'!A:A,0),1,10000,10000),MATCH('Transporte RR-1C'!AH14,'ANP REGIÃO'!$B$8:$G$8,0),FALSE) -> 3.18957 | L14: =IF(AND(J14="-",K14="-"),"",IF(AND(J14<>0,K14="-"),J14*1000,IF(AND(J14="-",K14<>0),K14*1000,IF(AND(J14<>0,K14<>0),J14*1000,"")))) -> 2397.49 | M14: =ROUND(((L14/(1-$O$7-$O$8-$O$9))-L14),2) -> 662.48 | N14: =L14+M14 -> 3059.97 | O14: ='Transporte CM-30'!O14 -> 780 | Q14: =ROUND((26.939+0.253*O14),2) -> 224.28 | S14: =Q14+R14 -> 224.28 | T14: =TRUNC(S14*($O$9/(1-$O$9)),2) -> 49.23 | U14: =TRUNC(IF($J$8="","",(($J$9-$J$8)/$J$8)*(S14+T14)),2) -> 282.68 | V14: =S14+T14+U14 -> 556.19 | W14: 112.2 | X14: =EVEN(' CONSUMO DE MAT. B TOTAL'!$P$10*2/28)*W14/' CONSUMO DE MAT. B TOTAL'!$P$10 -> 11.45 | Y14: 567.64 | Z14: 3059.97 | AA14: =IF(OR(Y14="",Z14=""),"",Y14+Z14) -> 3627.61 | AC14: =AA14 -> 3627.61 | AD14: =Y14 -> 567.64 | AE14: 3059.97 | AH14: =IF(OR(G14=$D$42,G14=$D$43,G14=$D$45,G14=$D$51,G14=$D$35,G14=$D$31,G14=$D$27,G14=$D$40,G14=$D$30),"NORDESTE",IF(OR(G14=$D$26,G14=$D$28,G14=$D$29,G14=$D$39,G14=$D$47,G14=$D$48,G14=$D$52),"NORTE",IF(OR(G14=$D$32,G14=$D$34,G14=$D$36,G14=$D$37),"CENTRO-OESTE",IF(OR(G14=$D$50,G14=$D$44,G14=$D$38,G14=$D$33),"SUDESTE",IF(OR(G14=$D$49,G14=$D$41,G14=$D$46),"SUL",""))))) -> NORDESTE
B15: 4656.55 | C15: 3 | E15: CBAA - ASFALTOS LTDA | F15: Avenida Banco do Nordeste, S/N – Feira de Santana - BA CEP:44063-640 | G15: Bahia | H15: Feira de Santana - BA | I15: Recife - PE | J15: =VLOOKUP(G15,OFFSET('ANP ESTADO'!$A$1,MATCH($I$7,'ANP ESTADO'!B:B,0)+MATCH($H$10,OFFSET('ANP ESTADO'!$A$1,MATCH($I$7,'ANP ESTADO'!B:B,0),0,100000,1),0),2,100000,2),2,FALSE) -> - | K15: =VLOOKUP($H$10,OFFSET('ANP REGIÃO'!$A$9,MATCH('Transporte RR-1C'!$I$7,'ANP REGIÃO'!A:A,0),1,10000,10000),MATCH('Transporte RR-1C'!AH15,'ANP REGIÃO'!$B$8:$G$8,0),FALSE) -> 3.18957 | L15: 3189.57 | M15: 881.36 | N15: 4070.93 | O15: ='Transporte CM-30'!O15 -> 803.7 | Q15: 230.28 | S15: 230.28 | T15: 50.54 | U15: 290.23 | V15: 571.05 | W15: 142.8 | X15: =EVEN(' CONSUMO DE MAT. B TOTAL'!$P$10*2/28)*W15/' CONSUMO DE MAT. B TOTAL'!$P$10 -> 14.57 | Y15: 585.62 | Z15: 4070.93 | AA15: 4656.55 | AC15: 4656.55 | AD15: 585.62 | AE15: 4070.93 | AH15: =IF(OR(G15=$D$42,G15=$D$43,G15=$D$45,G15=$D$51,G15=$D$35,G15=$D$31,G15=$D$27,G15=$D$40,G15=$D$30),"NORDESTE",IF(OR(G15=$D$26,G15=$D$28,G15=$D$29,G15=$D$39,G15=$D$47,G15=$D$48,G15=$D$52),"NORTE",IF(OR(G15=$D$32,G15=$D$34,G15=$D$36,G15=$D$37),"CENTRO-OESTE",IF(OR(G15=$D$50,G15=$D$44,G15=$D$38,G15=$D$33),"SUDESTE",IF(OR(G15=$D$49,G15=$D$41,G15=$D$46),"SUL",""))))) -> NORDESTE
A16: 2403 | B16: 4679.91 | C16: 4 | E16: Brasil Asfaltos Ltda | F16: Rodovia BA 522, s/nº, KM 01, Distrito Industrial - Candeias - BA CEP:43813-300 | G16: Bahia | H16: Candeias/BA | I16: Recife - PE | J16: =VLOOKUP(G16,OFFSET('ANP ESTADO'!$A$1,MATCH($I$7,'ANP ESTADO'!B:B,0)+MATCH($H$10,OFFSET('ANP ESTADO'!$A$1,MATCH($I$7,'ANP ESTADO'!B:B,0),0,100000,1),0),2,100000,2),2,FALSE) -> - | K16: =VLOOKUP($H$10,OFFSET('ANP REGIÃO'!$A$9,MATCH('Transporte RR-1C'!$I$7,'ANP REGIÃO'!A:A,0),1,10000,10000),MATCH('Transporte RR-1C'!AH16,'ANP REGIÃO'!$B$8:$G$8,0),FALSE) -> 3.18957 | L16: 3189.57 | M16: 881.36 | N16: 4070.93 | O16: ='Transporte CM-30'!O16 -> 845.9 | Q16: 240.95 | S16: 240.95 | T16: 52.89 | U16: 303.69 | V16: 597.53 | W16: 112.2 | X16: =EVEN(' CONSUMO DE MAT. B TOTAL'!$P$10*2/28)*W16/' CONSUMO DE MAT. B TOTAL'!$P$10 -> 11.45 | Y16: 608.98 | Z16: 4070.93 | AA16: 4679.91 | AC16: 4679.91 | AD16: 608.98 | AE16: 4070.93 | AH16: =IF(OR(G16=$D$42,G16=$D$43,G16=$D$45,G16=$D$51,G16=$D$35,G16=$D$31,G16=$D$27,G16=$D$40,G16=$D$30),"NORDESTE",IF(OR(G16=$D$26,G16=$D$28,G16=$D$29,G16=$D$39,G16=$D$47,G16=$D$48,G16=$D$52),"NORTE",IF(OR(G16=$D$32,G16=$D$34,G16=$D$36,G16=$D$37),"CENTRO-OESTE",IF(OR(G16=$D$50,G16=$D$44,G16=$D$38,G16=$D$33),"SUDESTE",IF(OR(G16=$D$49,G16=$D$41,G16=$D$46),"SUL",""))))) -> NORDESTE
O17: 3155
D26: Acre
D27: Alagoas
D28: Amapá
D29: Amazonas
D30: Bahia
D31: Ceará
D32: Distrito Federal
D33: Espírito Santo
D34: Goiás
D35: Maranhão
D36: Mato Grosso
D37: Mato Grosso do Sul
D38: Minas Gerais
D39: Pará
D40: Paraíba
D41: Paraná
D42: Pernambuco
D43: Piauí
D44: Rio de Janeiro
D45: Rio Grande do Norte
D46: Rio Grande do Sul
D47: Rondônia
D48: Roraima
D49: Santa Catarina
D50: São Paulo
D51: Sergipe
D52: Tocantins
D56: ASFALTOS DILUÍDOS CM-30
D57: ASFALTOS DILUÍDOS CM-70
D58: ASFALTOS DILUÍDOS CR-250
D59: ASFALTOS DILUÍDOS CR-70
D60: CAP MODIFICADO POR BORRACHA DE PNEU AB22
D61: CAP MODIFICADO POR BORRACHA DE PNEU AB8
D62: CAP MODIFICADO POR POLÍMERO 55-75-E
D63: CAP MODIFICADO POR POLÍMERO 60-85-E
D64: CAP MODIFICADO POR POLÍMERO 65-90-E
D65: CIMENTOS ASFÁLTICOS CAP-150-200
D66: CIMENTOS ASFÁLTICOS CAP-30-45
D67: CIMENTOS ASFÁLTICOS CAP-50-70
D68: CIMENTOS ASFÁLTICOS CAP-85-100
D69: EMULSÃO ASFÁLTICA CATIÔNICA DE RUPTURA CONTROLADA PARA SERVIÇO DE LAMA ASFÁLTICA
D70: EMULSÃO ASFÁLTICA DE RUPTURA LENTA CATIÔNICA PARA SERVIÇO DE LAMA ASFÁLTICA
D71: EMULSÃO ASFÁLTICA DE RUPTURA LENTA DE CARGA NEUTRA PARA SERVIÇO DE LAMA ASFÁLTICA
D72: EMULSÃO ASFÁLTICA PARA SERVIÇO DE IMPRIMAÇÃO
D73: EMULSÕES ASF. MOD. POR POLÍMEROS RC1C-E
D74: EMULSÕES ASF. MOD. POR POLÍMEROS RL1C-E
D75: EMULSÕES ASF. MOD. POR POLÍMEROS RM1C-E
D76: EMULSÕES ASF. MOD. POR POLÍMEROS RR1C-E
D77: EMULSÕES ASF. MOD. POR POLÍMEROS RR2C-E
D78: EMULSÕES ASFÁLTICAS RL-1C
D79: EMULSÕES ASFÁLTICAS RM-1C
D80: EMULSÕES ASFÁLTICAS RM-2C
D81: EMULSÕES ASFÁLTICAS RR-1C
D82: EMULSÕES ASFÁLTICAS RR-2C

Sheet RESUMO_Transp
B11: ÍNDICE DE PAVIMENTAÇÃO DNIT | E11: TIPOLOGIA DO MATERIAL | G11: LIGANTE BETUMINOSO | K11: IMPOSTOS | L11: COFINS (BDI DIF) | M11: 0.0065 | N11: ='Transporte Cap 50-70'!P7 -> 0.0065
C12: DATA INICIAL | F12: 2014-07-01 | G12: ÍNDICE INICIAL | H12: ='Transporte Cap 50-70'!J8 -> 270.237 | L12: PIS | M12: 0.03 | N12: ='Transporte Cap 50-70'!P8 -> 0.03 | P12: LEGENDA
C13: DATA FINAL | F13: 2023-01-01 | G13: ÍNDICE FINAL | H13: ='Transporte Cap 50-70'!J9 -> 549.538 | L13: ICMS | M13: ='Transporte Cap 50-70'!O9 -> 0.18 | N13: ='Transporte Cap 50-70'!P9 -> 0.18 | P13: ENTRADA DE DADOS
B15: DATA-BASE | C15: PRODUTOS | D15: LOCALIDADES | H15: CUSTO ANP (R$/Kg) | J15: CUSTO ANP | K15: IMPOSTOS DO PRODUTO | L15: CUSTO DO PRODUTO COM IMPOSTOS | M15: DMT's | N15: DMT's | O15: CUSTO DO TRANSPORTE TOTAL | P15: ICMS | Q15: ATUALIZAÇÃO DO CUSTO DE TRANSPORTE | R15: CUSTO DO TRANSPORTE RODOVIA PAVIMENTADA COM IMPOSTOS E ATUALIZAÇÃO MONETÁRIA | S15: PEDÁGIO | U15: TOTAL TRANSPORTE | V15: TOTAL PRODUTO | W15: TOTAL GERAL
B16: =F13 -> 2023-01-01 | D16: REFINARIAS | E16: ENDEREÇO | F16: ORIGEM REFINARIAS / DISTRIBUIDORAS | G16: DESTINO | H16: ESTADO | I16: REGIÃO | J16: R$/t | K16: R$/t | L16: R$/t | M16: KM | N16: KM | O16: R$/t | P16: R$/t | Q16: R$/t | R16: R$/t | S16: CUSTO POR EIXO | T16: R$/t | U16: R$/t | V16: R$/t | W16: R$/t
B17: 1 | C17: CAP 50/70 | D17: Refinaria Abreu e Lima | E17: Rodovia PE 60, Km 10 - Ipojuca - PE CEP:55590-000 | F17: =VLOOKUP($W17,'Transporte Cap 50-70'!$B:$AA,7,FALSE) -> Maracanau /CE | G17: =VLOOKUP($W17,'Transporte Cap 50-70'!$B:$AA,8,FALSE) -> Recife - PE | H17: =VLOOKUP($W17,'Transporte Cap 50-70'!$B:$AA,9,FALSE) -> 3.31956 | I17: =VLOOKUP($W17,'Transporte Cap 50-70'!$B:$AA,10,FALSE) -> 3.36285 | J17: =VLOOKUP($W17,'Transporte Cap 50-70'!$B:$AA,11,FALSE) -> 3319.56 | K17: =VLOOKUP($W17,'Transporte Cap 50-70'!$B:$AA,12,FALSE) -> 917.27 | L17: =VLOOKUP($W17,'Transporte Cap 50-70'!$B:$AA,13,FALSE) -> 4236.83 | M17: =VLOOKUP($W17,'Transporte Cap 50-70'!$B$13:$AA$16,14,FALSE) -> 778.5 | N17: =VLOOKUP($W17,'Transporte Cap 50-70'!$B:$AA,15,FALSE) -> 0 | O17: =VLOOKUP($W17,'Transporte Cap 50-70'!$B:$AA,18,FALSE) -> 223.9 | P17: =VLOOKUP($W17,'Transporte Cap 50-70'!$B:$AA,19,FALSE) -> 0 | Q17: =VLOOKUP($W17,'Transporte Cap 50-70'!$B:$AA,20,FALSE) -> 231.4 | R17: =VLOOKUP($W17,'Transporte Cap 50-70'!$B:$AA,21,FALSE) -> 455.3 | S17: =VLOOKUP($W17,'Transporte Cap 50-70'!$B:$AA,22,FALSE) -> 61.2 | T17: =VLOOKUP($W17,'Transporte Cap 50-70'!$B:$AA,23,FALSE) -> 4.44 | U17: =VLOOKUP($W17,'Transporte Cap 50-70'!$B:$AA,24,FALSE) -> 459.74 | V17: =VLOOKUP($W17,'Transporte Cap 50-70'!$B:$AA,25,FALSE) -> 4236.83 | W17: =SMALL('Transporte Cap 50-70'!$AA:$AA,1) -> 4696.57
B18: 2 | D18: Refinaria Potiguar Clara Camarão | E18: Rodovia RN 221, KM 25 - Guamaré - RN CEP:59598-000 | F18: =VLOOKUP($W18,'Transporte Cap 50-70'!$B:$AA,7,FALSE) -> Pacatuba/CE | G18: =VLOOKUP($W18,'Transporte Cap 50-70'!$B:$AA,8,FALSE) -> Recife - PE | H18: =VLOOKUP($W18,'Transporte Cap 50-70'!$B:$AA,9,FALSE) -> 3.31956 | I18: =VLOOKUP($W18,'Transporte Cap 50-70'!$B:$AA,10,FALSE) -> 3.36285 | J18: =VLOOKUP($W18,'Transporte Cap 50-70'!$B:$AA,11,FALSE) -> 3319.56 | K18: =VLOOKUP($W18,'Transporte Cap 50-70'!$B:$AA,12,FALSE) -> 917.27 | L18: =VLOOKUP($W18,'Transporte Cap 50-70'!$B:$AA,13,FALSE) -> 4236.83 | M18: =VLOOKUP($W18,'Transporte Cap 50-70'!$B$13:$AA$16,14,FALSE) -> 780 | N18: =VLOOKUP($W18,'Transporte Cap 50-70'!$B:$AA,15,FALSE) -> 0 | O18: =VLOOKUP($W18,'Transporte Cap 50-70'!$B:$AA,18,FALSE) -> 224.28 | P18: =VLOOKUP($W18,'Transporte Cap 50-70'!$B:$AA,19,FALSE) -> 49.23 | Q18: =VLOOKUP($W18,'Transporte Cap 50-70'!$B:$AA,20,FALSE) -> 282.68 | R18: =VLOOKUP($W18,'Transporte Cap 50-70'!$B:$AA,21,FALSE) -> 556.19 | S18: =VLOOKUP($W18,'Transporte Cap 50-70'!$B:$AA,22,FALSE) -> 177 | T18: =VLOOKUP($W18,'Transporte Cap 50-70'!$B:$AA,23,FALSE) -> 12.85 | U18: =VLOOKUP($W18,'Transporte Cap 50-70'!$B:$AA,24,FALSE) -> 569.04 | V18: =VLOOKUP($W18,'Transporte Cap 50-70'!$B:$AA,25,FALSE) -> 4236.83 | W18: =SMALL('Transporte Cap 50-70'!$AA:$AA,2) -> 4805.87
B19: 3 | D19: Complexo Petroquímico do Rio de Janeiro (Comperj) | E19: Rodovia Estadual RJ-116 - Km 5,2 - Acesso A-1, s/n, Complemento Sambaetiba - Zona Urbana do 4º Distrito de Itaboraí - RJ CEP:24841-203 | F19: =VLOOKUP($W19,'Transporte Cap 50-70'!$B:$AA,7,FALSE) -> Feira de Santana - BA | G19: =VLOOKUP($W19,'Transporte Cap 50-70'!$B:$AA,8,FALSE) -> Recife - PE | H19: =VLOOKUP($W19,'Transporte Cap 50-70'!$B:$AA,9,FALSE) -> 3.50275 | I19: =VLOOKUP($W19,'Transporte Cap 50-70'!$B:$AA,10,FALSE) -> 3.36285 | J19: =VLOOKUP($W19,'Transporte Cap 50-70'!$B:$AA,11,FALSE) -> 3502.75 | K19: =VLOOKUP($W19,'Transporte Cap 50-70'!$B:$AA,12,FALSE) -> 967.89 | L19: =VLOOKUP($W19,'Transporte Cap 50-70'!$B:$AA,13,FALSE) -> 4470.64 | M19: =VLOOKUP($W19,'Transporte Cap 50-70'!$B$13:$AA$16,14,FALSE) -> 803.7 | N19: =VLOOKUP($W19,'Transporte Cap 50-70'!$B:$AA,15,FALSE) -> 0 | O19: =VLOOKUP($W19,'Transporte Cap 50-70'!$B:$AA,18,FALSE) -> 230.28 | P19: =VLOOKUP($W19,'Transporte Cap 50-70'!$B:$AA,19,FALSE) -> 50.54 | Q19: =VLOOKUP($W19,'Transporte Cap 50-70'!$B:$AA,20,FALSE) -> 290.23 | R19: =VLOOKUP($W19,'Transporte Cap 50-70'!$B:$AA,21,FALSE) -> 571.05 | S19: =VLOOKUP($W19,'Transporte Cap 50-70'!$B:$AA,22,FALSE) -> 61.2 | T19: =VLOOKUP($W19,'Transporte Cap 50-70'!$B:$AA,23,FALSE) -> 4.44 | U19: =VLOOKUP($W19,'Transporte Cap 50-70'!$B:$AA,24,FALSE) -> 575.49 | V19: =VLOOKUP($W19,'Transporte Cap 50-70'!$B:$AA,25,FALSE) -> 4470.64 | W19: =SMALL('Transporte Cap 50-70'!$AA:$AA,3) -> 5046.13
B20: 4 | F20: =VLOOKUP($W20,'Transporte Cap 50-70'!$B:$AA,7,FALSE) -> Candeias/BA | G20: =VLOOKUP($W20,'Transporte Cap 50-70'!$B:$AA,8,FALSE) -> Recife - PE | H20: =VLOOKUP($W20,'Transporte Cap 50-70'!$B:$AA,9,FALSE) -> 3.50275 | I20: =VLOOKUP($W20,'Transporte Cap 50-70'!$B:$AA,10,FALSE) -> 3.36285 | J20: =VLOOKUP($W20,'Transporte Cap 50-70'!$B:$AA,11,FALSE) -> 3502.75 | K20: =VLOOKUP($W20,'Transporte Cap 50-70'!$B:$AA,12,FALSE) -> 967.89 | L20: =VLOOKUP($W20,'Transporte Cap 50-70'!$B:$AA,13,FALSE) -> 4470.64 | M20: =VLOOKUP($W20,'Transporte Cap 50-70'!$B$13:$AA$16,14,FALSE) -> 845.9 | N20: =VLOOKUP($W20,'Transporte Cap 50-70'!$B:$AA,15,FALSE) -> 0 | O20: =VLOOKUP($W20,'Transporte Cap 50-70'!$B:$AA,18,FALSE) -> 240.95 | P20: =VLOOKUP($W20,'Transporte Cap 50-70'!$B:$AA,19,FALSE) -> 52.89 | Q20: =VLOOKUP($W20,'Transporte Cap 50-70'!$B:$AA,20,FALSE) -> 303.69 | R20: =VLOOKUP($W20,'Transporte Cap 50-70'!$B:$AA,21,FALSE) -> 597.53 | S20: =VLOOKUP($W20,'Transporte Cap 50-70'!$B:$AA,22,FALSE) -> 0 | T20: =VLOOKUP($W20,'Transporte Cap 50-70'!$B:$AA,23,FALSE) -> 0 | U20: =VLOOKUP($W20,'Transporte Cap 50-70'!$B:$AA,24,FALSE) -> 597.53 | V20: =VLOOKUP($W20,'Transporte Cap 50-70'!$B:$AA,25,FALSE) -> 4470.64 | W20: =SMALL('Transporte Cap 50-70'!$AA:$AA,4) -> 5068.17
B22: 1 | C22: CM-30 | D22: Refinaria Abreu e Lima | E22: Rodovia PE 60, Km 10 - Ipojuca - PE CEP:55590-000 | F22: =VLOOKUP($W22,'Transporte CM-30'!$B$13:$AA$16,7,FALSE) -> Maracanau /CE | G22: =VLOOKUP($W22,'Transporte CM-30'!$B$13:$AA$16,8,FALSE) -> Recife - PE | H22: =VLOOKUP($W22,'Transporte CM-30'!$B$13:$AA$16,9,FALSE) -> 4.1009 | I22: =VLOOKUP($W22,'Transporte CM-30'!$B$13:$AA$16,10,FALSE) -> 4.1009 | J22: =VLOOKUP($W22,'Transporte CM-30'!$B$13:$AA$16,11,FALSE) -> 4100.9 | K22: =VLOOKUP($W22,'Transporte CM-30'!$B$13:$AA$16,12,FALSE) -> 1133.18 | L22: =VLOOKUP($W22,'Transporte CM-30'!$B$13:$AA$16,13,FALSE) -> 5234.08 | M22: =VLOOKUP($W22,'Transporte CM-30'!$B$13:$AA$16,14,FALSE) -> 778.5 | N22: =VLOOKUP($W22,'Transporte CM-30'!$B$13:$AA$16,15,FALSE) -> 0 | O22: =VLOOKUP($W22,'Transporte CM-30'!$B$13:$AA$16,18,FALSE) -> 223.9 | P22: =VLOOKUP($W22,'Transporte CM-30'!$B$13:$AA$16,19,FALSE) -> 0 | Q22: =VLOOKUP($W22,'Transporte CM-30'!$B$13:$AA$16,20,FALSE) -> 231.4 | R22: =VLOOKUP($W22,'Transporte CM-30'!$B$13:$AA$16,21,FALSE) -> 455.3 | S22: =VLOOKUP($W22,'Transporte CM-30'!$B$13:$AA$16,22,FALSE) -> 61.2 | T22: =VLOOKUP($W22,'Transporte CM-30'!$B$13:$AA$16,23,FALSE) -> 4.53 | U22: =VLOOKUP($W22,'Transporte CM-30'!$B$13:$AA$16,24,FALSE) -> 459.83 | V22: =VLOOKUP($W22,'Transporte CM-30'!$B:$AA,25,FALSE) -> 5234.08 | W22: =SMALL('Transporte CM-30'!$AA:$AA,1) -> 5693.91
B23: 2 | D23: Refinaria Potiguar Clara Camarão | E23: Rodovia RN 221, KM 25 - Guamaré - RN CEP:59598-000 | F23: =VLOOKUP($W23,'Transporte CM-30'!$B$13:$AA$16,7,FALSE) -> Pacatuba/CE | G23: =VLOOKUP($W23,'Transporte CM-30'!$B$13:$AA$16,8,FALSE) -> Recife -PE | H23: =VLOOKUP($W23,'Transporte CM-30'!$B$13:$AA$16,9,FALSE) -> 4.1009 | I23: =VLOOKUP($W23,'Transporte CM-30'!$B$13:$AA$16,10,FALSE) -> 4.1009 | J23: =VLOOKUP($W23,'Transporte CM-30'!$B$13:$AA$16,11,FALSE) -> 4100.9 | K23: =VLOOKUP($W23,'Transporte CM-30'!$B$13:$AA$16,12,FALSE) -> 1133.18 | L23: =VLOOKUP($W23,'Transporte CM-30'!$B$13:$AA$16,13,FALSE) -> 5234.08 | M23: =VLOOKUP($W23,'Transporte CM-30'!$B$13:$AA$16,14,FALSE) -> 780 | N23: =VLOOKUP($W23,'Transporte CM-30'!$B$13:$AA$16,15,FALSE) -> 0 | O23: =VLOOKUP($W23,'Transporte CM-30'!$B$13:$AA$16,18,FALSE) -> 224.28 | P23: =VLOOKUP($W23,'Transporte CM-30'!$B$13:$AA$16,19,FALSE) -> 49.23 | Q23: =VLOOKUP($W23,'Transporte CM-30'!$B$13:$AA$16,20,FALSE) -> 282.68 | R23: =VLOOKUP($W23,'Transporte CM-30'!$B$13:$AA$16,21,FALSE) -> 556.19 | S23: =VLOOKUP($W23,'Transporte CM-30'!$B$13:$AA$16,22,FALSE) -> 177 | T23: =VLOOKUP($W23,'Transporte CM-30'!$B$13:$AA$16,23,FALSE) -> 13.09 | U23: =VLOOKUP($W23,'Transporte CM-30'!$B$13:$AA$16,24,FALSE) -> 569.28 | V23: =VLOOKUP($W23,'Transporte CM-30'!$B:$AA,25,FALSE) -> 5234.08 | W23: =SMALL('Transporte CM-30'!$AA:$AA,2) -> 5803.36
B24: 3 | D24: Complexo Petroquímico do Rio de Janeiro (Comperj) | E24: Rodovia Estadual RJ-116 - Km 5,2 - Acesso A-1, s/n, Complemento Sambaetiba - Zona Urbana do 4º Distrito de Itaboraí - RJ CEP:24841-203 | F24: =VLOOKUP($W24,'Transporte CM-30'!$B$13:$AA$16,7,FALSE) -> Feira de Santana - BA | G24: =VLOOKUP($W24,'Transporte CM-30'!$B$13:$AA$16,8,FALSE) -> Recife -PE | H24: =VLOOKUP($W24,'Transporte CM-30'!$B$13:$AA$16,9,FALSE) -> - | I24: =VLOOKUP($W24,'Transporte CM-30'!$B$13:$AA$16,10,FALSE) -> 4.1009 | J24: =VLOOKUP($W24,'Transporte CM-30'!$B$13:$AA$16,11,FALSE) -> 4100.9 | K24: =VLOOKUP($W24,'Transporte CM-30'!$B$13:$AA$16,12,FALSE) -> 1133.18 | L24: =VLOOKUP($W24,'Transporte CM-30'!$B$13:$AA$16,13,FALSE) -> 5234.08 | M24: =VLOOKUP($W24,'Transporte CM-30'!$B$13:$AA$16,14,FALSE) -> 803.7 | N24: =VLOOKUP($W24,'Transporte CM-30'!$B$13:$AA$16,15,FALSE) -> 0 | O24: =VLOOKUP($W24,'Transporte CM-30'!$B$13:$AA$16,18,FALSE) -> 230.28 | P24: =VLOOKUP($W24,'Transporte CM-30'!$B$13:$AA$16,19,FALSE) -> 50.54 | Q24: =VLOOKUP($W24,'Transporte CM-30'!$B$13:$AA$16,20,FALSE) -> 290.23 | R24: =VLOOKUP($W24,'Transporte CM-30'!$B$13:$AA$16,21,FALSE) -> 571.05 | S24: =VLOOKUP($W24,'Transporte CM-30'!$B$13:$AA$16,22,FALSE) -> 61.2 | T24: =VLOOKUP($W24,'Transporte CM-30'!$B$13:$AA$16,23,FALSE) -> 4.53 | U24: =VLOOKUP($W24,'Transporte CM-30'!$B$13:$AA$16,24,FALSE) -> 575.58 | V24: =VLOOKUP($W24,'Transporte CM-30'!$B:$AA,25,FALSE) -> 5234.08 | W24: =SMALL('Transporte CM-30'!$AA:$AA,3) -> 5809.66
B25: 4 | F25: =VLOOKUP($W25,'Transporte CM-30'!$B$13:$AA$16,7,FALSE) -> Candeias/BA | G25: =VLOOKUP($W25,'Transporte CM-30'!$B$13:$AA$16,8,FALSE) -> Recife -PE | H25: =VLOOKUP($W25,'Transporte CM-30'!$B$13:$AA$16,9,FALSE) -> - | I25: =VLOOKUP($W25,'Transporte CM-30'!$B$13:$AA$16,10,FALSE) -> 4.1009 | J25: =VLOOKUP($W25,'Transporte CM-30'!$B$13:$AA$16,11,FALSE) -> 4100.9 | K25: =VLOOKUP($W25,'Transporte CM-30'!$B$13:$AA$16,12,FALSE) -> 1133.18 | L25: =VLOOKUP($W25,'Transporte CM-30'!$B$13:$AA$16,13,FALSE) -> 5234.08 | M25: =VLOOKUP($W25,'Transporte CM-30'!$B$13:$AA$16,14,FALSE) -> 845.9 | N25: =VLOOKUP($W25,'Transporte CM-30'!$B$13:$AA$16,15,FALSE) -> 0 | O25: =VLOOKUP($W25,'Transporte CM-30'!$B$13:$AA$16,18,FALSE) -> 240.95 | P25: =VLOOKUP($W25,'Transporte CM-30'!$B$13:$AA$16,19,FALSE) -> 52.89 | Q25: =VLOOKUP($W25,'Transporte CM-30'!$B$13:$AA$16,20,FALSE) -> 303.69 | R25: =VLOOKUP($W25,'Transporte CM-30'!$B$13:$AA$16,21,FALSE) -> 597.53 | S25: =VLOOKUP($W25,'Transporte CM-30'!$B$13:$AA$16,22,FALSE) -> 0 | T25: =VLOOKUP($W25,'Transporte CM-30'!$B$13:$AA$16,23,FALSE) -> 0 | U25: =VLOOKUP($W25,'Transporte CM-30'!$B$13:$AA$16,24,FALSE) -> 597.53 | V25: =VLOOKUP($W25,'Transporte CM-30'!$B:$AA,25,FALSE) -> 5234.08 | W25: =SMALL('Transporte CM-30'!$AA:$AA,4) -> 5831.61
B27: 1 | C27: RR1-C | D27: Refinaria Abreu e Lima | E27: Rodovia PE 60, Km 10 - Ipojuca - PE CEP:55590-000 | F27: =VLOOKUP($W27,'Transporte RR-1C'!$B:$AA,7,FALSE) -> Pacatuba/CE | G27: =VLOOKUP($W27,'Transporte RR-1C'!$B:$AA,8,FALSE) -> Recife - PE | H27: =VLOOKUP($W27,'Transporte RR-1C'!$B:$AA,9,FALSE) -> 2.39749 | I27: =VLOOKUP($W27,'Transporte RR-1C'!$B:$AA,10,FALSE) -> 3.18957 | J27: =VLOOKUP($W27,'Transporte RR-1C'!$B:$AA,11,FALSE) -> 2397.49 | K27: =VLOOKUP($W27,'Transporte RR-1C'!$B:$AA,12,FALSE) -> 662.48 | L27: =VLOOKUP($W27,'Transporte RR-1C'!$B:$AA,13,FALSE) -> 3059.97 | M27: =VLOOKUP($W27,'Transporte RR-1C'!$B:$AA,14,FALSE) -> 780 | N27: =VLOOKUP($W27,'Transporte RR-1C'!$B:$AA,15,FALSE) -> 0 | O27: =VLOOKUP($W27,'Transporte RR-1C'!$B:$AA,18,FALSE) -> 224.28 | P27: =VLOOKUP($W27,'Transporte RR-1C'!$B:$AA,19,FALSE) -> 49.23 | Q27: =VLOOKUP($W27,'Transporte RR-1C'!$B:$AA,20,FALSE) -> 282.68 | R27: =VLOOKUP($W27,'Transporte RR-1C'!$B:$AA,21,FALSE) -> 556.19 | S27: =VLOOKUP($W27,'Transporte RR-1C'!$B:$AA,22,FALSE) -> 112.2 | T27: =VLOOKUP($W27,'Transporte RR-1C'!$B:$AA,23,FALSE) -> 11.45 | U27: =VLOOKUP($W27,'Transporte RR-1C'!$B:$AA,24,FALSE) -> 567.64 | V27: =VLOOKUP($W27,'Transporte RR-1C'!$B:$AA,25,FALSE) -> 3059.97 | W27: =SMALL('Transporte RR-1C'!$AA:$AA,1) -> 3627.61
B28: 2 | D28: Refinaria Potiguar Clara Camarão | E28: Rodovia RN 221, KM 25 - Guamaré - RN CEP:59598-000 | F28: =VLOOKUP($W28,'Transporte RR-1C'!$B:$AA,7,FALSE) -> Maracanau /CE | G28: =VLOOKUP($W28,'Transporte RR-1C'!$B:$AA,8,FALSE) -> Recife - PE | H28: =VLOOKUP($W28,'Transporte RR-1C'!$B:$AA,9,FALSE) -> 2.39749 | I28: =VLOOKUP($W28,'Transporte RR-1C'!$B:$AA,10,FALSE) -> 3.18957 | J28: =VLOOKUP($W28,'Transporte RR-1C'!$B:$AA,11,FALSE) -> 2397.49 | K28: =VLOOKUP($W28,'Transporte RR-1C'!$B:$AA,12,FALSE) -> 662.48 | L28: =VLOOKUP($W28,'Transporte RR-1C'!$B:$AA,13,FALSE) -> 3059.97 | M28: =VLOOKUP($W28,'Transporte RR-1C'!$B:$AA,14,FALSE) -> 778.5 | N28: =VLOOKUP($W28,'Transporte RR-1C'!$B:$AA,15,FALSE) -> 0 | O28: =VLOOKUP($W28,'Transporte RR-1C'!$B:$AA,18,FALSE) -> 223.9 | P28: =VLOOKUP($W28,'Transporte RR-1C'!$B:$AA,19,FALSE) -> 49.14 | Q28: =VLOOKUP($W28,'Transporte RR-1C'!$B:$AA,20,FALSE) -> 282.19 | R28: =VLOOKUP($W28,'Transporte RR-1C'!$B:$AA,21,FALSE) -> 555.23 | S28: =VLOOKUP($W28,'Transporte RR-1C'!$B:$AA,22,FALSE) -> 399.6 | T28: =VLOOKUP($W28,'Transporte RR-1C'!$B:$AA,23,FALSE) -> 40.78 | U28: =VLOOKUP($W28,'Transporte RR-1C'!$B:$AA,24,FALSE) -> 596.01 | V28: =VLOOKUP($W28,'Transporte RR-1C'!$B:$AA,25,FALSE) -> 3059.97 | W28: =SMALL('Transporte RR-1C'!$AA:$AA,2) -> 3655.98
B29: 3 | D29: Complexo Petroquímico do Rio de Janeiro (Comperj) | E29: Rodovia Estadual RJ-116 - Km 5,2 - Acesso A-1, s/n, Complemento Sambaetiba - Zona Urbana do 4º Distrito de Itaboraí - RJ CEP:24841-203 | F29: =VLOOKUP($W29,'Transporte RR-1C'!$B:$AA,7,FALSE) -> Feira de Santana - BA | G29: =VLOOKUP($W29,'Transporte RR-1C'!$B:$AA,8,FALSE) -> Recife - PE | H29: =VLOOKUP($W29,'Transporte RR-1C'!$B:$AA,9,FALSE) -> - | I29: =VLOOKUP($W29,'Transporte RR-1C'!$B:$AA,10,FALSE) -> 3.18957 | J29: =VLOOKUP($W29,'Transporte RR-1C'!$B:$AA,11,FALSE) -> 3189.57 | K29: =VLOOKUP($W29,'Transporte RR-1C'!$B:$AA,12,FALSE) -> 881.36 | L29: =VLOOKUP($W29,'Transporte RR-1C'!$B:$AA,13,FALSE) -> 4070.93 | M29: =VLOOKUP($W29,'Transporte RR-1C'!$B:$AA,14,FALSE) -> 803.7 | N29: =VLOOKUP($W29,'Transporte RR-1C'!$B:$AA,15,FALSE) -> 0 | O29: =VLOOKUP($W29,'Transporte RR-1C'!$B:$AA,18,FALSE) -> 230.28 | P29: =VLOOKUP($W29,'Transporte RR-1C'!$B:$AA,19,FALSE) -> 50.54 | Q29: =VLOOKUP($W29,'Transporte RR-1C'!$B:$AA,20,FALSE) -> 290.23 | R29: =VLOOKUP($W29,'Transporte RR-1C'!$B:$AA,21,FALSE) -> 571.05 | S29: =VLOOKUP($W29,'Transporte RR-1C'!$B:$AA,22,FALSE) -> 142.8 | T29: =VLOOKUP($W29,'Transporte RR-1C'!$B:$AA,23,FALSE) -> 14.57 | U29: =VLOOKUP($W29,'Transporte RR-1C'!$B:$AA,24,FALSE) -> 585.62 | V29: =VLOOKUP($W29,'Transporte RR-1C'!$B:$AA,25,FALSE) -> 4070.93 | W29: =SMALL('Transporte RR-1C'!$AA:$AA,3) -> 4656.55
B30: 4 | D30: Refinaria Abreu e Lima | E30: Rodovia PE 60, Km 10 - Ipojuca - PE CEP:55590-000 | F30: =VLOOKUP($W30,'Transporte RR-1C'!$B:$AA,7,FALSE) -> Candeias/BA | G30: =VLOOKUP($W30,'Transporte RR-1C'!$B:$AA,8,FALSE) -> Recife - PE | H30: =VLOOKUP($W30,'Transporte RR-1C'!$B:$AA,9,FALSE) -> - | I30: =VLOOKUP($W30,'Transporte RR-1C'!$B:$AA,10,FALSE) -> 3.18957 | J30: =VLOOKUP($W30,'Transporte RR-1C'!$B:$AA,11,FALSE) -> 3189.57 | K30: =VLOOKUP($W30,'Transporte RR-1C'!$B:$AA,12,FALSE) -> 881.36 | L30: =VLOOKUP($W30,'Transporte RR-1C'!$B:$AA,13,FALSE) -> 4070.93 | M30: =VLOOKUP($W30,'Transporte RR-1C'!$B:$AA,14,FALSE) -> 845.9 | N30: =VLOOKUP($W30,'Transporte RR-1C'!$B:$AA,15,FALSE) -> 0 | O30: =VLOOKUP($W30,'Transporte RR-1C'!$B:$AA,18,FALSE) -> 240.95 | P30: =VLOOKUP($W30,'Transporte RR-1C'!$B:$AA,19,FALSE) -> 52.89 | Q30: =VLOOKUP($W30,'Transporte RR-1C'!$B:$AA,20,FALSE) -> 303.69 | R30: =VLOOKUP($W30,'Transporte RR-1C'!$B:$AA,21,FALSE) -> 597.53 | S30: =VLOOKUP($W30,'Transporte RR-1C'!$B:$AA,22,FALSE) -> 112.2 | T30: =VLOOKUP($W30,'Transporte RR-1C'!$B:$AA,23,FALSE) -> 11.45 | U30: =VLOOKUP($W30,'Transporte RR-1C'!$B:$AA,24,FALSE) -> 608.98 | V30: =VLOOKUP($W30,'Transporte RR-1C'!$B:$AA,25,FALSE) -> 4070.93 | W30: =SMALL('Transporte RR-1C'!$AA:$AA,4) -> 4679.91

Sheet MOMENTO DE TRANSPORTE - PRINC
B1: ESTADO: | C1: Pernambuco | D1: DATA BASE: | E1: 2023-11-01
D3: TIPO (P, RP ou LN) | E3: DMT ESTIMADA
D4: P | E4: 80
C5: RESUMO DO TRANSPORTE PRINCIPAL
B6: CODIGO | C6: DESCRIÇÃO | D6: TKM
B7: 5914359 | C7: Transporte com caminhão basculante de 10 m³ - rodovia em leito natural | D7: =ROUND(SUMIF('MOMENTO DE TRANSPORTE - PRINC'!A:A,B7,'MOMENTO DE TRANSPORTE - PRINC'!K:K),2) -> 0
B8: 5914374 | C8: Transporte com caminhão basculante de 10 m³ - rodovia em revestimento primário | D8: =ROUND(SUMIF('MOMENTO DE TRANSPORTE - PRINC'!A:A,B8,'MOMENTO DE TRANSPORTE - PRINC'!K:K),2) -> 0
B9: 5914389 | C9: Transporte com caminhão basculante de 10 m³ - rodovia pavimentada | D9: =ROUND(SUMIF('MOMENTO DE TRANSPORTE - PRINC'!A:A,B9,'MOMENTO DE TRANSPORTE - PRINC'!K:K),2) -> 5842146.87
B10: 5914449 | C10: Transporte com caminhão carroceria de 15 t - rodovia em leito natural | D10: =ROUND(SUMIF('MOMENTO DE TRANSPORTE - PRINC'!A:A,B10,'MOMENTO DE TRANSPORTE - PRINC'!K:K),2) -> 0
B11: 5914464 | C11: Transporte com caminhão carroceria de 15 t - rodovia em revestimento primário | D11: =ROUND(SUMIF('MOMENTO DE TRANSPORTE - PRINC'!A:A,B11,'MOMENTO DE TRANSPORTE - PRINC'!K:K),2) -> 0
B12: 5914479 | C12: Transporte com caminhão carroceria de 15 t - rodovia pavimentada | D12: =ROUND(SUMIF('MOMENTO DE TRANSPORTE - PRINC'!A:A,B12,'MOMENTO DE TRANSPORTE - PRINC'!K:K),2) -> 0
B13: 5914364 | C13: Transporte de cimento ou cal hidratada a granel com caminhão silo de 30 m³ - rodovia em leito natural | D13: =ROUND(SUMIF('MOMENTO DE TRANSPORTE - PRINC'!A:A,B13,'MOMENTO DE TRANSPORTE - PRINC'!K:K),2) -> 0
B14: 5914365 | C14: Transporte de cimento ou cal hidratada a granel com caminhão silo de 30 m³ - rodovia em revestimento primário | D14: =ROUND(SUMIF('MOMENTO DE TRANSPORTE - PRINC'!A:A,B14,'MOMENTO DE TRANSPORTE - PRINC'!K:K),2) -> 0
B15: 5914366 | C15: Transporte de cimento ou cal hidratada a granel com caminhão silo de 30 m³ - rodovia pavimentada | D15: =ROUND(SUMIF('MOMENTO DE TRANSPORTE - PRINC'!A:A,B15,'MOMENTO DE TRANSPORTE - PRINC'!K:K),2) -> 0
B17: PRINCIPAL
B19: SISTEMA DE CUSTOS REFERENCIAIS DE OBRAS - SICRO | E19: =$C$1 -> Pernambuco
B20: Custo Unitário de Referência | E20: =$E$1 -> 2023-11-01 | I20: Quantitativo | K20: t
B21: 4011463 | C21: Concreto asfáltico - faixa C - areia e brita comerciais | I21: =SUMIF('RESUMO MODULO TOTAL'!C:C,B21,'RESUMO MODULO TOTAL'!I:I) -> 11760
B22: D - ATIVIDADES AUXILIARES | D22: Quantidade | E22: Unidade
B23: 6416078 | C23: Usinagem de concreto asfáltico - faixa C - areia e brita comerciais | D23: 1.02 | E23: t
B25: F - MOMENTO DE TRANSPORTE | D25: Quantidade | E25: Unidade | F25: CÓDIGO TRANSPORTE
F26: LN | G26: RP | H26: P | I26: TIPO (P, RP ou LN) | J26: DMT ESTIMADA (km) | K26: QUANTITATIVO TOTAL DE TRANSPORTE (tkm)
A27: =IF(I27="P",H27,IF(I27="RP",G27,IF(I27="LN",F27,""))) -> 5914389 | B27: 6416078 | C27: Usinagem de concreto asfáltico - faixa C - areia e brita comerciais - Caminhão basculante 10 m³ | D27: 1.02 | E27: tkm | F27: 5914359 | G27: 5914374 | H27: 5914389 | I27: P | J27: =E4 -> 80 | K27: =IF(ISBLANK(J27),"",J27*D27)*I21 -> 959616
B29: Obs.
B32: SISTEMA DE CUSTOS REFERENCIAIS DE OBRAS - SICRO | E32: =$C$1 -> Pernambuco
B33: Custo Unitário de Referência | E33: =$E$1 -> 2023-11-01 | I33: Quantitativo | K33: m³
B34: 4011256 | C34: Base estabilizada granulometricamente com mistura solo brita (70% - 30%) na pista com material de jazida e brita comercial | I34: =SUMIF('RESUMO MODULO TOTAL'!C:C,B34,'RESUMO MODULO TOTAL'!I:I) -> 14700
B35: D - ATIVIDADES AUXILIARES | D35: Quantidade | E35: Unidade
B36: 4016096 | C36: Escavação e carga de material de jazida com escavadeira hidráulica de 1,56 m³ | D36: 0.77019 | E36: m³
B38: F - MOMENTO DE TRANSPORTE | D38: Quantidade | E38: Unidade | F38: CÓDIGO TRANSPORTE
F39: LN | G39: RP | H39: P | I39: TIPO (P, RP ou LN) | J39: DMT ESTIMADA (km) | K39: QUANTITATIVO TOTAL DE TRANSPORTE (tkm)
A40: =IF(I40="P",H40,IF(I40="RP",G40,IF(I40="LN",F40,""))) -> 5914389 | B40: 4016096 | C40: Escavação e carga de material de jazida com escavadeira hidráulica de 1,56 m³ - Caminhão basculante 10 m³ | D40: 1.44411 | E40: tkm | F40: 5914359 | G40: 5914374 | H40: 5914389 | I40: P | J40: =E4 -> 80 | K40: =IF(ISBLANK(J40),"",J40*D40)*$I$34 -> 1698273.36
A41: =IF(I41="P",H41,IF(I41="RP",G41,IF(I41="LN",F41,""))) -> 5914389 | B41: M0191 | C41: Brita 1 - Caminhão basculante 10 m³ | D41: 0.6189 | E41: tkm | F41: 5914359 | G41: 5914374 | H41: 5914389 | I41: P | J41: =E4 -> 80 | K41: =IF(ISBLANK(J41),"",J41*D41)*$I$34 -> 727826.4
B42: Obs.
B44: SISTEMA DE CUSTOS REFERENCIAIS DE OBRAS - SICRO | E44: =$C$1 -> Pernambuco
B45: Custo Unitário de Referência | E45: =$E$1 -> 2023-11-01 | I45: Quantitativo | K45: m³
B46: 4011233 | C46: Sub-base estabilizada granulometricamente com mistura solo brita (70% - 30%) na pista com material de jazida e brita comercial | I46: =SUMIF('RESUMO MODULO TOTAL'!C:C,B46,'RESUMO MODULO TOTAL'!I:I) -> 14700
B47: D - ATIVIDADES AUXILIARES | D47: Quantidade | E47: Unidade
B48: 4016096 | C48: Escavação e carga de material de jazida com escavadeira hidráulica de 1,56 m³ | D48: 0.77019 | E48: m³
B50: F - MOMENTO DE TRANSPORTE | D50: Quantidade | E50: Unidade | F50: CÓDIGO TRANSPORTE
F51: LN | G51: RP | H51: P | I51: TIPO (P, RP ou LN) | J51: DMT ESTIMADA (km) | K51: QUANTITATIVO TOTAL DE TRANSPORTE (tkm)
A52: =IF(I52="P",H52,IF(I52="RP",G52,IF(I52="LN",F52,""))) -> 5914389 | B52: 4016096 | C52: Escavação e carga de material de jazida com escavadeira hidráulica de 1,56 m³ - Caminhão basculante 10 m³ | D52: 1.44411 | E52: tkm | F52: 5914359 | G52: 5914374 | H52: 5914389 | I52: P | J52: =E4 -> 80 | K52: =IF(ISBLANK(J52),"",J52*D52)*I46 -> 1698273.36
A53: =IF(I53="P",H53,IF(I53="RP",G53,IF(I53="LN",F53,""))) -> 5914389 | B53: M0191 | C53: Brita 1 - Caminhão basculante 10 m³ | D53: 0.6189 | E53: tkm | F53: 5914359 | G53: 5914374 | H53: 5914389 | I53: P | J53: =E4 -> 80 | K53: 758157.75
B54: Obs.
B56: SISTEMA DE CUSTOS REFERENCIAIS DE OBRAS - SICRO | E56: =$C$1 -> Pernambuco
B57: Custo Unitário de Referência | E57: =$E$1 -> 2023-11-01 | I57: Quantitativo | K57: m
B58: 2003373 | C58: Meio-fio de concreto - MFC 03 - areia e brita comerciais - fôrma de madeira | I58: =SUMIF('RESUMO MODULO TOTAL'!C:C,B58,'RESUMO MODULO TOTAL'!I:I) -> 0
B59: D - ATIVIDADES AUXILIARES | D59: Quantidade | E59: Unidade
B60: 1107892 | C60: Concreto fck = 20 MPa - confecção em betoneira e lançamento manual - areia e brita comerciais | D60: 0.042 | E60: m³
B61: 2003842 | C61: Enchimento de junta de concreto com argamassa asfáltica de densidade 1.700 kg/m³ - espessura de 1 cm | D61: 0.0595 | E61: kg
B62: 4805750 | C62: Escavação manual em material de 1ª categoria na profundidade de até 1 m | D62: 0.03 | E62: m³
B63: 3103302 | C63: Fôrmas de tábuas de pinho para dispositivos de drenagem - utilização de 3 vezes - confecção, instalação e retirada | D63: 0.0867 | E63: m²
B65: F - MOMENTO DE TRANSPORTE | D65: Quantidade | E65: Unidade | F65: CÓDIGO TRANSPORTE
F66: LN | G66: RP | H66: P | I66: TIPO (P, RP ou LN) | J66: DMT ESTIMADA (km) | K66: QUANTITATIVO TOTAL DE TRANSPORTE (tkm)

Sheet MOMENTO DE TRANSPORTE - AUX
B2: AUXILIAR | D2: 10
B3: RESUMO DO TRANSPORTE AUXILIAR
B4: CODIGO | C4: DESCRIÇÃO | D4: TKM
B5: 5914359 | C5: Transporte com caminhão basculante de 10 m³ - rodovia em leito natural | D5: =ROUND(SUMIF(A:A,B5,K:K),2) -> 0
B6: 5914374 | C6: Transporte com caminhão basculante de 10 m³ - rodovia em revestimento primário | D6: =ROUND(SUMIF(A:A,B6,K:K),2) -> 0
B7: 5914389 | C7: Transporte com caminhão basculante de 10 m³ - rodovia pavimentada | D7: 616996.61
B8: 5914449 | C8: Transporte com caminhão carroceria de 15 t - rodovia em leito natural | D8: 0
B9: 5914464 | C9: Transporte com caminhão carroceria de 15 t - rodovia em revestimento primário | D9: 0
B10: 5914479 | C10: Transporte com caminhão carroceria de 15 t - rodovia pavimentada | D10: 3665.18
B11: 5914364 | C11: Transporte de cimento ou cal hidratada a granel com caminhão silo de 30 m³ - rodovia em leito natural | D11: 0
B12: 5914365 | C12: Transporte de cimento ou cal hidratada a granel com caminhão silo de 30 m³ - rodovia em revestimento primário | D12: 0
B13: 5914366 | C13: Transporte de cimento ou cal hidratada a granel com caminhão silo de 30 m³ - rodovia pavimentada | D13: 53930.42
B15: SISTEMA DE CUSTOS REFERENCIAIS DE OBRAS - SICRO | E15: ='MOMENTO DE TRANSPORTE - PRINC'!$C$1 -> Pernambuco | I15: Quantitivo
B16: Custo Unitário de Referência | E16: ='MOMENTO DE TRANSPORTE - PRINC'!$E$1 -> 2023-11-01 | I16: (Coeficiente na composição principal) x (quantidade da principal no orçamento) | K16: t
B17: 6416078 | C17: Usinagem de concreto asfáltico - faixa C - areia e brita comerciais | I17: ='MOMENTO DE TRANSPORTE - PRINC'!D23*VLOOKUP(C26,'RESUMO MODULO TOTAL'!C:M,7,FALSE) -> 11995.2
B18: F - MOMENTO DE TRANSPORTE | D18: Quantidade | E18: Unidade | F18: DMT
F19: LN | G19: RP | H19: P | I19: TIPO (P, RP ou LN) | J19: DMT ESTIMADA (km) | K19: QUANTITATIVO TOTAL DE TRANSPORTE DE MATERIAL (tkm)
A20: =IF(I20="P",H20,IF(I20="RP",G20,IF(I20="LN",F20,""))) -> 5914389 | B20: M0028 | C20: Areia média - Caminhão basculante 10 m³ | D20: 0.48713 | E20: tkm | F20: 5914359 | G20: 5914374 | H20: 5914389 | I20: P | J20: ='MOMENTO DE TRANSPORTE - PRINC'!E4 -> 80 | K20: =IF(ISBLANK(J20),"",J20*(D20*$I$17)) -> 467457.7421
A21: =IF(I21="P",H21,IF(I21="RP",G21,IF(I21="LN",F21,""))) -> 5914389 | B21: M0005 | C21: Brita 0 - Caminhão basculante 10 m³ | D21: 0.09368 | E21: tkm | F21: 5914359 | G21: 5914374 | H21: 5914389 | I21: P | J21: =$D$2 -> 10 | K21: =IF(ISBLANK(J21),"",J21*(D21*$I$17)) -> 11237.1034
A22: 5914389 | B22: M0191 | C22: Brita 1 - Caminhão basculante 10 m³ | D22: 0.09368 | E22: tkm | F22: 5914359 | G22: 5914374 | H22: 5914389 | I22: P | J22: =$D$2 -> 10 | K22: 11237.1034
A23: 5914366 | B23: M0344 | C23: Cal hidratada - a granel - Caminhão silo 30 m³ | D23: 0.0562 | E23: tkm | F23: 5914364 | G23: 5914365 | H23: 5914366 | I23: P | J23: ='MOMENTO DE TRANSPORTE - PRINC'!E4 -> 80 | K23: 53930.4192
A24: 5914389 | B24: M1103 | C24: Pedrisco - Caminhão basculante 10 m³ | D24: 0.20609 | E24: tkm | F24: 5914359 | G24: 5914374 | H24: 5914389 | I24: P | J24: 10 | K24: 24720.9077
B26: PRINCIPAL: | C26: 4011463
B29: SISTEMA DE CUSTOS REFERENCIAIS DE OBRAS - SICRO | E29: ='MOMENTO DE TRANSPORTE - PRINC'!$C$1 -> Pernambuco | I29: Quantitivo
B30: Custo Unitário de Referência | E30: ='MOMENTO DE TRANSPORTE - PRINC'!$E$1 -> 2023-11-01 | I30: (Coeficiente na composição principal) x (quantidade da principal no orçamento) | K30: m³
B31: 1107892 | C31: Concreto fck = 20 MPa - confecção em betoneira e lançamento manual - areia e brita comerciais | I31: ='MOMENTO DE TRANSPORTE - PRINC'!D60*VLOOKUP(C40,'RESUMO MODULO TOTAL'!C:M,7,FALSE) -> 1176
B32: F - MOMENTO DE TRANSPORTE | D32: Quantidade | E32: Unidade | F32: DMT
F33: LN | G33: RP | H33: P | I33: TIPO (P, RP ou LN) | J33: DMT ESTIMADA (km) | K33: QUANTITATIVO TOTAL DE TRANSPORTE DE MATERIAL (tkm)
A34: =IF(I34="P",H34,IF(I34="RP",G34,IF(I34="LN",F34,""))) -> 5914479 | B34: M0030 | C34: Aditivo plastificante e retardador de pega para concreto e argamassa - Caminhão carroceria 15 t | D34: 0.00085 | E34: tkm | F34: 5914449 | G34: 5914464 | H34: 5914479 | I34: P | J34: =$D$2 -> 10 | K34: =IF(ISBLANK(J34),"",J34*(D34*$I$31)) -> 9.996
A35: =IF(I35="P",H35,IF(I35="RP",G35,IF(I35="LN",F35,""))) -> 5914389 | B35: M0082 | C35: Areia média lavada - Caminhão basculante 10 m³ | D35: 0.95001 | E35: tkm | F35: 5914359 | G35: 5914374 | H35: 5914389 | I35: P | J35: =J20 -> 80 | K35: =IF(ISBLANK(J35),"",J35*(D35*$I$31)) -> 89376.9408
A36: 5914389 | B36: M0191 | C36: Brita 1 - Caminhão basculante 10 m³ | D36: 0.55131 | E36: tkm | F36: 5914359 | G36: 5914374 | H36: 5914389 | I36: P | J36: =$D$2 -> 10 | K36: =IF(ISBLANK(J36),"",J36*(D36*$I$31)) -> 6483.4056
A37: 5914389 | B37: M0192 | C37: Brita 2 - Caminhão basculante 10 m³ | D37: 0.55131 | E37: tkm | F37: 5914359 | G37: 5914374 | H37: 5914389 | I37: P | J37: 10 | K37: =IF(ISBLANK(J37),"",J37*(D37*$I$31)) -> 6483.4056
A38: 5914479 | B38: M0424 | C38: Cimento Portland CP II - 32 - saco - Caminhão carroceria 15 t | D38: 0.28215 | E38: tkm | F38: 5914449 | G38: 5914464 | H38: 5914479 | I38: P | J38: 10 | K38: =IF(ISBLANK(J38),"",J38*(D38*$I$31)) -> 3318.084
B40: PRINCIPAL: | C40: 2003377
B42: SISTEMA DE CUSTOS REFERENCIAIS DE OBRAS - SICRO | E42: ='MOMENTO DE TRANSPORTE - PRINC'!$C$1 -> Pernambuco | I42: Quantitivo
B43: Custo Unitário de Referência | E43: ='MOMENTO DE TRANSPORTE - PRINC'!$E$1 -> 2023-11-01 | I43: (Coeficiente na composição principal) x (quantidade da principal no orçamento) | K43: kg
B44: 2003842 | C44: Enchimento de junta de concreto com argamassa asfáltica de densidade 1.700 kg/m³ - espessura de 1 cm | I44: ='MOMENTO DE TRANSPORTE - PRINC'!D61*VLOOKUP(C49,'RESUMO MODULO TOTAL'!C:M,7,FALSE) -> 1666
B45: F - MOMENTO DE TRANSPORTE | D45: Quantidade | E45: Unidade | F45: DMT
F46: LN | G46: RP | H46: P | I46: TIPO (P, RP ou LN) | J46: DMT ESTIMADA (km) | K46: QUANTITATIVO TOTAL DE TRANSPORTE DE MATERIAL (tkm)
A47: =IF(I47="P",H47,IF(I47="RP",G47,IF(I47="LN",F47,""))) -> 5914479 | B47: M2158 | C47: Argamassa asfáltica - Caminhão carroceria com capacidade de 15 t - 188 Kw | D47: 0.001 | E47: tkm | F47: 5914449 | G47: 5914464 | H47: 5914479 | I47: P | J47: =$D$2 -> 10 | K47: =IF(ISBLANK(J47),"",J47*(D47*$I$44)) -> 16.66
B49: PRINCIPAL: | C49: 2003377
B51: SISTEMA DE CUSTOS REFERENCIAIS DE OBRAS - SICRO | E51: ='MOMENTO DE TRANSPORTE - PRINC'!$C$1 -> Pernambuco | I51: Quantitivo
B52: Custo Unitário de Referência | E52: ='MOMENTO DE TRANSPORTE - PRINC'!$E$1 -> 2023-11-01 | I52: (Coeficiente na composição principal) x (quantidade da principal no orçamento) | K52: m²
B53: 3103302 | C53: Fôrmas de tábuas de pinho para dispositivos de drenagem - utilização de 3 vezes - confecção, instalação e retirada | I53: ='MOMENTO DE TRANSPORTE - PRINC'!D63*VLOOKUP(C61,'RESUMO MODULO TOTAL'!C:M,7,FALSE) -> 2427.6
B54: F - MOMENTO DE TRANSPORTE | D54: Quantidade | E54: Unidade | F54: DMT
F55: LN | G55: RP | H55: P | I55: TIPO (P, RP ou LN) | J55: DMT ESTIMADA (km) | K55: QUANTITATIVO TOTAL DE TRANSPORTE DE MATERIAL (tkm)
A56: =IF(I56="P",H56,IF(I56="RP",G56,IF(I56="LN",F56,""))) -> 5914479 | B56: M0560 | C56: Desmoldante para fôrmas de madeira - Caminhão carroceria com capacidade de 15 t - 188 Kw | D56: 2e-05 | E56: tkm | F56: 5914449 | G56: 5914464 | H56: 5914479 | I56: P | J56: =$D$2 -> 10 | K56: =IF(ISBLANK(J56),"",J56*(D56*$I$53)) -> 0.4855
A57: =IF(I57="P",H57,IF(I57="RP",G57,IF(I57="LN",F57,""))) -> 5914479 | B57: M1205 | C57: Prego de ferro - Caminhão carroceria com capacidade de 15 t - 188 kW | D57: 3e-05 | E57: tkm | F57: 5914449 | G57: 5914464 | H57: 5914479 | I57: P | J57: =$D$2 -> 10 | K57: =IF(ISBLANK(J57),"",J57*(D57*$I$53)) -> 0.7283
A58: 5914479 | B58: M0290 | C58: Tábua - E = 2,5 cm e L = 10 cm - Caminhão carroceria com capacidade de 15 t - 188 kW | D58: 0.00304 | E58: tkm | F58: 5914449 | G58: 5914464 | H58: 5914479 | I58: P | J58: =$D$2 -> 10 | K58: 73.799
A59: 5914479 | B59: M1429 | C59: Tábua de pinho de terceira - E = 2,5 cm - Caminhão carroceria com capacidade de 15 t - 188 kW | D59: 0.01011 | E59: tkm | F59: 5914449 | G59: 5914464 | H59: 5914479 | I59: P | J59: 10 | K59: 245.4304
B61: PRINCIPAL: | C61: 2003377
A63: =IF(I63="P",H63,IF(I63="RP",G63,IF(I63="LN",F63,""))) -> 

Sheet ANP ESTADO
A1: Agência Nacional do Petróleo, Gás Natural e Biocombustíveis
A2: Superintendência de Defesa da Concorrência
A5: PREÇO MÉDIO MENSAL PONDERADO PRATICADO PELOS DISTRIBUIDORES DE PRODUTOS ASFÁLTICOS (R$/KG)
A7: Importante: | B7: Quando não houver declaração de venda do produto selecionado, ou quando a declaração de venda do produto ocorrer por menos de 03 (três) distribuidoras, a tabela indicará campo vazio.
A8: Mês | B8: Produto | C8: Estado | D8: Preço
A9: 2013-01-01 | B9: ASFALTOS DILUÍDOS CM-30 | C9: Acre | D9: -
A10: 2013-01-01 | B10: ASFALTOS DILUÍDOS CM-30 | C10: Alagoas | D10: -
A11: 2013-01-01 | B11: ASFALTOS DILUÍDOS CM-30 | C11: Amapá | D11: -
A12: 2013-01-01 | B12: ASFALTOS DILUÍDOS CM-30 | C12: Amazonas | D12: 1.45353
A13: 2013-01-01 | B13: ASFALTOS DILUÍDOS CM-30 | C13: Bahia | D13: 1.46404
A14: 2013-01-01 | B14: ASFALTOS DILUÍDOS CM-30 | C14: Ceará | D14: 1.448
A15: 2013-01-01 | B15: ASFALTOS DILUÍDOS CM-30 | C15: Distrito Federal | D15: -
A16: 2013-01-01 | B16: ASFALTOS DILUÍDOS CM-30 | C16: Espírito Santo | D16: -
A17: 2013-01-01 | B17: ASFALTOS DILUÍDOS CM-30 | C17: Goiás | D17: 1.68638
A18: 2013-01-01 | B18: ASFALTOS DILUÍDOS CM-30 | C18: Maranhão | D18: -
A19: 2013-01-01 | B19: ASFALTOS DILUÍDOS CM-30 | C19: Mato Grosso | D19: -
A20: 2013-01-01 | B20: ASFALTOS DILUÍDOS CM-30 | C20: Mato Grosso do Sul | D20: -
A21: 2013-01-01 | B21: ASFALTOS DILUÍDOS CM-30 | C21: Minas Gerais | D21: 1.45111
A22: 2013-01-01 | B22: ASFALTOS DILUÍDOS CM-30 | C22: Pará | D22: -
A23: 2013-01-01 | B23: ASFALTOS DILUÍDOS CM-30 | C23: Paraíba | D23: -
A24: 2013-01-01 | B24: ASFALTOS DILUÍDOS CM-30 | C24: Paraná | D24: 1.52013
A25: 2013-01-01 | B25: ASFALTOS DILUÍDOS CM-30 | C25: Pernambuco | D25: -
A26: 2013-01-01 | B26: ASFALTOS DILUÍDOS CM-30 | C26: Piauí | D26: -
A27: 2013-01-01 | B27: ASFALTOS DILUÍDOS CM-30 | C27: Rio de Janeiro | D27: 1.33048
A28: 2013-01-01 | B28: ASFALTOS DILUÍDOS CM-30 | C28: Rio Grande do Norte | D28: -
A29: 2013-01-01 | B29: ASFALTOS DILUÍDOS CM-30 | C29: Rio Grande do Sul | D29: 1.59861
A30: 2013-01-01 | B30: ASFALTOS DILUÍDOS CM-30 | C30: Rondônia | D30: -
A31: 2013-01-01 | B31: ASFALTOS DILUÍDOS CM-30 | C31: Roraima | D31: -
A32: 2013-01-01 | B32: ASFALTOS DILUÍDOS CM-30 | C32: Santa Catarina | D32: -
A33: 2013-01-01 | B33: ASFALTOS DILUÍDOS CM-30 | C33: São Paulo | D33: 1.47101
A34: 2013-01-01 | B34: ASFALTOS DILUÍDOS CM-30 | C34: Sergipe | D34: -
A35: 2013-01-01 | B35: ASFALTOS DILUÍDOS CM-30 | C35: Tocantins | D35: -
A36: 2013-02-01 | B36: ASFALTOS DILUÍDOS CM-30 | C36: Acre | D36: -
A37: 2013-02-01 | B37: ASFALTOS DILUÍDOS CM-30 | C37: Alagoas | D37: -
A38: 2013-02-01 | B38: ASFALTOS DILUÍDOS CM-30 | C38: Amapá | D38: -
A39: 2013-02-01 | B39: ASFALTOS DILUÍDOS CM-30 | C39: Amazonas | D39: 1.48558
A40: 2013-02-01 | B40: ASFALTOS DILUÍDOS CM-30 | C40: Bahia | D40: 1.45701
A41: 2013-02-01 | B41: ASFALTOS DILUÍDOS CM-30 | C41: Ceará | D41: 1.41319
A42: 2013-02-01 | B42: ASFALTOS DILUÍDOS CM-30 | C42: Distrito Federal | D42: -
A43: 2013-02-01 | B43: ASFALTOS DILUÍDOS CM-30 | C43: Espírito Santo | D43: -
A44: 2013-02-01 | B44: ASFALTOS DILUÍDOS CM-30 | C44: Goiás | D44: 1.66746
A45: 2013-02-01 | B45: ASFALTOS DILUÍDOS CM-30 | C45: Maranhão | D45: -
A46: 2013-02-01 | B46: ASFALTOS DILUÍDOS CM-30 | C46: Mato Grosso | D46: -
A47: 2013-02-01 | B47: ASFALTOS DILUÍDOS CM-30 | C47: Mato Grosso do Sul | D47: -
A48: 2013-02-01 | B48: ASFALTOS DILUÍDOS CM-30 | C48: Minas Gerais | D48: 1.45212
A49: 2013-02-01 | B49: ASFALTOS DILUÍDOS CM-30 | C49: Pará | D49: -
A50: 2013-02-01 | B50: ASFALTOS DILUÍDOS CM-30 | C50: Paraíba | D50: -
A51: 2013-02-01 | B51: ASFALTOS DILUÍDOS CM-30 | C51: Paraná | D51: 1.49378
A52: 2013-02-01 | B52: ASFALTOS DILUÍDOS CM-30 | C52: Pernambuco | D52: -
A53: 2013-02-01 | B53: ASFALTOS DILUÍDOS CM-30 | C53: Piauí | D53: -
A54: 2013-02-01 | B54: ASFALTOS DILUÍDOS CM-30 | C54: Rio de Janeiro | D54: 1.41823
A55: 2013-02-01 | B55: ASFALTOS DILUÍDOS CM-30 | C55: Rio Grande do Norte | D55: -
A56: 2013-02-01 | B56: ASFALTOS DILUÍDOS CM-30 | C56: Rio Grande do Sul | D56: 1.43586
A57: 2013-02-01 | B57: ASFALTOS DILUÍDOS CM-30 | C57: Rondônia | D57: -
A58: 2013-02-01 | B58: ASFALTOS DILUÍDOS CM-30 | C58: Roraima | D58: -
A59: 2013-02-01 | B59: ASFALTOS DILUÍDOS CM-30 | C59: Santa Catarina | D59: -
A60: 2013-02-01 | B60: ASFALTOS DILUÍDOS CM-30 | C60: São Paulo | D60: 1.43419
A61: 2013-02-01 | B61: ASFALTOS DILUÍDOS CM-30 | C61: Sergipe | D61: -
A62: 2013-02-01 | B62: ASFALTOS DILUÍDOS CM-30 | C62: Tocantins | D62: -
A63: 2013-03-01 | B63: ASFALTOS DILUÍDOS CM-30 | C63: Acre | D63: -
A64: 2013-03-01 | B64: ASFALTOS DILUÍDOS CM-30 | C64: Alagoas | D64: -
A65: 2013-03-01 | B65: ASFALTOS DILUÍDOS CM-30 | C65: Amapá | D65: -
A66: 2013-03-01 | B66: ASFALTOS DILUÍDOS CM-30 | C66: Amazonas | D66: 1.50792
A67: 2013-03-01 | B67: ASFALTOS DILUÍDOS CM-30 | C67: Bahia | D67: 1.44944
A68: 2013-03-01 | B68: ASFALTOS DILUÍDOS CM-30 | C68: Ceará | D68: 1.40161
A69: 2013-03-01 | B69: ASFALTOS DILUÍDOS CM-30 | C69: Distrito Federal | D69: -
A70: 2013-03-01 | B70: ASFALTOS DILUÍDOS CM-30 | C70: Espírito Santo | D70: -
A71: 2013-03-01 | B71: ASFALTOS DILUÍDOS CM-30 | C71: Goiás | D71: 1.66176
A72: 2013-03-01 | B72: ASFALTOS DILUÍDOS CM-30 | C72: Maranhão | D72: -
A73: 2013-03-01 | B73: ASFALTOS DILUÍDOS CM-30 | C73: Mato Grosso | D73: -
A74: 2013-03-01 | B74: ASFALTOS DILUÍDOS CM-30 | C74: Mato Grosso do Sul | D74: -
A75: 2013-03-01 | B75: ASFALTOS DILUÍDOS CM-30 | C75: Minas Gerais | D75: 1.44324
A76: 2013-03-01 | B76: ASFALTOS DILUÍDOS CM-30 | C76: Pará | D76: -
A77: 2013-03-01 | B77: ASFALTOS DILUÍDOS CM-30 | C77: Paraíba | D77: -
A78: 2013-03-01 | B78: ASFALTOS DILUÍDOS CM-30 | C78: Paraná | D78: 1.469
A79: 2013-03-01 | B79: ASFALTOS DILUÍDOS CM-30 | C79: Pernambuco | D79: -
A80: 2013-03-01 | B80: ASFALTOS DILUÍDOS CM-30 | C80: Piauí | D80: -
A81: 2013-03-01 | B81: ASFALTOS DILUÍDOS CM-30 | C81: Rio de Janeiro | D81: 1.43806
A82: 2013-03-01 | B82: ASFALTOS DILUÍDOS CM-30 | C82: Rio Grande do Norte | D82: -
A83: 2013-03-01 | B83: ASFALTOS DILUÍDOS CM-30 | C83: Rio Grande do Sul | D83: 1.58143
A84: 2013-03-01 | B84: ASFALTOS DILUÍDOS CM-30 | C84: Rondônia | D84: -
A85: 2013-03-01 | B85: ASFALTOS DILUÍDOS CM-30 | C85: Roraima | D85: -
A86: 2013-03-01 | B86: ASFALTOS DILUÍDOS CM-30 | C86: Santa Catarina | D86: -
A87: 2013-03-01 | B87: ASFALTOS DILUÍDOS CM-30 | C87: São Paulo | D87: 1.46606
A88: 2013-03-01 | B88: ASFALTOS DILUÍDOS CM-30 | C88: Sergipe | D88: -
A89: 2013-03-01 | B89: ASFALTOS DILUÍDOS CM-30 | C89: Tocantins | D89: -
A90: 2013-04-01 | B90: ASFALTOS DILUÍDOS CM-30 | C90: Acre | D90: -
A91: 2013-04-01 | B91: ASFALTOS DILUÍDOS CM-30 | C91: Alagoas | D91: -
A92: 2013-04-01 | B92: ASFALTOS DILUÍDOS CM-30 | C92: Amapá | D92: -
A93: 2013-04-01 | B93: ASFALTOS DILUÍDOS CM-30 | C93: Amazonas | D93: 1.4848
A94: 2013-04-01 | B94: ASFALTOS DILUÍDOS CM-30 | C94: Bahia | D94: 1.45484
A95: 2013-04-01 | B95: ASFALTOS DILUÍDOS CM-30 | C95: Ceará | D95: 1.38707
A96: 2013-04-01 | B96: ASFALTOS DILUÍDOS CM-30 | C96: Distrito Federal | D96: -
A97: 2013-04-01 | B97: ASFALTOS DILUÍDOS CM-30 | C97: Espírito Santo | D97: -
A98: 2013-04-01 | B98: ASFALTOS DILUÍDOS CM-30 | C98: Goiás | D98: 1.67348
A99: 2013-04-01 | B99: ASFALTOS DILUÍDOS CM-30 | C99: Maranhão | D99: -
A100: 2013-04-01 | B100: ASFALTOS DILUÍDOS CM-30 | C100: Mato Grosso | D100: 1.92194
A101: 2013-04-01 | B101: ASFALTOS DILUÍDOS CM-30 | C101: Mato Grosso do Sul | D101: -
A102: 2013-04-01 | B102: ASFALTOS DILUÍDOS CM-30 | C102: Minas Gerais | D102: 1.45656
A103: 2013-04-01 | B103: ASFALTOS DILUÍDOS CM-30 | C103: Pará | D103: -
A104: 2013-04-01 | B104: ASFALTOS DILUÍDOS CM-30 | C104: Paraíba | D104: -
A105: 2013-04-01 | B105: ASFALTOS DILUÍDOS CM-30 | C105: Paraná | D105: 1.53442
A106: 2013-04-01 | B106: ASFALTOS DILUÍDOS CM-30 | C106: Pernambuco | D106: -
A107: 2013-04-01 | B107: ASFALTOS DILUÍDOS CM-30 | C107: Piauí | D107: -
A108: 2013-04-01 | B108: ASFALTOS DILUÍDOS CM-30 | C108: Rio de Janeiro | D108: 1.41842
A109: 2013-04-01 | B109: ASFALTOS DILUÍDOS CM-30 | C109: Rio Grande do Norte | D109: -
A110: 2013-04-01 | B110: ASFALTOS DILUÍDOS CM-30 | C110: Rio Grande do Sul | D110: 1.57258
A111: 2013-04-01 | B111: ASFALTOS DILUÍDOS CM-30 | C111: Rondônia | D111: -
A112: 2013-04-01 | B112: ASFALTOS DILUÍDOS CM-30 | C112: Roraima | D112: -
A113: 2013-04-01 | B113: ASFALTOS DILUÍDOS CM-30 | C113: Santa Catarina | D113: -
A114: 2013-04-01 | B114: ASFALTOS DILUÍDOS CM-30 | C114: São Paulo | D114: 1.47576
A115: 2013-04-01 | B115: ASFALTOS DILUÍDOS CM-30 | C115: Sergipe | D115: -
A116: 2013-04-01 | B116: ASFALTOS DILUÍDOS CM-30 | C116: Tocantins | D116: -
A117: 2013-05-01 | B117: ASFALTOS DILUÍDOS CM-30 | C117: Acre | D117: -
A118: 2013-05-01 | B118: ASFALTOS DILUÍDOS CM-30 | C118: Alagoas | D118: -
A119: 2013-05-01 | B119: ASFALTOS DILUÍDOS CM-30 | C119: Amapá | D119: -
A120: 2013-05-01 | B120: ASFALTOS DILUÍDOS CM-30 | C120: Amazonas | D120: -
A121: 2013-05-01 | B121: ASFALTOS DILUÍDOS CM-30 | C121: Bahia | D121: 1.49259
A122: 2013-05-01 | B122: ASFALTOS DILUÍDOS CM-30 | C122: Ceará | D122: 1.37626
A123: 2013-05-01 | B123: ASFALTOS DILUÍDOS CM-30 | C123: Distrito Federal | D123: -
A124: 2013-05-01 | B124: ASFALTOS DILUÍDOS CM-30 | C124: Espírito Santo | D124: -
A125: 2013-05-01 | B125: ASFALTOS DILUÍDOS CM-30 | C125: Goiás | D125: 1.66821
A126: 2013-05-01 | B126: ASFALTOS DILUÍDOS CM-30 | C126: Maranhão | D126: -
A127: 2013-05-01 | B127: ASFALTOS DILUÍDOS CM-30 | C127: Mato Grosso | D127: 1.9031
A128: 2013-05-01 | B128: ASFALTOS DILUÍDOS CM-30 | C128: Mato Grosso do Sul | D128: -
A129: 2013-05-01 | B129: ASFALTOS DILUÍDOS CM-30 | C129: Minas Gerais | D129: 1.46471
A130: 2013-05-01 | B130: ASFALTOS DILUÍDOS CM-30 | C130: Pará | D130: -
A131: 2013-05-01 | B131: ASFALTOS DILUÍDOS CM-30 | C131: Paraíba | D131: -
A132: 2013-05-01 | B132: ASFALTOS DILUÍDOS CM-30 | C132: Paraná | D132: 1.48903
A133: 2013-05-01 | B133: ASFALTOS DILUÍDOS CM-30 | C133: Pernambuco | D133: -
A134: 2013-05-01 | B134: ASFALTOS DILUÍDOS CM-30 | C134: Piauí | D134: -
A135: 2013-05-01 | B135: ASFALTOS DILUÍDOS CM-30 | C135: Rio de Janeiro | D135: 1.39926
A136: 2013-05-01 | B136: ASFALTOS DILUÍDOS CM-30 | C136: Rio Grande do Norte | D136: -
A137: 2013-05-01 | B137: ASFALTOS DILUÍDOS CM-30 | C137: Rio Grande do Sul | D137: 1.53964
A138: 2013-05-01 | B138: ASFALTOS DILUÍDOS CM-30 | C138: Rondônia | D138: -
A139: 2013-05-01 | B139: ASFALTOS DILUÍDOS CM-30 | C139: Roraima | D139: -
A140: 2013-05-01 | B140: ASFALTOS DILUÍDOS CM-30 | C140: Santa Catarina | D140: -
A141: 2013-05-01 | B141: ASFALTOS DILUÍDOS CM-30 | C141: São Paulo | D141: 1.45122
A142: 2013-05-01 | B142: ASFALTOS DILUÍDOS CM-30 | C142: Sergipe | D142: -
A143: 2013-05-01 | B143: ASFALTOS DILUÍDOS CM-30 | C143: Tocantins | D143: -
A144: 2013-06-01 | B144: ASFALTOS DILUÍDOS CM-30 | C144: Acre | D144: -
A145: 2013-06-01 | B145: ASFALTOS DILUÍDOS CM-30 | C145: Alagoas | D145: -
A146: 2013-06-01 | B146: ASFALTOS DILUÍDOS CM-30 | C146: Amapá | D146: -
A147: 2013-06-01 | B147: ASFALTOS DILUÍDOS CM-30 | C147: Amazonas | D147: 1.58633
A148: 2013-06-01 | B148: ASFALTOS DILUÍDOS CM-30 | C148: Bahia | D148: 1.44813
A149: 2013-06-01 | B149: ASFALTOS DILUÍDOS CM-30 | C149: Ceará | D149: 1.3827
A150: 2013-06-01 | B150: ASFALTOS DILUÍDOS CM-30 | C150: Distrito Federal | D150: -
A151: 2013-06-01 | B151: ASFALTOS DILUÍDOS CM-30 | C151: Espírito Santo | D151: -
A152: 2013-06-01 | B152: ASFALTOS DILUÍDOS CM-30 | C152: Goiás | D152: 1.69961
A153: 2013-06-01 | B153: ASFALTOS DILUÍDOS CM-30 | C153: Maranhão | D153: -
A154: 2013-06-01 | B154: ASFALTOS DILUÍDOS CM-30 | C154: Mato Grosso | D154: 1.91598
A155: 2013-06-01 | B155: ASFALTOS DILUÍDOS CM-30 | C155: Mato Grosso do Sul | D155: -
A156: 2013-06-01 | B156: ASFALTOS DILUÍDOS CM-30 | C156: Minas Gerais | D156: 1.47537
A157: 2013-06-01 | B157: ASFALTOS DILUÍDOS CM-30 | C157: Pará | D157: -
A158: 2013-06-01 | B158: ASFALTOS DILUÍDOS CM-30 | C158: Paraíba | D158: -
A159: 2013-06-01 | B159: ASFALTOS DILUÍDOS CM-30 | C159: Paraná | D159: 1.43217
A160: 2013-06-01 | B160: ASFALTOS DILUÍDOS CM-30 | C160: Pernambuco | D160: -
A161: 2013-06-01 | B161: ASFALTOS DILUÍDOS CM-30 | C161: Piauí | D161: -
A162: 2013-06-01 | B162: ASFALTOS DILUÍDOS CM-30 | C162: Rio de Janeiro | D162: 1.52742
A163: 2013-06-01 | B163: ASFALTOS DILUÍDOS CM-30 | C163: Rio Grande do Norte | D163: -
A164: 2013-06-01 | B164: ASFALTOS DILUÍDOS CM-30 | C164: Rio Grande do Sul | D164: 1.59868
A165: 2013-06-01 | B165: ASFALTOS DILUÍDOS CM-30 | C165: Rondônia | D165: -
A166: 2013-06-01 | B166: ASFALTOS DILUÍDOS CM-30 | C166: Roraima | D166: -
A167: 2013-06-01 | B167: ASFALTOS DILUÍDOS CM-30 | C167: Santa Catarina | D167: -
A168: 2013-06-01 | B168: ASFALTOS DILUÍDOS CM-30 | C168: São Paulo | D168: 1.43275
A169: 2013-06-01 | B169: ASFALTOS DILUÍDOS CM-30 | C169: Sergipe | D169: -
A170: 2013-06-01 | B170: ASFALTOS DILUÍDOS CM-30 | C170: Tocantins | D170: -
A171: 2013-07-01 | B171: ASFALTOS DILUÍDOS CM-30 | C171: Acre | D171: -
A172: 2013-07-01 | B172: ASFALTOS DILUÍDOS CM-30 | C172: Alagoas | D172: -
A173: 2013-07-01 | B173: ASFALTOS DILUÍDOS CM-30 | C173: Amapá | D173: -
A174: 2013-07-01 | B174: ASFALTOS DILUÍDOS CM-30 | C174: Amazonas | D174: 1.50989
A175: 2013-07-01 | B175: ASFALTOS DILUÍDOS CM-30 | C175: Bahia | D175: 1.43615
A176: 2013-07-01 | B176: ASFALTOS DILUÍDOS CM-30 | C176: Ceará | D176: 1.42484
A177: 2013-07-01 | B177: ASFALTOS DILUÍDOS CM-30 | C177: Distrito Federal | D177: -
A178: 2013-07-01 | B178: ASFALTOS DILUÍDOS CM-30 | C178: Espírito Santo | D178: -
A179: 2013-07-01 | B179: ASFALTOS DILUÍDOS CM-30 | C179: Goiás | D179: 1.66378
A180: 2013-07-01 | B180: ASFALTOS DILUÍDOS CM-30 | C180: Maranhão | D180: -
A181: 2013-07-01 | B181: ASFALTOS DILUÍDOS CM-30 | C181: Mato Grosso | D181: 1.93059
A182: 2013-07-01 | B182: ASFALTOS DILUÍDOS CM-30 | C182: Mato Grosso do Sul | D182: -
A183: 2013-07-01 | B183: ASFALTOS DILUÍDOS CM-30 | C183: Minas Gerais | D183: 1.47657
A184: 2013-07-01 | B184: ASFALTOS DILUÍDOS CM-30 | C184: Pará | D184: -
A185: 2013-07-01 | B185: ASFALTOS DILUÍDOS CM-30 | C185: Paraíba | D185: -
A186: 2013-07-01 | B186: ASFALTOS DILUÍDOS CM-30 | C186: Paraná | D186: 1.47717
A187: 2013-07-01 | B187: ASFALTOS DILUÍDOS CM-30 | C187: Pernambuco | D187: -
A188: 2013-07-01 | B188: ASFALTOS DILUÍDOS CM-30 | C188: Piauí | D188: -
A189: 2013-07-01 | B189: ASFALTOS DILUÍDOS CM-30 | C189: Rio de Janeiro | D189: 1.58446
A190: 2013-07-01 | B190: ASFALTOS DILUÍDOS CM-30 | C190: Rio Grande do Norte | D190: -
A191: 2013-07-01 | B191: ASFALTOS DILUÍDOS CM-30 | C191: Rio Grande do Sul | D191: 1.61249
A192: 2013-07-01 | B192: ASFALTOS DILUÍDOS CM-30 | C192: Rondônia | D192: -
A193: 2013-07-01 | B193: ASFALTOS DILUÍDOS CM-30 | C193: Roraima | D193: -
A194: 2013-07-01 | B194: ASFALTOS DILUÍDOS CM-30 | C194: Santa Catarina | D194: -
A195: 2013-07-01 | B195: ASFALTOS DILUÍDOS CM-30 | C195: São Paulo | D195: 1.50784
A196: 2013-07-01 | B196: ASFALTOS DILUÍDOS CM-30 | C196: Sergipe | D196: -
A197: 2013-07-01 | B197: ASFALTOS DILUÍDOS CM-30 | C197: Tocantins | D197: -
A198: 2013-08-01 | B198: ASFALTOS DILUÍDOS CM-30 | C198: Acre | D198: -
A199: 2013-08-01 | B199: ASFALTOS DILUÍDOS CM-30 | C199: Alagoas | D199: -
A200: 2013-08-01 | B200: ASFALTOS DILUÍDOS CM-30 | C200: Amapá | D200: -
A201: 2013-08-01 | B201: ASFALTOS DILUÍDOS CM-30 | C201: Amazonas | D201: 1.50928
A202: 2013-08-01 | B202: ASFALTOS DILUÍDOS CM-30 | C202: Bahia | D202: 1.4167
A203: 2013-08-01 | B203: ASFALTOS DILUÍDOS CM-30 | C203: Ceará | D203: 1.4474
... 4297 more rows

Sheet ANP REGIÃO
A1: Agência Nacional do Petróleo, Gás Natural e Biocombustíveis
A2: Superintendência de Defesa da Concorrência
A6: PREÇO MÉDIO MENSAL PONDERADO PRATICADO PELOS DISTRIBUIDORES DE PRODUTOS ASFÁLTICOS (R$/KG)
A8: Produto | B8: Mês | C8: Norte | D8: Nordeste | E8: Centro-Oeste | F8: Sudeste | G8: Sul | H8: Brasil
A9: ASFALTOS DILUÍDOS CM-30 | B9: 2008-11-01 | C9: 1.77547 | D9: 1.55088 | E9: 2.02214 | F9: 1.55449 | G9: 1.58453 | H9: 1.64287
A10: ASFALTOS DILUÍDOS CM-30 | B10: 2008-12-01 | C10: 1.80684 | D10: 1.50912 | E10: 2.01302 | F10: 1.6109 | G10: 1.60719 | H10: 1.63758
A11: ASFALTOS DILUÍDOS CM-30 | B11: 2009-01-01 | C11: 1.49705 | D11: 1.5043 | E11: 1.9631 | F11: 1.52467 | G11: 1.58514 | H11: 1.56495
A12: ASFALTOS DILUÍDOS CM-30 | B12: 2009-02-01 | C12: 1.42787 | D12: 1.49769 | E12: 1.98107 | F12: 1.58349 | G12: 1.59592 | H12: 1.56545
A13: ASFALTOS DILUÍDOS CM-30 | B13: 2009-03-01 | C13: 1.40494 | D13: 1.49765 | E13: 1.89343 | F13: 1.52755 | G13: 1.58872 | H13: 1.53271
A14: ASFALTOS DILUÍDOS CM-30 | B14: 2009-04-01 | C14: 1.41051 | D14: 1.48483 | E14: 1.90923 | F14: 1.46415 | G14: 1.55383 | H14: 1.51672
A15: ASFALTOS DILUÍDOS CM-30 | B15: 2009-05-01 | C15: 1.48036 | D15: 1.4669 | E15: 1.89159 | F15: 1.43544 | G15: 1.54161 | H15: 1.53757
A16: ASFALTOS DILUÍDOS CM-30 | B16: 2009-06-01 | C16: 1.58075 | D16: 1.44489 | E16: 1.84207 | F16: 1.42426 | G16: 1.50153 | H16: 1.54132
A17: ASFALTOS DILUÍDOS CM-30 | B17: 2009-07-01 | C17: 1.90543 | D17: 1.48262 | E17: 1.94905 | F17: 1.58444 | G17: 1.61031 | H17: 1.65103
A18: ASFALTOS DILUÍDOS CM-30 | B18: 2009-08-01 | C18: 1.717 | D18: 1.42385 | E18: 1.71239 | F18: 1.418 | G18: 1.52064 | H18: 1.50491
A19: ASFALTOS DILUÍDOS CM-30 | B19: 2009-09-01 | C19: 1.64329 | D19: 1.44532 | E19: 1.73152 | F19: 1.41937 | G19: 1.50074 | H19: 1.50552
A20: ASFALTOS DILUÍDOS CM-30 | B20: 2009-10-01 | C20: 1.58803 | D20: 1.45893 | E20: 1.76202 | F20: 1.42902 | G20: 1.51375 | H20: 1.51168
A21: ASFALTOS DILUÍDOS CM-30 | B21: 2009-11-01 | C21: 1.63935 | D21: 1.44906 | E21: 1.77265 | F21: 1.43412 | G21: 1.52604 | H21: 1.49966
A22: ASFALTOS DILUÍDOS CM-30 | B22: 2009-12-01 | C22: 1.66427 | D22: 1.44197 | E22: 1.89057 | F22: 1.42908 | G22: 1.52054 | H22: 1.50886
A23: ASFALTOS DILUÍDOS CM-30 | B23: 2010-01-01 | C23: 1.84251 | D23: 1.45498 | E23: 1.86502 | F23: 1.41482 | G23: 1.47445 | H23: 1.49774
A24: ASFALTOS DILUÍDOS CM-30 | B24: 2010-02-01 | C24: 1.70989 | D24: 1.44296 | E24: 1.91984 | F24: 1.43315 | G24: 1.50088 | H24: 1.49654
A25: ASFALTOS DILUÍDOS CM-30 | B25: 2010-03-01 | C25: 1.53574 | D25: 1.44888 | E25: 1.93506 | F25: 1.43503 | G25: 1.48062 | H25: 1.48679
A26: ASFALTOS DILUÍDOS CM-30 | B26: 2010-04-01 | C26: 1.71005 | D26: 1.4403 | E26: 1.91194 | F26: 1.4211 | G26: 1.48127 | H26: 1.51109
A27: ASFALTOS DILUÍDOS CM-30 | B27: 2010-05-01 | C27: 1.75561 | D27: 1.43528 | E27: 1.87329 | F27: 1.40694 | G27: 1.48178 | H27: 1.53717
A28: ASFALTOS DILUÍDOS CM-30 | B28: 2010-06-01 | C28: 1.60222 | D28: 1.396 | E28: 1.73173 | F28: 1.4 | G28: 1.49194 | H28: 1.49807
A29: ASFALTOS DILUÍDOS CM-30 | B29: 2010-07-01 | C29: 1.5599 | D29: 1.38102 | E29: 1.73269 | F29: 1.4029 | G29: 1.47385 | H29: 1.49008
A30: ASFALTOS DILUÍDOS CM-30 | B30: 2010-08-01 | C30: 1.52664 | D30: 1.38818 | E30: 1.73895 | F30: 1.39875 | G30: 1.45575 | H30: 1.49583
A31: ASFALTOS DILUÍDOS CM-30 | B31: 2010-09-01 | C31: 1.56538 | D31: 1.4082 | E31: 1.75703 | F31: 1.41164 | G31: 1.48726 | H31: 1.51226
A32: ASFALTOS DILUÍDOS CM-30 | B32: 2010-10-01 | C32: 1.48171 | D32: 1.40436 | E32: 1.75116 | F32: 1.40349 | G32: 1.46934 | H32: 1.49989
A33: ASFALTOS DILUÍDOS CM-30 | B33: 2010-11-01 | C33: 1.51927 | D33: 1.41013 | E33: 1.77941 | F33: 1.42128 | G33: 1.45856 | H33: 1.48166
A34: ASFALTOS DILUÍDOS CM-30 | B34: 2010-12-01 | C34: 1.55929 | D34: 1.40982 | E34: 1.82519 | F34: 1.41767 | G34: 1.47324 | H34: 1.46911
A35: ASFALTOS DILUÍDOS CM-30 | B35: 2011-01-01 | C35: 1.52592 | D35: 1.44579 | E35: 1.7746 | F35: 1.40327 | G35: 1.466 | H35: 1.45726
A36: ASFALTOS DILUÍDOS CM-30 | B36: 2011-02-01 | C36: 1.55283 | D36: 1.39209 | E36: 1.76384 | F36: 1.38519 | G36: 1.44956 | H36: 1.42625
A37: ASFALTOS DILUÍDOS CM-30 | B37: 2011-03-01 | C37: 1.46922 | D37: 1.36944 | E37: 1.69602 | F37: 1.35381 | G37: 1.43517 | H37: 1.40013
A38: ASFALTOS DILUÍDOS CM-30 | B38: 2011-04-01 | C38: 1.47057 | D38: 1.37322 | E38: 1.65083 | F38: 1.34593 | G38: 1.422 | H38: 1.40049
A39: ASFALTOS DILUÍDOS CM-30 | B39: 2011-05-01 | C39: 1.42853 | D39: 1.32265 | E39: 1.70038 | F39: 1.34507 | G39: 1.43936 | H39: 1.42806
A40: ASFALTOS DILUÍDOS CM-30 | B40: 2011-06-01 | C40: 1.40762 | D40: 1.30571 | E40: 1.74184 | F40: 1.35462 | G40: 1.3995 | H40: 1.4403
A41: ASFALTOS DILUÍDOS CM-30 | B41: 2011-07-01 | C41: 1.25923 | D41: 1.31203 | E41: 1.73749 | F41: 1.33656 | G41: 1.42247 | H41: 1.42084
A42: ASFALTOS DILUÍDOS CM-30 | B42: 2011-08-01 | C42: 1.47068 | D42: 1.29978 | E42: 1.72744 | F42: 1.34148 | G42: 1.35302 | H42: 1.42568
A43: ASFALTOS DILUÍDOS CM-30 | B43: 2011-09-01 | C43: 1.56133 | D43: 1.3212 | E43: 1.72982 | F43: 1.35745 | G43: 1.39568 | H43: 1.4552
A44: ASFALTOS DILUÍDOS CM-30 | B44: 2011-10-01 | C44: 1.52057 | D44: 1.32622 | E44: 1.71738 | F44: 1.33269 | G44: 1.35778 | H44: 1.4423
A45: ASFALTOS DILUÍDOS CM-30 | B45: 2011-11-01 | C45: 1.46589 | D45: 1.33704 | E45: 1.741 | F45: 1.34549 | G45: 1.44758 | H45: 1.44535
A46: ASFALTOS DILUÍDOS CM-30 | B46: 2011-12-01 | C46: 1.47088 | D46: 1.33559 | E46: 1.77872 | F46: 1.40829 | G46: 1.42811 | H46: 1.42242
A47: ASFALTOS DILUÍDOS CM-30 | B47: 2012-01-01 | C47: 1.38496 | D47: 1.35013 | E47: 1.78078 | F47: 1.42135 | G47: 1.43035 | H47: 1.39466
A48: ASFALTOS DILUÍDOS CM-30 | B48: 2012-02-01 | C48: 1.33218 | D48: 1.36814 | E48: 1.74102 | F48: 1.4002 | G48: 1.4254 | H48: 1.41061
A49: ASFALTOS DILUÍDOS CM-30 | B49: 2012-03-01 | C49: 1.41162 | D49: 1.34912 | E49: 1.6201 | F49: 1.3933 | G49: 1.40613 | H49: 1.40977
A50: ASFALTOS DILUÍDOS CM-30 | B50: 2012-04-01 | C50: 1.54901 | D50: 1.38398 | E50: 1.64071 | F50: 1.40472 | G50: 1.44062 | H50: 1.45608
A51: ASFALTOS DILUÍDOS CM-30 | B51: 2012-05-01 | C51: 1.59618 | D51: 1.38636 | E51: 1.71206 | F51: 1.39924 | G51: 1.44835 | H51: 1.49846
A52: ASFALTOS DILUÍDOS CM-30 | B52: 2012-06-01 | C52: 1.70143 | D52: 1.38805 | E52: 1.74035 | F52: 1.42212 | G52: 1.4492 | H52: 1.52772
A53: ASFALTOS DILUÍDOS CM-30 | B53: 2012-07-01 | C53: 1.65203 | D53: 1.39437 | E53: 1.71864 | F53: 1.43967 | G53: 1.46188 | H53: 1.52307
A54: ASFALTOS DILUÍDOS CM-30 | B54: 2012-08-01 | C54: 1.69 | D54: 1.40334 | E54: 1.7419 | F54: 1.42172 | G54: 1.44569 | H54: 1.53653
A55: ASFALTOS DILUÍDOS CM-30 | B55: 2012-09-01 | C55: 1.69018 | D55: 1.4215 | E55: 1.78092 | F55: 1.44518 | G55: 1.48365 | H55: 1.54941
A56: ASFALTOS DILUÍDOS CM-30 | B56: 2012-10-01 | C56: 1.57484 | D56: 1.41707 | E56: 1.79483 | F56: 1.4513 | G56: 1.48204 | H56: 1.55063
A57: ASFALTOS DILUÍDOS CM-30 | B57: 2012-11-01 | C57: 1.65516 | D57: 1.45588 | E57: 1.84013 | F57: 1.4612 | G57: 1.4835 | H57: 1.5525
A58: ASFALTOS DILUÍDOS CM-30 | B58: 2012-12-01 | C58: 1.71488 | D58: 1.43585 | E58: 1.80407 | F58: 1.45223 | G58: 1.50942 | H58: 1.52341
A59: ASFALTOS DILUÍDOS CM-30 | B59: 2013-01-01 | C59: 1.49578 | D59: 1.44949 | E59: 1.85405 | F59: 1.44639 | G59: 1.56375 | H59: 1.50214
A60: ASFALTOS DILUÍDOS CM-30 | B60: 2013-02-01 | C60: 1.63507 | D60: 1.42061 | E60: 1.73107 | F60: 1.44275 | G60: 1.46183 | H60: 1.47396
A61: ASFALTOS DILUÍDOS CM-30 | B61: 2013-03-01 | C61: 1.64623 | D61: 1.4133 | E61: 1.83828 | F61: 1.45002 | G61: 1.52576 | H61: 1.50654
A62: ASFALTOS DILUÍDOS CM-30 | B62: 2013-04-01 | C62: 1.58186 | D62: 1.39919 | E62: 1.79383 | F62: 1.4587 | G62: 1.55191 | H62: 1.52362
A63: ASFALTOS DILUÍDOS CM-30 | B63: 2013-05-01 | C63: 1.81565 | D63: 1.39014 | E63: 1.81278 | F63: 1.44951 | G63: 1.50423 | H63: 1.54992
A64: ASFALTOS DILUÍDOS CM-30 | B64: 2013-06-01 | C64: 1.6311 | D64: 1.38319 | E64: 1.81664 | F64: 1.47423 | G64: 1.50304 | H64: 1.58105
A65: ASFALTOS DILUÍDOS CM-30 | B65: 2013-07-01 | C65: 1.86597 | D65: 1.42205 | E65: 1.79307 | F65: 1.49802 | G65: 1.53339 | H65: 1.59881
A66: ASFALTOS DILUÍDOS CM-30 | B66: 2013-08-01 | C66: 1.70033 | D66: 1.43509 | E66: 1.82145 | F66: 1.51172 | G66: 1.53079 | H66: 1.60618
A67: ASFALTOS DILUÍDOS CM-30 | B67: 2013-09-01 | C67: 1.56287 | D67: 1.4722 | E67: 1.87984 | F67: 1.54265 | G67: 1.49067 | H67: 1.62795
A68: ASFALTOS DILUÍDOS CM-30 | B68: 2013-10-01 | C68: 1.6485 | D68: 1.47215 | E68: 1.82549 | F68: 1.50118 | G68: 1.48379 | H68: 1.59754
A69: ASFALTOS DILUÍDOS CM-30 | B69: 2013-11-01 | C69: 1.61918 | D69: 1.48641 | E69: 1.84401 | F69: 1.49633 | G69: 1.5061 | H69: 1.58167
A70: ASFALTOS DILUÍDOS CM-30 | B70: 2013-12-01 | C70: 1.63336 | D70: 1.49482 | E70: 1.8972 | F70: 1.50286 | G70: 1.51707 | H70: 1.57248
A71: ASFALTOS DILUÍDOS CM-30 | B71: 2014-01-01 | C71: 1.68831 | D71: 1.49418 | E71: 1.79836 | F71: 1.4842 | G71: 1.53335 | H71: 1.54291
A72: ASFALTOS DILUÍDOS CM-30 | B72: 2014-02-01 | C72: 1.5983 | D72: 1.47971 | E72: 1.81439 | F72: 1.51483 | G72: 1.5228 | H72: 1.52897
A73: ASFALTOS DILUÍDOS CM-30 | B73: 2014-03-01 | C73: 1.64829 | D73: 1.47285 | E73: 1.76657 | F73: 1.51302 | G73: 1.50619 | H73: 1.53018
A74: ASFALTOS DILUÍDOS CM-30 | B74: 2014-04-01 | C74: 1.53446 | D74: 1.4939 | E74: 1.75727 | F74: 1.53302 | G74: 1.52428 | H74: 1.55057
A75: ASFALTOS DILUÍDOS CM-30 | B75: 2014-05-01 | C75: 1.58658 | D75: 1.49083 | E75: 1.80434 | F75: 1.50114 | G75: 1.56704 | H75: 1.58645
A76: ASFALTOS DILUÍDOS CM-30 | B76: 2014-06-01 | C76: 1.65828 | D76: 1.5058 | E76: 1.83959 | F76: 1.50686 | G76: 1.52378 | H76: 1.63607
A77: ASFALTOS DILUÍDOS CM-30 | B77: 2014-07-01 | C77: 1.8903 | D77: 1.50073 | E77: 1.70828 | F77: 1.48729 | G77: 1.50596 | H77: 1.58707
A78: ASFALTOS DILUÍDOS CM-30 | B78: 2014-08-01 | C78: 1.63274 | D78: 1.50195 | E78: 1.6712 | F78: 1.48236 | G78: 1.50633 | H78: 1.55791
A79: ASFALTOS DILUÍDOS CM-30 | B79: 2014-09-01 | C79: 1.66957 | D79: 1.54683 | E79: 1.8648 | F79: 1.49676 | G79: 1.57053 | H79: 1.63928
A80: ASFALTOS DILUÍDOS CM-30 | B80: 2014-10-01 | C80: 1.74288 | D80: 1.50898 | E80: 1.74665 | F80: 1.47077 | G80: 1.45427 | H80: 1.57912
A81: ASFALTOS DILUÍDOS CM-30 | B81: 2014-11-01 | C81: 1.86472 | D81: 1.57943 | E81: 1.74916 | F81: 1.46508 | G81: 1.52915 | H81: 1.60136
A82: ASFALTOS DILUÍDOS CM-30 | B82: 2014-12-01 | C82: 1.81267 | D82: 1.70484 | E82: 1.96331 | F82: 1.62368 | G82: 1.64964 | H82: 1.71883
A83: ASFALTOS DILUÍDOS CM-30 | B83: 2015-01-01 | C83: 2.15481 | D83: 2.02376 | E83: 2.31886 | F83: 1.86659 | G83: 1.89838 | H83: 2.00779
A84: ASFALTOS DILUÍDOS CM-30 | B84: 2015-02-01 | C84: 2.26024 | D84: 2.00567 | E84: 2.39388 | F84: 1.85452 | G84: 1.9274 | H84: 2.00765
A85: ASFALTOS DILUÍDOS CM-30 | B85: 2015-03-01 | C85: 2.12418 | D85: 1.96882 | E85: 2.27964 | F85: 1.88776 | G85: 1.93022 | H85: 1.98482
A86: ASFALTOS DILUÍDOS CM-30 | B86: 2015-04-01 | C86: 2.03005 | D86: 2.00151 | E86: 2.37912 | F86: 1.85245 | G86: 1.94903 | H86: 1.98064
A87: ASFALTOS DILUÍDOS CM-30 | B87: 2015-05-01 | C87: 2.50727 | D87: 1.94687 | E87: 2.25476 | F87: 1.80747 | G87: 2.01693 | H87: 2.00547
A88: ASFALTOS DILUÍDOS CM-30 | B88: 2015-06-01 | C88: 2.24832 | D88: 1.94426 | E88: 2.31433 | F88: 1.847 | G88: 1.96857 | H88: 2.04258
A89: ASFALTOS DILUÍDOS CM-30 | B89: 2015-07-01 | C89: 1.99222 | D89: 1.99279 | E89: 2.04677 | F89: 1.78265 | G89: 1.93167 | H89: 1.94263
A90: ASFALTOS DILUÍDOS CM-30 | B90: 2015-08-01 | C90: 2.30761 | D90: 2.03809 | E90: 2.25275 | F90: 1.8281 | G90: 1.93982 | H90: 2.08194
A91: ASFALTOS DILUÍDOS CM-30 | B91: 2015-09-01 | C91: 2.31429 | D91: 2.09531 | E91: 2.34456 | F91: 1.94255 | G91: 2.00535 | H91: 2.16818
A92: ASFALTOS DILUÍDOS CM-30 | B92: 2015-10-01 | C92: 2.32946 | D92: 2.17057 | E92: 2.43273 | F92: 2.03562 | G92: 2.11026 | H92: 2.23753
A93: ASFALTOS DILUÍDOS CM-30 | B93: 2015-11-01 | C93: 2.60606 | D93: 2.4371 | E93: 2.71161 | F93: 2.28011 | G93: 2.32645 | H93: 2.475
A94: ASFALTOS DILUÍDOS CM-30 | B94: 2015-12-01 | C94: 2.63537 | D94: 2.39592 | E94: 2.69353 | F94: 2.27253 | G94: 2.33074 | H94: 2.45285
A95: ASFALTOS DILUÍDOS CM-30 | B95: 2016-01-01 | C95: 2.71586 | D95: 2.37386 | E95: 2.84467 | F95: 2.26365 | G95: 2.23263 | H95: 2.40056
A96: ASFALTOS DILUÍDOS CM-30 | B96: 2016-02-01 | C96: 2.80468 | D96: 2.46685 | E96: 2.79179 | F96: 2.29564 | G96: 2.34656 | H96: 2.46435
A97: ASFALTOS DILUÍDOS CM-30 | B97: 2016-03-01 | C97: 2.5805 | D97: 2.47068 | E97: 2.70769 | F97: 2.2353 | G97: 2.38312 | H97: 2.42356
A98: ASFALTOS DILUÍDOS CM-30 | B98: 2016-04-01 | C98: 2.94201 | D98: 2.74074 | E98: 2.75907 | F98: 2.54444 | G98: 2.71075 | H98: 2.68027
A99: ASFALTOS DILUÍDOS CM-30 | B99: 2016-05-01 | C99: 3.01058 | D99: 2.65028 | E99: 2.85712 | F99: 2.57558 | G99: 2.77041 | H99: 2.70973
A100: ASFALTOS DILUÍDOS CM-30 | B100: 2016-06-01 | C100: 2.90918 | D100: 2.62139 | E100: 2.94349 | F100: 2.65911 | G100: 2.68476 | H100: 2.74362
A101: ASFALTOS DILUÍDOS CM-30 | B101: 2016-07-01 | C101: 2.98574 | D101: 2.59164 | E101: 2.98928 | F101: 2.6044 | G101: 2.66088 | H101: 2.74514
A102: ASFALTOS DILUÍDOS CM-30 | B102: 2016-08-01 | C102: 2.93524 | D102: 2.62392 | E102: 2.97049 | F102: 2.67949 | G102: 2.72703 | H102: 2.78139
A103: ASFALTOS DILUÍDOS CM-30 | B103: 2016-09-01 | C103: 2.64914 | D103: 2.52105 | E103: 2.78158 | F103: 2.51393 | G103: 2.37127 | H103: 2.59562
A104: ASFALTOS DILUÍDOS CM-30 | B104: 2016-10-01 | C104: 2.62611 | D104: 2.44447 | E104: 2.78162 | F104: 2.50738 | G104: 2.38325 | H104: 2.567
A105: ASFALTOS DILUÍDOS CM-30 | B105: 2016-11-01 | C105: 2.53509 | D105: 2.37415 | E105: 2.95277 | F105: 2.48126 | G105: 2.38221 | H105: 2.54284
A106: ASFALTOS DILUÍDOS CM-30 | B106: 2016-12-01 | C106: 2.50039 | D106: 2.25341 | E106: 3.03852 | F106: 2.58944 | G106: 2.39559 | H106: 2.47644
A107: ASFALTOS DILUÍDOS CM-30 | B107: 2017-01-01 | C107: 2.39288 | D107: 2.2327 | E107: 3.08908 | F107: 2.53574 | G107: 2.37869 | H107: 2.37422
A108: ASFALTOS DILUÍDOS CM-30 | B108: 2017-02-01 | C108: 2.68039 | D108: 2.2719 | E108: 2.76441 | F108: 2.57393 | G108: 2.38464 | H108: 2.47072
A109: ASFALTOS DILUÍDOS CM-30 | B109: 2017-03-01 | C109: 2.23884 | D109: 2.38696 | E109: 2.66722 | F109: 2.37217 | G109: 2.30122 | H109: 2.3788
A110: ASFALTOS DILUÍDOS CM-30 | B110: 2017-04-01 | C110: 2.42019 | D110: 2.30797 | E110: 2.79409 | F110: 2.25841 | G110: 2.25643 | H110: 2.38027
A111: ASFALTOS DILUÍDOS CM-30 | B111: 2017-05-01 | C111: 2.43211 | D111: 2.16792 | E111: 2.69984 | F111: 2.25539 | G111: 2.20403 | H111: 2.36152
A112: ASFALTOS DILUÍDOS CM-30 | B112: 2017-06-01 | C112: 2.4283 | D112: 2.18194 | E112: 2.75667 | F112: 2.23455 | G112: 2.30578 | H112: 2.44553
A113: ASFALTOS DILUÍDOS CM-30 | B113: 2017-07-01 | C113: 2.45375 | D113: 2.21808 | E113: 2.69463 | F113: 2.41433 | G113: 2.2696 | H113: 2.47344
A114: ASFALTOS DILUÍDOS CM-30 | B114: 2017-08-01 | C114: 2.44793 | D114: 2.15311 | E114: 2.59535 | F114: 2.30292 | G114: 2.17015 | H114: 2.38088
A115: ASFALTOS DILUÍDOS CM-30 | B115: 2017-09-01 | C115: 2.49455 | D115: 2.14244 | E115: 2.62317 | F115: 2.37131 | G115: 2.3037 | H115: 2.39354
A116: ASFALTOS DILUÍDOS CM-30 | B116: 2017-10-01 | C116: 2.34995 | D116: 2.18056 | E116: 2.61416 | F116: 2.41525 | G116: 2.2008 | H116: 2.36795
A117: ASFALTOS DILUÍDOS CM-30 | B117: 2017-11-01 | C117: 2.67013 | D117: 2.43317 | E117: 2.90863 | F117: 2.58469 | G117: 2.41519 | H117: 2.6021
A118: ASFALTOS DILUÍDOS CM-30 | B118: 2017-12-01 | C118: 2.58735 | D118: 2.42536 | E118: 2.90663 | F118: 2.60289 | G118: 2.42289 | H118: 2.53176
A119: ASFALTOS DILUÍDOS CM-30 | B119: 2018-01-01 | C119: 2.95036 | D119: 2.66286 | E119: 2.87595 | F119: 2.62074 | G119: 2.64696 | H119: 2.73596
A120: ASFALTOS DILUÍDOS CM-30 | B120: 2018-02-01 | C120: 2.6779 | D120: 2.6725 | E120: 2.9426 | F120: 2.62043 | G120: 2.56789 | H120: 2.66837
A121: ASFALTOS DILUÍDOS CM-30 | B121: 2018-03-01 | C121: 2.73336 | D121: 2.58905 | E121: 2.80917 | F121: 2.56193 | G121: 2.57595 | H121: 2.63488
A122: ASFALTOS DILUÍDOS CM-30 | B122: 2018-04-01 | C122: 2.7578 | D122: 2.66955 | E122: 2.77391 | F122: 2.59547 | G122: 2.55604 | H122: 2.66433
A123: ASFALTOS DILUÍDOS CM-30 | B123: 2018-05-01 | C123: 2.84121 | D123: 2.67203 | E123: 2.8845 | F123: 2.68672 | G123: 2.73649 | H123: 2.77738
A124: ASFALTOS DILUÍDOS CM-30 | B124: 2018-06-01 | C124: 3.00844 | D124: 2.91961 | E124: 3.15845 | F124: 2.84673 | G124: 2.95352 | H124: 2.98229
A125: ASFALTOS DILUÍDOS CM-30 | B125: 2018-07-01 | C125: 3.26824 | D125: 3.03652 | E125: 3.39936 | F125: 3.02647 | G125: 3.1978 | H125: 3.16413
A126: ASFALTOS DILUÍDOS CM-30 | B126: 2018-08-01 | C126: 3.56441 | D126: 3.41519 | E126: 3.70771 | F126: 3.42508 | G126: 3.35672 | H126: 3.51556
A127: ASFALTOS DILUÍDOS CM-30 | B127: 2018-09-01 | C127: 3.17391 | D127: 3.44506 | E127: 3.73526 | F127: 3.38582 | G127: 3.60731 | H127: 3.48324
A128: ASFALTOS DILUÍDOS CM-30 | B128: 2018-10-01 | C128: 3.48778 | D128: 3.46051 | E128: 3.72144 | F128: 3.43253 | G128: 3.60602 | H128: 3.54539
A129: ASFALTOS DILUÍDOS CM-30 | B129: 2018-11-01 | C129: 4.04727 | D129: 3.81489 | E129: 4.28013 | F129: 4.17813 | G129: 3.96768 | H129: 3.99015
A130: ASFALTOS DILUÍDOS CM-30 | B130: 2018-12-01 | C130: 3.95149 | D130: 3.96711 | E130: 4.34114 | F130: 3.91677 | G130: 3.91199 | H130: 3.99974
A131: ASFALTOS DILUÍDOS CM-30 | B131: 2019-01-01 | C131: 3.79686 | D131: 3.87002 | E131: 4.2019 | F131: 3.9542 | G131: 3.97679 | H131: 3.93395
A132: ASFALTOS DILUÍDOS CM-30 | B132: 2019-02-01 | C132: 3.51658 | D132: 4.09036 | E132: 4.49842 | F132: 4.46994 | G132: 4.25459 | H132: 4.18854
A133: ASFALTOS DILUÍDOS CM-30 | B133: 2019-03-01 | C133: 4.21676 | D133: 4.36191 | E133: 4.90719 | F133: 4.39872 | G133: 4.29082 | H133: 4.3603
A134: ASFALTOS DILUÍDOS CM-30 | B134: 2019-04-01 | C134: 4.28165 | D134: 4.23466 | E134: 4.53163 | F134: 4.43723 | G134: 4.46688 | H134: 4.38082
A135: ASFALTOS DILUÍDOS CM-30 | B135: 2019-05-01 | C135: 4.28764 | D135: 4.1907 | E135: 4.85791 | F135: 4.26746 | G135: 4.63381 | H135: 4.3664
A136: ASFALTOS DILUÍDOS CM-30 | B136: 2019-06-01 | C136: 4.47561 | D136: 3.96505 | E136: 4.66273 | F136: 4.3506 | G136: 4.21123 | H136: 4.31932
A137: ASFALTOS DILUÍDOS CM-30 | B137: 2019-07-01 | C137: 4.3945 | D137: 4.05804 | E137: 4.83422 | F137: 4.09466 | G137: 4.233 | H137: 4.34698
A138: ASFALTOS DILUÍDOS CM-30 | B138: 2019-08-01 | C138: 4.48174 | D138: 3.91066 | E138: 4.57633 | F138: 4.11162 | G138: 4.25542 | H138: 4.25835
A139: ASFALTOS DILUÍDOS CM-30 | B139: 2019-09-01 | C139: 4.43958 | D139: 3.8599 | E139: 4.49526 | F139: 4.11132 | G139: 4.11736 | H139: 4.25161
A140: ASFALTOS DILUÍDOS CM-30 | B140: 2019-10-01 | C140: 4.33589 | D140: 3.77232 | E140: 4.45924 | F140: 4.05608 | G140: 3.94246 | H140: 4.07741
A141: ASFALTOS DILUÍDOS CM-30 | B141: 2019-11-01 | C141: 4.31624 | D141: 3.91025 | E141: 4.58184 | F141: 4.07902 | G141: 4.10662 | H141: 4.09456
A142: ASFALTOS DILUÍDOS CM-30 | B142: 2019-12-01 | C142: 4.19944 | D142: 3.98012 | E142: 4.67377 | F142: 4.43427 | G142: 3.98641 | H142: 4.16469
A143: ASFALTOS DILUÍDOS CM-30 | B143: 2020-01-01 | C143: 3.59298 | D143: 3.89532 | E143: 4.68542 | F143: 4.38707 | G143: 4.12447 | H143: 4.05334
A144: ASFALTOS DILUÍDOS CM-30 | B144: 2020-02-01 | C144: 3.64267 | D144: 3.8774 | E144: 4.43819 | F144: 3.69994 | G144: 3.77816 | H144: 3.83901
A145: ASFALTOS DILUÍDOS CM-30 | B145: 2020-03-01 | C145: 4.67667 | D145: 3.79114 | E145: 4.28922 | F145: 3.7184 | G145: 3.60909 | H145: 3.93117
A146: ASFALTOS DILUÍDOS CM-30 | B146: 2020-04-01 | C146: 4.31336 | D146: 3.69577 | E146: 4.2554 | F146: 3.8659 | G146: 3.73225 | H146: 3.96413
A147: ASFALTOS DILUÍDOS CM-30 | B147: 2020-05-01 | C147: 3.24913 | D147: 3.63777 | E147: 4.11354 | F147: 3.76055 | G147: 3.71062 | H147: 3.65618
A148: ASFALTOS DILUÍDOS CM-30 | B148: 2020-06-01 | C148: 4.0179 | D148: 3.56703 | E148: 4.27737 | F148: 3.93789 | G148: 3.62583 | H148: 3.92452
A149: ASFALTOS DILUÍDOS CM-30 | B149: 2020-07-01 | C149: 3.8405 | D149: 3.51327 | E149: 4.21549 | F149: 3.95422 | G149: 3.68884 | H149: 3.84377
A150: ASFALTOS DILUÍDOS CM-30 | B150: 2020-08-01 | C150: 4.17447 | D150: 3.46539 | E150: 4.27771 | F150: 4.06746 | G150: 3.62859 | H150: 3.94717
A151: ASFALTOS DILUÍDOS CM-30 | B151: 2020-09-01 | C151: 4.16737 | D151: 3.74636 | E151: 4.16742 | F151: 3.79562 | G151: 3.62773 | H151: 3.97313
A152: ASFALTOS DILUÍDOS CM-30 | B152: 2020-10-01 | C152: 4.4081 | D152: 3.71899 | E152: 4.27898 | F152: 4.00875 | G152: 3.59105 | H152: 4.03964
A153: ASFALTOS DILUÍDOS CM-30 | B153: 2020-11-01 | C153: 4.05631 | D153: 3.96921 | E153: 4.5479 | F153: 4.27946 | G153: 3.97335 | H153: 4.17583
A154: ASFALTOS DILUÍDOS CM-30 | B154: 2020-12-01 | C154: 4.13206 | D154: 3.85163 | E154: 4.4267 | F154: 3.90624 | G154: 3.87094 | H154: 4.03535
A155: ASFALTOS DILUÍDOS CM-30 | B155: 2021-01-01 | C155: 3.48984 | D155: 3.95153 | E155: 4.62827 | F155: 4.01158 | G155: 3.93514 | H155: 3.91709
A156: ASFALTOS DILUÍDOS CM-30 | B156: 2021-02-01 | C156: 4.09932 | D156: 4.26711 | E156: 4.83206 | F156: 4.4142 | G156: 4.14905 | H156: 4.2682
A157: ASFALTOS DILUÍDOS CM-30 | B157: 2021-03-01 | C157: 4.52836 | D157: 4.23983 | E157: 4.92631 | F157: 4.2697 | G157: 4.13066 | H157: 4.37783
A158: ASFALTOS DILUÍDOS CM-30 | B158: 2021-04-01 | C158: 4.34927 | D158: 4.087 | E158: 4.4776 | F158: 4.15611 | G158: 4.04419 | H158: 4.25336
A159: ASFALTOS DILUÍDOS CM-30 | B159: 2021-05-01 | C159: 4.48889 | D159: 4.70795 | E159: 5.10149 | F159: 4.78403 | G159: 4.52399 | H159: 4.79055
A160: ASFALTOS DILUÍDOS CM-30 | B160: 2021-06-01 | C160: 4.01047 | D160: 4.47959 | E160: 5.11304 | F160: 4.77974 | G160: 4.72121 | H160: 4.76489
A161: ASFALTOS DILUÍDOS CM-30 | B161: 2021-07-01 | C161: 4.75223 | D161: 4.55935 | E161: 5.00476 | F161: 4.80273 | G161: 4.74855 | H161: 4.81759
A162: ASFALTOS DILUÍDOS CM-30 | B162: 2021-08-01 | C162: 5.08528 | D162: 4.7725 | E162: 5.19854 | F162: 5.24474 | G162: 4.76131 | H162: 5.09817
A163: ASFALTOS DILUÍDOS CM-30 | B163: 2021-09-01 | C163: 5.1103 | D163: 4.53807 | E163: 5.24172 | F163: 5.01714 | G163: 4.86286 | H163: 5.01696
A164: ASFALTOS DILUÍDOS CM-30 | B164: 2021-10-01 | C164: 5.0807 | D164: 4.66827 | E164: 5.11954 | F164: 5.38478 | G164: 4.65852 | H164: 5.02129
A165: ASFALTOS DILUÍDOS CM-30 | B165: 2021-11-01 | C165: 5.43652 | D165: 5.08777 | E165: 5.15006 | F165: 5.63426 | G165: 5.17453 | H165: 5.22814
A166: ASFALTOS DILUÍDOS CM-30 | B166: 2021-12-01 | C166: 5.18429 | D166: 4.97549 | E166: 5.57212 | F166: 6.13566 | G166: 5.01181 | H166: 5.33957
A167: ASFALTOS DILUÍDOS CM-30 | B167: 2022-01-01 | C167: 4.92819 | D167: 5.02356 | E167: 6.01841 | F167: 5.21477 | G167: 5.48198 | H167: 5.25079
A168: ASFALTOS DILUÍDOS CM-30 | B168: 2022-02-01 | C168: 5.54568 | D168: 5.70863 | E168: 6.01107 | F168: 4.8651 | G168: 5.76337 | H168: 5.73606
A169: ASFALTOS DILUÍDOS CM-30 | B169: 2022-03-01 | C169: 6.32684 | D169: 5.64469 | E169: 5.93081 | F169: 6.18114 | G169: 5.49804 | H169: 5.92278
A170: ASFALTOS DILUÍDOS CM-30 | B170: 2022-04-01 | C170: 5.97422 | D170: 5.83275 | E170: 6.20669 | F170: 5.72033 | G170: 6.178 | H170: 6.01235
A171: ASFALTOS DILUÍDOS CM-30 | B171: 2022-05-01 | C171: 5.35402 | D171: 5.46434 | E171: 6.00761 | F171: 5.9951 | G171: 5.49095 | H171: 5.67072
A172: ASFALTOS DILUÍDOS CM-30 | B172: 2022-06-01 | C172: 5.80244 | D172: 5.31696 | E172: 5.25268 | F172: 5.81393 | G172: 5.645 | H172: 5.4695
A173: ASFALTOS DILUÍDOS CM-30 | B173: 2022-07-01 | C173: 5.96561 | D173: 5.82931 | E173: 5.9191 | F173: 5.74248 | G173: 5.67443 | H173: 5.86202
A174: ASFALTOS DILUÍDOS CM-30 | B174: 2022-08-01 | C174: 6.42423 | D174: 5.75826 | E174: 5.75235 | F174: 5.79191 | G174: 5.31272 | H174: 5.82319
A175: ASFALTOS DILUÍDOS CM-30 | B175: 2022-09-01 | C175: 5.5401 | D175: 5.60992 | E175: 5.96359 | F175: 5.30218 | G175: 4.97793 | H175: 5.69943
A176: ASFALTOS DILUÍDOS CM-30 | B176: 2022-10-01 | C176: 4.78567 | D176: 4.72752 | E176: 5.33911 | F176: 4.85116 | G176: 4.53258 | H176: 5.04166
A177: ASFALTOS DILUÍDOS CM-30 | B177: 2022-11-01 | C177: 7.76586 | D177: 4.77565 | E177: 5.23763 | F177: 4.63638 | G177: 4.46059 | H177: 5.07499
A178: ASFALTOS DILUÍDOS CM-30 | B178: 2022-12-01 | C178: 4.65725 | D178: 4.96691 | E178: 5.65516 | F178: 4.84094 | G178: 4.66101 | H178: 5.11325
A179: ASFALTOS DILUÍDOS CM-30 | B179: 2023-01-01 | C179: 4.94895 | D179: 5.05626 | E179: 5.3596 | F179: 4.4265 | G179: 4.10327 | H179: 4.71561
A180: ASFALTOS DILUÍDOS CM-30 | B180: 2023-02-01 | C180: 5.40749 | D180: 4.33577 | E180: 4.74665 | F180: 4.67488 | G180: 4.01455 | H180: 4.4178
A181: ASFALTOS DILUÍDOS CM-30 | B181: 2023-03-01 | C181: 4.99131 | D181: 4.01355 | E181: 4.74625 | F181: 4.08072 | G181: 4.08248 | H181: 4.27035
A182: ASFALTOS DILUÍDOS CM-30 | B182: 2023-04-01 | C182: 4.43848 | D182: 4.0942 | E182: 5.13582 | F182: 4.36827 | G182: 3.85931 | H182: 4.15382
A183: ASFALTOS DILUÍDOS CM-30 | B183: 2023-05-01 | C183: 5.01859 | D183: 4.50628 | E183: 5.61664 | F183: 4.03476 | G183: 4.0637 | H183: 4.68649
A184: ASFALTOS DILUÍDOS CM-30 | B184: 2023-06-01 | C184: 4.43964 | D184: 4.49581 | E184: 5.22817 | F184: 3.77203 | G184: 4.00904 | H184: 4.58805
A185: ASFALTOS DILUÍDOS CM-30 | B185: 2023-07-01 | C185: 4.3604 | D185: 4.25019 | E185: 6.18805 | F185: 3.69922 | G185: 4.31577 | H185: 4.79072
A186: ASFALTOS DILUÍDOS CM-30 | B186: 2023-08-01 | C186: 4.04322 | D186: 4.1009 | E186: 5.4142 | F186: 3.9643 | G186: 4.05599 | H186: 4.60781
A187: ASFALTOS DILUÍDOS CM-30 | B187: 2023-09-01 | C187: 5.69502 | D187: 4.35859 | E187: 5.18725 | F187: 4.11251 | G187: 4.21165 | H187: 4.74864
A188: ASFALTOS DILUÍDOS CM-70 | B188: 2008-11-01 | C188: *** | D188: *** | E188: *** | F188: *** | G188: *** | H188: ***
A189: ASFALTOS DILUÍDOS CM-70 | B189: 2008-12-01 | C189: *** | D189: *** | E189: *** | F189: *** | G189: *** | H189: ***
A190: ASFALTOS DILUÍDOS CM-70 | B190: 2009-01-01 | C190: *** | D190: *** | E190: *** | F190: *** | G190: *** | H190: ***
A191: ASFALTOS DILUÍDOS CM-70 | B191: 2009-02-01 | C191: *** | D191: *** | E191: *** | F191: *** | G191: *** | H191: ***
A192: ASFALTOS DILUÍDOS CM-70 | B192: 2009-03-01 | C192: *** | D192: *** | E192: *** | F192: *** | G192: *** | H192: ***
A193: ASFALTOS DILUÍDOS CM-70 | B193: 2009-04-01 | C193: *** | D193: *** | E193: *** | F193: *** | G193: *** | H193: ***
A194: ASFALTOS DILUÍDOS CM-70 | B194: 2009-05-01 | C194: *** | D194: *** | E194: *** | F194: *** | G194: *** | H194: ***
A195: ASFALTOS DILUÍDOS CM-70 | B195: 2009-06-01 | C195: *** | D195: *** | E195: *** | F195: *** | G195: *** | H195: ***
A196: ASFALTOS DILUÍDOS CM-70 | B196: 2009-07-01 | C196: *** | D196: *** | E196: *** | F196: *** | G196: *** | H196: ***
A197: ASFALTOS DILUÍDOS CM-70 | B197: 2009-08-01 | C197: *** | D197: *** | E197: *** | F197: *** | G197: *** | H197: ***
A198: ASFALTOS DILUÍDOS CM-70 | B198: 2009-09-01 | C198: *** | D198: *** | E198: *** | F198: *** | G198: *** | H198: ***
A199: ASFALTOS DILUÍDOS CM-70 | B199: 2009-10-01 | C199: *** | D199: *** | E199: *** | F199: *** | G199: *** | H199: ***
A200: ASFALTOS DILUÍDOS CM-70 | B200: 2009-11-01 | C200: *** | D200: *** | E200: *** | F200: *** | G200: *** | H200: ***
A201: ASFALTOS DILUÍDOS CM-70 | B201: 2009-12-01 | C201: *** | D201: *** | E201: *** | F201: *** | G201: *** | H201: ***
A202: ASFALTOS DILUÍDOS CM-70 | B202: 2010-01-01 | C202: *** | D202: *** | E202: *** | F202: *** | G202: *** | H202: ***
A203: ASFALTOS DILUÍDOS CM-70 | B203: 2010-02-01 | C203: *** | D203: *** | E203: *** | F203: *** | G203: *** | H203: ***
A204: ASFALTOS DILUÍDOS CM-70 | B204: 2010-03-01 | C204: *** | D204: *** | E204: *** | F204: *** | G204: *** | H204: ***
... 4330 more rows

Sheet SINTÉTICO SICRO
A1: CGCIT | B1: SISTEMA DE CUSTOS REFERENCIAIS DE OBRAS - SICRO | D1: DNIT
B2: Pernambuco - Julho/2023
A3: Código | B3: Descrição do Serviço | C3: Unidade | D3: Custo Unitário (R$)
A4: 307731 | B4: Aparelho de apoio de neoprene fretado para estruturas moldadas no local - fornecimento e instalação | C4: dm³ | D4: 114.37 | E4: =A4*1 -> 307731
A5: 307732 | B5: Aparelho de apoio de neoprene fretado para estruturas pré-moldadas - fornecimento e instalação | C5: dm³ | D5: 91.31 | E5: 307732
A6: 308308 | B6: Aparelho de apoio metálico elastomérico fixo com capacidade de 1.500 kN - fornecimento e instalação | C6: un | D6: 14232.94 | E6: 308308
A7: 308313 | B7: Aparelho de apoio metálico elastomérico fixo com capacidade de 10.000 kN - fornecimento e instalação | C7: un | D7: 93251.58 | E7: 308313
A8: 308309 | B8: Aparelho de apoio metálico elastomérico fixo com capacidade de 2.500 kN - fornecimento e instalação | C8: un | D8: 23245.13 | E8: 308309
A9: 308310 | B9: Aparelho de apoio metálico elastomérico fixo com capacidade de 4.000 kN - fornecimento e instalação | C9: un | D9: 37431.68 | E9: 308310
A10: 308311 | B10: Aparelho de apoio metálico elastomérico fixo com capacidade de 5.500 kN - fornecimento e instalação | C10: un | D10: 50233.48 | E10: 308311
A11: 308312 | B11: Aparelho de apoio metálico elastomérico fixo com capacidade de 7.500 kN - fornecimento e instalação | C11: un | D11: 68907.37 | E11: 308312
A12: 308307 | B12: Aparelho de apoio metálico elastomérico fixo com capacidade de 700 kN - fornecimento e instalação | C12: un | D12: 10157.54 | E12: 308307
A13: 308322 | B13: Aparelho de apoio metálico elastomérico multidirecional com capacidade de 1.500 kN - fornecimento e instalação | C13: un | D13: 9166.9 | E13: 308322
A14: 308327 | B14: Aparelho de apoio metálico elastomérico multidirecional com capacidade de 10.000 kN - fornecimento e instalação | C14: un | D14: 59662.39 | E14: 308327
A15: 308323 | B15: Aparelho de apoio metálico elastomérico multidirecional com capacidade de 2.500 kN - fornecimento e instalação | C15: un | D15: 12741.93 | E15: 308323
A16: 308324 | B16: Aparelho de apoio metálico elastomérico multidirecional com capacidade de 4.000 kN - fornecimento e instalação | C16: un | D16: 21220.45 | E16: 308324
A17: 308325 | B17: Aparelho de apoio metálico elastomérico multidirecional com capacidade de 5.500 kN - fornecimento e instalação | C17: un | D17: 30477.33 | E17: 308325
A18: 308326 | B18: Aparelho de apoio metálico elastomérico multidirecional com capacidade de 7.500 kN - fornecimento e instalação | C18: un | D18: 43107.87 | E18: 308326
A19: 308321 | B19: Aparelho de apoio metálico elastomérico multidirecional com capacidade de 700 kN - fornecimento e instalação | C19: un | D19: 5299.19 | E19: 308321
A20: 308315 | B20: Aparelho de apoio metálico elastomérico unidirecional com capacidade de 1.500 kN - fornecimento e instalação | C20: un | D20: 10847.95 | E20: 308315
A21: 308320 | B21: Aparelho de apoio metálico elastomérico unidirecional com capacidade de 10.000 kN - fornecimento e instalação | C21: un | D21: 63435.82 | E21: 308320
A22: 308316 | B22: Aparelho de apoio metálico elastomérico unidirecional com capacidade de 2.500 kN - fornecimento e instalação | C22: un | D22: 14876.26 | E22: 308316
A23: 308317 | B23: Aparelho de apoio metálico elastomérico unidirecional com capacidade de 4.000 kN - fornecimento e instalação | C23: un | D23: 26596.22 | E23: 308317
A24: 308318 | B24: Aparelho de apoio metálico elastomérico unidirecional com capacidade de 5.500 kN - fornecimento e instalação | C24: un | D24: 34556.56 | E24: 308318
A25: 308319 | B25: Aparelho de apoio metálico elastomérico unidirecional com capacidade de 7.500 kN - fornecimento e instalação | C25: un | D25: 47951.7 | E25: 308319
A26: 308314 | B26: Aparelho de apoio metálico elastomérico unidirecional com capacidade de 700 kN - fornecimento e instalação | C26: un | D26: 6711.42 | E26: 308314
A27: 308250 | B27: Aparelho de apoio metálico esférico fixo com capacidade de 1.000 kN - fornecimento e instalação | C27: un | D27: 5816.51 | E27: 308250
A28: 308251 | B28: Aparelho de apoio metálico esférico fixo com capacidade de 1.500 kN - fornecimento e instalação | C28: un | D28: 8643.05 | E28: 308251
A29: 308268 | B29: Aparelho de apoio metálico esférico fixo com capacidade de 10.000 kN - fornecimento e instalação | C29: un | D29: 129106.67 | E29: 308268
A30: 308252 | B30: Aparelho de apoio metálico esférico fixo com capacidade de 2.000 kN - fornecimento e instalação | C30: un | D30: 10932.37 | E30: 308252
A31: 308253 | B31: Aparelho de apoio metálico esférico fixo com capacidade de 2.500 kN - fornecimento e instalação | C31: un | D31: 13789.89 | E31: 308253
A32: 308254 | B32: Aparelho de apoio metálico esférico fixo com capacidade de 3.000 kN - fornecimento e instalação | C32: un | D32: 15837.67 | E32: 308254
A33: 308255 | B33: Aparelho de apoio metálico esférico fixo com capacidade de 3.500 kN - fornecimento e instalação | C33: un | D33: 19125.76 | E33: 308255
A34: 308256 | B34: Aparelho de apoio metálico esférico fixo com capacidade de 4.000 kN - fornecimento e instalação | C34: un | D34: 22544.02 | E34: 308256
A35: 308257 | B35: Aparelho de apoio metálico esférico fixo com capacidade de 4.500 kN - fornecimento e instalação | C35: un | D35: 57130.3 | E35: 308257
A36: 308258 | B36: Aparelho de apoio metálico esférico fixo com capacidade de 5.000 kN - fornecimento e instalação | C36: un | D36: 63516.55 | E36: 308258
A37: 308259 | B37: Aparelho de apoio metálico esférico fixo com capacidade de 5.500 kN - fornecimento e instalação | C37: un | D37: 68874.8 | E37: 308259
A38: 308260 | B38: Aparelho de apoio metálico esférico fixo com capacidade de 6.000 kN - fornecimento e instalação | C38: un | D38: 74285.23 | E38: 308260
A39: 308261 | B39: Aparelho de apoio metálico esférico fixo com capacidade de 6.500 kN - fornecimento e instalação | C39: un | D39: 84408.89 | E39: 308261
A40: 308262 | B40: Aparelho de apoio metálico esférico fixo com capacidade de 7.000 kN - fornecimento e instalação | C40: un | D40: 87108.39 | E40: 308262
A41: 308263 | B41: Aparelho de apoio metálico esférico fixo com capacidade de 7.500 kN - fornecimento e instalação | C41: un | D41: 97318.81 | E41: 308263
A42: 308264 | B42: Aparelho de apoio metálico esférico fixo com capacidade de 8.000 kN - fornecimento e instalação | C42: un | D42: 104059.99 | E42: 308264
A43: 308265 | B43: Aparelho de apoio metálico esférico fixo com capacidade de 8.500 kN - fornecimento e instalação | C43: un | D43: 106592.9 | E43: 308265
A44: 308266 | B44: Aparelho de apoio metálico esférico fixo com capacidade de 9.000 kN - fornecimento e instalação | C44: un | D44: 115190.03 | E44: 308266
A45: 308267 | B45: Aparelho de apoio metálico esférico fixo com capacidade de 9.500 kN - fornecimento e instalação | C45: un | D45: 121462.9 | E45: 308267
A46: 308288 | B46: Aparelho de apoio metálico esférico multidirecional com capacidade de 1.000 kN - fornecimento e instalação | C46: un | D46: 12952.87 | E46: 308288
A47: 308289 | B47: Aparelho de apoio metálico esférico multidirecional com capacidade de 1.500 kN - fornecimento e instalação | C47: un | D47: 18318.64 | E47: 308289
A48: 308306 | B48: Aparelho de apoio metálico esférico multidirecional com capacidade de 10.000 kN - fornecimento e instalação | C48: un | D48: 121768.48 | E48: 308306
A49: 308290 | B49: Aparelho de apoio metálico esférico multidirecional com capacidade de 2.000 kN - fornecimento e instalação | C49: un | D49: 24368.14 | E49: 308290
A50: 308291 | B50: Aparelho de apoio metálico esférico multidirecional com capacidade de 2.500 kN - fornecimento e instalação | C50: un | D50: 29042.54 | E50: 308291
A51: 308292 | B51: Aparelho de apoio metálico esférico multidirecional com capacidade de 3.000 kN - fornecimento e instalação | C51: un | D51: 34028.38 | E51: 308292
A52: 308293 | B52: Aparelho de apoio metálico esférico multidirecional com capacidade de 3.500 kN - fornecimento e instalação | C52: un | D52: 38675.57 | E52: 308293
A53: 308294 | B53: Aparelho de apoio metálico esférico multidirecional com capacidade de 4.000 kN - fornecimento e instalação | C53: un | D53: 44121.76 | E53: 308294
A54: 308295 | B54: Aparelho de apoio metálico esférico multidirecional com capacidade de 4.500 kN - fornecimento e instalação | C54: un | D54: 51127.32 | E54: 308295
A55: 308296 | B55: Aparelho de apoio metálico esférico multidirecional com capacidade de 5.000 kN - fornecimento e instalação | C55: un | D55: 56926.66 | E55: 308296
A56: 308297 | B56: Aparelho de apoio metálico esférico multidirecional com capacidade de 5.500 kN - fornecimento e instalação | C56: un | D56: 61690.98 | E56: 308297
A57: 308298 | B57: Aparelho de apoio metálico esférico multidirecional com capacidade de 6.000 kN - fornecimento e instalação | C57: un | D57: 70358.52 | E57: 308298
A58: 308299 | B58: Aparelho de apoio metálico esférico multidirecional com capacidade de 6.500 kN - fornecimento e instalação | C58: un | D58: 76022.66 | E58: 308299
A59: 308300 | B59: Aparelho de apoio metálico esférico multidirecional com capacidade de 7.000 kN - fornecimento e instalação | C59: un | D59: 81848.46 | E59: 308300
A60: 308301 | B60: Aparelho de apoio metálico esférico multidirecional com capacidade de 7.500 kN - fornecimento e instalação | C60: un | D60: 88337.2 | E60: 308301
A61: 308302 | B61: Aparelho de apoio metálico esférico multidirecional com capacidade de 8.000 kN - fornecimento e instalação | C61: un | D61: 94124.93 | E61: 308302
A62: 308303 | B62: Aparelho de apoio metálico esférico multidirecional com capacidade de 8.500 kN - fornecimento e instalação | C62: un | D62: 103573.17 | E62: 308303
A63: 308304 | B63: Aparelho de apoio metálico esférico multidirecional com capacidade de 9.000 kN - fornecimento e instalação | C63: un | D63: 109143.59 | E63: 308304
A64: 308305 | B64: Aparelho de apoio metálico esférico multidirecional com capacidade de 9.500 kN - fornecimento e instalação | C64: un | D64: 115946.95 | E64: 308305
A65: 308269 | B65: Aparelho de apoio metálico esférico unidirecional com capacidade de 1.000 kN - fornecimento e instalação | C65: un | D65: 10154.57 | E65: 308269
A66: 308270 | B66: Aparelho de apoio metálico esférico unidirecional com capacidade de 1.500 kN - fornecimento e instalação | C66: un | D66: 14764.88 | E66: 308270
A67: 308287 | B67: Aparelho de apoio metálico esférico unidirecional com capacidade de 10.000 kN - fornecimento e instalação | C67: un | D67: 135669.5 | E67: 308287
A68: 308271 | B68: Aparelho de apoio metálico esférico unidirecional com capacidade de 2.000 kN - fornecimento e instalação | C68: un | D68: 18025.59 | E68: =A68*1 -> 308271
A69: 308272 | B69: Aparelho de apoio metálico esférico unidirecional com capacidade de 2.500 kN - fornecimento e instalação | C69: un | D69: 21255.61 | E69: 308272
A70: 308273 | B70: Aparelho de apoio metálico esférico unidirecional com capacidade de 3.000 kN - fornecimento e instalação | C70: un | D70: 26092.71 | E70: 308273
A71: 308274 | B71: Aparelho de apoio metálico esférico unidirecional com capacidade de 3.500 kN - fornecimento e instalação | C71: un | D71: 30026.4 | E71: 308274
A72: 308275 | B72: Aparelho de apoio metálico esférico unidirecional com capacidade de 4.000 kN - fornecimento e instalação | C72: un | D72: 39119.61 | E72: 308275
A73: 308276 | B73: Aparelho de apoio metálico esférico unidirecional com capacidade de 4.500 kN - fornecimento e instalação | C73: un | D73: 59874.23 | E73: 308276
A74: 308277 | B74: Aparelho de apoio metálico esférico unidirecional com capacidade de 5.000 kN - fornecimento e instalação | C74: un | D74: 66288.58 | E74: 308277
A75: 308278 | B75: Aparelho de apoio metálico esférico unidirecional com capacidade de 5.500 kN - fornecimento e instalação | C75: un | D75: 72036.23 | E75: 308278
A76: 308279 | B76: Aparelho de apoio metálico esférico unidirecional com capacidade de 6.000 kN - fornecimento e instalação | C76: un | D76: 75765.14 | E76: 308279
A77: 308280 | B77: Aparelho de apoio metálico esférico unidirecional com capacidade de 6.500 kN - fornecimento e instalação | C77: un | D77: 86554.84 | E77: 308280
A78: 308281 | B78: Aparelho de apoio metálico esférico unidirecional com capacidade de 7.000 kN - fornecimento e instalação | C78: un | D78: 92983.68 | E78: 308281
A79: 308282 | B79: Aparelho de apoio metálico esférico unidirecional com capacidade de 7.500 kN - fornecimento e instalação | C79: un | D79: 99995.75 | E79: 308282
A80: 308283 | B80: Aparelho de apoio metálico esférico unidirecional com capacidade de 8.000 kN - fornecimento e instalação | C80: un | D80: 106241.96 | E80: 308283
A81: 308284 | B81: Aparelho de apoio metálico esférico unidirecional com capacidade de 8.500 kN - fornecimento e instalação | C81: un | D81: 114902.95 | E81: 308284
A82: 308285 | B82: Aparelho de apoio metálico esférico unidirecional com capacidade de 9.000 kN - fornecimento e instalação | C82: un | D82: 122009.82 | E82: 308285
A83: 308286 | B83: Aparelho de apoio metálico esférico unidirecional com capacidade de 9.500 kN - fornecimento e instalação | C83: un | D83: 129158.48 | E83: 308286
A84: 307733 | B84: Junta de dilatação em elastômero e perfil VV - L = 20 mm e H = 40 mm - fornecimento e instalação | C84: m | D84: 459.42 | E84: 307733
A85: 307734 | B85: Junta de dilatação em elastômero e perfil VV - L = 25 mm e H = 50 mm - fornecimento e instalação | C85: m | D85: 594.31 | E85: 307734
A86: 307735 | B86: Junta de dilatação em elastômero e perfil VV - L = 35 mm e H = 60 mm - fornecimento e instalação | C86: m | D86: 1001.73 | E86: 307735
A87: 307736 | B87: Junta de dilatação em elastômero e perfil VV - L = 40 mm e H = 70 mm - fornecimento e instalação | C87: m | D87: 1362.96 | E87: 307736
A88: 307737 | B88: Junta de dilatação em elastômero e perfil VV - L = 50 mm e H = 80 mm - fornecimento e instalação | C88: m | D88: 1662.89 | E88: 307737
A89: 307730 | B89: Junta de dilatação em perfil extrudado de borracha vulcanizada | C89: m | D89: 0 | E89: 307730
A90: 307084 | B90: Lábios poliméricos em junta de pavimento de concreto - L = 20 mm e H = 30 mm - confecção e assentamento | C90: m | D90: 30.25 | E90: 307084
A91: 407818 | B91: Armação em aço CA-25 - fornecimento, preparo e colocação | C91: kg | D91: 12.07 | E91: 407818
A92: 407819 | B92: Armação em aço CA-50 - fornecimento, preparo e colocação | C92: kg | D92: 11.94 | E92: 407819
A93: 407820 | B93: Armação em aço CA-60 - fornecimento, preparo e colocação | C93: kg | D93: 12.99 | E93: 407820
A94: 407740 | B94: Chumbador tipo espera em aço CA-25 para fixação de estrutura metálica em concreto - fornecimento e instalação | C94: kg | D94: 14.78 | E94: 407740
A95: 408037 | B95: Luva de emenda com rosca cônica para aço CA-50 - D = 12,5 mm - fornecimento e instalação | C95: un | D95: 22.69 | E95: 408037
A96: 408038 | B96: Luva de emenda com rosca cônica para aço CA-50 - D = 16 mm - fornecimento e instalação | C96: un | D96: 33.03 | E96: 408038
A97: 408039 | B97: Luva de emenda com rosca cônica para aço CA-50 - D = 20 mm - fornecimento e instalação | C97: un | D97: 43.51 | E97: 408039
A98: 408041 | B98: Luva de emenda com rosca cônica para aço CA-50 - D = 25 mm - fornecimento e instalação | C98: un | D98: 61 | E98: 408041
A99: 408042 | B99: Luva de emenda com rosca cônica para aço CA-50 - D = 32 mm - fornecimento e instalação | C99: un | D99: 91.53 | E99: 408042
A100: 408031 | B100: Luva de emenda prensada para aço CA-50 - D = 12,5 mm - fornecimento e instalação | C100: un | D100: 21.46 | E100: 408031
A101: 408032 | B101: Luva de emenda prensada para aço CA-50 - D = 16 mm - fornecimento e instalação | C101: un | D101: 29.14 | E101: 408032
A102: 408033 | B102: Luva de emenda prensada para aço CA-50 - D = 20 mm - fornecimento e instalação | C102: un | D102: 40.96 | E102: 408033
A103: 408035 | B103: Luva de emenda prensada para aço CA-50 - D = 25 mm - fornecimento e instalação | C103: un | D103: 75.19 | E103: 408035
A104: 408036 | B104: Luva de emenda prensada para aço CA-50 - D = 32 mm - fornecimento e instalação | C104: un | D104: 145.53 | E104: 408036
A105: 408067 | B105: Tela de aço eletrossoldada - fornecimento, preparo e colocação | C105: kg | D105: 12.06 | E105: 408067
A106: 407743 | B106: Treliça nervurada três barras longitudinais interligadas por duas diagonais sinusoidal - fornecimento e instalação | C106: kg | D106: 13.19 | E106: 407743
A107: 607137 | B107: Arco metálico galvanizado tipo MP 152S - arco alto - vão = 10,08 m e altura = 6,12 m - aterro rodoviário mínimo = 0,90 m e máximo = 5,00 m - areia e brita comerciais | C107: m | D107: 60265.54 | E107: 607137
A108: 606785 | B108: Arco metálico galvanizado tipo MP 152S - arco alto - vão = 10,08 m e altura = 6,12 m - aterro rodoviário mínimo = 0,90 m e máximo = 5,00 m - areia extraída e brita produzida | C108: m | D108: 59695.72 | E108: 606785
A109: 607139 | B109: Arco metálico galvanizado tipo MP 152S - arco alto - vão = 10,31 m e altura = 6,17 m - aterro rodoviário mínimo = 0,90 m e máximo = 4,90 m - areia e brita comerciais | C109: m | D109: 61068.51 | E109: 607139
A110: 606787 | B110: Arco metálico galvanizado tipo MP 152S - arco alto - vão = 10,31 m e altura = 6,17 m - aterro rodoviário mínimo = 0,90 m e máximo = 4,90 m - areia extraída e brita produzida | C110: m | D110: 60184.33 | E110: 606787
A111: 607140 | B111: Arco metálico galvanizado tipo MP 152S - arco alto - vão = 10,36 m e altura = 5,38 m - aterro rodoviário mínimo = 1,20 m e máximo = 3,60 m - areia e brita comerciais | C111: m | D111: 55824.3 | E111: 607140
A112: 606788 | B112: Arco metálico galvanizado tipo MP 152S - arco alto - vão = 10,36 m e altura = 5,38 m - aterro rodoviário mínimo = 1,20 m e máximo = 3,60 m - areia extraída e brita produzida | C112: m | D112: 55627.22 | E112: 606788
A113: 607141 | B113: Arco metálico galvanizado tipo MP 152S - arco alto - vão = 10,54 m e altura = 6,05 m - aterro rodoviário mínimo = 1,20 m e máximo = 4,20 m - areia e brita comerciais | C113: m | D113: 62117.38 | E113: 607141
A114: 606789 | B114: Arco metálico galvanizado tipo MP 152S - arco alto - vão = 10,54 m e altura = 6,05 m - aterro rodoviário mínimo = 1,20 m e máximo = 4,20 m - areia extraída e brita produzida | C114: m | D114: 61525.19 | E114: 606789
A115: 607144 | B115: Arco metálico galvanizado tipo MP 152S - arco alto - vão = 10,57 m e altura = 5,41 m - aterro rodoviário mínimo = 1,20 m e máximo = 4,10 m - areia e brita comerciais | C115: m | D115: 72982.52 | E115: 607144
A116: 606792 | B116: Arco metálico galvanizado tipo MP 152S - arco alto - vão = 10,57 m e altura = 5,41 m - aterro rodoviário mínimo = 1,20 m e máximo = 4,10 m - areia extraída e brita produzida | C116: m | D116: 72441.62 | E116: 606792
A117: 607142 | B117: Arco metálico galvanizado tipo MP 152S - arco alto - vão = 10,74 m e altura = 6,48 m - aterro rodoviário mínimo = 1,20 m e máximo = 4,70 m - areia e brita comerciais | C117: m | D117: 65139.89 | E117: 607142
A118: 606790 | B118: Arco metálico galvanizado tipo MP 152S - arco alto - vão = 10,74 m e altura = 6,48 m - aterro rodoviário mínimo = 1,20 m e máximo = 4,70 m - areia extraída e brita produzida | C118: m | D118: 64502.92 | E118: 606790
A119: 607145 | B119: Arco metálico galvanizado tipo MP 152S - arco alto - vão = 10,77 m e altura = 6,10 m - aterro rodoviário mínimo = 1,20 m e máximo = 4,70 m - areia e brita comerciais | C119: m | D119: 80493.02 | E119: 607145
A120: 606793 | B120: Arco metálico galvanizado tipo MP 152S - arco alto - vão = 10,77 m e altura = 6,10 m - aterro rodoviário mínimo = 1,20 m e máximo = 4,70 m - areia extraída e brita produzida | C120: m | D120: 79888.07 | E120: 606793
A121: 607146 | B121: Arco metálico galvanizado tipo MP 152S - arco alto - vão = 10,97 m e altura = 6,53 m - aterro rodoviário mínimo = 1,20 m e máximo = 4,70 m - areia e brita comerciais | C121: m | D121: 83968.19 | E121: 607146
A122: 606794 | B122: Arco metálico galvanizado tipo MP 152S - arco alto - vão = 10,97 m e altura = 6,53 m - aterro rodoviário mínimo = 1,20 m e máximo = 4,70 m - areia extraída e brita produzida | C122: m | D122: 83311.6 | E122: 606794
A123: 607143 | B123: Arco metálico galvanizado tipo MP 152S - arco alto - vão = 11,35 m e altura = 7,12 m - aterro rodoviário mínimo = 1,20 m e máximo = 4,70 m - areia e brita comerciais | C123: m | D123: 70343.67 | E123: 607143
A124: 606791 | B124: Arco metálico galvanizado tipo MP 152S - arco alto - vão = 11,35 m e altura = 7,12 m - aterro rodoviário mínimo = 1,20 m e máximo = 4,70 m - areia extraída e brita produzida | C124: m | D124: 69610.34 | E124: 606791
A125: 607147 | B125: Arco metálico galvanizado tipo MP 152S - arco alto - vão = 11,58 m e altura = 7,16 m - aterro rodoviário mínimo = 1,20 m e máximo = 6,40 m - areia e brita comerciais | C125: m | D125: 90567.18 | E125: 607147
A126: 606795 | B126: Arco metálico galvanizado tipo MP 152S - arco alto - vão = 11,58 m e altura = 7,16 m - aterro rodoviário mínimo = 1,20 m e máximo = 6,40 m - areia extraída e brita produzida | C126: m | D126: 89810.58 | E126: 606795
A127: 607112 | B127: Arco metálico galvanizado tipo MP 152S - arco alto - vão = 6,12 m e altura = 2,77 m - aterro rodoviário mínimo = 0,75 m e máximo = 5,40 m - areia e brita comerciais | C127: m | D127: 29246.26 | E127: 607112
A128: 606760 | B128: Arco metálico galvanizado tipo MP 152S - arco alto - vão = 6,12 m e altura = 2,77 m - aterro rodoviário mínimo = 0,75 m e máximo = 5,40 m - areia extraída e brita produzida | C128: m | D128: 29047.93 | E128: 606760
A129: 607113 | B129: Arco metálico galvanizado tipo MP 152S - arco alto - vão = 6,30 m e altura = 3,68 m - aterro rodoviário mínimo = 0,75 m e máximo = 7,50 m - areia e brita comerciais | C129: m | D129: 34476.98 | E129: 607113
A130: 606761 | B130: Arco metálico galvanizado tipo MP 152S - arco alto - vão = 6,30 m e altura = 3,68 m - aterro rodoviário mínimo = 0,75 m e máximo = 7,50 m - areia extraída e brita produzida | C130: m | D130: 34249 | E130: 606761
A131: 606762 | B131: Arco metálico galvanizado tipo MP 152S - arco alto - vão = 6,55 m e altura = 3,56 m - aterro rodoviário mínimo = 0,75 m e máximo = 4,9 m - areia extraída e brita produzida | C131: m | D131: 34625.27 | E131: 606762
A132: 607114 | B132: Arco metálico galvanizado tipo MP 152S - arco alto - vão = 6,55 m e altura = 3,56 m - aterro rodoviário mínimo = 0,75 m e máximo = 4,90 m - areia e brita comerciais | C132: m | D132: 34857.55 | E132: =A132*1 -> 607114
A133: 607116 | B133: Arco metálico galvanizado tipo MP 152S - arco alto - vão = 6,78 m e altura = 3,61 m - aterro rodoviário mínimo = 0,75 m e máximo = 4,80 m - areia e brita comerciais | C133: m | D133: 36373.45 | E133: 607116
A134: 606764 | B134: Arco metálico galvanizado tipo MP 152S - arco alto - vão = 6,78 m e altura = 3,61 m - aterro rodoviário mínimo = 0,75 m e máximo = 4,80 m - areia extraída e brita produzida | C134: m | D134: 36131.39 | E134: 606764
A135: 607115 | B135: Arco metálico galvanizado tipo MP 152S - arco alto - vão = 6,96 m e altura = 4,42 m - aterro rodoviário mínimo = 0,75 m e máximo = 8,10 m - areia e brita comerciais | C135: m | D135: 41288.83 | E135: 607115
A136: 606763 | B136: Arco metálico galvanizado tipo MP 152S - arco alto - vão = 6,96 m e altura = 4,42 m - aterro rodoviário mínimo = 0,75 m e máximo = 8,10 m - areia extraída e brita produzida | C136: m | D136: 40997.61 | E136: 606763
A137: 607117 | B137: Arco metálico galvanizado tipo MP 152S - arco alto - vão = 6,99 m e altura = 4,27 m - aterro rodoviário mínimo = 0,75 m e máximo = 5,70 m - areia e brita comerciais | C137: m | D137: 41270.55 | E137: 607117
A138: 606765 | B138: Arco metálico galvanizado tipo MP 152S - arco alto - vão = 6,99 m e altura = 4,27 m - aterro rodoviário mínimo = 0,75 m e máximo = 5,70 m - areia extraída e brita produzida | C138: m | D138: 40987.33 | E138: 606765
A139: 607118 | B139: Arco metálico galvanizado tipo MP 152S - arco alto - vão = 7,01 m e altura = 3,63 m - aterro rodoviário mínimo = 0,75 m e máximo = 4,60 m - areia e brita comerciais | C139: m | D139: 37011.17 | E139: 607118
A140: 606766 | B140: Arco metálico galvanizado tipo MP 152S - arco alto - vão = 7,01 m e altura = 3,63 m - aterro rodoviário mínimo = 0,75 m e máximo = 4,60 m - areia extraída e brita produzida | C140: m | D140: 36761.28 | E140: 606766
A141: 607120 | B141: Arco metálico galvanizado tipo MP 152S - arco alto - vão = 7,24 m e altura = 3,68 m - aterro rodoviário mínimo = 0,90 m e máximo = 4,4 m - areia e brita comerciais | C141: m | D141: 37685.64 | E141: 607120
A142: 606768 | B142: Arco metálico galvanizado tipo MP 152S - arco alto - vão = 7,24 m e altura = 3,68 m - aterro rodoviário mínimo = 0,90 m e máximo = 4,40 m - areia extraída e brita produzida | C142: m | D142: 37422.49 | E142: 606768
A143: 607119 | B143: Arco metálico galvanizado tipo MP 152S - arco alto - vão = 7,42 m e altura = 4,52 m - aterro rodoviário mínimo = 0,90 m e máximo = 6,40 m - areia e brita comerciais | C143: m | D143: 43289.85 | E143: 607119
A144: 606767 | B144: Arco metálico galvanizado tipo MP 152S - arco alto - vão = 7,42 m e altura = 4,52 m - aterro rodoviário mínimo = 0,90 m e máximo = 6,40 m - areia extraída e brita produzida | C144: m | D144: 42968.93 | E144: 606767
A145: 607121 | B145: Arco metálico galvanizado tipo MP 152S - arco alto - vão = 7,47 m e altura = 4,19 m - aterro rodoviário mínimo = 0,90 m e máximo = 4,30 m - areia e brita comerciais | C145: m | D145: 40803.59 | E145: 607121
A146: 606769 | B146: Arco metálico galvanizado tipo MP 152S - arco alto - vão = 7,47 m e altura = 4,19 m - aterro rodoviário mínimo = 0,90 m e máximo = 4,30 m - areia extraída e brita produzida | C146: m | D146: 40503.57 | E146: 606769
A147: 607123 | B147: Arco metálico galvanizado tipo MP 152S - arco alto - vão = 7,67 m e altura = 3,99 m - aterro rodoviário mínimo = 0,90 m e máximo = 4,10 m - areia e brita comerciais | C147: m | D147: 40256.71 | E147: 607123
A148: 606771 | B148: Arco metálico galvanizado tipo MP 152S - arco alto - vão = 7,67 m e altura = 3,99 m - aterro rodoviário mínimo = 0,90 m e máximo = 4,10 m - areia extraída e brita produzida | C148: m | D148: 39957.81 | E148: 606771
A149: 607122 | B149: Arco metálico galvanizado tipo MP 152S - arco alto - vão = 7,85 m e altura = 4,60 m - aterro rodoviário mínimo = 0,90 m e máximo = 6,00 m - areia e brita comerciais | C149: m | D149: 44631.12 | E149: 607122
A150: 606770 | B150: Arco metálico galvanizado tipo MP 152S - arco alto - vão = 7,85 m e altura = 4,60 m - aterro rodoviário mínimo = 0,90 m e máximo = 6,00 m - areia extraída e brita produzida | C150: m | D150: 44286.39 | E150: 606770
A151: 607125 | B151: Arco metálico galvanizado tipo MP 152S - arco alto - vão = 7,90 m e altura = 4,04 m - aterro rodoviário mínimo = 0,90 m e máximo = 4,00 m - areia e brita comerciais | C151: m | D151: 41599.68 | E151: 607125
A152: 606773 | B152: Arco metálico galvanizado tipo MP 152S - arco alto - vão = 7,90 m e altura = 4,04 m - aterro rodoviário mínimo = 0,90 m e máximo = 4,00 m - areia extraída e brita produzida | C152: m | D152: 41285.18 | E152: 606773
A153: 607124 | B153: Arco metálico galvanizado tipo MP 152S - arco alto - vão = 8,08 m e altura = 4,65 m - aterro rodoviário mínimo = 0,90 m e máximo = 5,80 m - areia e brita comerciais | C153: m | D153: 45298.39 | E153: 607124
A154: 606772 | B154: Arco metálico galvanizado tipo MP 152S - arco alto - vão = 8,08 m e altura = 4,65 m - aterro rodoviário mínimo = 0,90 m e máximo = 5,80 m - areia extraída e brita produzida | C154: m | D154: 44942.63 | E154: 606772
A155: 607126 | B155: Arco metálico galvanizado tipo MP 152S - arco alto - vão = 8,31 m e altura = 4,70 m - aterro rodoviário mínimo = 0,90 m e máximo = 5,60 m - areia e brita comerciais | C155: m | D155: 46548.73 | E155: 607126
A156: 606774 | B156: Arco metálico galvanizado tipo MP 152S - arco alto - vão = 8,31 m e altura = 4,70 m - aterro rodoviário mínimo = 0,90 m e máximo = 5,60 m - areia extraída e brita produzida | C156: m | D156: 46175.83 | E156: 606774
A157: 607127 | B157: Arco metálico galvanizado tipo MP 152S - arco alto - vão = 8,36 m e altura = 4,11 m - aterro rodoviário mínimo = 0,90 m e máximo = 3,70 m - areia e brita comerciais | C157: m | D157: 42881.99 | E157: 607127
A158: 606775 | B158: Arco metálico galvanizado tipo MP 152S - arco alto - vão = 8,36 m e altura = 4,11 m - aterro rodoviário mínimo = 0,90 m e máximo = 3,70 m - areia extraída e brita produzida | C158: m | D158: 42548.6 | E158: 606775
A159: 607129 | B159: Arco metálico galvanizado tipo MP 152S - arco alto - vão = 8,59 m e altura = 4,39 m - aterro rodoviário mínimo = 0,90 m e máximo = 3,60 m - areia e brita comerciais | C159: m | D159: 44867.46 | E159: 607129
A160: 606777 | B160: Arco metálico galvanizado tipo MP 152S - arco alto - vão = 8,59 m e altura = 4,39 m - aterro rodoviário mínimo = 0,90 m e máximo = 3,60 m - areia extraída e brita produzida | C160: m | D160: 44502.34 | E160: 606777
A161: 607128 | B161: Arco metálico galvanizado tipo MP 152S - arco alto - vão = 8,97 m e altura = 5,00 m - aterro rodoviário mínimo = 0,90 m e máximo = 5,80 m - areia e brita comerciais | C161: m | D161: 49311.79 | E161: 607128
A162: 606776 | B162: Arco metálico galvanizado tipo MP 152S - arco alto - vão = 8,97 m e altura = 5,00 m - aterro rodoviário mínimo = 0,90 m e máximo = 5,80 m - areia extraída e brita produzida | C162: m | D162: 48885.17 | E162: 606776
A163: 607130 | B163: Arco metálico galvanizado tipo MP 152S - arco alto - vão = 9,17 m e altura = 5,49 m - aterro rodoviário mínimo = 0,90 m e máximo = 5,60 m - areia e brita comerciais | C163: m | D163: 52549.89 | E163: 607130
A164: 606778 | B164: Arco metálico galvanizado tipo MP 152S - arco alto - vão = 9,17 m e altura = 5,49 m - aterro rodoviário mínimo = 0,90 m e máximo = 5,60 m - areia extraída e brita produzida | C164: m | D164: 52080.97 | E164: 606778
A165: 607131 | B165: Arco metálico galvanizado tipo MP 152S - arco alto - vão = 9,22 m e altura = 4,70 m - aterro rodoviário mínimo = 0,90 m e máximo = 4,10 m - areia e brita comerciais | C165: m | D165: 49311.39 | E165: 607131
A166: 606779 | B166: Arco metálico galvanizado tipo MP 152S - arco alto - vão = 9,22 m e altura = 4,70 m - aterro rodoviário mínimo = 0,90 m e máximo = 4,10 m - areia extraída e brita produzida | C166: m | D166: 48896.54 | E166: 606779
A167: 607133 | B167: Arco metálico galvanizado tipo MP 152S - arco alto - vão = 9,45 m e altura = 4,75 m - aterro rodoviário mínimo = 0,90 m e máximo = 4,00 m - areia e brita comerciais | C167: m | D167: 50048.13 | E167: 607133
A168: 606781 | B168: Arco metálico galvanizado tipo MP 152S - arco alto - vão = 9,45 m e altura = 4,75 m - aterro rodoviário mínimo = 0,90 m e máximo = 4,00 m - areia extraída e brita produzida | C168: m | D168: 49620.81 | E168: 606781
A169: 607132 | B169: Arco metálico galvanizado tipo MP 152S - arco alto - vão = 9,63 m e altura = 5,59 m - aterro rodoviário mínimo = 0,90 m e máximo = 5,30 m - areia e brita comerciais | C169: m | D169: 54564.65 | E169: 607132
A170: 606780 | B170: Arco metálico galvanizado tipo MP 152S - arco alto - vão = 9,63 m e altura = 5,59 m - aterro rodoviário mínimo = 0,90 m e máximo = 5,30 m - areia extraída e brita produzida | C170: m | D170: 54062.85 | E170: 606780
A171: 607134 | B171: Arco metálico galvanizado tipo MP 152S - arco alto - vão = 9,65 m e altura = 5,41 m - aterro rodoviário mínimo = 0,90 m e máximo = 4,70 m - areia e brita comerciais | C171: m | D171: 54023.41 | E171: 607134
A172: 606782 | B172: Arco metálico galvanizado tipo MP 152S - arco alto - vão = 9,65 m e altura = 5,41 m - aterro rodoviário mínimo = 0,90 m e máximo = 4,70 m - areia extraída e brita produzida | C172: m | D172: 53533.08 | E172: 606782
A173: 607136 | B173: Arco metálico galvanizado tipo MP 152S - arco alto - vão = 9,68 m e altura = 5,23 m - aterro rodoviário mínimo = 0,90 m e máximo = 3,90 m - areia e brita comerciais | C173: m | D173: 53303.89 | E173: 607136
A174: 606784 | B174: Arco metálico galvanizado tipo MP 152S - arco alto - vão = 9,68 m e altura = 5,23 m - aterro rodoviário mínimo = 0,90 m e máximo = 3,90 m - areia extraída e brita produzida | C174: m | D174: 52829.23 | E174: 606784
A175: 607135 | B175: Arco metálico galvanizado tipo MP 152S - arco alto - vão = 9,86 m e altura = 6,07 m - aterro rodoviário mínimo = 0,90 m e máximo = 5,20 m - areia e brita comerciais | C175: m | D175: 59417.74 | E175: 607135
A176: 606783 | B176: Arco metálico galvanizado tipo MP 152S - arco alto - vão = 9,86 m e altura = 6,07 m - aterro rodoviário mínimo = 0,90 m e máximo = 5,20 m - areia extraída e brita produzida | C176: m | D176: 58867.49 | E176: 606783
A177: 607138 | B177: Arco metálico galvanizado tipo MP 152S - arco alto - vão = 9,91 m e altura = 5,28 m - aterro rodoviário mínimo = 0,90 m e máximo = 3,80 m - areia e brita comerciais | C177: m | D177: 54208.62 | E177: 607138
A178: 606786 | B178: Arco metálico galvanizado tipo MP 152S - arco alto - vão = 9,91 m e altura = 5,28 m - aterro rodoviário mínimo = 0,90 m e máximo = 3,80 m - areia extraída e brita produzida | C178: m | D178: 53702.97 | E178: 606786
A179: 606842 | B179: Arco metálico galvanizado tipo MP 152S - ovoide - vão = 7,21 m e altura = 7,82 m - aterro rodoviário mínimo = 0,75 m e máximo = 6,70 m - areia e brita comerciais | C179: m | D179: 67560.94 | E179: 606842
A180: 606832 | B180: Arco metálico galvanizado tipo MP 152S - ovoide - vão = 7,21 m e altura = 7,82 m - aterro rodoviário mínimo = 0,75 m e máximo = 6,70 m - areia extraída e brita produzida | C180: m | D180: 67278.03 | E180: 606832
A181: 606843 | B181: Arco metálico galvanizado tipo MP 152S - ovoide - vão = 7,31 m e altura = 7,87 m - aterro rodoviário mínimo = 0,90 m e máximo = 6,80 m - areia e brita comerciais | C181: m | D181: 70192.29 | E181: 606843
A182: 606833 | B182: Arco metálico galvanizado tipo MP 152S - ovoide - vão = 7,31 m e altura = 7,87 m - aterro rodoviário mínimo = 0,90 m e máximo = 6,80 m - areia extraída e brita produzida | C182: m | D182: 69894.89 | E182: 606833
A183: 606845 | B183: Arco metálico galvanizado tipo MP 152S - ovoide - vão = 7,57 m e altura = 8,44 m - aterro rodoviário mínimo = 0,90 m e máximo = 5,60 m - areia e brita comerciais | C183: m | D183: 72777.49 | E183: 606845
A184: 606835 | B184: Arco metálico galvanizado tipo MP 152S - ovoide - vão = 7,57 m e altura = 8,44 m - aterro rodoviário mínimo = 0,90 m e máximo = 5,60 m - areia extraída e brita produzida | C184: m | D184: 72481.19 | E184: 606835
A185: 606844 | B185: Arco metálico galvanizado tipo MP 152S - ovoide - vão = 7,77 m e altura = 7,90 m - aterro rodoviário mínimo = 0,90 m e máximo = 6,80 m - areia e brita comerciais | C185: m | D185: 71004.81 | E185: 606844
A186: 606834 | B186: Arco metálico galvanizado tipo MP 152S - ovoide - vão = 7,77 m e altura = 7,90 m - aterro rodoviário mínimo = 0,90 m e máximo = 6,80 m - areia extraída e brita produzida | C186: m | D186: 70699.79 | E186: 606834
A187: 606847 | B187: Arco metálico galvanizado tipo MP 152S - ovoide - vão = 8,13 m e altura = 8,01 m - aterro rodoviário mínimo = 0,90 m e máximo = 3,50 m - areia e brita comerciais | C187: m | D187: 76112.34 | E187: 606847
A188: 606837 | B188: Arco metálico galvanizado tipo MP 152S - ovoide - vão = 8,13 m e altura = 8,01 m - aterro rodoviário mínimo = 0,90 m e máximo = 3,50 m - areia extraída e brita produzida | C188: m | D188: 75778.74 | E188: 606837
A189: 606846 | B189: Arco metálico galvanizado tipo MP 152S - ovoide - vão = 8,36 m e altura = 8,23 m - aterro rodoviário mínimo = 0,90 m e máximo = 4,30 m - areia e brita comerciais | C189: m | D189: 76576.05 | E189: 606846
A190: 606836 | B190: Arco metálico galvanizado tipo MP 152S - ovoide - vão = 8,36 m e altura = 8,23 m - aterro rodoviário mínimo = 0,90 m e máximo = 4,30 m - areia extraída e brita produzida | C190: m | D190: 76238.84 | E190: 606836
A191: 606848 | B191: Arco metálico galvanizado tipo MP 152S - ovoide - vão = 8,56 m e altura = 8,48 m - aterro rodoviário mínimo = 0,90 m e máximo = 5,30 m - areia e brita comerciais | C191: m | D191: 76414.18 | E191: 606848
A192: 606838 | B192: Arco metálico galvanizado tipo MP 152S - ovoide - vão = 8,56 m e altura = 8,48 m - aterro rodoviário mínimo = 0,90 m e máximo = 5,30 m - areia extraída e brita produzida | C192: m | D192: 76063.37 | E192: 606838
A193: 606849 | B193: Arco metálico galvanizado tipo MP 152S - ovoide - vão = 8,71 m e altura = 9,32 m - aterro rodoviário mínimo = 0,90 m e máximo = 6,00 m - areia e brita comerciais | C193: m | D193: 82224.7 | E193: 606849
A194: 606839 | B194: Arco metálico galvanizado tipo MP 152S - ovoide - vão = 8,71 m e altura = 9,32 m - aterro rodoviário mínimo = 0,90 m e máximo = 6,00 m - areia extraída e brita produzida | C194: m | D194: 81882.67 | E194: 606839
A195: 606850 | B195: Arco metálico galvanizado tipo MP 152S - ovoide - vão = 9,15 m e altura = 9,04 m - aterro rodoviário mínimo = 0,90 m e máximo = 4,70 m - areia e brita comerciais | C195: m | D195: 83714.95 | E195: 606850
A196: 606840 | B196: Arco metálico galvanizado tipo MP 152S - ovoide - vão = 9,15 m e altura = 9,04 m - aterro rodoviário mínimo = 0,90 m e máximo = 4,70 m - areia extraída e brita produzida | C196: m | D196: 83340.74 | E196: =A196*1 -> 606840
A197: 606851 | B197: Arco metálico galvanizado tipo MP 152S - ovoide - vão = 9,15 m e altura = 9,50 m - aterro rodoviário mínimo = 0,90 m e máximo = 5,70 m - areia e brita comerciais | C197: m | D197: 84443.71 | E197: 606851
A198: 606841 | B198: Arco metálico galvanizado tipo MP 152S - ovoide - vão = 9,15 m e altura = 9,50 m - aterro rodoviário mínimo = 0,90 m e máximo = 5,70 m - areia extraída e brita produzida | C198: m | D198: 84085.64 | E198: 606841
A199: 605604 | B199: Argamassa de solo-cimento com 10% de cimento e material de jazida - preparo e injeção em tunnel liner | C199: m³ | D199: 289.49 | E199: 605604
A200: 605695 | B200: Bueiro metálico com chapas múltiplas MP 100 com revestimento em epóxi - D = 0,60 m - brita comercial | C200: m | D200: 1608.69 | E200: 605695
... 6173 more rows

Sheet MO Sicro
A1: CGCIT | B1: SISTEMA DE CUSTOS REFERENCIAIS DE OBRAS - SICRO | G1: DNIT
A3: Pernambuco - Julho/2023
A4: Sem desoneração
A5: Código | B5: Descrição | C5: Unidade | D5: Salário (R$) | E5: Encargos Totais | F5: Custo (R$) | G5: Periculosidade/ Insalubridade
A6: P9801 | B6: Ajudante | C6: h | D6: 7.0256 | E6: 2.049525 | F6: 21.4247 | G6: 0
A7: P9802 | B7: Ajudante especializado | C7: h | D7: 8.3916 | E7: 1.993685 | F7: 25.1218 | G7: 0
A8: P9803 | B8: Almoxarife | C8: mês | D8: 2637.8 | E8: 1.211854 | F8: 5834.4284 | G8: 0
A9: P9804 | B9: Apontador | C9: mês | D9: 1953.6 | E9: 1.3733 | F9: 4636.4788 | G9: 0
A10: P9805 | B10: Armador | C10: h | D10: 10.8106 | E10: 1.719987 | F10: 29.4046 | G10: 0
A11: P9806 | B11: Auxiliar administrativo | C11: mês | D11: 1953.6 | E11: 1.369024 | F11: 4628.1252 | G11: 0
A12: P9807 | B12: Bombeiro hidráulico | C12: h | D12: 10.8106 | E12: 1.799569 | F12: 30.265 | G12: 0
A13: P9808 | B13: Carpinteiro | C13: h | D13: 8.9034 | E13: 1.853355 | F13: 25.4045 | G13: 0
A14: P9809 | B14: Encarregado administrativo | C14: mês | D14: 3868.0365 | E14: 0.971681 | F14: 7626.534 | G14: 0
A15: P9810 | B15: Eletricista | C15: h | D15: 10.4335 | E15: 1.796212 | F15: 29.1742 | G15: 0
A16: P9811 | B16: Encarregado especializado | C16: mês | D16: 3589.4784 | E16: 1.014098 | F16: 7229.5612 | G16: 0
A17: P9812 | B17: Engenheiro | C17: mês | D17: 12819.9474 | E17: 0.82593 | F17: 23408.3265 | G17: 0
A18: P9814 | B18: Operacional | C18: mês | D18: 1460.9463 | E18: 1.504089 | F18: 3658.3395 | G18: 0
A19: P9815 | B19: Jardineiro | C19: h | D19: 9.63 | E19: 1.796404 | F19: 26.9293 | G19: 0
A20: P9819 | B20: Engenheiro supervisor | C20: mês | D20: 12819.9474 | E20: 0.82593 | F20: 23408.3265 | G20: 0
A21: P9821 | B21: Pedreiro | C21: h | D21: 8.912 | E21: 1.847871 | F21: 25.3802 | G21: 0
A22: P9822 | B22: Pintor | C22: h | D22: 10.8106 | E22: 1.728949 | F22: 29.5015 | G22: 0
A23: P9823 | B23: Serralheiro | C23: h | D23: 9.3101 | E23: 1.822228 | F23: 26.2752 | G23: 0
A24: P9824 | B24: Servente | C24: h | D24: 6.7 | E24: 2.093643 | F24: 20.7274 | G24: 0
A25: P9825 | B25: Soldador | C25: h | D25: 12.4336 | E25: 1.6457 | F25: 32.8955 | G25: 0
A26: P9826 | B26: Chefe setor de finanças | C26: mês | D26: 9651.0845 | E26: 0.852906 | F26: 17882.5523 | G26: 0
A27: P9827 | B27: Vigia | C27: mês | D27: 1414.3496 | E27: 1.829766 | F27: 4426.5832 | G27: 0.3
A28: P9830 | B28: Montador | C28: h | D28: 10.8106 | E28: 1.800378 | F28: 30.2737 | G28: 0
A29: P9833 | B29: Auxiliar de laboratório | C29: mês | D29: 2378.3386 | E29: 1.260437 | F29: 5376.0845 | G29: 0
A30: P9836 | B30: Geólogo | C30: h | D30: 49.7447 | E30: 1.196306 | F30: 109.2545 | G30: 0
A31: P9837 | B31: Oceanógrafo | C31: mês | D31: 4376.363 | E31: 1.005441 | F31: 8776.5377 | G31: 0
A32: P9840 | B32: Encarregado geral | C32: mês | D32: 5294.449 | E32: 0.930693 | F32: 10221.9556 | G32: 0
A33: P9842 | B33: Faxineiro | C33: mês | D33: 1454.2 | E33: 1.588055 | F33: 3763.5495 | G33: 0
A34: P9843 | B34: Operador de equipamento leve | C34: h | D34: 8.88 | E34: 1.831977 | F34: 25.1479 | G34: 0
A35: P9844 | B35: Capitão fluvial | C35: mês | D35: 5212.4597 | E35: 0.959662 | F35: 10214.6592 | G35: 0
A36: P9845 | B36: Operador de equipamento pesado | C36: h | D36: 11.74 | E36: 1.651178 | F36: 31.1248 | G36: 0
A37: P9846 | B37: Operador de equipamento especial | C37: h | D37: 14.44 | E37: 1.532913 | F37: 36.5752 | G37: 0
A38: P9847 | B38: Perfurador de tubulão | C38: h | D38: 6.9936 | E38: 2.047452 | F38: 21.3126 | G38: 0
A39: P9848 | B39: Desenhista | C39: mês | D39: 3000.8408 | E39: 1.128553 | F39: 6387.4486 | G39: 0
A40: P9849 | B40: Condutor maquinista fluvial | C40: mês | D40: 2162.4018 | E40: 1.25253 | F40: 4870.8749 | G40: 0
A41: P9850 | B41: Copeiro | C41: mês | D41: 1504.8 | E41: 1.529658 | F41: 3806.6293 | G41: 0
A42: P9851 | B42: Médico do trabalho | C42: mês | D42: 9709.5193 | E42: 0.847276 | F42: 17936.1619 | G42: 0
A43: P9852 | B43: Blaster | C43: h | D43: 10.1587 | E43: 2.108382 | F43: 34.6247 | G43: 0.3
A44: P9853 | B44: Pré-marcador | C44: h | D44: 6.993 | E44: 2.022174 | F44: 21.134 | G44: 0
A45: P9854 | B45: Recepcionista | C45: mês | D45: 1686.3401 | E45: 1.416485 | F45: 4075.0155 | G45: 0
A46: P9855 | B46: Marinheiro de máquinas | C46: mês | D46: 2052.3159 | E46: 1.277787 | F46: 4674.7384 | G46: 0
A47: P9856 | B47: Marinheiro de convés | C47: h | D47: 9.1112 | E47: 1.736501 | F47: 24.9328 | G47: 0
A48: P9857 | B48: Marinheiro de convés - mensalista | C48: mês | D48: 2004.4739 | E48: 1.288588 | F48: 4587.4149 | G48: 0
A49: P9858 | B49: Laboratorista | C49: mês | D49: 3262.6 | E49: 1.126851 | F49: 6939.064 | G49: 0
A50: P9859 | B50: Trabalhador de via | C50: h | D50: 6.3405 | E50: 2.163947 | F50: 20.061 | G50: 0
A51: P9861 | B51: Selecionador de material pétreo | C51: h | D51: 6.993 | E51: 2.033898 | F51: 21.216 | G51: 0
A52: P9864 | B52: Engenheiro de segurança do trabalho | C52: mês | D52: 11464.4099 | E52: 0.838737 | F52: 21080.0346 | G52: 0
A53: P9865 | B53: Técnico em enfermagem | C53: mês | D53: 2993.1905 | E53: 1.172613 | F53: 6503.0445 | G53: 0
A54: P9866 | B54: Motorista de caminhão | C54: h | D54: 11.74 | E54: 1.63468 | F54: 30.9311 | G54: 0
A55: P9867 | B55: Técnico especializado - mensalista | C55: mês | D55: 3203.9229 | E55: 1.135288 | F55: 6841.2981 | G55: 0
A56: P9869 | B56: Encarregado de obras de artes especiais | C56: mês | D56: 3589.4784 | E56: 1.014098 | F56: 7229.5612 | G56: 0
A57: P9870 | B57: Motorista de veículo leve | C57: h | D57: 10.8106 | E57: 1.68283 | F57: 29.003 | G57: 0
A58: P9871 | B58: Motorista de veículo especial | C58: h | D58: 11.9736 | E58: 1.624083 | F58: 31.4197 | G58: 0
A59: P9875 | B59: Encarregado de turma | C59: mês | D59: 2295.6486 | E59: 1.277683 | F59: 5228.7597 | G59: 0
A60: P9876 | B60: Técnico de segurança do trabalho | C60: mês | D60: 3262.6 | E60: 1.125343 | F60: 6934.144 | G60: 0
A61: P9878 | B61: Secretária | C61: mês | D61: 2811.595 | E61: 1.155662 | F61: 6060.8485 | G61: 0
A62: P9880 | B62: Piloto fluvial | C62: mês | D62: 3276.33 | E62: 1.080547 | F62: 6816.5585 | G62: 0
A63: P9882 | B63: Técnico especializado | C63: h | D63: 14.5633 | E63: 1.545124 | F63: 37.0654 | G63: 0
A64: P9883 | B64: Chefe do setor administrativo | C64: mês | D64: 3868.0319 | E64: 0.971681 | F64: 7626.525 | G64: 0
A65: P9884 | B65: Encarregado de terraplenagem | C65: mês | D65: 3589.4784 | E65: 1.014098 | F65: 7229.5612 | G65: 0
A66: P9885 | B66: Frentista de túnel | C66: h | D66: 8.88 | E66: 1.891225 | F66: 25.674 | G66: 0
A67: P9889 | B67: Técnico da qualidade | C67: mês | D67: 3523.8065 | E67: 1.024666 | F67: 7134.5312 | G67: 0
A68: P9891 | B68: Engenheiro mecânico | C68: mês | D68: 12659.3302 | E68: 0.828328 | F68: 23145.4078 | G68: 0
A69: P9892 | B69: Auxiliar de blaster | C69: h | D69: 9.63 | E69: 2.145877 | F69: 33.1837 | G69: 0.3
A70: P9893 | B70: Encarregado de pavimentação | C70: mês | D70: 3589.4784 | E70: 1.014098 | F70: 7229.5612 | G70: 0
A71: P9896 | B71: Porteiro | C71: mês | D71: 1454.2 | E71: 1.58758 | F71: 3762.8588 | G71: 0
A72: P9897 | B72: Técnico de meio ambiente | C72: mês | D72: 3466.6378 | E72: 1.030252 | F72: 7038.1483 | G72: 0
A73: P9900 | B73: Comprador | C73: mês | D73: 3233.849 | E73: 1.128609 | F73: 6883.6 | G73: 0
A74: P9901 | B74: Encarregado de superestrutura ferroviária | C74: mês | D74: 3589.4784 | E74: 1.014098 | F74: 7229.5612 | G74: 0
A75: P9903 | B75: Auxiliar técnico | C75: mês | D75: 1741.8271 | E75: 1.43558 | F75: 4242.3592 | G75: 0
A76: P9907 | B76: Comandante de longo curso | C76: mês | D76: 12841.1521 | E76: 0.838136 | F76: 23603.7839 | G76: 0
A77: P9908 | B77: Imediato | C77: mês | D77: 9352.1689 | E77: 0.869113 | F77: 17480.2604 | G77: 0
A78: P9909 | B78: Oficial de náutica | C78: mês | D78: 2597.5548 | E78: 1.16847 | F78: 5632.7196 | G78: 0
A79: P9910 | B79: Oficial de máquinas | C79: mês | D79: 2931.3574 | E79: 1.120374 | F79: 6215.574 | G79: 0
A80: P9911 | B80: Condutor de máquinas | C80: mês | D80: 2162.4018 | E80: 1.25253 | F80: 4870.8749 | G80: 0
A81: P9912 | B81: Capitão fluvial com periculosidade | C81: h | D81: 23.693 | E81: 1.668679 | F81: 70.3369 | G81: 0.3
A82: P9913 | B82: Draguista | C82: mês | D82: 3595.3388 | E82: 1.051671 | F82: 7376.4523 | G82: 0
A83: P9915 | B83: Maquinista | C83: h | D83: 12.3889 | E83: 1.626903 | F83: 32.5444 | G83: 0
A84: P9916 | B84: Encarregado de conservação rodoviária | C84: mês | D84: 3589.4784 | E84: 1.014098 | F84: 7229.5612 | G84: 0
A85: P9920 | B85: Mestre fluvial | C85: mês | D85: 5212.4597 | E85: 0.959662 | F85: 10214.6592 | G85: 0
A86: P9921 | B86: Mergulhador raso autônomo de emergência | C86: h | D86: 9.2239 | E86: 2.507861 | F86: 34.7562 | G86: 0.2602
A87: P9922 | B87: Mergulhador raso dependente de emergência | C87: h | D87: 9.2756 | E87: 2.580886 | F87: 35.9975 | G87: 0.3
A88: P9924 | B88: Mergulhador raso dependente | C88: h | D88: 9.2756 | E88: 3.983554 | F88: 49.0081 | G88: 0.3
A89: P9925 | B89: Mergulhador raso autônomo | C89: h | D89: 9.2239 | E89: 3.608643 | F89: 44.9097 | G89: 0.2602
A90: P9926 | B90: Mergulhador raso auxiliar de superfície | C90: h | D90: 9.2239 | E90: 2.26502 | F90: 32.5162 | G90: 0.2602
A91: P9927 | B91: Frentista de túnel com periculosidade | C91: h | D91: 8.88 | E91: 2.218825 | F91: 31.2471 | G91: 0.3
A92: P9928 | B92: Servente com periculosidade | C92: h | D92: 6.7 | E92: 2.421243 | F92: 24.9323 | G92: 0.3
A93: P9929 | B93: Bombeiro hidráulico com periculosidade | C93: h | D93: 10.8106 | E93: 2.127621 | F93: 37.0546 | G93: 0.3
A94: P9930 | B94: Eletricista com periculosidade | C94: h | D94: 10.4335 | E94: 2.123607 | F94: 35.7202 | G94: 0.3
A95: P9931 | B95: Operador de equipamento de mergulho | C95: h | D95: 17.4782 | E95: 1.793834 | F95: 51.2309 | G95: 0.1373
A96: P9932 | B96: Operador de equipamento pesado com periculosidade | C96: h | D96: 11.74 | E96: 1.978538 | F96: 38.49 | G96: 0.3
A97: P9933 | B97: Supervisor de mergulho raso | C97: mês | D97: 3845.1956 | E97: 1.318493 | F97: 9443.0044 | G97: 0.1373
A98: P9934 | B98: Motorista de veículo especial com periculosidade | C98: h | D98: 11.9736 | E98: 1.951535 | F98: 38.9325 | G98: 0.3
A99: P9938 | B99: Operador de equipamento leve com periculosidade | C99: h | D99: 8.88 | E99: 2.159337 | F99: 30.7189 | G99: 0.3
A100: P9939 | B100: Operador de equipamento leve com insalubridade | C100: h | D100: 8.88 | E100: 2.341699 | F100: 32.0745 | G100: 0.2703
A101: P9940 | B101: Piloto fluvial com periculosidade | C101: h | D101: 14.8924 | E101: 1.814411 | F101: 46.381 | G101: 0.3
A102: P9941 | B102: Mestre fluvial com periculosidade | C102: h | D102: 23.693 | E102: 1.668679 | F102: 70.3369 | G102: 0.3
A103: P9942 | B103: Marinheiro de convés com periculosidade | C103: h | D103: 9.1112 | E103: 2.064946 | F103: 30.6586 | G103: 0.3
A104: P9943 | B104: Técnico de batimetria com periculosidade | C104: h | D104: 11.8674 | E104: 1.915685 | F104: 38.1618 | G104: 0.3
A105: P9944 | B105: Operador de equipamento especial com periculosidade | C105: h | D105: 14.44 | E105: 1.860273 | F105: 45.6343 | G105: 0.3
A106: P9945 | B106: Draguista com periculosidade | C106: h | D106: 16.3424 | E106: 1.7796 | F106: 50.328 | G106: 0.3
A107: P9946 | B107: Engenheiro auxiliar | C107: mês | D107: 11220 | E107: 0.835617 | F107: 20595.6227 | G107: 0
A108: P9947 | B108: Técnico florestal | C108: mês | D108: 3466.6378 | E108: 1.030252 | F108: 7038.1483 | G108: 0
A109: P9948 | B109: Motorista de veículo leve - mensalista | C109: mês | D109: 2378.3386 | E109: 1.24979 | F109: 5350.7623 | G109: 0
A110: P9949 | B110: Topógrafo | C110: mês | D110: 4037 | E110: 0.996775 | F110: 8060.9806 | G110: 0
A111: P9950 | B111: Auxiliar de topografia | C111: mês | D111: 2378.3386 | E111: 1.271731 | F111: 5402.9455 | G111: 0
A112: P9951 | B112: Médico de câmara hiperbárica | C112: mês | D112: 9709.5193 | E112: 1.037892 | F112: 20315.1495 | G112: 0.0544
A113: P9952 | B113: Pedreiro - mensalista | C113: mês | D113: 1960.6314 | E113: 1.388259 | F113: 4682.4955 | G113: 0
A114: P9953 | B114: Eletricista - mensalista | C114: mês | D114: 2295.3553 | E114: 1.344024 | F114: 5380.3679 | G114: 0
A115: P9954 | B115: Servente - mensalista | C115: mês | D115: 1474 | E115: 1.594056 | F115: 3823.6385 | G115: 0
A116: P9955 | B116: Engenheiro chefe | C116: mês | D116: 16940.0825 | E116: 0.809408 | F116: 30651.5207 | G116: 0
A117: P9956 | B117: Motorista de caminhão com periculosidade | C117: h | D117: 11.74 | E117: 1.96213 | F117: 38.2974 | G117: 0.3
A118: P9972 | B118: Técnico de batimetria | C118: mês | D118: 2610.8367 | E118: 1.167737 | F118: 5659.6073 | G118: 0

Sheet Consult SICRO
B1: 2023-04-01
B2: Tabela 1 - Custos de veículos
B3: Tabela de Preços de Consultoria - mês de referência: Jul/2023
B4: Item | C4: Código | D4: Tipo | E4: Unidade | F4: Custo unitário (R$ / un) | H4: S
F5: Produtivo | G5: Improdutivo
B6: Veículos | C6: E8889 | D6: Veículo leve - 53 kW (sem motorista) | E6: hora | F6: 32.84 | G6: 6.47
C7: E8891 | D7: Veículo leve picape 4x4 - 147 kW (sem motorista) | E7: hora | F7: 80.19 | G7: 28.61
C8: E8887 | D8: Van furgão - 93 kW (com motorista) | E8: hora | F8: 74.09 | G8: 43.18
B9: Fonte: FGV IBRE
B11: Tabela 2 - Custos de imóveis, mobiliário, cestas de instalações e custos diversos
B12: Tabela de Preços de Consultoria - mês de referência: Jul/2023
B13: Item | C13: Código | D13: Tipo | F13: Unidade | G13: Custo unitário (R$ / un)
B14: Imóveis | C14: B8951 | D14: Comercial (2,60% do CMCC - SINAPI) | F14: m² x mês | G14: 46.78
C15: B8952 | D15: Residencial (1,70% do CMCC - SINAPI) | F15: m² x mês | G15: 30.59
B16: Mobiliário | C16: B8953 | D16: Escritório | F16: ocupante x mês | G16: 510.96
C17: B8954 | D17: Residência | F17: ocupante x mês | G17: 44.3
B18: Cesta das Instalações | C18: B8955 | D18: Laboratório de asfalto | F18: mês | G18: 5400.53
C19: B8956 | D19: Laboratório de concreto | F19: mês | G19: 4270.25
C20: B8957 | D20: Laboratório de solos | F20: mês | G20: 4311.34
C21: B8958 | D21: Topografia | F21: mês | G21: 3134.16
B22: Custos Diversos | C22: B8959 | D22: Escritório | F22: ocupante x mês | G22: 131.32
C23: B8960 | D23: Residência | F23: ocupante x mês | G23: 208.36
B24: Fonte: FGV IBRE

Sheet INSUMOS SINAPI
A1: PRECOS DE INSUMOS
A3: MES DE COLETA: 09/2023
A4: LOCALIDADE: 1250 - RECIFE
A5: ENCARGOS SOCIAIS (%) HORISTA 114,55 MENSALISTA 70,11
A7: CODIGO | B7: DESCRICAO DO INSUMO | C7: UNIDADE | D7: ORIGEM DO PRECO | E7: PRECO MEDIANO R$
A8: 38605 | B8: ABERTURA PARA ENCAIXE DE CUBA OU LAVATORIO EM BANCADA DE MARMORE/ GRANITO OU OUTRO TIPO DE PEDRA NATURAL | C8: UN | D8: CR | E8: 159,92
A9: 11270 | B9: ABRACADEIRA DE LATAO PARA FIXACAO DE CABO PARA-RAIO, DIMENSOES 32 X 24 X 24 MM | C9: UN | D9: CR | E9: 3,40
A10: 412 | B10: ABRACADEIRA DE NYLON PARA AMARRACAO DE CABOS, COMPRIMENTO DE *230* X *7,6* MM | C10: UN | D10: CR | E10: 1,13
A11: 414 | B11: ABRACADEIRA DE NYLON PARA AMARRACAO DE CABOS, COMPRIMENTO DE 100 X 2,5 MM | C11: UN | D11: CR | E11: 0,07
A12: 410 | B12: ABRACADEIRA DE NYLON PARA AMARRACAO DE CABOS, COMPRIMENTO DE 150 X *3,6* MM | C12: UN | D12: CR | E12: 0,17
A13: 411 | B13: ABRACADEIRA DE NYLON PARA AMARRACAO DE CABOS, COMPRIMENTO DE 200 X *4,6* MM | C13: UN | D13: C | E13: 0,22
A14: 408 | B14: ABRACADEIRA DE NYLON PARA AMARRACAO DE CABOS, COMPRIMENTO DE 390 X *4,6* MM | C14: UN | D14: CR | E14: 1,09
A15: 39131 | B15: ABRACADEIRA EM ACO PARA AMARRACAO DE ELETRODUTOS, TIPO D, COM 1 1/2" E CUNHA DE FIXACAO | C15: UN | D15: CR | E15: 5,10
A16: 394 | B16: ABRACADEIRA EM ACO PARA AMARRACAO DE ELETRODUTOS, TIPO D, COM 1 1/2" E PARAFUSO DE FIXACAO | C16: UN | D16: CR | E16: 5,17
A17: 39130 | B17: ABRACADEIRA EM ACO PARA AMARRACAO DE ELETRODUTOS, TIPO D, COM 1 1/4" E CUNHA DE FIXACAO | C17: UN | D17: CR | E17: 4,65
A18: 395 | B18: ABRACADEIRA EM ACO PARA AMARRACAO DE ELETRODUTOS, TIPO D, COM 1 1/4" E PARAFUSO DE FIXACAO | C18: UN | D18: CR | E18: 4,97
A19: 39127 | B19: ABRACADEIRA EM ACO PARA AMARRACAO DE ELETRODUTOS, TIPO D, COM 1/2" E CUNHA DE FIXACAO | C19: UN | D19: CR | E19: 2,45
A20: 392 | B20: ABRACADEIRA EM ACO PARA AMARRACAO DE ELETRODUTOS, TIPO D, COM 1/2" E PARAFUSO DE FIXACAO | C20: UN | D20: CR | E20: 2,52
A21: 39129 | B21: ABRACADEIRA EM ACO PARA AMARRACAO DE ELETRODUTOS, TIPO D, COM 1" E CUNHA DE FIXACAO | C21: UN | D21: CR | E21: 2,87
A22: 393 | B22: ABRACADEIRA EM ACO PARA AMARRACAO DE ELETRODUTOS, TIPO D, COM 1" E PARAFUSO DE FIXACAO | C22: UN | D22: C | E22: 3,00
A23: 39133 | B23: ABRACADEIRA EM ACO PARA AMARRACAO DE ELETRODUTOS, TIPO D, COM 2 1/2" E CUNHA DE FIXACAO | C23: UN | D23: CR | E23: 6,70
A24: 397 | B24: ABRACADEIRA EM ACO PARA AMARRACAO DE ELETRODUTOS, TIPO D, COM 2 1/2" E PARAFUSO DE FIXACAO | C24: UN | D24: CR | E24: 7,40
A25: 39132 | B25: ABRACADEIRA EM ACO PARA AMARRACAO DE ELETRODUTOS, TIPO D, COM 2" E CUNHA DE FIXACAO | C25: UN | D25: CR | E25: 5,36
A26: 396 | B26: ABRACADEIRA EM ACO PARA AMARRACAO DE ELETRODUTOS, TIPO D, COM 2" E PARAFUSO DE FIXACAO | C26: UN | D26: CR | E26: 5,74
A27: 39135 | B27: ABRACADEIRA EM ACO PARA AMARRACAO DE ELETRODUTOS, TIPO D, COM 3 1/2" E CUNHA DE FIXACAO | C27: UN | D27: CR | E27: 10,72
A28: 39128 | B28: ABRACADEIRA EM ACO PARA AMARRACAO DE ELETRODUTOS, TIPO D, COM 3/4" E CUNHA DE FIXACAO | C28: UN | D28: CR | E28: 2,68
A29: 400 | B29: ABRACADEIRA EM ACO PARA AMARRACAO DE ELETRODUTOS, TIPO D, COM 3/4" E PARAFUSO DE FIXACAO | C29: UN | D29: CR | E29: 2,61
A30: 39125 | B30: ABRACADEIRA EM ACO PARA AMARRACAO DE ELETRODUTOS, TIPO D, COM 3/8" E PARAFUSO DE FIXACAO | C30: UN | D30: CR | E30: 2,68
A31: 39134 | B31: ABRACADEIRA EM ACO PARA AMARRACAO DE ELETRODUTOS, TIPO D, COM 3" E CUNHA DE FIXACAO | C31: UN | D31: CR | E31: 8,93
A32: 398 | B32: ABRACADEIRA EM ACO PARA AMARRACAO DE ELETRODUTOS, TIPO D, COM 3" E PARAFUSO DE FIXACAO | C32: UN | D32: CR | E32: 8,23
A33: 39126 | B33: ABRACADEIRA EM ACO PARA AMARRACAO DE ELETRODUTOS, TIPO D, COM 4" E CUNHA DE FIXACAO | C33: UN | D33: CR | E33: 12,06
A34: 399 | B34: ABRACADEIRA EM ACO PARA AMARRACAO DE ELETRODUTOS, TIPO D, COM 4" E PARAFUSO DE FIXACAO | C34: UN | D34: CR | E34: 10,62
A35: 39158 | B35: ABRACADEIRA EM ACO PARA AMARRACAO DE ELETRODUTOS, TIPO ECONOMICA (GOTA), COM 8" | C35: UN | D35: CR | E35: 28,53
A36: 39141 | B36: ABRACADEIRA EM ACO PARA AMARRACAO DE ELETRODUTOS, TIPO U SIMPLES, COM 1 1/2" | C36: UN | D36: CR | E36: 2,07
A37: 39140 | B37: ABRACADEIRA EM ACO PARA AMARRACAO DE ELETRODUTOS, TIPO U SIMPLES, COM 1 1/4" | C37: UN | D37: CR | E37: 1,88
A38: 39137 | B38: ABRACADEIRA EM ACO PARA AMARRACAO DE ELETRODUTOS, TIPO U SIMPLES, COM 1/2" | C38: UN | D38: CR | E38: 1,08
A39: 39139 | B39: ABRACADEIRA EM ACO PARA AMARRACAO DE ELETRODUTOS, TIPO U SIMPLES, COM 1" | C39: UN | D39: CR | E39: 1,56
A40: 39143 | B40: ABRACADEIRA EM ACO PARA AMARRACAO DE ELETRODUTOS, TIPO U SIMPLES, COM 2 1/2" | C40: UN | D40: CR | E40: 4,27
A41: 39142 | B41: ABRACADEIRA EM ACO PARA AMARRACAO DE ELETRODUTOS, TIPO U SIMPLES, COM 2" | C41: UN | D41: CR | E41: 3,06
A42: 39138 | B42: ABRACADEIRA EM ACO PARA AMARRACAO DE ELETRODUTOS, TIPO U SIMPLES, COM 3/4" | C42: UN | D42: CR | E42: 1,14
A43: 39136 | B43: ABRACADEIRA EM ACO PARA AMARRACAO DE ELETRODUTOS, TIPO U SIMPLES, COM 3/8" | C43: UN | D43: CR | E43: 0,76
A44: 39144 | B44: ABRACADEIRA EM ACO PARA AMARRACAO DE ELETRODUTOS, TIPO U SIMPLES, COM 3" | C44: UN | D44: CR | E44: 4,97
A45: 39145 | B45: ABRACADEIRA EM ACO PARA AMARRACAO DE ELETRODUTOS, TIPO U SIMPLES, COM 4" | C45: UN | D45: CR | E45: 8,20
A46: 12615 | B46: ABRACADEIRA PVC, PARA CALHA PLUVIAL, DIAMETRO ENTRE *80 E 100* MM, PARA DRENAGEM PLUVIAL PREDIAL | C46: UN | D46: CR | E46: 13,85
A47: 11927 | B47: ABRACADEIRA, GALVANIZADA/ZINCADA, ROSCA SEM FIM, PARAFUSO INOX, LARGURA FITA *12,6 A *14 MM, D = 2" A 2 1/2" | C47: UN | D47: CR | E47: 10,17
A48: 11928 | B48: ABRACADEIRA, GALVANIZADA/ZINCADA, ROSCA SEM FIM, PARAFUSO INOX, LARGURA FITA *12,6 A *14 MM, D = 3" A 3 3/4" | C48: UN | D48: CR | E48: 11,65
A49: 11929 | B49: ABRACADEIRA, GALVANIZADA/ZINCADA, ROSCA SEM FIM, PARAFUSO INOX, LARGURA FITA *12,6 A *14 MM, D = 4" A 4 3/4" | C49: UN | D49: CR | E49: 18,02
A50: 36801 | B50: ACABAMENTO DE METAL CROMADO PARA REGISTRO PEQUENO, DE PAREDE, 1/2 " OU 3/4 " | C50: UN | D50: CR | E50: 31,63
A51: 36246 | B51: ACABAMENTO SIMPLES/CONVENCIONAL PARA FORRO PVC, TIPO "U" OU "C", COR BRANCA, COMPRIMENTO 6 M | C51: M | D51: CR | E51: 4,26
A52: 37600 | B52: ACESSORIO DE LIGACAO NAO ELETRICO PARA CARGAS EXPLOSIVAS, TUBO DE 6 M | C52: UN | D52: AS | E52: 104,86
A53: 37599 | B53: ACESSORIO INICIADOR NAO ELETRICO, TUBO DE 6 M, TEMPO DE RETARDO DE *160* MS | C53: UN | D53: AS | E53: 97,60
A54: 1 | B54: ACETILENO (RECARGA DE GAS ACETILENO PARA CILINDRO DE CONJUNTO OXICORTE GRANDE) NAO INCLUI TROCA/MANUTENCAO DO CILINDRO | C54: KG | D54: AS | E54: 72,65
A55: 3 | B55: ACIDO CLORIDRICO / ACIDO MURIATICO, DILUICAO 10% A 12% PARA USO EM LIMPEZA | C55: L | D55: CR | E55: 23,45
A56: 43054 | B56: ACO CA-25, 10,0 MM, OU 12,5 MM, OU 16,0 MM, OU 20,0 MM, OU 25,0 MM, VERGALHAO | C56: KG | D56: CR | E56: 10,57
A57: 42402 | B57: ACO CA-25, 16,0 MM, BARRA DE TRANSFERENCIA | C57: KG | D57: CR | E57: 10,10
A58: 42403 | B58: ACO CA-25, 20,0 MM, BARRA DE TRANSFERENCIA | C58: KG | D58: CR | E58: 12,96
A59: 42404 | B59: ACO CA-25, 25,0 MM, BARRA DE TRANSFERENCIA | C59: KG | D59: CR | E59: 12,88
A60: 42405 | B60: ACO CA-25, 32,0 MM, BARRA DE TRANSFERENCIA | C60: KG | D60: CR | E60: 13,72
A61: 34341 | B61: ACO CA-25, 32,0 MM, VERGALHAO | C61: KG | D61: CR | E61: 11,91
A62: 43053 | B62: ACO CA-25, 6,3 MM OU 8,0 MM, VERGALHAO | C62: KG | D62: CR | E62: 9,44
A63: 43058 | B63: ACO CA-50, 10,0 MM, OU 12,5 MM, OU 16,0 MM, OU 20,0 MM, DOBRADO E CORTADO | C63: KG | D63: CR | E63: 9,79
A64: 34 | B64: ACO CA-50, 10,0 MM, VERGALHAO | C64: KG | D64: CR | E64: 9,84
A65: 43055 | B65: ACO CA-50, 12,5 MM OU 16,0 MM, VERGALHAO | C65: KG | D65: C | E65: 8,52
A66: 43056 | B66: ACO CA-50, 20,0 MM OU 25,0 MM, VERGALHAO | C66: KG | D66: CR | E66: 9,82
A67: 43057 | B67: ACO CA-50, 32,0 MM, VERGALHAO | C67: KG | D67: CR | E67: 10,79
A68: 34449 | B68: ACO CA-50, 6,3 MM, DOBRADO E CORTADO | C68: KG | D68: CR | E68: 11,54
A69: 32 | B69: ACO CA-50, 6,3 MM, VERGALHAO | C69: KG | D69: CR | E69: 10,38
A70: 33 | B70: ACO CA-50, 8,0 MM, VERGALHAO | C70: KG | D70: CR | E70: 10,43
A71: 43061 | B71: ACO CA-60, 4,2 MM OU 5,0 MM, DOBRADO E CORTADO | C71: KG | D71: CR | E71: 9,75
A72: 43059 | B72: ACO CA-60, 4,2 MM, OU 5,0 MM, OU 6,0 MM, OU 7,0 MM, VERGALHAO | C72: KG | D72: CR | E72: 9,31
A73: 43062 | B73: ACO CA-60, 6,0 MM OU 7,0 MM, DOBRADO E CORTADO | C73: KG | D73: CR | E73: 10,31
A74: 43060 | B74: ACO CA-60, 8,0 MM OU 9,5 MM, VERGALHAO | C74: KG | D74: CR | E74: 8,11
A75: 40410 | B75: ACOPLAMENTO RIGIDO EM FERRO FUNDIDO PARA SISTEMA DE TUBULACAO RANHURADA, DN 50 MM (2") | C75: UN | D75: AS | E75: 23,71
A76: 40411 | B76: ACOPLAMENTO RIGIDO EM FERRO FUNDIDO PARA SISTEMA DE TUBULACAO RANHURADA, DN 65 MM (2 1/2") | C76: UN | D76: AS | E76: 25,73
A77: 40412 | B77: ACOPLAMENTO RIGIDO EM FERRO FUNDIDO PARA SISTEMA DE TUBULACAO RANHURADA, DN 80 MM (3") | C77: UN | D77: AS | E77: 28,88
A78: 44254 | B78: ADAPTADOR CPVC, ROSCAVEL, COM FLANGES E ANEL DE VEDACAO, 15 MM, CAIXA D'AGUA PARA AGUA QUENTE | C78: UN | D78: CR | E78: 26,51
A79: 44255 | B79: ADAPTADOR CPVC, ROSCAVEL, COM FLANGES E ANEL DE VEDACAO, 22 MM, CAIXA D'AGUA PARA AGUA QUENTE | C79: UN | D79: CR | E79: 29,38
A80: 44256 | B80: ADAPTADOR CPVC, ROSCAVEL, COM FLANGES E ANEL DE VEDACAO, 28 MM, CAIXA D'AGUA PARA AGUA QUENTE | C80: UN | D80: CR | E80: 33,19
A81: 44257 | B81: ADAPTADOR CPVC, ROSCAVEL, COM FLANGES E ANEL DE VEDACAO, 35 MM, CAIXA D'AGUA PARA AGUA QUENTE | C81: UN | D81: CR | E81: 52,50
A82: 44258 | B82: ADAPTADOR CPVC, ROSCAVEL, COM FLANGES E ANEL DE VEDACAO, 42 MM, CAIXA D'AGUA PARA AGUA QUENTE | C82: UN | D82: CR | E82: 60,00
A83: 44259 | B83: ADAPTADOR CPVC, ROSCAVEL, COM FLANGES E ANEL DE VEDACAO, 54 MM, CAIXA D'AGUA PARA AGUA QUENTE | C83: UN | D83: CR | E83: 82,36
A84: 37997 | B84: ADAPTADOR CPVC, SOLDAVEL, 15 MM, PARA AGUA QUENTE | C84: UN | D84: CR | E84: 15,80
A85: 37998 | B85: ADAPTADOR CPVC, SOLDAVEL, 22 MM, PARA AGUA QUENTE | C85: UN | D85: CR | E85: 21,14
A86: 55 | B86: ADAPTADOR DE COMPRESSAO EM POLIPROPILENO (PP), PARA TUBO EM PEAD, 20 MM X 1/2", PARA LIGACAO PREDIAL DE AGUA (NTS 179) | C86: UN | D86: AS | E86: 3,87
A87: 61 | B87: ADAPTADOR DE COMPRESSAO EM POLIPROPILENO (PP), PARA TUBO EM PEAD, 20 MM X 3/4", PARA LIGACAO PREDIAL DE AGUA (NTS 179) | C87: UN | D87: AS | E87: 3,66
A88: 62 | B88: ADAPTADOR DE COMPRESSAO EM POLIPROPILENO (PP), PARA TUBO EM PEAD, 32 MM X 1", PARA LIGACAO PREDIAL DE AGUA (NTS 179) | C88: UN | D88: AS | E88: 7,58
A89: 10899 | B89: ADAPTADOR EM LATAO, ENGATE RAPIDO 2 1/2" X ROSCA INTERNA 5 FIOS 2 1/2", PARA INSTALACAO PREDIAL DE COMBATE A INCENDIO | C89: UN | D89: CR | E89: 109,52
A90: 10900 | B90: ADAPTADOR EM LATAO, ENGATE RAPIDO1 1/2" X ROSCA INTERNA 5 FIOS 2 1/2", PARA INSTALACAO PREDIAL DE COMBATE A INCENDIO | C90: UN | D90: CR | E90: 85,71
A91: 103 | B91: ADAPTADOR PVC SOLDAVEL CURTO COM BOLSA E ROSCA, 110 MM X 4", PARA AGUA FRIA | C91: UN | D91: CR | E91: 47,70
A92: 107 | B92: ADAPTADOR PVC SOLDAVEL CURTO COM BOLSA E ROSCA, 20 MM X 1/2", PARA AGUA FRIA | C92: UN | D92: CR | E92: 0,90
A93: 65 | B93: ADAPTADOR PVC SOLDAVEL CURTO COM BOLSA E ROSCA, 25 MM X 3/4", PARA AGUA FRIA | C93: UN | D93: CR | E93: 0,98
A94: 108 | B94: ADAPTADOR PVC SOLDAVEL CURTO COM BOLSA E ROSCA, 32 MM X 1", PARA AGUA FRIA | C94: UN | D94: CR | E94: 1,98
A95: 110 | B95: ADAPTADOR PVC SOLDAVEL CURTO COM BOLSA E ROSCA, 40 MM X 1 1/2", PARA AGUA FRIA | C95: UN | D95: CR | E95: 6,86
A96: 109 | B96: ADAPTADOR PVC SOLDAVEL CURTO COM BOLSA E ROSCA, 40 MM X 1 1/4", PARA AGUA FRIA | C96: UN | D96: CR | E96: 4,09
A97: 111 | B97: ADAPTADOR PVC SOLDAVEL CURTO COM BOLSA E ROSCA, 50 MM X 1 1/4", PARA AGUA FRIA | C97: UN | D97: CR | E97: 9,28
A98: 112 | B98: ADAPTADOR PVC SOLDAVEL CURTO COM BOLSA E ROSCA, 50 MM X1 1/2", PARA AGUA FRIA | C98: UN | D98: CR | E98: 4,92
A99: 113 | B99: ADAPTADOR PVC SOLDAVEL CURTO COM BOLSA E ROSCA, 60 MM X 2", PARA AGUA FRIA | C99: UN | D99: CR | E99: 12,32
A100: 104 | B100: ADAPTADOR PVC SOLDAVEL CURTO COM BOLSA E ROSCA, 75 MM X 2 1/2", PARA AGUA FRIA | C100: UN | D100: CR | E100: 21,44
A101: 102 | B101: ADAPTADOR PVC SOLDAVEL CURTO COM BOLSA E ROSCA, 85 MM X 3", PARA AGUA FRIA | C101: UN | D101: CR | E101: 29,56
A102: 95 | B102: ADAPTADOR PVC SOLDAVEL, COM FLANGE E ANEL DE VEDACAO, 20 MM X 1/2", PARA CAIXA D'AGUA | C102: UN | D102: CR | E102: 12,49
A103: 96 | B103: ADAPTADOR PVC SOLDAVEL, COM FLANGE E ANEL DE VEDACAO, 25 MM X 3/4", PARA CAIXA D'AGUA | C103: UN | D103: CR | E103: 13,59
A104: 97 | B104: ADAPTADOR PVC SOLDAVEL, COM FLANGE E ANEL DE VEDACAO, 32 MM X 1", PARA CAIXA D'AGUA | C104: UN | D104: CR | E104: 20,44
A105: 98 | B105: ADAPTADOR PVC SOLDAVEL, COM FLANGE E ANEL DE VEDACAO, 40 MM X 1 1/4", PARA CAIXA D'AGUA | C105: UN | D105: CR | E105: 30,60
A106: 99 | B106: ADAPTADOR PVC SOLDAVEL, COM FLANGE E ANEL DE VEDACAO, 50 MM X 1 1/2", PARA CAIXA D'AGUA | C106: UN | D106: CR | E106: 28,92
A107: 100 | B107: ADAPTADOR PVC SOLDAVEL, COM FLANGES E ANEL DE VEDACAO, 60 MM X 2", PARA CAIXA D' AGUA | C107: UN | D107: CR | E107: 50,53
A108: 75 | B108: ADAPTADOR PVC SOLDAVEL, COM FLANGES LIVRES, 110 MM X 4", PARA CAIXA D' AGUA | C108: UN | D108: CR | E108: 294,59
A109: 83 | B109: ADAPTADOR PVC SOLDAVEL, COM FLANGES LIVRES, 75 MM X 2 1/2", PARA CAIXA D' AGUA | C109: UN | D109: CR | E109: 235,51
A110: 74 | B110: ADAPTADOR PVC SOLDAVEL, COM FLANGES LIVRES, 85 MM X 3", PARA CAIXA D' AGUA | C110: UN | D110: CR | E110: 336,72
A111: 106 | B111: ADAPTADOR PVC SOLDAVEL, LONGO, COM FLANGE LIVRE, 110 MM X 4", PARA CAIXA D' AGUA | C111: UN | D111: CR | E111: 425,79
A112: 88 | B112: ADAPTADOR PVC SOLDAVEL, LONGO, COM FLANGE LIVRE, 32 MM X 1", PARA CAIXA D' AGUA | C112: UN | D112: CR | E112: 11,97
A113: 82 | B113: ADAPTADOR PVC SOLDAVEL, LONGO, COM FLANGE LIVRE, 75 MM X 2 1/2", PARA CAIXA D' AGUA | C113: UN | D113: CR | E113: 224,07
A114: 105 | B114: ADAPTADOR PVC SOLDAVEL, LONGO, COM FLANGE LIVRE, 85 MM X 3", PARA CAIXA D' AGUA | C114: UN | D114: CR | E114: 317,51
A115: 60 | B115: ADAPTADOR PVC, COM REGISTRO, PARA PEAD, 20 MM X 3/4", PARA LIGACAO PREDIAL DE AGUA | C115: UN | D115: AS | E115: 5,02
A116: 72 | B116: ADAPTADOR PVC, ROSCAVEL, COM FLANGES E ANEL DE VEDACAO, 1 1/2", PARA CAIXA D'AGUA | C116: UN | D116: CR | E116: 55,46
A117: 67 | B117: ADAPTADOR PVC, ROSCAVEL, COM FLANGES E ANEL DE VEDACAO, 1/2", PARA CAIXA D' AGUA | C117: UN | D117: CR | E117: 17,93
A118: 71 | B118: ADAPTADOR PVC, ROSCAVEL, COM FLANGES E ANEL DE VEDACAO, 1", PARA CAIXA D' AGUA | C118: UN | D118: CR | E118: 34,25
A119: 73 | B119: ADAPTADOR PVC, ROSCAVEL, COM FLANGES E ANEL DE VEDACAO, 3/4", PARA CAIXA D' AGUA | C119: UN | D119: CR | E119: 17,16
A120: 46 | B120: ADAPTADOR, PVC PBA, BOLSA/ROSCA, JE, DN 75 / DE 85 MM | C120: UN | D120: AS | E120: 38,06
A121: 47 | B121: ADAPTADOR, PVC PBA, BOLSA/ROSCA, JE, DN 100 / DE 110 MM | C121: UN | D121: AS | E121: 65,07
A122: 48 | B122: ADAPTADOR, PVC PBA, BOLSA/ROSCA, JE, DN 50 / DE 60 MM | C122: UN | D122: AS | E122: 16,97
A123: 52 | B123: ADAPTADOR, PVC PBA, PONTA/ROSCA, JE, DN 50 / DE 60 MM | C123: UN | D123: AS | E123: 12,89
A124: 43 | B124: ADAPTADOR, PVC PBA, PONTA/ROSCA, JE, DN 75 / DE 85 MM | C124: UN | D124: AS | E124: 43,52
A125: 39719 | B125: ADESIVO / COLA DE CONTATO LIQUIDO, A BASE DE RESINAS, PARA COLAGEM DE ESPUMA PARA ISOLAMENTO TERMICO FLEXIVEL | C125: L | D125: CR | E125: 150,11
A126: 3410 | B126: ADESIVO / COLA PARA EPS (ISOPOR) E OUTROS MATERIAIS | C126: KG | D126: CR | E126: 33,76
A127: 4791 | B127: ADESIVO ACRILICO DE BASE AQUOSA / COLA DE CONTATO | C127: KG | D127: CR | E127: 42,99
A128: 157 | B128: ADESIVO ESTRUTURAL A BASE DE RESINA EPOXI PARA INJECAO EM TRINCAS, BICOMPONENTE, BAIXA VISCOSIDADE | C128: KG | D128: CR | E128: 157,36
A129: 156 | B129: ADESIVO ESTRUTURAL A BASE DE RESINA EPOXI, BICOMPONENTE, FLUIDO | C129: KG | D129: CR | E129: 56,03
A130: 131 | B130: ADESIVO ESTRUTURAL A BASE DE RESINA EPOXI, BICOMPONENTE, PASTOSO (TIXOTROPICO) | C130: KG | D130: CR | E130: 47,92
A131: 21114 | B131: ADESIVO PARA TUBOS CPVC, *75* G | C131: UN | D131: CR | E131: 29,59
A132: 119 | B132: ADESIVO PLASTICO PARA PVC, BISNAGA COM 75 GR | C132: UN | D132: C | E132: 7,50
A133: 122 | B133: ADESIVO PLASTICO PARA PVC, FRASCO COM *850* GR | C133: UN | D133: CR | E133: 57,70
A134: 20080 | B134: ADESIVO PLASTICO PARA PVC, FRASCO COM 175 GR | C134: UN | D134: CR | E134: 18,83
A135: 124 | B135: ADITIVO ACELERADOR DE PEGA E ENDURECIMENTO PARA ARGAMASSAS E CONCRETOS, LIQUIDO E ISENTO DE CLORETOS | C135: L | D135: CR | E135: 18,48
A136: 7334 | B136: ADITIVO ADESIVO LIQUIDO PARA ARGAMASSAS DE REVESTIMENTOS CIMENTICIOS | C136: L | D136: CR | E136: 16,08
A137: 123 | B137: ADITIVO IMPERMEABILIZANTE DE PEGA NORMAL PARA ARGAMASSAS E CONCRETOS SEM ARMACAO, LIQUIDO E ISENTO DE CLORETOS | C137: L | D137: C | E137: 7,56
A138: 127 | B138: ADITIVO IMPERMEABILIZANTE DE PEGA ULTRARRAPIDA, LIQUIDO E ISENTO DE CLORETOS | C138: L | D138: CR | E138: 18,05
A139: 41373 | B139: ADITIVO LIQUIDO IMPERMEABILIZANTE CRISTALIZANTE | C139: L | D139: CR | E139: 25,15
A140: 133 | B140: ADITIVO LIQUIDO INCORPORADOR DE AR PARA CONCRETO E ARGAMASSA, LIQUIDO E ISENTO DE CLORETOS | C140: L | D140: CR | E140: 7,49
A141: 43617 | B141: ADITIVO PLASTIFICANTE E ESTABILIZADOR PARA ARGAMASSAS DE ASSENTAMENTO E REBOCO, LIQUIDO E ISENTO DE CLORETOS | C141: L | D141: CR | E141: 8,37
A142: 132 | B142: ADITIVO PLASTIFICANTE RETARDADOR DE PEGA E REDUTOR DE AGUA PARA CONCRETO, LIQUIDO E ISENTO DE CLORETOS | C142: L | D142: CR | E142: 7,77
A143: 43618 | B143: ADITIVO SUPERPLASTIFICANTE DE PEGA NORMAL PARA CONCRETO, LIQUIDO E ISENTO DE CLORETOS | C143: KG | D143: CR | E143: 19,56
A144: 37476 | B144: ADUELA/ GALERIA PRE-MOLDADA DE CONCRETO ARMADO, SECAO QUADRADA INTERNA DE 1,50 X 1,50 M (L X A), MISULA DE 20 X 20 CM, C = 1,00 M, ESPESSURA MIN = 15 CM, TB-45 E FCK DO CONCRETO = 30 MPA | C144: UN | D144: CR | E144: 2.911,76
A145: 37478 | B145: ADUELA/ GALERIA PRE-MOLDADA DE CONCRETO ARMADO, SECAO RETANGULAR INTERNA DE 2,00 X 2,00 M (L X A), MISULA DE 20 X 20 CM, C = 1,00 M, ESPESSURA MIN = 15 CM, TB-45 E FCK DO CONCRETO = 30 MPA | C145: UN | D145: CR | E145: 3.647,05
A146: 37477 | B146: ADUELA/ GALERIA PRE-MOLDADA DE CONCRETO ARMADO, SECAO RETANGULAR INTERNA DE 2,50 X 2,50 M (L X A), MISULA DE 20 X 20 CM, C = 1,00 M, ESPESSURA MIN = 15 CM, TB-45 E FCK DO CONCRETO = 30 MPA | C146: UN | D146: CR | E146: 4.941,17
A147: 37479 | B147: ADUELA/ GALERIA PRE-MOLDADA DE CONCRETO ARMADO, SECAO RETANGULAR INTERNA DE 3,00 X 3,00 M (L X A), MISULA DE 20 X 20 CM, C = 1.00 M, ESPESSURA MIN = 20 CM, TB-45 E FCK DO CONCRETO = 30 MPA | C147: UN | D147: CR | E147: 5.860,29
A148: 4319 | B148: AFASTADOR PARA TELHA DE FIBROCIMENTO CANALETE 90 OU KALHETAO | C148: UN | D148: CR | E148: 1,44
A149: 42409 | B149: AGENTE DE CURA, PROTETOR DA EVAPORACAO DA AGUA DE HIDRATACAO DO CONCRETO | C149: KG | D149: CR | E149: 12,32
A150: 40553 | B150: AGREGADO RECICLADO, TIPO RACHAO RECICLADO CINZA, CLASSE A | C150: M3 | D150: AS | E150: 52,50
A151: 6114 | B151: AJUDANTE DE ARMADOR (HORISTA) | C151: H | D151: CR | E151: 15,06
A152: 40912 | B152: AJUDANTE DE ARMADOR (MENSALISTA) | C152: MES | D152: CR | E152: 2.627,68
A153: 247 | B153: AJUDANTE DE ELETRICISTA (HORISTA) | C153: H | D153: CR | E153: 14,24
A154: 40919 | B154: AJUDANTE DE ELETRICISTA (MENSALISTA) | C154: MES | D154: CR | E154: 2.487,85
A155: 40984 | B155: AJUDANTE DE ESTRUTURAS METALICAS (MENSALISTA) | C155: MES | D155: CR | E155: 3.125,55
A156: 44499 | B156: AJUDANTE DE ESTRUTURAS METALICAS HORISTA | C156: H | D156: CR | E156: 17,91
A157: 248 | B157: AJUDANTE DE OPERACAO EM GERAL (HORISTA) | C157: H | D157: CR | E157: 17,59
A158: 41086 | B158: AJUDANTE DE OPERACAO EM GERAL (MENSALISTA) | C158: MES | D158: CR | E158: 3.072,39
A159: 34466 | B159: AJUDANTE DE PINTOR (HORISTA) | C159: H | D159: CR | E159: 15,03
A160: 41083 | B160: AJUDANTE DE PINTOR (MENSALISTA) | C160: MES | D160: CR | E160: 2.627,12
A161: 252 | B161: AJUDANTE DE SERRALHEIRO (HORISTA) | C161: H | D161: CR | E161: 17,59
A162: 40909 | B162: AJUDANTE DE SERRALHEIRO (MENSALISTA) | C162: MES | D162: CR | E162: 3.072,39
A163: 242 | B163: AJUDANTE ESPECIALIZADO (HORISTA) | C163: H | D163: CR | E163: 17,57
A164: 41085 | B164: AJUDANTE ESPECIALIZADO (MENSALISTA) | C164: MES | D164: CR | E164: 3.065,68
A165: 427 | B165: ALCA PREFORMADA DE CONTRA POSTE, EM ACO GALVANIZADO, PARA CABO 3/16", COMPRIMENTO *860* MM | C165: UN | D165: AS | E165: 6,31
A166: 417 | B166: ALCA PREFORMADA DE DISTRIBUICAO, EM ACO GALVANIZADO, PARA CABO DE ALUMINIO DIAMETRO 16 A 25 MM | C166: UN | D166: AS | E166: 2,97
A167: 11273 | B167: ALCA PREFORMADA DE DISTRIBUICAO, EM ACO GALVANIZADO, PARA CONDUTORES DE ALUMINIO AWG 1/0 (CAA 6/1 OU CA 7 FIOS) | C167: UN | D167: AS | E167: 9,22
A168: 11272 | B168: ALCA PREFORMADA DE DISTRIBUICAO, EM ACO GALVANIZADO, PARA CONDUTORES DE ALUMINIO AWG 2 (CAA 6/1 OU CA 7 FIOS) | C168: UN | D168: AS | E168: 5,57
A169: 11275 | B169: ALCA PREFORMADA DE SERVICO, EM ACO GALVANIZADO, PARA CONDUTORES DE ALUMINIO AWG 4 (CAA 6/1) | C169: UN | D169: AS | E169: 2,23
A170: 11274 | B170: ALCA PREFORMADA DE SERVICO, EM ACO GALVANIZADO, PARA CONDUTORES DE ALUMINIO AWG 6 (CAA 6/1) | C170: UN | D170: AS | E170: 1,70
A171: 38470 | B171: ALICATE DE CORTE DIAGONAL 6 " COM ISOLAMENTO | C171: UN | D171: C | E171: 42,00
A172: 38547 | B172: ALICATE DE CRIMPAR RJ11, RJ12 E RJ45 | C172: UN | D172: CR | E172: 114,61
A173: 38469 | B173: ALICATE DE PRESSAO PARA SOLDA DE CHAPA 18 " | C173: UN | D173: CR | E173: 123,24
A174: 38467 | B174: ALICATE DE PRESSAO 11 " PARA SOLDA, TIPO C | C174: UN | D174: CR | E174: 69,34
A175: 38468 | B175: ALICATE DE PRESSAO 11 " PARA SOLDA, TIPO U | C175: UN | D175: CR | E175: 76,30
A176: 38471 | B176: ALICATE PARA ANEIS DE PISTAO, CAPACIDADE 50 A 100 MM | C176: UN | D176: CR | E176: 99,09
A177: 37370 | B177: ALIMENTACAO - HORISTA (COLETADO CAIXA - ENCARGOS COMPLEMENTARES) | C177: H | D177: C | E177: 2,28
A178: 40862 | B178: ALIMENTACAO - MENSALISTA (COLETADO CAIXA - ENCARGOS COMPLEMENTARES) | C178: MES | D178: C | E178: 429,36
A179: 10658 | B179: ALISADORA DE CONCRETO COM MOTOR A GASOLINA DE 5,5 HP, PESO COM MOTOR DE 78 KG, 4 PAS | C179: UN | D179: AS | E179: 7.359,00
A180: 253 | B180: ALMOXARIFE (HORISTA) | C180: H | D180: C | E180: 20,03
A181: 40809 | B181: ALMOXARIFE (MENSALISTA) | C181: MES | D181: CR | E181: 3.495,42
A182: 42428 | B182: ALONGADOR COM TRES ALTURAS, EM TUBO DE ACO CARBONO, PINTURA NO PROCESSO ELETROSTATICO - EQUIPAMENTO DE GINASTICA PARA ACADEMIA AO AR LIVRE / ACADEMIA DA TERCEIRA IDADE - ATI | C182: UN | D182: AS | E182: 2.271,00
A183: 301 | B183: ANEL BORRACHA PARA TUBO ESGOTO PREDIAL, DN 100 MM (NBR 5688) | C183: UN | D183: C | E183: 4,00
A184: 296 | B184: ANEL BORRACHA PARA TUBO ESGOTO PREDIAL, DN 50 MM (NBR 5688) | C184: UN | D184: CR | E184: 2,26
A185: 297 | B185: ANEL BORRACHA PARA TUBO ESGOTO PREDIAL, DN 75 MM (NBR 5688) | C185: UN | D185: CR | E185: 3,32
A186: 299 | B186: ANEL BORRACHA, DN 100 MM, PARA TUBO SERIE REFORCADA ESGOTO PREDIAL | C186: UN | D186: CR | E186: 4,69
A187: 300 | B187: ANEL BORRACHA, DN 150 MM, PARA TUBO SERIE REFORCADA ESGOTO PREDIAL | C187: UN | D187: CR | E187: 16,24
A188: 20085 | B188: ANEL BORRACHA, DN 50 MM, PARA TUBO SERIE REFORCADA ESGOTO PREDIAL | C188: UN | D188: CR | E188: 2,97
A189: 298 | B189: ANEL BORRACHA, DN 75 MM, PARA TUBO SERIE REFORCADA ESGOTO PREDIAL | C189: UN | D189: CR | E189: 3,61
A190: 311 | B190: ANEL BORRACHA, PARA TUBO PVC DEFOFO, DN 100 MM (NBR 7665) | C190: UN | D190: CR | E190: 13,39
A191: 318 | B191: ANEL BORRACHA, PARA TUBO PVC DEFOFO, DN 150 MM (NBR 7665) | C191: UN | D191: CR | E191: 26,97
A192: 319 | B192: ANEL BORRACHA, PARA TUBO PVC DEFOFO, DN 200 MM (NBR 7665) | C192: UN | D192: CR | E192: 42,28
A193: 303 | B193: ANEL BORRACHA, PARA TUBO PVC, REDE COLETOR ESGOTO, DN 100 MM (NBR 7362) | C193: UN | D193: CR | E193: 4,43
A194: 305 | B194: ANEL BORRACHA, PARA TUBO PVC, REDE COLETOR ESGOTO, DN 150 MM (NBR 7362) | C194: UN | D194: CR | E194: 13,94
A195: 306 | B195: ANEL BORRACHA, PARA TUBO PVC, REDE COLETOR ESGOTO, DN 200 MM (NBR 7362) | C195: UN | D195: CR | E195: 21,14
A196: 307 | B196: ANEL BORRACHA, PARA TUBO PVC, REDE COLETOR ESGOTO, DN 250 MM (NBR 7362) | C196: UN | D196: CR | E196: 53,41
A197: 309 | B197: ANEL BORRACHA, PARA TUBO PVC, REDE COLETOR ESGOTO, DN 350 MM (NBR 7362) | C197: UN | D197: CR | E197: 87,49
A198: 310 | B198: ANEL BORRACHA, PARA TUBO PVC, REDE COLETOR ESGOTO, DN 400 MM (NBR 7362) | C198: UN | D198: CR | E198: 121,26
A199: 328 | B199: ANEL BORRACHA, PARA TUBO/CONEXAO PVC PBA, DN 100 MM, PARA REDE AGUA | C199: UN | D199: CR | E199: 10,60
A200: 325 | B200: ANEL BORRACHA, PARA TUBO/CONEXAO PVC PBA, DN 50 MM, PARA REDE AGUA | C200: UN | D200: CR | E200: 3,13
A201: 20326 | B201: ANEL BORRACHA, PARA TUBO/CONEXAO PVC PBA, DN 60 MM, PARA REDE AGUA | C201: UN | D201: CR | E201: 5,72
A202: 329 | B202: ANEL BORRACHA, PARA TUBO/CONEXAO PVC PBA, DN 75 MM, PARA REDE AGUA | C202: UN | D202: CR | E202: 8,86
... 4740 more rows

Sheet COMP Sint. Sinapi
A1: PCI.817.01 - CUSTO DE COMPOSIÇÕES - SINTÉTICO DATA DE EMISSÃO: 16/10/2023 23:45:25 DATA DE RT: 16/10/2023
A2: ENCARGOS SOCIAIS SOBRE PREÇOS DA MÃO-DE-OBRA: 114,55%(HORA) 70,11%(MÊS)
A3: ABRANGÊNCIA : NACIONAL LOCALIDADE : RECIFE DATA DE PREÇO : 09/2023 REFERÊNCIA COLETA : MEDIANO
A5: DESCRICAO DA CLASSE | B5: SIGLA DA CLASSE | C5: DESCRICAO DO TIPO 1 | D5: SIGLA DO TIPO 1 | E5: CODIGO DO AGRUPADOR | F5: DESCRICAO DO AGRUPADOR | G5: CODIGO DA COMPOSICAO | H5: DESCRICAO DA COMPOSICAO | I5: UNIDADE | J5: ORIGEM DE PREÇO | K5: CUSTO TOTAL | L5: VINCULO
A7: ASSENTAMENTO DE TUBOS E PECAS | B7: ASTU | C7: FORNEC E/OU ASSENT DE TUBO DE FERRO FUNDIDO JUNTA ELASTICA | D7: 0045 | G7: 97141 | H7: ASSENTAMENTO DE TUBO DE FERRO FUNDIDO PARA REDE DE ÁGUA, DN 80 MM, JUNTA ELÁSTICA, INSTALADO EM LOCAL COM NÍVEL ALTO DE INTERFERÊNCIAS (NÃO INCLUI FORNECIMENTO). AF_11/2017 | I7: M | J7: COEFICIENTE DE REPRESENTATIVIDADE | K7: 9,81 | L7: CAIXA REFERENCIAL
A8: ASSENTAMENTO DE TUBOS E PECAS | B8: ASTU | C8: FORNEC E/OU ASSENT DE TUBO DE FERRO FUNDIDO JUNTA ELASTICA | D8: 0045 | G8: 97142 | H8: ASSENTAMENTO DE TUBO DE FERRO FUNDIDO PARA REDE DE ÁGUA, DN 100 MM, JUNTA ELÁSTICA, INSTALADO EM LOCAL COM NÍVEL ALTO DE INTERFERÊNCIAS (NÃO INCLUI FORNECIMENTO). AF_11/2017 | I8: M | J8: COEFICIENTE DE REPRESENTATIVIDADE | K8: 10,90 | L8: CAIXA REFERENCIAL
A9: ASSENTAMENTO DE TUBOS E PECAS | B9: ASTU | C9: FORNEC E/OU ASSENT DE TUBO DE FERRO FUNDIDO JUNTA ELASTICA | D9: 0045 | G9: 97143 | H9: ASSENTAMENTO DE TUBO DE FERRO FUNDIDO PARA REDE DE ÁGUA, DN 150 MM, JUNTA ELÁSTICA, INSTALADO EM LOCAL COM NÍVEL ALTO DE INTERFERÊNCIAS (NÃO INCLUI FORNECIMENTO). AF_11/2017 | I9: M | J9: COEFICIENTE DE REPRESENTATIVIDADE | K9: 13,64 | L9: CAIXA REFERENCIAL
A10: ASSENTAMENTO DE TUBOS E PECAS | B10: ASTU | C10: FORNEC E/OU ASSENT DE TUBO DE FERRO FUNDIDO JUNTA ELASTICA | D10: 0045 | G10: 97144 | H10: ASSENTAMENTO DE TUBO DE FERRO FUNDIDO PARA REDE DE ÁGUA, DN 200 MM, JUNTA ELÁSTICA, INSTALADO EM LOCAL COM NÍVEL ALTO DE INTERFERÊNCIAS (NÃO INCLUI FORNECIMENTO). AF_11/2017 | I10: M | J10: COEFICIENTE DE REPRESENTATIVIDADE | K10: 16,36 | L10: CAIXA REFERENCIAL
A11: ASSENTAMENTO DE TUBOS E PECAS | B11: ASTU | C11: FORNEC E/OU ASSENT DE TUBO DE FERRO FUNDIDO JUNTA ELASTICA | D11: 0045 | G11: 97145 | H11: ASSENTAMENTO DE TUBO DE FERRO FUNDIDO PARA REDE DE ÁGUA, DN 250 MM, JUNTA ELÁSTICA, INSTALADO EM LOCAL COM NÍVEL ALTO DE INTERFERÊNCIAS (NÃO INCLUI FORNECIMENTO). AF_11/2017 | I11: M | J11: COEFICIENTE DE REPRESENTATIVIDADE | K11: 19,11 | L11: CAIXA REFERENCIAL
A12: ASSENTAMENTO DE TUBOS E PECAS | B12: ASTU | C12: FORNEC E/OU ASSENT DE TUBO DE FERRO FUNDIDO JUNTA ELASTICA | D12: 0045 | G12: 97146 | H12: ASSENTAMENTO DE TUBO DE FERRO FUNDIDO PARA REDE DE ÁGUA, DN 300 MM, JUNTA ELÁSTICA, INSTALADO EM LOCAL COM NÍVEL ALTO DE INTERFERÊNCIAS (NÃO INCLUI FORNECIMENTO). AF_11/2017 | I12: M | J12: COEFICIENTE DE REPRESENTATIVIDADE | K12: 21,85 | L12: CAIXA REFERENCIAL
A13: ASSENTAMENTO DE TUBOS E PECAS | B13: ASTU | C13: FORNEC E/OU ASSENT DE TUBO DE FERRO FUNDIDO JUNTA ELASTICA | D13: 0045 | G13: 97147 | H13: ASSENTAMENTO DE TUBO DE FERRO FUNDIDO PARA REDE DE ÁGUA, DN 350 MM, JUNTA ELÁSTICA, INSTALADO EM LOCAL COM NÍVEL ALTO DE INTERFERÊNCIAS (NÃO INCLUI FORNECIMENTO). AF_11/2017 | I13: M | J13: COEFICIENTE DE REPRESENTATIVIDADE | K13: 24,61 | L13: CAIXA REFERENCIAL
A14: ASSENTAMENTO DE TUBOS E PECAS | B14: ASTU | C14: FORNEC E/OU ASSENT DE TUBO DE FERRO FUNDIDO JUNTA ELASTICA | D14: 0045 | G14: 97148 | H14: ASSENTAMENTO DE TUBO DE FERRO FUNDIDO PARA REDE DE ÁGUA, DN 400 MM, JUNTA ELÁSTICA, INSTALADO EM LOCAL COM NÍVEL ALTO DE INTERFERÊNCIAS (NÃO INCLUI FORNECIMENTO). AF_11/2017 | I14: M | J14: COEFICIENTE DE REPRESENTATIVIDADE | K14: 27,35 | L14: CAIXA REFERENCIAL
A15: ASSENTAMENTO DE TUBOS E PECAS | B15: ASTU | C15: FORNEC E/OU ASSENT DE TUBO DE FERRO FUNDIDO JUNTA ELASTICA | D15: 0045 | G15: 97149 | H15: ASSENTAMENTO DE TUBO DE FERRO FUNDIDO PARA REDE DE ÁGUA, DN 450 MM, JUNTA ELÁSTICA, INSTALADO EM LOCAL COM NÍVEL ALTO DE INTERFERÊNCIAS (NÃO INCLUI FORNECIMENTO). AF_11/2017 | I15: M | J15: COEFICIENTE DE REPRESENTATIVIDADE | K15: 30,14 | L15: CAIXA REFERENCIAL
A16: ASSENTAMENTO DE TUBOS E PECAS | B16: ASTU | C16: FORNEC E/OU ASSENT DE TUBO DE FERRO FUNDIDO JUNTA ELASTICA | D16: 0045 | G16: 97150 | H16: ASSENTAMENTO DE TUBO DE FERRO FUNDIDO PARA REDE DE ÁGUA, DN 500 MM, JUNTA ELÁSTICA, INSTALADO EM LOCAL COM NÍVEL ALTO DE INTERFERÊNCIAS (NÃO INCLUI FORNECIMENTO). AF_11/2017 | I16: M | J16: COEFICIENTE DE REPRESENTATIVIDADE | K16: 37,12 | L16: CAIXA REFERENCIAL
A17: ASSENTAMENTO DE TUBOS E PECAS | B17: ASTU | C17: FORNEC E/OU ASSENT DE TUBO DE FERRO FUNDIDO JUNTA ELASTICA | D17: 0045 | G17: 97151 | H17: ASSENTAMENTO DE TUBO DE FERRO FUNDIDO PARA REDE DE ÁGUA, DN 600 MM, JUNTA ELÁSTICA, INSTALADO EM LOCAL COM NÍVEL ALTO DE INTERFERÊNCIAS (NÃO INCLUI FORNECIMENTO). AF_11/2017 | I17: M | J17: COEFICIENTE DE REPRESENTATIVIDADE | K17: 43,26 | L17: CAIXA REFERENCIAL
A18: ASSENTAMENTO DE TUBOS E PECAS | B18: ASTU | C18: FORNEC E/OU ASSENT DE TUBO DE FERRO FUNDIDO JUNTA ELASTICA | D18: 0045 | G18: 97152 | H18: ASSENTAMENTO DE TUBO DE FERRO FUNDIDO PARA REDE DE ÁGUA, DN 700 MM, JUNTA ELÁSTICA, INSTALADO EM LOCAL COM NÍVEL ALTO DE INTERFERÊNCIAS (NÃO INCLUI FORNECIMENTO). AF_11/2017 | I18: M | J18: COEFICIENTE DE REPRESENTATIVIDADE | K18: 49,18 | L18: CAIXA REFERENCIAL
A19: ASSENTAMENTO DE TUBOS E PECAS | B19: ASTU | C19: FORNEC E/OU ASSENT DE TUBO DE FERRO FUNDIDO JUNTA ELASTICA | D19: 0045 | G19: 97153 | H19: ASSENTAMENTO DE TUBO DE FERRO FUNDIDO PARA REDE DE ÁGUA, DN 800 MM, JUNTA ELÁSTICA, INSTALADO EM LOCAL COM NÍVEL ALTO DE INTERFERÊNCIAS (NÃO INCLUI FORNECIMENTO). AF_11/2017 | I19: M | J19: COEFICIENTE DE REPRESENTATIVIDADE | K19: 55,23 | L19: CAIXA REFERENCIAL
A20: ASSENTAMENTO DE TUBOS E PECAS | B20: ASTU | C20: FORNEC E/OU ASSENT DE TUBO DE FERRO FUNDIDO JUNTA ELASTICA | D20: 0045 | G20: 97154 | H20: ASSENTAMENTO DE TUBO DE FERRO FUNDIDO PARA REDE DE ÁGUA, DN 900 MM, JUNTA ELÁSTICA, INSTALADO EM LOCAL COM NÍVEL ALTO DE INTERFERÊNCIAS (NÃO INCLUI FORNECIMENTO). AF_11/2017 | I20: M | J20: COEFICIENTE DE REPRESENTATIVIDADE | K20: 61,31 | L20: CAIXA REFERENCIAL
A21: ASSENTAMENTO DE TUBOS E PECAS | B21: ASTU | C21: FORNEC E/OU ASSENT DE TUBO DE FERRO FUNDIDO JUNTA ELASTICA | D21: 0045 | G21: 97155 | H21: ASSENTAMENTO DE TUBO DE FERRO FUNDIDO PARA REDE DE ÁGUA, DN 1000 MM, JUNTA ELÁSTICA, INSTALADO EM LOCAL COM NÍVEL ALTO DE INTERFERÊNCIAS (NÃO INCLUI FORNECIMENTO). AF_11/2017 | I21: M | J21: COEFICIENTE DE REPRESENTATIVIDADE | K21: 67,39 | L21: CAIXA REFERENCIAL
A22: ASSENTAMENTO DE TUBOS E PECAS | B22: ASTU | C22: FORNEC E/OU ASSENT DE TUBO DE FERRO FUNDIDO JUNTA ELASTICA | D22: 0045 | G22: 97156 | H22: ASSENTAMENTO DE TUBO DE FERRO FUNDIDO PARA REDE DE ÁGUA, DN 1200 MM, JUNTA ELÁSTICA, INSTALADO EM LOCAL COM NÍVEL ALTO DE INTERFERÊNCIAS (NÃO INCLUI FORNECIMENTO). AF_11/2017 | I22: M | J22: COEFICIENTE DE REPRESENTATIVIDADE | K22: 79,93 | L22: CAIXA REFERENCIAL
A23: ASSENTAMENTO DE TUBOS E PECAS | B23: ASTU | C23: FORNEC E/OU ASSENT DE TUBO DE FERRO FUNDIDO JUNTA ELASTICA | D23: 0045 | G23: 97157 | H23: ASSENTAMENTO DE TUBO DE FERRO FUNDIDO PARA REDE DE ÁGUA, DN 80 MM, JUNTA ELÁSTICA, INSTALADO EM LOCAL COM NÍVEL BAIXO DE INTERFERÊNCIAS (NÃO INCLUI FORNECIMENTO). AF_11/2017 | I23: M | J23: COEFICIENTE DE REPRESENTATIVIDADE | K23: 5,88 | L23: CAIXA REFERENCIAL
A24: ASSENTAMENTO DE TUBOS E PECAS | B24: ASTU | C24: FORNEC E/OU ASSENT DE TUBO DE FERRO FUNDIDO JUNTA ELASTICA | D24: 0045 | G24: 97158 | H24: ASSENTAMENTO DE TUBO DE FERRO FUNDIDO PARA REDE DE ÁGUA, DN 100 MM, JUNTA ELÁSTICA, INSTALADO EM LOCAL COM NÍVEL BAIXO DE INTERFERÊNCIAS (NÃO INCLUI FORNECIMENTO). AF_11/2017 | I24: M | J24: COEFICIENTE DE REPRESENTATIVIDADE | K24: 6,54 | L24: CAIXA REFERENCIAL
A25: ASSENTAMENTO DE TUBOS E PECAS | B25: ASTU | C25: FORNEC E/OU ASSENT DE TUBO DE FERRO FUNDIDO JUNTA ELASTICA | D25: 0045 | G25: 97159 | H25: ASSENTAMENTO DE TUBO DE FERRO FUNDIDO PARA REDE DE ÁGUA, DN 150 MM, JUNTA ELÁSTICA, INSTALADO EM LOCAL COM NÍVEL BAIXO DE INTERFERÊNCIAS (NÃO INCLUI FORNECIMENTO). AF_11/2017 | I25: M | J25: COEFICIENTE DE REPRESENTATIVIDADE | K25: 8,20 | L25: CAIXA REFERENCIAL
A26: ASSENTAMENTO DE TUBOS E PECAS | B26: ASTU | C26: FORNEC E/OU ASSENT DE TUBO DE FERRO FUNDIDO JUNTA ELASTICA | D26: 0045 | G26: 97160 | H26: ASSENTAMENTO DE TUBO DE FERRO FUNDIDO PARA REDE DE ÁGUA, DN 200 MM, JUNTA ELÁSTICA, INSTALADO EM LOCAL COM NÍVEL BAIXO DE INTERFERÊNCIAS (NÃO INCLUI FORNECIMENTO). AF_11/2017 | I26: M | J26: COEFICIENTE DE REPRESENTATIVIDADE | K26: 9,84 | L26: CAIXA REFERENCIAL
A27: ASSENTAMENTO DE TUBOS E PECAS | B27: ASTU | C27: FORNEC E/OU ASSENT DE TUBO DE FERRO FUNDIDO JUNTA ELASTICA | D27: 0045 | G27: 97161 | H27: ASSENTAMENTO DE TUBO DE FERRO FUNDIDO PARA REDE DE ÁGUA, DN 250 MM, JUNTA ELÁSTICA, INSTALADO EM LOCAL COM NÍVEL BAIXO DE INTERFERÊNCIAS (NÃO INCLUI FORNECIMENTO). AF_11/2017 | I27: M | J27: COEFICIENTE DE REPRESENTATIVIDADE | K27: 11,53 | L27: CAIXA REFERENCIAL
A28: ASSENTAMENTO DE TUBOS E PECAS | B28: ASTU | C28: FORNEC E/OU ASSENT DE TUBO DE FERRO FUNDIDO JUNTA ELASTICA | D28: 0045 | G28: 97162 | H28: ASSENTAMENTO DE TUBO DE FERRO FUNDIDO PARA REDE DE ÁGUA, DN 300 MM, JUNTA ELÁSTICA, INSTALADO EM LOCAL COM NÍVEL BAIXO DE INTERFERÊNCIAS (NÃO INCLUI FORNECIMENTO). AF_11/2017 | I28: M | J28: COEFICIENTE DE REPRESENTATIVIDADE | K28: 13,19 | L28: CAIXA REFERENCIAL
A29: ASSENTAMENTO DE TUBOS E PECAS | B29: ASTU | C29: FORNEC E/OU ASSENT DE TUBO DE FERRO FUNDIDO JUNTA ELASTICA | D29: 0045 | G29: 97163 | H29: ASSENTAMENTO DE TUBO DE FERRO FUNDIDO PARA REDE DE ÁGUA, DN 350 MM, JUNTA ELÁSTICA, INSTALADO EM LOCAL COM NÍVEL BAIXO DE INTERFERÊNCIAS (NÃO INCLUI FORNECIMENTO). AF_11/2017 | I29: M | J29: COEFICIENTE DE REPRESENTATIVIDADE | K29: 14,87 | L29: CAIXA REFERENCIAL
A30: ASSENTAMENTO DE TUBOS E PECAS | B30: ASTU | C30: FORNEC E/OU ASSENT DE TUBO DE FERRO FUNDIDO JUNTA ELASTICA | D30: 0045 | G30: 97164 | H30: ASSENTAMENTO DE TUBO DE FERRO FUNDIDO PARA REDE DE ÁGUA, DN 400 MM, JUNTA ELÁSTICA, INSTALADO EM LOCAL COM NÍVEL BAIXO DE INTERFERÊNCIAS (NÃO INCLUI FORNECIMENTO). AF_11/2017 | I30: M | J30: COEFICIENTE DE REPRESENTATIVIDADE | K30: 16,53 | L30: CAIXA REFERENCIAL
A31: ASSENTAMENTO DE TUBOS E PECAS | B31: ASTU | C31: FORNEC E/OU ASSENT DE TUBO DE FERRO FUNDIDO JUNTA ELASTICA | D31: 0045 | G31: 97165 | H31: ASSENTAMENTO DE TUBO DE FERRO FUNDIDO PARA REDE DE ÁGUA, DN 450 MM, JUNTA ELÁSTICA, INSTALADO EM LOCAL COM NÍVEL BAIXO DE INTERFERÊNCIAS (NÃO INCLUI FORNECIMENTO). AF_11/2017 | I31: M | J31: COEFICIENTE DE REPRESENTATIVIDADE | K31: 18,23 | L31: CAIXA REFERENCIAL
A32: ASSENTAMENTO DE TUBOS E PECAS | B32: ASTU | C32: FORNEC E/OU ASSENT DE TUBO DE FERRO FUNDIDO JUNTA ELASTICA | D32: 0045 | G32: 97166 | H32: ASSENTAMENTO DE TUBO DE FERRO FUNDIDO PARA REDE DE ÁGUA, DN 500 MM, JUNTA ELÁSTICA, INSTALADO EM LOCAL COM NÍVEL BAIXO DE INTERFERÊNCIAS (NÃO INCLUI FORNECIMENTO). AF_11/2017 | I32: M | J32: COEFICIENTE DE REPRESENTATIVIDADE | K32: 22,49 | L32: CAIXA REFERENCIAL
A33: ASSENTAMENTO DE TUBOS E PECAS | B33: ASTU | C33: FORNEC E/OU ASSENT DE TUBO DE FERRO FUNDIDO JUNTA ELASTICA | D33: 0045 | G33: 97167 | H33: ASSENTAMENTO DE TUBO DE FERRO FUNDIDO PARA REDE DE ÁGUA, DN 600 MM, JUNTA ELÁSTICA, INSTALADO EM LOCAL COM NÍVEL BAIXO DE INTERFERÊNCIAS (NÃO INCLUI FORNECIMENTO). AF_11/2017 | I33: M | J33: COEFICIENTE DE REPRESENTATIVIDADE | K33: 26,24 | L33: CAIXA REFERENCIAL
A34: ASSENTAMENTO DE TUBOS E PECAS | B34: ASTU | C34: FORNEC E/OU ASSENT DE TUBO DE FERRO FUNDIDO JUNTA ELASTICA | D34: 0045 | G34: 97168 | H34: ASSENTAMENTO DE TUBO DE FERRO FUNDIDO PARA REDE DE ÁGUA, DN 700 MM, JUNTA ELÁSTICA, INSTALADO EM LOCAL COM NÍVEL BAIXO DE INTERFERÊNCIAS (NÃO INCLUI FORNECIMENTO). AF_11/2017 | I34: M | J34: COEFICIENTE DE REPRESENTATIVIDADE | K34: 29,77 | L34: CAIXA REFERENCIAL
A35: ASSENTAMENTO DE TUBOS E PECAS | B35: ASTU | C35: FORNEC E/OU ASSENT DE TUBO DE FERRO FUNDIDO JUNTA ELASTICA | D35: 0045 | G35: 97169 | H35: ASSENTAMENTO DE TUBO DE FERRO FUNDIDO PARA REDE DE ÁGUA, DN 800 MM, JUNTA ELÁSTICA, INSTALADO EM LOCAL COM NÍVEL BAIXO DE INTERFERÊNCIAS (NÃO INCLUI FORNECIMENTO). AF_11/2017 | I35: M | J35: COEFICIENTE DE REPRESENTATIVIDADE | K35: 33,43 | L35: CAIXA REFERENCIAL
A36: ASSENTAMENTO DE TUBOS E PECAS | B36: ASTU | C36: FORNEC E/OU ASSENT DE TUBO DE FERRO FUNDIDO JUNTA ELASTICA | D36: 0045 | G36: 97170 | H36: ASSENTAMENTO DE TUBO DE FERRO FUNDIDO PARA REDE DE ÁGUA, DN 900 MM, JUNTA ELÁSTICA, INSTALADO EM LOCAL COM NÍVEL BAIXO DE INTERFERÊNCIAS (NÃO INCLUI FORNECIMENTO). AF_11/2017 | I36: M | J36: COEFICIENTE DE REPRESENTATIVIDADE | K36: 37,13 | L36: CAIXA REFERENCIAL
A37: ASSENTAMENTO DE TUBOS E PECAS | B37: ASTU | C37: FORNEC E/OU ASSENT DE TUBO DE FERRO FUNDIDO JUNTA ELASTICA | D37: 0045 | G37: 97171 | H37: ASSENTAMENTO DE TUBO DE FERRO FUNDIDO PARA REDE DE ÁGUA, DN 1000 MM, JUNTA ELÁSTICA, INSTALADO EM LOCAL COM NÍVEL BAIXO DE INTERFERÊNCIAS (NÃO INCLUI FORNECIMENTO). AF_11/2017 | I37: M | J37: COEFICIENTE DE REPRESENTATIVIDADE | K37: 40,84 | L37: CAIXA REFERENCIAL
A38: ASSENTAMENTO DE TUBOS E PECAS | B38: ASTU | C38: FORNEC E/OU ASSENT DE TUBO DE FERRO FUNDIDO JUNTA ELASTICA | D38: 0045 | G38: 97172 | H38: ASSENTAMENTO DE TUBO DE FERRO FUNDIDO PARA REDE DE ÁGUA, DN 1200 MM, JUNTA ELÁSTICA, INSTALADO EM LOCAL COM NÍVEL BAIXO DE INTERFERÊNCIAS (NÃO INCLUI FORNECIMENTO). AF_11/2017 | I38: M | J38: COEFICIENTE DE REPRESENTATIVIDADE | K38: 48,59 | L38: CAIXA REFERENCIAL
A39: ASSENTAMENTO DE TUBOS E PECAS | B39: ASTU | C39: FORNEC E/OU ASSENT DE TUBO DE ACO COM JUNTA SOLDADA | D39: 0046 | G39: 97173 | H39: ASSENTAMENTO DE TUBO DE AÇO CARBONO PARA REDE DE ÁGUA, DN 600 MM (24), JUNTA SOLDADA, INSTALADO EM LOCAL COM NÍVEL ALTO DE INTERFERÊNCIAS (NÃO INCLUI FORNECIMENTO). AF_11/2017 | I39: M | J39: COEFICIENTE DE REPRESENTATIVIDADE | K39: 37,86 | L39: CAIXA REFERENCIAL
A40: ASSENTAMENTO DE TUBOS E PECAS | B40: ASTU | C40: FORNEC E/OU ASSENT DE TUBO DE ACO COM JUNTA SOLDADA | D40: 0046 | G40: 97174 | H40: ASSENTAMENTO DE TUBO DE AÇO CARBONO PARA REDE DE ÁGUA, DN 700 MM (28), JUNTA SOLDADA, INSTALADO EM LOCAL COM NÍVEL ALTO DE INTERFERÊNCIAS (NÃO INCLUI FORNECIMENTO). AF_11/2017 | I40: M | J40: COEFICIENTE DE REPRESENTATIVIDADE | K40: 43,78 | L40: CAIXA REFERENCIAL
A41: ASSENTAMENTO DE TUBOS E PECAS | B41: ASTU | C41: FORNEC E/OU ASSENT DE TUBO DE ACO COM JUNTA SOLDADA | D41: 0046 | G41: 97175 | H41: ASSENTAMENTO DE TUBO DE AÇO CARBONO PARA REDE DE ÁGUA, DN 800 MM (32), JUNTA SOLDADA, INSTALADO EM LOCAL COM NÍVEL ALTO DE INTERFERÊNCIAS (NÃO INCLUI FORNECIMENTO). AF_11/2017 | I41: M | J41: COEFICIENTE DE REPRESENTATIVIDADE | K41: 49,71 | L41: CAIXA REFERENCIAL
A42: ASSENTAMENTO DE TUBOS E PECAS | B42: ASTU | C42: FORNEC E/OU ASSENT DE TUBO DE ACO COM JUNTA SOLDADA | D42: 0046 | G42: 97176 | H42: ASSENTAMENTO DE TUBO DE AÇO CARBONO PARA REDE DE ÁGUA, DN 900 MM (36), JUNTA SOLDADA, INSTALADO EM LOCAL COM NÍVEL ALTO DE INTERFERÊNCIAS (NÃO INCLUI FORNECIMENTO). AF_11/2017 | I42: M | J42: COEFICIENTE DE REPRESENTATIVIDADE | K42: 55,63 | L42: CAIXA REFERENCIAL
A43: ASSENTAMENTO DE TUBOS E PECAS | B43: ASTU | C43: FORNEC E/OU ASSENT DE TUBO DE ACO COM JUNTA SOLDADA | D43: 0046 | G43: 97177 | H43: ASSENTAMENTO DE TUBO DE AÇO CARBONO PARA REDE DE ÁGUA, DN 1000 MM (40) OU DN 1100 MM (44), JUNTA SOLDADA, INSTALADO EM LOCAL COM NÍVEL ALTO DE INTERFERÊNCIAS (NÃO INCLUI FORNECIMENTO). AF_11/2017 | I43: M | J43: COEFICIENTE DE REPRESENTATIVIDADE | K43: 67,48 | L43: CAIXA REFERENCIAL
A44: ASSENTAMENTO DE TUBOS E PECAS | B44: ASTU | C44: FORNEC E/OU ASSENT DE TUBO DE ACO COM JUNTA SOLDADA | D44: 0046 | G44: 97178 | H44: ASSENTAMENTO DE TUBO DE AÇO CARBONO PARA REDE DE ÁGUA, DN 1200 MM (48) OU DN 1300 MM (52), JUNTA SOLDADA, INSTALADO EM LOCAL COM NÍVEL ALTO DE INTERFERÊNCIAS (NÃO INCLUI FORNECIMENTO). AF_11/2017 | I44: M | J44: COEFICIENTE DE REPRESENTATIVIDADE | K44: 79,34 | L44: CAIXA REFERENCIAL
A45: ASSENTAMENTO DE TUBOS E PECAS | B45: ASTU | C45: FORNEC E/OU ASSENT DE TUBO DE ACO COM JUNTA SOLDADA | D45: 0046 | G45: 97179 | H45: ASSENTAMENTO DE TUBO DE AÇO CARBONO PARA REDE DE ÁGUA, DN 1400 MM (56'') OU DN 1500 MM (60), JUNTA SOLDADA, INSTALADO EM LOCAL COM NÍVEL ALTO DE INTERFERÊNCIAS (NÃO INCLUI FORNECIMENTO). AF_11/2017 | I45: M | J45: COEFICIENTE DE REPRESENTATIVIDADE | K45: 91,19 | L45: CAIXA REFERENCIAL
A46: ASSENTAMENTO DE TUBOS E PECAS | B46: ASTU | C46: FORNEC E/OU ASSENT DE TUBO DE ACO COM JUNTA SOLDADA | D46: 0046 | G46: 97180 | H46: ASSENTAMENTO DE TUBO DE AÇO CARBONO PARA REDE DE ÁGUA, DN 1600 MM (64) OU DN 1700 MM (68), JUNTA SOLDADA, INSTALADO EM LOCAL COM NÍVEL ALTO DE INTERFERÊNCIAS (NÃO INCLUI FORNECIMENTO). AF_11/2017 | I46: M | J46: COEFICIENTE DE REPRESENTATIVIDADE | K46: 103,05 | L46: CAIXA REFERENCIAL
A47: ASSENTAMENTO DE TUBOS E PECAS | B47: ASTU | C47: FORNEC E/OU ASSENT DE TUBO DE ACO COM JUNTA SOLDADA | D47: 0046 | G47: 97181 | H47: ASSENTAMENTO DE TUBO DE AÇO CARBONO PARA REDE DE ÁGUA, DN 1800 MM (72) OU DN 1900 MM (76), JUNTA SOLDADA, INSTALADO EM LOCAL COM NÍVEL ALTO DE INTERFERÊNCIAS (NÃO INCLUI FORNECIMENTO). AF_11/2017 | I47: M | J47: COEFICIENTE DE REPRESENTATIVIDADE | K47: 119,67 | L47: CAIXA REFERENCIAL
A48: ASSENTAMENTO DE TUBOS E PECAS | B48: ASTU | C48: FORNEC E/OU ASSENT DE TUBO DE ACO COM JUNTA SOLDADA | D48: 0046 | G48: 97182 | H48: ASSENTAMENTO DE TUBO DE AÇO CARBONO PARA REDE DE ÁGUA, DN 2000 MM (80) OU DN 2100 MM (84), JUNTA SOLDADA, INSTALADO EM LOCAL COM NÍVEL ALTO DE INTERFERÊNCIAS (NÃO INCLUI FORNECIMENTO). AF_11/2017 | I48: M | J48: COEFICIENTE DE REPRESENTATIVIDADE | K48: 132,04 | L48: CAIXA REFERENCIAL
A49: ASSENTAMENTO DE TUBOS E PECAS | B49: ASTU | C49: FORNEC E/OU ASSENT DE TUBO DE ACO COM JUNTA SOLDADA | D49: 0046 | G49: 97183 | H49: ASSENTAMENTO DE TUBO DE AÇO CARBONO PARA REDE DE ÁGUA, DN 600 MM (24), JUNTA SOLDADA, INSTALADO EM LOCAL COM NÍVEL BAIXO DE INTERFERÊNCIAS (NÃO INCLUI FORNECIMENTO). AF_11/2017 | I49: M | J49: COEFICIENTE DE REPRESENTATIVIDADE | K49: 29,80 | L49: CAIXA REFERENCIAL
A50: ASSENTAMENTO DE TUBOS E PECAS | B50: ASTU | C50: FORNEC E/OU ASSENT DE TUBO DE ACO COM JUNTA SOLDADA | D50: 0046 | G50: 97184 | H50: ASSENTAMENTO DE TUBO DE AÇO CARBONO PARA REDE DE ÁGUA, DN 700 MM (28), JUNTA SOLDADA, INSTALADO EM LOCAL COM NÍVEL BAIXO DE INTERFERÊNCIAS (NÃO INCLUI FORNECIMENTO). AF_11/2017 | I50: M | J50: COEFICIENTE DE REPRESENTATIVIDADE | K50: 34,52 | L50: CAIXA REFERENCIAL
A51: ASSENTAMENTO DE TUBOS E PECAS | B51: ASTU | C51: FORNEC E/OU ASSENT DE TUBO DE ACO COM JUNTA SOLDADA | D51: 0046 | G51: 97185 | H51: ASSENTAMENTO DE TUBO DE AÇO CARBONO PARA REDE DE ÁGUA, DN 800 MM (32), JUNTA SOLDADA, INSTALADO EM LOCAL COM NÍVEL BAIXO DE INTERFERÊNCIAS (NÃO INCLUI FORNECIMENTO). AF_11/2017 | I51: M | J51: COEFICIENTE DE REPRESENTATIVIDADE | K51: 39,26 | L51: CAIXA REFERENCIAL
A52: ASSENTAMENTO DE TUBOS E PECAS | B52: ASTU | C52: FORNEC E/OU ASSENT DE TUBO DE ACO COM JUNTA SOLDADA | D52: 0046 | G52: 97186 | H52: ASSENTAMENTO DE TUBO DE AÇO CARBONO PARA REDE DE ÁGUA, DN 900 MM (36), JUNTA SOLDADA, INSTALADO EM LOCAL COM NÍVEL BAIXO DE INTERFERÊNCIAS (NÃO INCLUI FORNECIMENTO). AF_11/2017 | I52: M | J52: COEFICIENTE DE REPRESENTATIVIDADE | K52: 44,00 | L52: CAIXA REFERENCIAL
A53: ASSENTAMENTO DE TUBOS E PECAS | B53: ASTU | C53: FORNEC E/OU ASSENT DE TUBO DE ACO COM JUNTA SOLDADA | D53: 0046 | G53: 97187 | H53: ASSENTAMENTO DE TUBO DE AÇO CARBONO PARA REDE DE ÁGUA, DN 1000 MM (40 ) OU DN 1100 MM (44 ), JUNTA SOLDADA, INSTALADO EM LOCAL COM NÍVEL BAIXO DE INTERFERÊNCIAS (NÃO INCLUI FORNECIMENTO). AF_11/2017 | I53: M | J53: COEFICIENTE DE REPRESENTATIVIDADE | K53: 53,47 | L53: CAIXA REFERENCIAL
A54: ASSENTAMENTO DE TUBOS E PECAS | B54: ASTU | C54: FORNEC E/OU ASSENT DE TUBO DE ACO COM JUNTA SOLDADA | D54: 0046 | G54: 97188 | H54: ASSENTAMENTO DE TUBO DE AÇO CARBONO PARA REDE DE ÁGUA, DN 1200 MM (48) OU DN 1300 MM (52), JUNTA SOLDADA, INSTALADO EM LOCAL COM NÍVEL BAIXO DE INTERFERÊNCIAS (NÃO INCLUI FORNECIMENTO). AF_11/2017 | I54: M | J54: COEFICIENTE DE REPRESENTATIVIDADE | K54: 62,94 | L54: CAIXA REFERENCIAL
A55: ASSENTAMENTO DE TUBOS E PECAS | B55: ASTU | C55: FORNEC E/OU ASSENT DE TUBO DE ACO COM JUNTA SOLDADA | D55: 0046 | G55: 97189 | H55: ASSENTAMENTO DE TUBO DE AÇO CARBONO PARA REDE DE ÁGUA, DN 1400 MM (56'') OU DN 1500 MM (60), JUNTA SOLDADA, INSTALADO EM LOCAL COM NÍVEL BAIXO DE INTERFERÊNCIAS (NÃO INCLUI FORNECIMENTO). AF_11/2017 | I55: M | J55: COEFICIENTE DE REPRESENTATIVIDADE | K55: 72,40 | L55: CAIXA REFERENCIAL
A56: ASSENTAMENTO DE TUBOS E PECAS | B56: ASTU | C56: FORNEC E/OU ASSENT DE TUBO DE ACO COM JUNTA SOLDADA | D56: 0046 | G56: 97190 | H56: ASSENTAMENTO DE TUBO DE AÇO CARBONO PARA REDE DE ÁGUA, DN 1600 MM (64) OU DN 1700 MM (68), JUNTA SOLDADA, INSTALADO EM LOCAL COM NÍVEL BAIXO DE INTERFERÊNCIAS (NÃO INCLUI FORNECIMENTO). AF_11/2017 | I56: M | J56: COEFICIENTE DE REPRESENTATIVIDADE | K56: 81,88 | L56: CAIXA REFERENCIAL
A57: ASSENTAMENTO DE TUBOS E PECAS | B57: ASTU | C57: FORNEC E/OU ASSENT DE TUBO DE ACO COM JUNTA SOLDADA | D57: 0046 | G57: 97191 | H57: ASSENTAMENTO DE TUBO DE AÇO CARBONO PARA REDE DE ÁGUA, DN 1800 MM (72) OU DN 1900 MM (76), JUNTA SOLDADA, INSTALADO EM LOCAL COM NÍVEL BAIXO DE INTERFERÊNCIAS (NÃO INCLUI FORNECIMENTO). AF_11/2017 | I57: M | J57: COEFICIENTE DE REPRESENTATIVIDADE | K57: 94,85 | L57: CAIXA REFERENCIAL
A58: ASSENTAMENTO DE TUBOS E PECAS | B58: ASTU | C58: FORNEC E/OU ASSENT DE TUBO DE ACO COM JUNTA SOLDADA | D58: 0046 | G58: 97192 | H58: ASSENTAMENTO DE TUBO DE AÇO CARBONO PARA REDE DE ÁGUA, DN 2000 MM (80) OU DN 2100 MM (84), JUNTA SOLDADA, INSTALADO EM LOCAL COM NÍVEL BAIXO DE INTERFERÊNCIAS (NÃO INCLUI FORNECIMENTO). AF_11/2017 | I58: M | J58: COEFICIENTE DE REPRESENTATIVIDADE | K58: 104,70 | L58: CAIXA REFERENCIAL
A59: ASSENTAMENTO DE TUBOS E PECAS | B59: ASTU | C59: FORNEC E/OU ASSENT DE TUBO DE PVC COM JUNTA ELASTICA | D59: 0048 | G59: 90694 | H59: TUBO DE PVC PARA REDE COLETORA DE ESGOTO DE PAREDE MACIÇA, DN 100 MM, JUNTA ELÁSTICA - FORNECIMENTO E ASSENTAMENTO. AF_01/2021 | I59: M | J59: COEFICIENTE DE REPRESENTATIVIDADE | K59: 50,73 | L59: CAIXA REFERENCIAL
A60: ASSENTAMENTO DE TUBOS E PECAS | B60: ASTU | C60: FORNEC E/OU ASSENT DE TUBO DE PVC COM JUNTA ELASTICA | D60: 0048 | G60: 90695 | H60: TUBO DE PVC PARA REDE COLETORA DE ESGOTO DE PAREDE MACIÇA, DN 150 MM, JUNTA ELÁSTICA - FORNECIMENTO E ASSENTAMENTO. AF_01/2021 | I60: M | J60: COEFICIENTE DE REPRESENTATIVIDADE | K60: 96,37 | L60: CAIXA REFERENCIAL
A61: ASSENTAMENTO DE TUBOS E PECAS | B61: ASTU | C61: FORNEC E/OU ASSENT DE TUBO DE PVC COM JUNTA ELASTICA | D61: 0048 | G61: 90696 | H61: TUBO DE PVC PARA REDE COLETORA DE ESGOTO DE PAREDE MACIÇA, DN 200 MM, JUNTA ELÁSTICA - FORNECIMENTO E ASSENTAMENTO. AF_01/2021 | I61: M | J61: COEFICIENTE DE REPRESENTATIVIDADE | K61: 161,04 | L61: CAIXA REFERENCIAL
A62: ASSENTAMENTO DE TUBOS E PECAS | B62: ASTU | C62: FORNEC E/OU ASSENT DE TUBO DE PVC COM JUNTA ELASTICA | D62: 0048 | G62: 90697 | H62: TUBO DE PVC PARA REDE COLETORA DE ESGOTO DE PAREDE MACIÇA, DN 250 MM, JUNTA ELÁSTICA - FORNECIMENTO E ASSENTAMENTO. AF_01/2021 | I62: M | J62: COEFICIENTE DE REPRESENTATIVIDADE | K62: 249,83 | L62: CAIXA REFERENCIAL
A63: ASSENTAMENTO DE TUBOS E PECAS | B63: ASTU | C63: FORNEC E/OU ASSENT DE TUBO DE PVC COM JUNTA ELASTICA | D63: 0048 | G63: 90698 | H63: TUBO DE PVC PARA REDE COLETORA DE ESGOTO DE PAREDE MACIÇA, DN 300 MM, JUNTA ELÁSTICA, FORNECIMENTO E ASSENTAMENTO. AF_01/2021 | I63: M | J63: COEFICIENTE DE REPRESENTATIVIDADE | K63: 381,89 | L63: CAIXA REFERENCIAL
A64: ASSENTAMENTO DE TUBOS E PECAS | B64: ASTU | C64: FORNEC E/OU ASSENT DE TUBO DE PVC COM JUNTA ELASTICA | D64: 0048 | G64: 90699 | H64: TUBO DE PVC PARA REDE COLETORA DE ESGOTO DE PAREDE MACIÇA, DN 350 MM, JUNTA ELÁSTICA - FORNECIMENTO E ASSENTAMENTO. AF_01/2021 | I64: M | J64: COEFICIENTE DE REPRESENTATIVIDADE | K64: 537,51 | L64: CAIXA REFERENCIAL
A65: ASSENTAMENTO DE TUBOS E PECAS | B65: ASTU | C65: FORNEC E/OU ASSENT DE TUBO DE PVC COM JUNTA ELASTICA | D65: 0048 | G65: 90700 | H65: TUBO DE PVC PARA REDE COLETORA DE ESGOTO DE PAREDE MACIÇA, DN 400 MM, JUNTA ELÁSTICA FORNECIMENTO E ASSENTAMENTO. AF_01/2021 | I65: M | J65: COEFICIENTE DE REPRESENTATIVIDADE | K65: 627,74 | L65: CAIXA REFERENCIAL
A66: ASSENTAMENTO DE TUBOS E PECAS | B66: ASTU | C66: FORNEC E/OU ASSENT DE TUBO DE PVC COM JUNTA ELASTICA | D66: 0048 | G66: 90701 | H66: TUBO DE PVC CORRUGADO DE DUPLA PAREDE PARA REDE COLETORA DE ESGOTO, DN 150 MM, JUNTA ELÁSTICA - FORNECIMENTO E ASSENTAMENTO. AF_01/2021 | I66: M | J66: COEFICIENTE DE REPRESENTATIVIDADE | K66: 76,17 | L66: CAIXA REFERENCIAL
A67: ASSENTAMENTO DE TUBOS E PECAS | B67: ASTU | C67: FORNEC E/OU ASSENT DE TUBO DE PVC COM JUNTA ELASTICA | D67: 0048 | G67: 90702 | H67: TUBO DE PVC CORRUGADO DE DUPLA PAREDE PARA REDE COLETORA DE ESGOTO, DN 200 MM, JUNTA ELÁSTICA - FORNECIMENTO E ASSENTAMENTO. AF_01/2021 | I67: M | J67: COEFICIENTE DE REPRESENTATIVIDADE | K67: 126,03 | L67: CAIXA REFERENCIAL
A68: ASSENTAMENTO DE TUBOS E PECAS | B68: ASTU | C68: FORNEC E/OU ASSENT DE TUBO DE PVC COM JUNTA ELASTICA | D68: 0048 | G68: 90703 | H68: TUBO DE PVC CORRUGADO DE DUPLA PAREDE PARA REDE COLETORA DE ESGOTO, DN 250 MM, JUNTA ELÁSTICA - FORNECIMENTO E ASSENTAMENTO. AF_01/2021 | I68: M | J68: COEFICIENTE DE REPRESENTATIVIDADE | K68: 198,10 | L68: CAIXA REFERENCIAL
A69: ASSENTAMENTO DE TUBOS E PECAS | B69: ASTU | C69: FORNEC E/OU ASSENT DE TUBO DE PVC COM JUNTA ELASTICA | D69: 0048 | G69: 90704 | H69: TUBO DE PVC CORRUGADO DE DUPLA PAREDE PARA REDE COLETORA DE ESGOTO, DN 300 MM, JUNTA ELÁSTICA - FORNECIMENTO E ASSENTAMENTO. AF_01/2021 | I69: M | J69: COEFICIENTE DE REPRESENTATIVIDADE | K69: 295,72 | L69: CAIXA REFERENCIAL
A70: ASSENTAMENTO DE TUBOS E PECAS | B70: ASTU | C70: FORNEC E/OU ASSENT DE TUBO DE PVC COM JUNTA ELASTICA | D70: 0048 | G70: 90705 | H70: TUBO DE PVC CORRUGADO DE DUPLA PAREDE PARA REDE COLETORA DE ESGOTO, DN 350 MM, JUNTA ELÁSTICA - FORNECIMENTO E ASSENTAMENTO. AF_01/2021 | I70: M | J70: COEFICIENTE DE REPRESENTATIVIDADE | K70: 384,27 | L70: CAIXA REFERENCIAL
A71: ASSENTAMENTO DE TUBOS E PECAS | B71: ASTU | C71: FORNEC E/OU ASSENT DE TUBO DE PVC COM JUNTA ELASTICA | D71: 0048 | G71: 90706 | H71: TUBO DE PVC CORRUGADO DE DUPLA PAREDE PARA REDE COLETORA DE ESGOTO, DN 400 MM, JUNTA ELÁSTICA - FORNECIMENTO E ASSENTAMENTO. AF_01/2021 | I71: M | J71: COEFICIENTE DE REPRESENTATIVIDADE | K71: 509,52 | L71: CAIXA REFERENCIAL
A72: ASSENTAMENTO DE TUBOS E PECAS | B72: ASTU | C72: FORNEC E/OU ASSENT DE TUBO DE PVC COM JUNTA ELASTICA | D72: 0048 | G72: 90708 | H72: TUBO DE PEAD CORRUGADO DE DUPLA PAREDE PARA REDE COLETORA DE ESGOTO, DN 600 MM, JUNTA ELÁSTICA INTEGRADA - FORNECIMENTO E ASSENTAMENTO. AF_01/2021 | I72: M | J72: COEFICIENTE DE REPRESENTATIVIDADE | K72: 1.644,39 | L72: CAIXA REFERENCIAL
A73: ASSENTAMENTO DE TUBOS E PECAS | B73: ASTU | C73: FORNEC E/OU ASSENT DE TUBO DE PVC COM JUNTA ELASTICA | D73: 0048 | G73: 90724 | H73: JUNTA ARGAMASSADA ENTRE TUBO DN 100 MM E O POÇO DE VISITA/ CAIXA DE CONCRETO OU ALVENARIA EM REDES DE ESGOTO. AF_01/2021 | I73: UN | J73: COEFICIENTE DE REPRESENTATIVIDADE | K73: 27,09 | L73: CAIXA REFERENCIAL
A74: ASSENTAMENTO DE TUBOS E PECAS | B74: ASTU | C74: FORNEC E/OU ASSENT DE TUBO DE PVC COM JUNTA ELASTICA | D74: 0048 | G74: 90725 | H74: JUNTA ARGAMASSADA ENTRE TUBO DN 150 MM E O POÇO DE VISITA/ CAIXA DE CONCRETO OU ALVENARIA EM REDES DE ESGOTO. AF_01/2021 | I74: UN | J74: COEFICIENTE DE REPRESENTATIVIDADE | K74: 33,31 | L74: CAIXA REFERENCIAL
A75: ASSENTAMENTO DE TUBOS E PECAS | B75: ASTU | C75: FORNEC E/OU ASSENT DE TUBO DE PVC COM JUNTA ELASTICA | D75: 0048 | G75: 90726 | H75: JUNTA ARGAMASSADA ENTRE TUBO DN 200 MM E O POÇO/ CAIXA DE CONCRETO OU ALVENARIA EM REDES DE ESGOTO. AF_01/2021 | I75: UN | J75: COEFICIENTE DE REPRESENTATIVIDADE | K75: 39,60 | L75: CAIXA REFERENCIAL
A76: ASSENTAMENTO DE TUBOS E PECAS | B76: ASTU | C76: FORNEC E/OU ASSENT DE TUBO DE PVC COM JUNTA ELASTICA | D76: 0048 | G76: 90727 | H76: JUNTA ARGAMASSADA ENTRE TUBO DN 250 MM E O POÇO DE VISITA/ CAIXA DE CONCRETO OU ALVENARIA EM REDES DE ESGOTO. AF_01/2021 | I76: UN | J76: COEFICIENTE DE REPRESENTATIVIDADE | K76: 45,83 | L76: CAIXA REFERENCIAL
A77: ASSENTAMENTO DE TUBOS E PECAS | B77: ASTU | C77: FORNEC E/OU ASSENT DE TUBO DE PVC COM JUNTA ELASTICA | D77: 0048 | G77: 90728 | H77: JUNTA ARGAMASSADA ENTRE TUBO DN 300 MM E O POÇO DE VISITA/ CAIXA DE CONCRETO OU ALVENARIA EM REDES DE ESGOTO. AF_01/2021 | I77: UN | J77: COEFICIENTE DE REPRESENTATIVIDADE | K77: 52,06 | L77: CAIXA REFERENCIAL
A78: ASSENTAMENTO DE TUBOS E PECAS | B78: ASTU | C78: FORNEC E/OU ASSENT DE TUBO DE PVC COM JUNTA ELASTICA | D78: 0048 | G78: 90729 | H78: JUNTA ARGAMASSADA ENTRE TUBO DN 350 MM E O POÇO DE VISITA/ CAIXA DE CONCRETO OU ALVENARIA EM REDES DE ESGOTO. AF_01/2021 | I78: UN | J78: COEFICIENTE DE REPRESENTATIVIDADE | K78: 58,28 | L78: CAIXA REFERENCIAL
A79: ASSENTAMENTO DE TUBOS E PECAS | B79: ASTU | C79: FORNEC E/OU ASSENT DE TUBO DE PVC COM JUNTA ELASTICA | D79: 0048 | G79: 90730 | H79: JUNTA ARGAMASSADA ENTRE TUBO DN 400 MM E O POÇO DE VISITA/ CAIXA DE CONCRETO OU ALVENARIA EM REDES DE ESGOTO. AF_01/2021 | I79: UN | J79: COEFICIENTE DE REPRESENTATIVIDADE | K79: 64,51 | L79: CAIXA REFERENCIAL
A80: ASSENTAMENTO DE TUBOS E PECAS | B80: ASTU | C80: FORNEC E/OU ASSENT DE TUBO DE PVC COM JUNTA ELASTICA | D80: 0048 | G80: 90731 | H80: JUNTA ARGAMASSADA ENTRE TUBO DN 450 MM E O POÇO DE VISITA/ CAIXA DE CONCRETO OU ALVENARIA EM REDES DE ESGOTO. AF_01/2021 | I80: UN | J80: COEFICIENTE DE REPRESENTATIVIDADE | K80: 70,74 | L80: CAIXA REFERENCIAL
A81: ASSENTAMENTO DE TUBOS E PECAS | B81: ASTU | C81: FORNEC E/OU ASSENT DE TUBO DE PVC COM JUNTA ELASTICA | D81: 0048 | G81: 90732 | H81: JUNTA ARGAMASSADA ENTRE TUBO DN 600 MM E O POÇO DE VISITA/ CAIXA DE CONCRETO OU ALVENARIA EM REDES DE ESGOTO. AF_01/2021 | I81: UN | J81: COEFICIENTE DE REPRESENTATIVIDADE | K81: 89,41 | L81: CAIXA REFERENCIAL
A82: ASSENTAMENTO DE TUBOS E PECAS | B82: ASTU | C82: FORNEC E/OU ASSENT DE TUBO DE PVC COM JUNTA ELASTICA | D82: 0048 | G82: 90733 | H82: ASSENTAMENTO DE TUBO DE PVC PARA REDE COLETORA DE ESGOTO DE PAREDE MACIÇA, DN 100 MM, JUNTA ELÁSTICA (NÃO INCLUI FORNECIMENTO). AF_01/2021 | I82: M | J82: COEFICIENTE DE REPRESENTATIVIDADE | K82: 3,83 | L82: CAIXA REFERENCIAL
A83: ASSENTAMENTO DE TUBOS E PECAS | B83: ASTU | C83: FORNEC E/OU ASSENT DE TUBO DE PVC COM JUNTA ELASTICA | D83: 0048 | G83: 90734 | H83: ASSENTAMENTO DE TUBO DE PVC PARA REDE COLETORA DE ESGOTO DE PAREDE MACIÇA, DN 150 MM, JUNTA ELÁSTICA, (NÃO INCLUI FORNECIMENTO). AF_01/2021 | I83: M | J83: COEFICIENTE DE REPRESENTATIVIDADE | K83: 4,53 | L83: CAIXA REFERENCIAL
A84: ASSENTAMENTO DE TUBOS E PECAS | B84: ASTU | C84: FORNEC E/OU ASSENT DE TUBO DE PVC COM JUNTA ELASTICA | D84: 0048 | G84: 90735 | H84: ASSENTAMENTO DE TUBO DE PVC PARA REDE COLETORA DE ESGOTO DE PAREDE MACIÇA, DN 200 MM, JUNTA ELÁSTICA (NÃO INCLUI FORNECIMENTO). AF_01/2021 | I84: M | J84: COEFICIENTE DE REPRESENTATIVIDADE | K84: 5,24 | L84: CAIXA REFERENCIAL
A85: ASSENTAMENTO DE TUBOS E PECAS | B85: ASTU | C85: FORNEC E/OU ASSENT DE TUBO DE PVC COM JUNTA ELASTICA | D85: 0048 | G85: 90736 | H85: ASSENTAMENTO DE TUBO DE PVC PARA REDE COLETORA DE ESGOTO DE PAREDE MACIÇA, DN 250 MM, JUNTA ELÁSTICA (NÃO INCLUI FORNECIMENTO). AF_01/2021 | I85: M | J85: COEFICIENTE DE REPRESENTATIVIDADE | K85: 5,94 | L85: CAIXA REFERENCIAL
A86: ASSENTAMENTO DE TUBOS E PECAS | B86: ASTU | C86: FORNEC E/OU ASSENT DE TUBO DE PVC COM JUNTA ELASTICA | D86: 0048 | G86: 90737 | H86: ASSENTAMENTO DE TUBO DE PVC PARA REDE COLETORA DE ESGOTO DE PAREDE MACIÇA, DN 300 MM, JUNTA ELÁSTICA (NÃO INCLUI FORNECIMENTO). AF_01/2021 | I86: M | J86: COEFICIENTE DE REPRESENTATIVIDADE | K86: 6,66 | L86: CAIXA REFERENCIAL
A87: ASSENTAMENTO DE TUBOS E PECAS | B87: ASTU | C87: FORNEC E/OU ASSENT DE TUBO DE PVC COM JUNTA ELASTICA | D87: 0048 | G87: 90738 | H87: ASSENTAMENTO DE TUBO DE PVC PARA REDE COLETORA DE ESGOTO DE PAREDE MACIÇA, DN 350 MM, JUNTA ELÁSTICA (NÃO INCLUI FORNECIMENTO). AF_01/2021 | I87: M | J87: COEFICIENTE DE REPRESENTATIVIDADE | K87: 7,36 | L87: CAIXA REFERENCIAL
A88: ASSENTAMENTO DE TUBOS E PECAS | B88: ASTU | C88: FORNEC E/OU ASSENT DE TUBO DE PVC COM JUNTA ELASTICA | D88: 0048 | G88: 90739 | H88: ASSENTAMENTO DE TUBO DE PVC PARA REDE COLETORA DE ESGOTO DE PAREDE MACIÇA, DN 400 MM, JUNTA ELÁSTICA (NÃO INCLUI FORNECIMENTO). AF_01/2021 | I88: M | J88: COEFICIENTE DE REPRESENTATIVIDADE | K88: 10,33 | L88: CAIXA REFERENCIAL
A89: ASSENTAMENTO DE TUBOS E PECAS | B89: ASTU | C89: FORNEC E/OU ASSENT DE TUBO DE PVC COM JUNTA ELASTICA | D89: 0048 | G89: 90740 | H89: ASSENTAMENTO DE TUBO DE PVC CORRUGADO DE DUPLA PAREDE PARA REDE COLETORA DE ESGOTO, DN 150 MM, JUNTA ELÁSTICA (NÃO INCLUI FORNECIMENTO). AF_01/2021 | I89: M | J89: COEFICIENTE DE REPRESENTATIVIDADE | K89: 5,05 | L89: CAIXA REFERENCIAL
A90: ASSENTAMENTO DE TUBOS E PECAS | B90: ASTU | C90: FORNEC E/OU ASSENT DE TUBO DE PVC COM JUNTA ELASTICA | D90: 0048 | G90: 90741 | H90: ASSENTAMENTO DE TUBO DE PVC CORRUGADO DE DUPLA PAREDE PARA REDE COLETORA DE ESGOTO, DN 200 MM, JUNTA ELÁSTICA (NÃO INCLUI FORNECIMENTO). AF_01/2021 | I90: M | J90: COEFICIENTE DE REPRESENTATIVIDADE | K90: 5,75 | L90: CAIXA REFERENCIAL
A91: ASSENTAMENTO DE TUBOS E PECAS | B91: ASTU | C91: FORNEC E/OU ASSENT DE TUBO DE PVC COM JUNTA ELASTICA | D91: 0048 | G91: 90742 | H91: ASSENTAMENTO DE TUBO DE PVC CORRUGADO DE DUPLA PAREDE PARA REDE COLETORA DE ESGOTO, DN 250 MM, JUNTA ELÁSTICA (NÃO INCLUI FORNECIMENTO). AF_01/2021 | I91: M | J91: COEFICIENTE DE REPRESENTATIVIDADE | K91: 6,47 | L91: CAIXA REFERENCIAL
A92: ASSENTAMENTO DE TUBOS E PECAS | B92: ASTU | C92: FORNEC E/OU ASSENT DE TUBO DE PVC COM JUNTA ELASTICA | D92: 0048 | G92: 90743 | H92: ASSENTAMENTO DE TUBO DE PVC CORRUGADO DE DUPLA PAREDE PARA REDE COLETORA DE ESGOTO, DN 300 MM, JUNTA ELÁSTICA (NÃO INCLUI FORNECIMENTO). AF_01/2021 | I92: M | J92: COEFICIENTE DE REPRESENTATIVIDADE | K92: 7,18 | L92: CAIXA REFERENCIAL
A93: ASSENTAMENTO DE TUBOS E PECAS | B93: ASTU | C93: FORNEC E/OU ASSENT DE TUBO DE PVC COM JUNTA ELASTICA | D93: 0048 | G93: 90744 | H93: ASSENTAMENTO DE TUBO DE PVC CORRUGADO DE DUPLA PAREDE PARA REDE COLETORA DE ESGOTO, DN 350 MM, JUNTA ELÁSTICA (NÃO INCLUI FORNECIMENTO). AF_01/2021 | I93: M | J93: COEFICIENTE DE REPRESENTATIVIDADE | K93: 7,88 | L93: CAIXA REFERENCIAL
A94: ASSENTAMENTO DE TUBOS E PECAS | B94: ASTU | C94: FORNEC E/OU ASSENT DE TUBO DE PVC COM JUNTA ELASTICA | D94: 0048 | G94: 90745 | H94: ASSENTAMENTO DE TUBO DE PVC CORRUGADO DE DUPLA PAREDE PARA REDE COLETORA DE ESGOTO, DN 400 MM, JUNTA ELÁSTICA (NÃO INCLUI FORNECIMENTO). AF_01/2021 | I94: M | J94: COEFICIENTE DE REPRESENTATIVIDADE | K94: 11,53 | L94: CAIXA REFERENCIAL
A95: ASSENTAMENTO DE TUBOS E PECAS | B95: ASTU | C95: FORNEC E/OU ASSENT DE TUBO DE PVC COM JUNTA ELASTICA | D95: 0048 | G95: 90746 | H95: ASSENTAMENTO DE TUBO DE PEAD CORRUGADO DE DUPLA PAREDE PARA REDE COLETORA DE ESGOTO, DN 450 MM, JUNTA ELÁSTICA INTEGRADA (NÃO INCLUI FORNECIMENTO). AF_01/2021 | I95: M | J95: COEFICIENTE DE REPRESENTATIVIDADE | K95: 4,14 | L95: CAIXA REFERENCIAL
A96: ASSENTAMENTO DE TUBOS E PECAS | B96: ASTU | C96: FORNEC E/OU ASSENT DE TUBO DE PVC COM JUNTA ELASTICA | D96: 0048 | G96: 90747 | H96: ASSENTAMENTO DE TUBO DE PEAD CORRUGADO DE DUPLA PAREDE PARA REDE COLETORA DE ESGOTO, DN 600 MM, JUNTA ELÁSTICA INTEGRADA (NÃO INCLUI FORNECIMENTO). AF_01/2021 | I96: M | J96: COEFICIENTE DE REPRESENTATIVIDADE | K96: 18,56 | L96: CAIXA REFERENCIAL
A97: ASSENTAMENTO DE TUBOS E PECAS | B97: ASTU | C97: FORNEC E/OU ASSENT DE TUBO DE PVC COM JUNTA ELASTICA | D97: 0048 | G97: 94869 | H97: TUBO DE PEAD CORRUGADO DE DUPLA PAREDE PARA REDE COLETORA DE ESGOTO, DN 250 MM, JUNTA ELÁSTICA INTEGRADA - FORNECIMENTO E ASSENTAMENTO. AF_01/2021 | I97: M | J97: COEFICIENTE DE REPRESENTATIVIDADE | K97: 291,31 | L97: CAIXA REFERENCIAL
A98: ASSENTAMENTO DE TUBOS E PECAS | B98: ASTU | C98: FORNEC E/OU ASSENT DE TUBO DE PVC COM JUNTA ELASTICA | D98: 0048 | G98: 94870 | H98: ASSENTAMENTO DE TUBO DE PEAD CORRUGADO DE DUPLA PAREDE PARA REDE COLETORA DE ESGOTO, DN 250 MM, JUNTA ELÁSTICA INTEGRADA (NÃO INCLUI FORNECIMENTO). AF_01/2021 | I98: M | J98: COEFICIENTE DE REPRESENTATIVIDADE | K98: 1,91 | L98: CAIXA REFERENCIAL
A99: ASSENTAMENTO DE TUBOS E PECAS | B99: ASTU | C99: FORNEC E/OU ASSENT DE TUBO DE PVC COM JUNTA ELASTICA | D99: 0048 | G99: 94871 | H99: TUBO DE PEAD CORRUGADO DE DUPLA PAREDE PARA REDE COLETORA DE ESGOTO, DN 300 MM, JUNTA ELÁSTICA INTEGRADA - FORNECIMENTO E ASSENTAMENTO. AF_01/2021 | I99: M | J99: COEFICIENTE DE REPRESENTATIVIDADE | K99: 456,17 | L99: CAIXA REFERENCIAL
A100: ASSENTAMENTO DE TUBOS E PECAS | B100: ASTU | C100: FORNEC E/OU ASSENT DE TUBO DE PVC COM JUNTA ELASTICA | D100: 0048 | G100: 94872 | H100: ASSENTAMENTO DE TUBO DE PEAD CORRUGADO DE DUPLA PAREDE PARA REDE COLETORA DE ESGOTO, DN 300 MM, JUNTA ELÁSTICA INTEGRADA (NÃO INCLUI FORNECIMENTO). AF_01/2021 | I100: M | J100: COEFICIENTE DE REPRESENTATIVIDADE | K100: 2,76 | L100: CAIXA REFERENCIAL
A101: ASSENTAMENTO DE TUBOS E PECAS | B101: ASTU | C101: FORNEC E/OU ASSENT DE TUBO DE PVC COM JUNTA ELASTICA | D101: 0048 | G101: 94875 | H101: TUBO DE PEAD CORRUGADO DE DUPLA PAREDE PARA REDE COLETORA DE ESGOTO, DN 800 MM, JUNTA ELÁSTICA INTEGRADA - FORNECIMENTO E ASSENTAMENTO. AF_01/2021 | I101: M | J101: COEFICIENTE DE REPRESENTATIVIDADE | K101: 2.672,36 | L101: CAIXA REFERENCIAL
A102: ASSENTAMENTO DE TUBOS E PECAS | B102: ASTU | C102: FORNEC E/OU ASSENT DE TUBO DE PVC COM JUNTA ELASTICA | D102: 0048 | G102: 94876 | H102: ASSENTAMENTO DE TUBO DE PEAD CORRUGADO DE DUPLA PAREDE PARA REDE COLETORA DE ESGOTO, DN 800 MM, JUNTA ELÁSTICA INTEGRADA (NÃO INCLUI FORNECIMENTO). AF_01/2021 | I102: M | J102: COEFICIENTE DE REPRESENTATIVIDADE | K102: 30,58 | L102: CAIXA REFERENCIAL
A103: ASSENTAMENTO DE TUBOS E PECAS | B103: ASTU | C103: FORNEC E/OU ASSENT DE TUBO DE PVC COM JUNTA ELASTICA | D103: 0048 | G103: 94878 | H103: ASSENTAMENTO DE TUBO DE PEAD CORRUGADO DE DUPLA PAREDE PARA REDE COLETORA DE ESGOTO, DN 900 MM, JUNTA ELÁSTICA INTEGRADA (NÃO INCLUI FORNECIMENTO). AF_01/2021 | I103: M | J103: COEFICIENTE DE REPRESENTATIVIDADE | K103: 35,46 | L103: CAIXA REFERENCIAL
A104: ASSENTAMENTO DE TUBOS E PECAS | B104: ASTU | C104: FORNEC E/OU ASSENT DE TUBO DE PVC COM JUNTA ELASTICA | D104: 0048 | G104: 94879 | H104: TUBO DE PEAD CORRUGADO DE DUPLA PAREDE PARA REDE COLETORA DE ESGOTO, DN 1000 MM, JUNTA ELÁSTICA INTEGRADA - FORNECIMENTO E ASSENTAMENTO. AF_01/2021 | I104: M | J104: COEFICIENTE DE REPRESENTATIVIDADE | K104: 4.114,94 | L104: CAIXA REFERENCIAL
A105: ASSENTAMENTO DE TUBOS E PECAS | B105: ASTU | C105: FORNEC E/OU ASSENT DE TUBO DE PVC COM JUNTA ELASTICA | D105: 0048 | G105: 94880 | H105: ASSENTAMENTO DE TUBO DE PEAD CORRUGADO DE DUPLA PAREDE PARA REDE COLETORA DE ESGOTO, DN 1000 MM, JUNTA ELÁSTICA INTEGRADA (NÃO INCLUI FORNECIMENTO). AF_01/2021 | I105: M | J105: COEFICIENTE DE REPRESENTATIVIDADE | K105: 45,33 | L105: CAIXA REFERENCIAL
A106: ASSENTAMENTO DE TUBOS E PECAS | B106: ASTU | C106: FORNEC E/OU ASSENT DE TUBO DE PVC COM JUNTA ELASTICA | D106: 0048 | G106: 94881 | H106: TUBO DE PEAD CORRUGADO DE DUPLA PAREDE PARA REDE COLETORA DE ESGOTO, DN 1200 MM, JUNTA ELÁSTICA INTEGRADA - FORNECIMENTO E ASSENTAMENTO. AF_01/2021 | I106: M | J106: COEFICIENTE DE REPRESENTATIVIDADE | K106: 5.677,30 | L106: CAIXA REFERENCIAL
A107: ASSENTAMENTO DE TUBOS E PECAS | B107: ASTU | C107: FORNEC E/OU ASSENT DE TUBO DE PVC COM JUNTA ELASTICA | D107: 0048 | G107: 94882 | H107: ASSENTAMENTO DE TUBO DE PEAD CORRUGADO DE DUPLA PAREDE PARA REDE COLETORA DE ESGOTO, DN 1200 MM, JUNTA ELÁSTICA INTEGRADA (NÃO INCLUI FORNECIMENTO). AF_01/2021 | I107: M | J107: COEFICIENTE DE REPRESENTATIVIDADE | K107: 52,84 | L107: CAIXA REFERENCIAL
A108: ASSENTAMENTO DE TUBOS E PECAS | B108: ASTU | C108: FORNEC E/OU ASSENT DE TUBO DE PVC COM JUNTA ELASTICA | D108: 0048 | G108: 94884 | H108: ASSENTAMENTO DE TUBO DE PEAD CORRUGADO DE DUPLA PAREDE PARA REDE COLETORA DE ESGOTO, DN 1500 MM, JUNTA ELÁSTICA INTEGRADA (NÃO INCLUI FORNECIMENTO). AF_01/2021 | I108: M | J108: COEFICIENTE DE REPRESENTATIVIDADE | K108: 68,11 | L108: CAIXA REFERENCIAL
A109: ASSENTAMENTO DE TUBOS E PECAS | B109: ASTU | C109: FORNEC E/OU ASSENT DE TUBO DE PVC COM JUNTA ELASTICA | D109: 0048 | G109: 97121 | H109: ASSENTAMENTO DE TUBO DE PVC PBA PARA REDE DE ÁGUA, DN 50 MM, JUNTA ELÁSTICA INTEGRADA, INSTALADO EM LOCAL COM NÍVEL ALTO DE INTERFERÊNCIAS (NÃO INCLUI FORNECIMENTO). AF_11/2017 | I109: M | J109: COEFICIENTE DE REPRESENTATIVIDADE | K109: 2,26 | L109: CAIXA REFERENCIAL
A110: ASSENTAMENTO DE TUBOS E PECAS | B110: ASTU | C110: FORNEC E/OU ASSENT DE TUBO DE PVC COM JUNTA ELASTICA | D110: 0048 | G110: 97122 | H110: ASSENTAMENTO DE TUBO DE PVC PBA PARA REDE DE ÁGUA, DN 75 MM, JUNTA ELÁSTICA INTEGRADA, INSTALADO EM LOCAL COM NÍVEL ALTO DE INTERFERÊNCIAS (NÃO INCLUI FORNECIMENTO). AF_11/2017 | I110: M | J110: COEFICIENTE DE REPRESENTATIVIDADE | K110: 3,12 | L110: CAIXA REFERENCIAL
A111: ASSENTAMENTO DE TUBOS E PECAS | B111: ASTU | C111: FORNEC E/OU ASSENT DE TUBO DE PVC COM JUNTA ELASTICA | D111: 0048 | G111: 97123 | H111: ASSENTAMENTO DE TUBO DE PVC PBA PARA REDE DE ÁGUA, DN 100 MM, JUNTA ELÁSTICA INTEGRADA, INSTALADO EM LOCAL COM NÍVEL ALTO DE INTERFERÊNCIAS (NÃO INCLUI FORNECIMENTO). AF_11/2017 | I111: M | J111: COEFICIENTE DE REPRESENTATIVIDADE | K111: 3,96 | L111: CAIXA REFERENCIAL
A112: ASSENTAMENTO DE TUBOS E PECAS | B112: ASTU | C112: FORNEC E/OU ASSENT DE TUBO DE PVC COM JUNTA ELASTICA | D112: 0048 | G112: 97124 | H112: ASSENTAMENTO DE TUBO DE PVC PBA PARA REDE DE ÁGUA, DN 50 MM, JUNTA ELÁSTICA INTEGRADA, INSTALADO EM LOCAL COM NÍVEL BAIXO DE INTERFERÊNCIAS (NÃO INCLUI FORNECIMENTO). AF_11/2017 | I112: M | J112: COEFICIENTE DE REPRESENTATIVIDADE | K112: 0,99 | L112: CAIXA REFERENCIAL
A113: ASSENTAMENTO DE TUBOS E PECAS | B113: ASTU | C113: FORNEC E/OU ASSENT DE TUBO DE PVC COM JUNTA ELASTICA | D113: 0048 | G113: 97125 | H113: ASSENTAMENTO DE TUBO DE PVC PBA PARA REDE DE ÁGUA, DN 75 MM, JUNTA ELÁSTICA INTEGRADA, INSTALADO EM LOCAL COM NÍVEL BAIXO DE INTERFERÊNCIAS (NÃO INCLUI FORNECIMENTO). AF_11/2017 | I113: M | J113: COEFICIENTE DE REPRESENTATIVIDADE | K113: 1,39 | L113: CAIXA REFERENCIAL
A114: ASSENTAMENTO DE TUBOS E PECAS | B114: ASTU | C114: FORNEC E/OU ASSENT DE TUBO DE PVC COM JUNTA ELASTICA | D114: 0048 | G114: 97126 | H114: ASSENTAMENTO DE TUBO DE PVC PBA PARA REDE DE ÁGUA, DN 100 MM, JUNTA ELÁSTICA INTEGRADA, INSTALADO EM LOCAL COM NÍVEL BAIXO DE INTERFERÊNCIAS (NÃO INCLUI FORNECIMENTO). AF_11/2017 | I114: M | J114: COEFICIENTE DE REPRESENTATIVIDADE | K114: 1,76 | L114: CAIXA REFERENCIAL
A115: ASSENTAMENTO DE TUBOS E PECAS | B115: ASTU | C115: FORNEC E/OU ASSENT DE TUBO DE PVC COM JUNTA ELASTICA | D115: 0048 | G115: 102264 | H115: TUBO DE PVC BRANCO PARA REDE COLETORA DE ESGOTO CONDOMINIAL DE PAREDE MACIÇA, DN 100 MM, JUNTA ELÁSTICA - FORNECIMENTO E ASSENTAMENTO. AF_01/2021 | I115: M | J115: COEFICIENTE DE REPRESENTATIVIDADE | K115: 22,12 | L115: CAIXA REFERENCIAL
A116: ASSENTAMENTO DE TUBOS E PECAS | B116: ASTU | C116: FORNEC E/OU ASSENT DE TUBO DE PVC COM JUNTA ELASTICA | D116: 0048 | G116: 102265 | H116: JUNTA ARGAMASSADA ENTRE TUBO DN 800 MM E O POÇO DE VISITA/ CAIXA DE CONCRETO OU ALVENARIA EM REDES DE ESGOTO. AF_01/2021 | I116: UN | J116: COEFICIENTE DE REPRESENTATIVIDADE | K116: 114,31 | L116: CAIXA REFERENCIAL
A117: ASSENTAMENTO DE TUBOS E PECAS | B117: ASTU | C117: FORNEC E/OU ASSENT DE TUBO DE PVC COM JUNTA ELASTICA | D117: 0048 | G117: 102266 | H117: JUNTA ARGAMASSADA ENTRE TUBO DN 900 MM E O POÇO DE VISITA/ CAIXA DE CONCRETO OU ALVENARIA EM REDES DE ESGOTO. AF_01/2021 | I117: UN | J117: COEFICIENTE DE REPRESENTATIVIDADE | K117: 126,76 | L117: CAIXA REFERENCIAL
A118: ASSENTAMENTO DE TUBOS E PECAS | B118: ASTU | C118: FORNEC E/OU ASSENT DE TUBO DE PVC COM JUNTA ELASTICA | D118: 0048 | G118: 102267 | H118: JUNTA ARGAMASSADA ENTRE TUBO DN 1000 MM E O POÇO DE VISITA/ CAIXA DE CONCRETO OU ALVENARIA EM REDES DE ESGOTO. AF_01/2021 | I118: UN | J118: COEFICIENTE DE REPRESENTATIVIDADE | K118: 145,51 | L118: CAIXA REFERENCIAL
A119: ASSENTAMENTO DE TUBOS E PECAS | B119: ASTU | C119: FORNEC E/OU ASSENT DE TUBO DE PVC COM JUNTA ELASTICA | D119: 0048 | G119: 102268 | H119: JUNTA ARGAMASSADA ENTRE TUBO DN 1200 MM E O POÇO DE VISITA/ CAIXA DE CONCRETO OU ALVENARIA EM REDES DE ESGOTO. AF_01/2021 | I119: UN | J119: COEFICIENTE DE REPRESENTATIVIDADE | K119: 164,18 | L119: CAIXA REFERENCIAL
A120: ASSENTAMENTO DE TUBOS E PECAS | B120: ASTU | C120: FORNEC E/OU ASSENT DE TUBO DE PVC COM JUNTA ELASTICA | D120: 0048 | G120: 102269 | H120: JUNTA ARGAMASSADA ENTRE TUBO DN 1500 MM E O POÇO DE VISITA/ CAIXA DE CONCRETO OU ALVENARIA EM REDES DE ESGOTO. AF_01/2021 | I120: UN | J120: COEFICIENTE DE REPRESENTATIVIDADE | K120: 201,53 | L120: CAIXA REFERENCIAL
A121: ASSENTAMENTO DE TUBOS E PECAS | B121: ASTU | C121: FORNEC E/OU ASSENT DE TUBO DE CONCRETO COM JUNTA ELASTICA | D121: 0051 | G121: 92833 | H121: TUBO DE CONCRETO PARA REDES COLETORAS DE ESGOTO SANITÁRIO, DIÂMETRO DE 300 MM, JUNTA ELÁSTICA, INSTALADO EM LOCAL COM BAIXO NÍVEL DE INTERFERÊNCIAS - FORNECIMENTO E ASSENTAMENTO. AF_12/2015 | I121: M | J121: COEFICIENTE DE REPRESENTATIVIDADE | K121: 172,42 | L121: CAIXA REFERENCIAL
A122: ASSENTAMENTO DE TUBOS E PECAS | B122: ASTU | C122: FORNEC E/OU ASSENT DE TUBO DE CONCRETO COM JUNTA ELASTICA | D122: 0051 | G122: 92834 | H122: ASSENTAMENTO DE TUBO DE CONCRETO PARA REDES COLETORAS DE ESGOTO SANITÁRIO, DIÂMETRO DE 300 MM, JUNTA ELÁSTICA, INSTALADO EM LOCAL COM BAIXO NÍVEL DE INTERFERÊNCIAS (NÃO INCLUI FORNECIMENTO). AF_12/2015 | I122: M | J122: COEFICIENTE DE REPRESENTATIVIDADE | K122: 10,03 | L122: CAIXA REFERENCIAL
A123: ASSENTAMENTO DE TUBOS E PECAS | B123: ASTU | C123: FORNEC E/OU ASSENT DE TUBO DE CONCRETO COM JUNTA ELASTICA | D123: 0051 | G123: 92835 | H123: TUBO DE CONCRETO PARA REDES COLETORAS DE ESGOTO SANITÁRIO, DIÂMETRO DE 400 MM, JUNTA ELÁSTICA, INSTALADO EM LOCAL COM BAIXO NÍVEL DE INTERFERÊNCIAS - FORNECIMENTO E ASSENTAMENTO. AF_12/2015 | I123: M | J123: COEFICIENTE DE REPRESENTATIVIDADE | K123: 181,81 | L123: CAIXA REFERENCIAL
A124: ASSENTAMENTO DE TUBOS E PECAS | B124: ASTU | C124: FORNEC E/OU ASSENT DE TUBO DE CONCRETO COM JUNTA ELASTICA | D124: 0051 | G124: 92836 | H124: ASSENTAMENTO DE TUBO DE CONCRETO PARA REDES COLETORAS DE ESGOTO SANITÁRIO, DIÂMETRO DE 400 MM, JUNTA ELÁSTICA, INSTALADO EM LOCAL COM BAIXO NÍVEL DE INTERFERÊNCIAS (NÃO INCLUI FORNECIMENTO). AF_12/2015 | I124: M | J124: COEFICIENTE DE REPRESENTATIVIDADE | K124: 12,79 | L124: CAIXA REFERENCIAL
A125: ASSENTAMENTO DE TUBOS E PECAS | B125: ASTU | C125: FORNEC E/OU ASSENT DE TUBO DE CONCRETO COM JUNTA ELASTICA | D125: 0051 | G125: 92837 | H125: TUBO DE CONCRETO PARA REDES COLETORAS DE ESGOTO SANITÁRIO, DIÂMETRO DE 500 MM, JUNTA ELÁSTICA, INSTALADO EM LOCAL COM BAIXO NÍVEL DE INTERFERÊNCIAS - FORNECIMENTO E ASSENTAMENTO. AF_12/2015 | I125: M | J125: COEFICIENTE DE REPRESENTATIVIDADE | K125: 316,50 | L125: CAIXA REFERENCIAL
A126: ASSENTAMENTO DE TUBOS E PECAS | B126: ASTU | C126: FORNEC E/OU ASSENT DE TUBO DE CONCRETO COM JUNTA ELASTICA | D126: 0051 | G126: 92838 | H126: ASSENTAMENTO DE TUBO DE CONCRETO PARA REDES COLETORAS DE ESGOTO SANITÁRIO, DIÂMETRO DE 500 MM, JUNTA ELÁSTICA, INSTALADO EM LOCAL COM BAIXO NÍVEL DE INTERFERÊNCIAS (NÃO INCLUI FORNECIMENTO). AF_12/2015 | I126: M | J126: COEFICIENTE DE REPRESENTATIVIDADE | K126: 15,35 | L126: CAIXA REFERENCIAL
A127: ASSENTAMENTO DE TUBOS E PECAS | B127: ASTU | C127: FORNEC E/OU ASSENT DE TUBO DE CONCRETO COM JUNTA ELASTICA | D127: 0051 | G127: 92839 | H127: TUBO DE CONCRETO PARA REDES COLETORAS DE ESGOTO SANITÁRIO, DIÂMETRO DE 600 MM, JUNTA ELÁSTICA, INSTALADO EM LOCAL COM BAIXO NÍVEL DE INTERFERÊNCIAS - FORNECIMENTO E ASSENTAMENTO. AF_12/2015 | I127: M | J127: COEFICIENTE DE REPRESENTATIVIDADE | K127: 386,87 | L127: CAIXA REFERENCIAL
A128: ASSENTAMENTO DE TUBOS E PECAS | B128: ASTU | C128: FORNEC E/OU ASSENT DE TUBO DE CONCRETO COM JUNTA ELASTICA | D128: 0051 | G128: 92840 | H128: ASSENTAMENTO DE TUBO DE CONCRETO PARA REDES COLETORAS DE ESGOTO SANITÁRIO, DIÂMETRO DE 600 MM, JUNTA ELÁSTICA, INSTALADO EM LOCAL COM BAIXO NÍVEL DE INTERFERÊNCIAS (NÃO INCLUI FORNECIMENTO). AF_12/2015 | I128: M | J128: COEFICIENTE DE REPRESENTATIVIDADE | K128: 18,20 | L128: CAIXA REFERENCIAL
A129: ASSENTAMENTO DE TUBOS E PECAS | B129: ASTU | C129: FORNEC E/OU ASSENT DE TUBO DE CONCRETO COM JUNTA ELASTICA | D129: 0051 | G129: 92841 | H129: TUBO DE CONCRETO PARA REDES COLETORAS DE ESGOTO SANITÁRIO, DIÂMETRO DE 700 MM, JUNTA ELÁSTICA, INSTALADO EM LOCAL COM BAIXO NÍVEL DE INTERFERÊNCIAS - FORNECIMENTO E ASSENTAMENTO. AF_12/2015 | I129: M | J129: COEFICIENTE DE REPRESENTATIVIDADE | K129: 503,72 | L129: CAIXA REFERENCIAL
A130: ASSENTAMENTO DE TUBOS E PECAS | B130: ASTU | C130: FORNEC E/OU ASSENT DE TUBO DE CONCRETO COM JUNTA ELASTICA | D130: 0051 | G130: 92842 | H130: ASSENTAMENTO DE TUBO DE CONCRETO PARA REDES COLETORAS DE ESGOTO SANITÁRIO, DIÂMETRO DE 700 MM, JUNTA ELÁSTICA, INSTALADO EM LOCAL COM BAIXO NÍVEL DE INTERFERÊNCIAS (NÃO INCLUI FORNECIMENTO). AF_12/2015 | I130: M | J130: COEFICIENTE DE REPRESENTATIVIDADE | K130: 20,76 | L130: CAIXA REFERENCIAL
A131: ASSENTAMENTO DE TUBOS E PECAS | B131: ASTU | C131: FORNEC E/OU ASSENT DE TUBO DE CONCRETO COM JUNTA ELASTICA | D131: 0051 | G131: 92843 | H131: TUBO DE CONCRETO PARA REDES COLETORAS DE ESGOTO SANITÁRIO, DIÂMETRO DE 800 MM, JUNTA ELÁSTICA, INSTALADO EM LOCAL COM BAIXO NÍVEL DE INTERFERÊNCIAS - FORNECIMENTO E ASSENTAMENTO. AF_12/2015 | I131: M | J131: COEFICIENTE DE REPRESENTATIVIDADE | K131: 524,35 | L131: CAIXA REFERENCIAL
